Workbook

Sheet Introduktion
B2: Introduktion | E2: ELFORSK
B4: Dette beregningsværktøj er udviklet som en del af Elforsk projektet "Klassificering af energibesparelser" som hjælp til at estimere energibesparelserne ved forskellige tiltag for bygningsinstallationer. Værktøjet er målrettet håndværksvirksomheder
B6: De teknologier som det er valgt at klassificeringsværktøjet skal kunne håndtere er gruppen af såkaldte standardteknologier, som er:
B7: 1. Varmeanlæg
B8: 2. Belysning
B9: 3. Pumpning
B10: 4. Ventilation
B11: 5. Køling (luftkonditionering)
B13: Klassificeringsværktøjet kan derimod ikke anvendes i forbindelse med specielle anvendelser som f.eks. tørreanlæg, ekstrudere og destillationsanlæg, da de mere specielle anlæg ofte er udrustet til den givne anvendelse og normalt serviceres af udstyrsleverandøren og ikke håndværkere i traditionel forstand.
B15: Præsentationen af klassifikationen af de enkeltstående energibesparelsesmuligheder samt den samlede løsning sker ved at vise forslagenes tilbagebetalingstid som enten grøn, gul eller rød efter deres rentabilitet:
B16: Grøn - forslag der har en god rentabilitet
B17: Gul - forslag med en rentabilitet der ligger på vippen
B18: Rød - forslag med lav rentabilitet der kan udelukkes i første omgang
B20: Da det er hensigten at beregningerne skal være så præcise, at de kan danne grundlag for en aftale med et energiselskab om indberetningsretten, er det nødvendigt at brugeren er i stand til at foretage nogle simple registreringer og målinger. Det betyder, at det i forbindelse med brugen af værktøjet forudsættes at brugeren har en vis teknisk indsigt, og at brugeren er i besiddelse af nødvendigt måleudstyr i forhold til de indtastninger der skal ske for de enkelte teknologier.
B22: Indtastninger
B23: Indtastningsfelterne har grøn baggrund
B24: Resultatfelter har gul baggrund
B25: Drop down'menuerne har hvid baggrund
B27: De fleste indtastninger valideres så det ikke er muligt at indtaste urealistiske værdier.
B29: Resultater
B30: Resultaterne fra beregningerne er samlet på arket "Resultat" og kan udskrives ved at klikke på "print"'knappen.
B32: Brugervejledning
B33: Der er udarbejdet en brugervejledning, der informerer om brugen af værktøjet, se www.???.dk\bruger????.

Sheet Udskrift
B2: Navn | D2: =IF(Data!D3="","",Data!D3) -> 
B4: Adresse | D4: =IF(Data!D5="","",Data!D5) -> 
B6: Postnr. og by | D6: =IF(Data!D7="","",Data!D7) ->  | G6: =IF(Data!F7="","",Data!F7) -> 
B8: Telefon | D8: =IF(Data!D9="","",Data!D9) -> 
B10: Mail | D10: =IF(Data!D11="","",Data!D11) -> 
B12: Dato for besøg | D12: =IF(Data!D13="","",Data!D13) -> 
B14: Udført af | D14: =IF(Data!M3="","",Data!M3) -> 
B16: Firma | D16: =IF(Data!M5="","",Data!M5) -> 
B19: Klassificering af energibesparelser | F19: =(I113-((Resultat!J96+Resultat!L96)*Data!N23))/G113 -> 1.887128162
B21: Små bygninger
B23: Udskiftning af varmeproducerende enhed | G23: Besparelse [kr.] | I23: Investering [kr.] | K23: TBT [år]
B25: Udskifting af ældre fjernvarmeanlæg til nyt anlæg | G25: =Resultat!N8 ->  | I25: =IF(Resultat!P8="","",Resultat!P8) ->  | K25: =Resultat!R8 -> 
B27: Udskiftning af oliekedel til ny oliekedel | G27: =Resultat!N10 -> 8295.678369 | I27: =IF(Resultat!P10="","",Resultat!P10) ->  | K27: =Resultat!R10 -> 
B29: Udskiftning af oliekedel til fjernvarmeunit | G29: =Resultat!N12 ->  | I29: =IF(Resultat!P12="","",Resultat!P12) ->  | K29: =Resultat!R12 -> 
B31: Udskiftning af oliekedel til ny gaskedel | G31: =Resultat!N14 ->  | I31: =IF(Resultat!P14="","",Resultat!P14) ->  | K31: =Resultat!R14 -> 
B33: Udskiftning af oliekedel til varmepumpe | G33: =Resultat!N16 ->  | I33: =IF(Resultat!P16="","",Resultat!P16) ->  | K33: =Resultat!R16 -> 
B35: Udskiftning af oliekedel til træpillekedel | G35: =Resultat!N18 ->  | I35: =IF(Resultat!P18="","",Resultat!P18) ->  | K35: =Resultat!R18 -> 
B37: Udskiftning af gaskedel til ny gaskedel | G37: =Resultat!N20 ->  | I37: =IF(Resultat!P20="","",Resultat!P20) ->  | K37: =Resultat!R20 -> 
B39: Udskiftning af gaskedel til varmepumpe | G39: =Resultat!N22 ->  | I39: =IF(Resultat!P22="","",Resultat!P22) ->  | K39: =Resultat!R22 -> 
B41: Udskiftning af gaskedel til træpillekedel | G41: =Resultat!N24 ->  | I41: =IF(Resultat!P24="","",Resultat!P24) ->  | K41: =Resultat!R24 -> 
B44: Isolering
B46: Isolering af centralvarmeledninger - fremløb | G46: =Resultat!N29 -> 3593.649347 | I46: =IF(Resultat!P29="","",Resultat!P29) ->  | K46: =Resultat!R29 -> 
B48: Isolering af centralvarmeledninger - retur | G48: =Resultat!N31 -> 3097.217316 | I48: =IF(Resultat!P31="","",Resultat!P31) ->  | K48: =Resultat!R31 -> 
B50: Isolering af ledninger til varmt brugsvand | G50: =Resultat!N33 -> 12000.94244 | I50: =IF(Resultat!P33="","",Resultat!P33) ->  | K50: =Resultat!R33 -> 
B53: Styring
B55: Termostatventiler | G55: =Resultat!N38 -> 723.9873382 | I55: =IF(Resultat!P38="","",Resultat!P38) ->  | K55: =Resultat!R38 -> 
B57: Rumtemperatur | G57: =Resultat!N40 -> 723.9873382 | I57: =IF(Resultat!P40="","",Resultat!P40) ->  | K57: =Resultat!R40 -> 
B59: Udekompensering | G59: =Resultat!N42 -> 723.9873382 | I59: =IF(Resultat!P42="","",Resultat!P42) ->  | K59: =Resultat!R42 -> 
B61: Natsænkning | G61: =Resultat!N44 -> 258.5669065 | I61: =IF(Resultat!P44="","",Resultat!P44) ->  | K61: =Resultat!R44 -> 
B64: Solvarme
B66: Solvarmeanlæg | G66: =Resultat!N49 -> 9700 | I66: =IF(Resultat!P49="","",Resultat!P49) ->  | K66: =Resultat!R49 -> 
B69: Ventilation
B71: Reduktion af driftstid | G71: =Resultat!N54 -> 284538.2895 | I71: =IF(Resultat!P54="","",Resultat!P54) ->  | K71: =Resultat!R54 -> 
B73: Reduktion af indblæsningstemperatur | G73: =Resultat!N56 ->  | I73: =IF(Resultat!P56="","",Resultat!P56) ->  | K73: =Resultat!R56 -> 
B75: Reduktion af volumenstrømme | G75: =Resultat!N58 ->  | I75: =IF(Resultat!P58="","",Resultat!P58) ->  | K75: =Resultat!R58 -> 
B77: Etablering eller udskiftning af varmegenvindingsenhed | G77: =Resultat!N60 ->  | I77: =IF(Resultat!P60="","",Resultat!P60) ->  | K77: =Resultat!R60 -> 
B79: Udskiftning af ventilator og motor | G79: =Resultat!N62 ->  | I79: =IF(Resultat!P62="","",Resultat!P62) ->  | K79: =Resultat!R62 -> 
B81: Kombinerede forslag (enkeltforslag vises ikke) | G81: =Resultat!N64 ->  | I81: =IF(Resultat!P64="","",Resultat!P64) ->  | K81: =Resultat!R64 -> 
B84: Pumper
B86: Udskiftning af pumpe | G86: =Resultat!N69 ->  | I86: =IF(Resultat!P69="","",Resultat!P69) ->  | K86: =Resultat!R69 -> 
B89: Belysning
B91: Reduktion af driftstid | G91: =Resultat!N74 -> 161973.4817 | I91: =IF(Resultat!P74="","",Resultat!P74) -> 1000000 | K91: =Resultat!R74 -> 6.173850122
B93: Sektionsopdeling | G93: =Resultat!N76 ->  | I93: =IF(Resultat!P76="","",Resultat!P76) ->  | K93: =Resultat!R76 -> 
B95: Reduktion af belysningsstyrke | G95: =Resultat!N78 ->  | I95: =IF(Resultat!P78="","",Resultat!P78) ->  | K95: =Resultat!R78 -> 
B97: Udskiftning af lyskilder | G97: =Resultat!N80 ->  | I97: =IF(Resultat!P80="","",Resultat!P80) ->  | K97: =Resultat!R80 -> 
B99: Udskiftning af forkoblingsenheder | G99: =Resultat!N82 ->  | I99: =IF(Resultat!P82="","",Resultat!P82) ->  | K99: =Resultat!R82 -> 
B101: Udnyttelse af dagslysindfald | G101: =Resultat!N84 ->  | I101: =IF(Resultat!P84="","",Resultat!P84) ->  | K101: =Resultat!R84 -> 
B103: Kombinerede forslag (enkeltforslag vises ikke) | G103: =Resultat!N86 ->  | I103: =IF(Resultat!P86="","",Resultat!P86) ->  | K103: =Resultat!R86 -> 
B106: Solceller
B108: Solcelleanlæg | G108: =Resultat!N91 ->  | I108: =IF(Resultat!P91="","",Resultat!P91) ->  | K108: =Resultat!R91 -> 
B111: I alt
B113: Samlet energibesparelse | G113: =Resultat!N96 -> 485629.7876 | I113: =IF(Resultat!P96="","",Resultat!P96) -> 1000000 | K113: =Resultat!R96 -> 2.059181758
B118: Navn | D118: =IF(Data!D3="","",Data!D3) -> 
B120: Adresse | D120: =IF(Data!D5="","",Data!D5) -> 
B122: Postnr. og by | D122: =IF(Data!D7="","",Data!D7) ->  | G122: =IF(Data!F7="","",Data!F7) -> 
B124: Telefon | D124: =IF(Data!D9="","",Data!D9) -> 
B126: Mail | D126: =IF(Data!D11="","",Data!D11) -> 
B128: Dato for besøg | D128: =IF(Data!D13="","",Data!D13) -> 
B130: Udført af | D130: =IF(Data!M3="","",Data!M3) -> 
B132: Firma | D132: =IF(Data!M5="","",Data!M5) -> 
B135: Klassificering af energibesparelser | F135: =(I238-((Resultat!J204+Resultat!L204)*Data!N23))/G238 -> 2.442891435
B137: Store bygninger
B139: Udskiftning af varmeproducerende enhed | G139: Besparelse [kr.] | I139: Investering [kr.] | K139: TBT [år]
B141: Udskiftning af oliekedel til ny oliekedel | G141: =Resultat!N107 ->  | I141: =IF(Resultat!P107="","",Resultat!P107) ->  | K141: =Resultat!R107 -> 
B143: Udskiftning af oliekedel til ny gaskedel | G143: =Resultat!N109 ->  | I143: =IF(Resultat!P109="","",Resultat!P109) ->  | K143: =Resultat!R109 -> 
B145: Udskiftning af gaskedel til ny gaskedel | G145: =Resultat!N111 ->  | I145: =IF(Resultat!P111="","",Resultat!P111) ->  | K145: =Resultat!R111 -> 
B147: Udskiftning af gaskedel til ny oliekedel | G147: =Resultat!N113 ->  | I147: =IF(Resultat!P113="","",Resultat!P113) ->  | K147: =Resultat!R113 -> 
B150: Isolering
B152: Isolering af centralvarmeledninger - fremløb | G152: =Resultat!N118 -> 3992.943719 | I152: =IF(Resultat!P118="","",Resultat!P118) ->  | K152: =Resultat!R118 -> 
B154: Isolering af centralvarmeledninger - retur | G154: =Resultat!N120 -> 3441.352574 | I154: =IF(Resultat!P120="","",Resultat!P120) ->  | K154: =Resultat!R120 -> 
B156: Isolering af ledninger til varmt brugsvand | G156: =Resultat!N122 -> 13334.38049 | I156: =IF(Resultat!P122="","",Resultat!P122) ->  | K156: =Resultat!R122 -> 
B158: Isolering af varmtvandsbeholder | G158: =Resultat!N124 -> 42792.2863 | I158: =IF(Resultat!P124="","",Resultat!P124) ->  | K158: =Resultat!R124 -> 
B161: Styring
B163: Termostatventiler | G163: =Resultat!N129 -> 804.4303758 | I163: =IF(Resultat!P129="","",Resultat!P129) ->  | K163: =Resultat!R129 -> 
B165: Rumtemperatur | G165: =Resultat!N131 -> 804.4303758 | I165: =IF(Resultat!P131="","",Resultat!P131) ->  | K165: =Resultat!R131 -> 
B167: Udekompensering | G167: =Resultat!N133 -> 804.4303758 | I167: =IF(Resultat!P133="","",Resultat!P133) ->  | K167: =Resultat!R133 -> 
B169: Natsænkning | G169: =Resultat!N135 -> 287.2965628 | I169: =IF(Resultat!P135="","",Resultat!P135) ->  | K169: =Resultat!R135 -> 
B172: Solvarme
B174: Solvarmeanlæg | G174: =Resultat!N140 -> 10777.77778 | I174: =IF(Resultat!P140="","",Resultat!P140) ->  | K174: =Resultat!R140 -> 
B177: Ventilation
B179: Reduktion af driftstid | G179: =Resultat!N145 ->  | I179: =IF(Resultat!P145="","",Resultat!P145) ->  | K179: =Resultat!R145 -> 
B181: Reduktion af indblæsningstemperatur | G181: =Resultat!N147 ->  | I181: =IF(Resultat!P147="","",Resultat!P147) ->  | K181: =Resultat!R147 -> 
B183: Reduktion af volumenstrømme | G183: =Resultat!N149 ->  | I183: =IF(Resultat!P149="","",Resultat!P149) ->  | K183: =Resultat!R149 -> 
B185: Etablering eller udskiftning af varmegenvindingsenhed | G185: =Resultat!N151 ->  | I185: =IF(Resultat!P151="","",Resultat!P151) ->  | K185: =Resultat!R151 -> 
B187: Udskiftning af ventilator og motor | G187: =Resultat!N153 ->  | I187: =IF(Resultat!P153="","",Resultat!P153) ->  | K187: =Resultat!R153 -> 
B189: Kombinerede forslag (enkeltforslag vises ikke) | G189: =Resultat!N155 -> 302451.8524 | I189: =IF(Resultat!P155="","",Resultat!P155) -> 1000000 | K189: =Resultat!R155 -> 3.306311375
B192: Køling
B194: Reduktion af driftstid | G194: =Resultat!N160 ->  | I194: =IF(Resultat!P160="","",Resultat!P160) ->  | K194: =Resultat!R160 -> 
B196: Reduktion af indblæsningstemperatur | G196: =Resultat!N162 ->  | I196: =IF(Resultat!P162="","",Resultat!P162) ->  | K196: =Resultat!R162 -> 
B198: Reduktion af kølefladens overfladetemperatur | G198: =Resultat!N164 ->  | I198: =IF(Resultat!P164="","",Resultat!P164) ->  | K198: =Resultat!R164 -> 
B200: Reduktion af volumenstrøm | G200: =Resultat!N166 ->  | I200: =IF(Resultat!P166="","",Resultat!P166) ->  | K200: =Resultat!R166 -> 
B202: Hævning af fordampningstemperatur | G202: =Resultat!N168 ->  | I202: =IF(Resultat!P168="","",Resultat!P168) ->  | K202: =Resultat!R168 -> 
B204: Reduktion af kondenseringstemperatur | G204: =Resultat!N170 ->  | I204: =IF(Resultat!P170="","",Resultat!P170) ->  | K204: =Resultat!R170 -> 
B206: Kombinerede forslag (enkeltforslag vises ikke) | G206: =Resultat!N172 ->  | I206: =IF(Resultat!P172="","",Resultat!P172) ->  | K206: =Resultat!R172 -> 
B209: Pumper
B211: Udskiftning af pumpe | G211: =Resultat!N177 ->  | I211: =IF(Resultat!P177="","",Resultat!P177) ->  | K211: =Resultat!R177 -> 
B214: Belysning
B216: Reduktion af driftstid | G216: =Resultat!N182 ->  | I216: =IF(Resultat!P182="","",Resultat!P182) ->  | K216: =Resultat!R182 -> 
B218: Sektionsopdeling | G218: =Resultat!N184 ->  | I218: =IF(Resultat!P184="","",Resultat!P184) ->  | K218: =Resultat!R184 -> 
B220: Reduktion af belysningsstyrke | G220: =Resultat!N186 ->  | I220: =IF(Resultat!P186="","",Resultat!P186) ->  | K220: =Resultat!R186 -> 
B222: Udskiftning af lyskilder | G222: =Resultat!N188 ->  | I222: =IF(Resultat!P188="","",Resultat!P188) ->  | K222: =Resultat!R188 -> 
B224: Udskiftning af forkoblingsenheder | G224: =Resultat!N190 ->  | I224: =IF(Resultat!P190="","",Resultat!P190) ->  | K224: =Resultat!R190 -> 
B226: Udnyttelse af dagslysindfald | G226: =Resultat!N192 ->  | I226: =IF(Resultat!P192="","",Resultat!P192) ->  | K226: =Resultat!R192 -> 
B228: Kombinerede forslag (enkeltforslag vises ikke) | G228: =Resultat!N194 ->  | I228: =IF(Resultat!P194="","",Resultat!P194) ->  | K228: =Resultat!R194 -> 
B231: Solceller
B233: Solcelleanlæg | G233: =Resultat!N199 ->  | I233: =IF(Resultat!P199="","",Resultat!P199) ->  | K233: =Resultat!R199 -> 
B236: I alt
G238: =Resultat!N204 -> 379491.181 | I238: =IF(Resultat!P204="","",Resultat!P204) -> 1000000 | K238: =Resultat!R204 -> 2.635107349

Sheet Resultat
B2: Klassificering af energibesparelser | F2: =(P96-((J96+L96)*Data!N23))/N96 -> 1.887128162
B4: Små bygninger | AA4: Virk | AB4: Virk | AC4: COP | AD4: COP
AA5: kedel | AB5: kedel | AC5: VP | AD5: VP
B6: Udskiftning af varmeproducerende enhed | J6: Besparelse [kWh] | N6: Besparelse [kr.] | P6: Investering [kr.] | R6: TBT [år] | AA6: eksist. | AB6: eksist. | AC6: ekst. | AD6: ekst.
AA7: små | AB7: store | AC7: små | AD7: store
C8: Udskifting af ældre fjernvarmeanlæg til nyt anlæg | J8: =IF(OR(X8=FALSE,Data!AO34=2,Data!AO34=3,Data!AO34=4,Data!AO34=5,Y26>1),"",Data!AO42-Data!AQ42) ->  | M8: =IF(Y26>1,"Fejl i indtastningen","") ->  | N8: =IF(OR(X8=FALSE,Y26>1),"",(Data!AO42-Data!AQ42)*Data!AO57+AH8) ->  | R8: =IF(P8="","",P8/N8) ->  | X8: FALSE | Y8: =IF(X8=FALSE,0,1) -> 0 | AA8: =1-(Inddata!H58/100) -> 0.89 | AB8: =1-('Store kedler'!C10/100) -> 0.9 | AC8: =Oliekedler!Z50 -> 3 | AD8: 3 | AH8: =IF(AND(Data!AO34=1,Data!AP34=1),Vedligehold!R9,0) -> 0
C10: Udskiftning af oliekedel til ny oliekedel | J10: =IF(OR(X10=FALSE,Data!AO34=1,Data!AO34=3,Data!AO34=4,Data!AO34=5,Y26>1),"",Data!AO43-Data!AQ43) -> 7670.678369 | N10: =IF(OR(X10=FALSE,Y26>1),"",(Data!AO43-Data!AQ43)*Data!AO57+AH10) -> 8295.678369 | R10: =IF(P10="","",P10/N10) ->  | X10: TRUE | Y10: =IF(X10=FALSE,0,1) -> 1 | AH10: =IF(AND(Data!AO34=2,Data!AP34=2),Vedligehold!R9,0) -> 625
C12: Udskiftning af oliekedel til fjernvarmeunit | J12: =IF(OR(X12=FALSE,Data!AO34=1,Data!AO34=3,Data!AO34=4,Data!AO34=5,Data!AP34=2,Data!AP34=3,Data!AP34=4,Data!AP34=5,Y26>1),"",Data!AO43-Data!AQ42) ->  | N12: =IF(OR(X12=FALSE,Data!AO34=1,Data!AO34=3,Data!AO34=4,Data!AO34=5,Data!AP34=2,Data!AP34=3,Data!AP34=4,Data!AP34=5,Y26>1),"",(Data!AO43*Data!AO57)-(Data!AQ42*Data!AQ57)+AH12) ->  | R12: =IF(P12="","",P12/N12) ->  | X12: FALSE | Y12: =IF(X12=FALSE,0,1) -> 0 | AH12: =IF(AND(Data!AO34=2,Data!AP34=1),Vedligehold!R9,0) -> 0
C14: Udskiftning af oliekedel til ny gaskedel | J14: =IF(OR(X14=FALSE,Data!AO34=1,Data!AO34=3,Data!AO34=4,Data!AO34=5,Data!AP34=1,Data!AP34=2,Data!AP34=4,Data!AP34=5,Y26>1),"",Data!AO43-Data!AQ44) ->  | N14: =IF(OR(X14=FALSE,Data!AO34=1,Data!AO34=3,Data!AO34=4,Data!AO34=5,Data!AP34=1,Data!AP34=2,Data!AP34=4,Data!AP34=5,Y26>1),"",(Data!AO43*Data!AO57)-(Data!AQ44*Data!AQ57)+AH14) ->  | R14: =IF(P14="","",P14/N14) ->  | X14: FALSE | Y14: =IF(X14=FALSE,0,1) -> 0 | AH14: =IF(AND(Data!AO34=2,Data!AP34=3),Vedligehold!R9,0) -> 0
C16: Udskiftning af oliekedel til varmepumpe | J16: =IF(OR(X16=FALSE,Data!AO34=1,Data!AO34=3,Data!AO34=4,Data!AO34=5,Data!AP34=1,Data!AP34=2,Data!AP34=3,Data!AP34=5,Y26>1),"",Data!AO43-Data!AQ45) ->  | N16: =IF(OR(X16=FALSE,Data!AO34=1,Data!AO34=3,Data!AO34=4,Data!AO34=5,Data!AP34=1,Data!AP34=2,Data!AP34=3,Data!AP34=5,Y26>1),"",(Data!AO43*Data!AO57)-(Data!AQ45*Data!AQ57)+AH16) ->  | R16: =IF(P16="","",P16/N16) ->  | X16: FALSE | Y16: =IF(X16=FALSE,0,1) -> 0 | AH16: =IF(AND(Data!AO34=2,Data!AP34=4),Vedligehold!R9,0) -> 0
C18: Udskiftning af oliekedel til træpillekedel | J18: =IF(OR(X18=FALSE,Data!AO34=1,Data!AO34=3,Data!AO34=4,Data!AO34=5,Data!AP34=1,Data!AP34=2,Data!AP34=3,Data!AP34=4,Y26>1),"",Data!AO43-Data!AQ46) ->  | N18: =IF(OR(X18=FALSE,Data!AO34=1,Data!AO34=3,Data!AO34=4,Data!AO34=5,Data!AP34=1,Data!AP34=2,Data!AP34=3,Data!AP34=4,Y26>1),"",(Data!AO43*Data!AO57)-(Data!AQ46*Data!AQ57)+AH18) ->  | R18: =IF(P18="","",P18/N18) ->  | X18: FALSE | Y18: =IF(X18=FALSE,0,1) -> 0 | AH18: =IF(AND(Data!AO34=2,Data!AP34=5),Vedligehold!R9,0) -> 0
C20: Udskiftning af gaskedel til ny gaskedel | J20: =IF(OR(X20=FALSE,Data!AO34=1,Data!AO34=2,Data!AO34=4,Data!AO34=5,Y26>1),"",Data!AO44-Data!AQ44) ->  | N20: =IF(OR(X20=FALSE,Y26>1),"",(Data!AO44-Data!AQ44)*Data!AO57+AH20) ->  | R20: =IF(P20="","",P20/N20) ->  | X20: FALSE | Y20: =IF(X20=FALSE,0,1) -> 0 | AH20: =IF(AND(Data!AO34=3,Data!AP34=3),Vedligehold!R9,0) -> 0
C22: Udskiftning af gaskedel til varmepumpe | J22: =IF(OR(X22=FALSE,Data!AO34=1,Data!AO34=2,Data!AO34=4,Data!AO34=5,Data!AP34=1,Data!AP34=2,Data!AP34=3,Data!AP34=5,Y26>1),"",Data!AO44-Data!AQ45) ->  | N22: =IF(OR(X22=FALSE,Data!AO34=1,Data!AO34=2,Data!AO34=4,Data!AO34=5,Data!AP34=1,Data!AP34=2,Data!AP34=3,Data!AP34=5,Y26>1),"",(Data!AO44*Data!AO57)-(Data!AQ45*Data!AQ57)+AH22) ->  | R22: =IF(P22="","",P22/N22) ->  | X22: FALSE | Y22: =IF(X22=FALSE,0,1) -> 0 | AH22: =IF(AND(Data!AO34=3,Data!AP34=4),Vedligehold!R9,0) -> 0
C24: Udskiftning af gaskedel til træpillekedel | J24: =IF(OR(X24=FALSE,Data!AO34=1,Data!AO34=2,Data!AO34=4,Data!AO34=5,Data!AP34=1,Data!AP34=2,Data!AP34=3,Data!AP34=4,Y26>1),"",Data!AO44-Data!AQ46) ->  | N24: =IF(OR(X24=FALSE,Data!AO34=1,Data!AO34=2,Data!AO34=4,Data!AO34=5,Data!AP34=1,Data!AP34=2,Data!AP34=3,Data!AP34=4,Y26>1),"",(Data!AO44*Data!AO57)-(Data!AQ46*Data!AQ57)+AH24) ->  | R24: =IF(P24="","",P24/N24) ->  | X24: FALSE | Y24: =IF(X24=FALSE,0,1) -> 0 | AH24: =IF(AND(Data!AO34=3,Data!AP34=5),Vedligehold!R9,0) -> 0
Y26: =SUM(Y8,Y10,Y12,Y14,Y16,Y18,Y20,Y22,Y24) -> 1
B27: Isolering | J27: Besparelse [kWh]
C29: Isolering af centralvarmeledninger - fremløb | J29: =IF(X29=FALSE,"",IF(AND($Y$26=0)*(Data!$AO$34=1),Rørsystem!D23,IF(AND($Y$26=0)*(Data!$AO$34=2),Rørsystem!D23/$AA$8,IF(AND($Y$26=0)*(Data!$AO$34=3),Rørsystem!D23/$AA$8,IF(AND($Y$26=0)*(Data!$AO$34=4),Rørsystem!D23/$AC$8,IF(AND($Y$26=0)*(Data!$AO$34=5),Rørsystem!D23/$AA$8,IF($Y$26>0,Rørsystem!D23))))))) -> 3593.649347 | N29: =IF(X29=FALSE,"",IF(AND($Y$26=0)*(Data!$AO$34=1),Rørsystem!D23*Data!AO57,IF(AND($Y$26=0)*(Data!$AO$34=2),Rørsystem!D23/$AA$8*Data!AO57,IF(AND($Y$26=0)*(Data!$AO$34=3),Rørsystem!D23/$AA$8*Data!AO57,IF(AND($Y$26=0)*(Data!$AO$34=4),Rørsystem!D23/$AC$8*Data!AO57,IF(AND($Y$26=0)*(Data!$AO$34=5),Rørsystem!D23/$AA$8*Data!AO57,IF($Y$26>0,IF(OR(Y12=1,Y14=1),Rørsystem!D23*Data!AQ57,IF($Y$26>0,IF(OR(Y8=1,Y10=1,Y20=1),Rørsystem!D23*Data!AO57)))))))))) -> 3593.649347 | R29: =IF(P29="","",P29/N29) ->  | X29: TRUE
C31: Isolering af centralvarmeledninger - retur | J31: =IF(X31=FALSE,"",IF(AND($Y$26=0)*(Data!$AO$34=1),Rørsystem!D25,IF(AND($Y$26=0)*(Data!$AO$34=2),Rørsystem!D25/$AA$8,IF(AND($Y$26=0)*(Data!$AO$34=3),Rørsystem!D25/$AA$8,IF(AND($Y$26=0)*(Data!$AO$34=4),Rørsystem!D25/$AC$8,IF(AND($Y$26=0)*(Data!$AO$34=5),Rørsystem!D25/$AA$8,IF($Y$26>0,Rørsystem!D25))))))) -> 3097.217316 | N31: =IF(X31=FALSE,"",IF(AND($Y$26=0)*(Data!$AO$34=1),Rørsystem!D25*Data!AO57,IF(AND($Y$26=0)*(Data!$AO$34=2),Rørsystem!D25/$AA$8*Data!AO57,IF(AND($Y$26=0)*(Data!$AO$34=3),Rørsystem!D25/$AA$8*Data!AO57,IF(AND($Y$26=0)*(Data!$AO$34=4),Rørsystem!D25/$AC$8*Data!AO57,IF(AND($Y$26=0)*(Data!$AO$34=5),Rørsystem!D25/$AA$8*Data!AO57,IF($Y$26>0,IF(OR(Y12=1,Y14=1),Rørsystem!D25*Data!AQ57,IF($Y$26>0,IF(OR(Y8=1,Y10=1,Y20=1),Rørsystem!D25*Data!AO57)))))))))) -> 3097.217316 | R31: =IF(P31="","",P31/N31) ->  | X31: TRUE
C33: Isolering af ledninger til varmt brugsvand | J33: =IF(X33=FALSE,"",IF(AND($Y$26=0)*(Data!$AO$34=1),Rørsystem!D46,IF(AND($Y$26=0)*(Data!$AO$34=2),Rørsystem!D46/$AA$8,IF(AND($Y$26=0)*(Data!$AO$34=3),Rørsystem!D46/$AA$8,IF(AND($Y$26=0)*(Data!$AO$34=4),Rørsystem!D46/$AC$8,IF(AND($Y$26=0)*(Data!$AO$34=5),Rørsystem!D46/$AA$8,IF($Y$26>0,Rørsystem!D46))))))) -> 12000.94244 | N33: =IF(X33=FALSE,"",IF(AND($Y$26=0)*(Data!$AO$34=1),Rørsystem!D46*Data!AO57,IF(AND($Y$26=0)*(Data!$AO$34=2),Rørsystem!D46/$AA$8*Data!AO57,IF(AND($Y$26=0)*(Data!$AO$34=3),Rørsystem!D46/$AA$8*Data!AO57,IF(AND($Y$26=0)*(Data!$AO$34=4),Rørsystem!D46/$AC$8*Data!AO57,IF(AND($Y$26=0)*(Data!$AO$34=5),Rørsystem!D46/$AA$8*Data!AO57,IF($Y$26>0,IF(OR(Y12=1,Y14=1),Rørsystem!D46*Data!AQ57,IF($Y$26>0,IF(OR(Y8=1,Y10=1,Y20=1),Rørsystem!D46*Data!AO57)))))))))) -> 12000.94244 | R33: =IF(P33="","",P33/N33) ->  | X33: TRUE
B36: Styring | J36: Besparelse [kWh]
C38: Termostatventiler | J38: =IF(X38=FALSE,"",IF(AND($Y$26=0)*(Data!$AO$34=1),Styring!AA3,IF(AND($Y$26=0)*(Data!$AO$34=2),Styring!AA3/$AA$8,IF(AND($Y$26=0)*(Data!$AO$34=3),Styring!AA3/$AA$8,IF(AND($Y$26=0)*(Data!$AO$34=4),Styring!AA3/$AC$8,IF(AND($Y$26=0)*(Data!$AO$34=5),Styring!AA3/$AA$8,IF($Y$26>0,Styring!AA3))))))) -> 723.9873382 | N38: =IF(X38=FALSE,"",IF(AND($Y$26=0)*(Data!$AO$34=1),Styring!AA3*Data!AO57,IF(AND($Y$26=0)*(Data!$AO$34=2),Styring!AA3/$AA$8*Data!AO57,IF(AND($Y$26=0)*(Data!$AO$34=3),Styring!AA3/$AA$8*Data!AO57,IF(AND($Y$26=0)*(Data!$AO$34=4),Styring!AA3/$AC$8*Data!AO57,IF(AND($Y$26=0)*(Data!$AO$34=5),Styring!AA3/$AA$8*Data!AO57,IF($Y$26>0,IF(OR(Y12=1,Y14=1),Styring!AA3*Data!AQ57,IF($Y$26>0,IF(OR(Y8=1,Y10=1,Y20=1),Styring!AA3*Data!AO57)))))))))) -> 723.9873382 | R38: =IF(P38="","",P38/N38) ->  | X38: TRUE
C40: Rumtemperatur | J40: =IF(X40=FALSE,"",IF(AND($Y$26=0)*(Data!$AO$34=1),Styring!AA13,IF(AND($Y$26=0)*(Data!$AO$34=2),Styring!AA13/$AA$8,IF(AND($Y$26=0)*(Data!$AO$34=3),Styring!AA13/$AA$8,IF(AND($Y$26=0)*(Data!$AO$34=4),Styring!AA13/$AC$8,IF(AND($Y$26=0)*(Data!$AO$34=5),Styring!AA13/$AA$8,IF($Y$26>0,Styring!AA13))))))) -> 723.9873382 | N40: =IF(X40=FALSE,"",IF(AND($Y$26=0)*(Data!$AO$34=1),Styring!AA13*Data!AO57,IF(AND($Y$26=0)*(Data!$AO$34=2),Styring!AA13/$AA$8*Data!AO57,IF(AND($Y$26=0)*(Data!$AO$34=3),Styring!AA13/$AA$8*Data!AO57,IF(AND($Y$26=0)*(Data!$AO$34=4),Styring!AA13/$AC$8*Data!AO57,IF(AND($Y$26=0)*(Data!$AO$34=5),Styring!AA13/$AA$8*Data!AO57,IF($Y$26>0,IF(OR(Y12=1,Y14=1),Styring!AA13*Data!AQ57,IF($Y$26>0,IF(OR(Y8=1,Y10=1,Y20=1),Styring!AA13*Data!AO57)))))))))) -> 723.9873382 | R40: =IF(P40="","",P40/N40) ->  | X40: TRUE
C42: Udekompensering | J42: =IF(X42=FALSE,"",IF(AND($Y$26=0)*(Data!$AO$34=1),Styring!AA23,IF(AND($Y$26=0)*(Data!$AO$34=2),Styring!AA23/$AA$8,IF(AND($Y$26=0)*(Data!$AO$34=3),Styring!AA23/$AA$8,IF(AND($Y$26=0)*(Data!$AO$34=4),Styring!AA23/$AC$8,IF(AND($Y$26=0)*(Data!$AO$34=5),Styring!AA23/$AA$8,IF($Y$26>0,Styring!AA23))))))) -> 723.9873382 | N42: =IF(X42=FALSE,"",IF(AND($Y$26=0)*(Data!$AO$34=1),Styring!AA23*Data!AO57,IF(AND($Y$26=0)*(Data!$AO$34=2),Styring!AA23/$AA$8*Data!AO57,IF(AND($Y$26=0)*(Data!$AO$34=3),Styring!AA23/$AA$8*Data!AO57,IF(AND($Y$26=0)*(Data!$AO$34=4),Styring!AA23/$AC$8*Data!AO57,IF(AND($Y$26=0)*(Data!$AO$34=5),Styring!AA23/$AA$8*Data!AO57,IF($Y$26>0,IF(OR(Y12=1,Y14=1),Styring!AA23*Data!AQ57,IF($Y$26>0,IF(OR(Y8=1,Y10=1,Y20=1),Styring!AA23*Data!AO57)))))))))) -> 723.9873382 | R42: =IF(P42="","",P42/N42) ->  | X42: TRUE
C44: Natsænkning | J44: =IF(X44=FALSE,"",IF(AND($Y$26=0)*(Data!$AO$34=1),Styring!AA29,IF(AND($Y$26=0)*(Data!$AO$34=2),Styring!AA29/$AA$8,IF(AND($Y$26=0)*(Data!$AO$34=3),Styring!AA29/$AA$8,IF(AND($Y$26=0)*(Data!$AO$34=4),Styring!AA29/$AC$8,IF(AND($Y$26=0)*(Data!$AO$34=5),Styring!AA29/$AA$8,IF($Y$26>0,Styring!AA29))))))) -> 258.5669065 | N44: =IF(X44=FALSE,"",IF(AND($Y$26=0)*(Data!$AO$34=1),Styring!AA29*Data!AO57,IF(AND($Y$26=0)*(Data!$AO$34=2),Styring!AA29/$AA$8*Data!AO57,IF(AND($Y$26=0)*(Data!$AO$34=3),Styring!AA29/$AA$8*Data!AO57,IF(AND($Y$26=0)*(Data!$AO$34=4),Styring!AA29/$AC$8*Data!AO57,IF(AND($Y$26=0)*(Data!$AO$34=5),Styring!AA29/$AA$8*Data!AO57,IF($Y$26>0,IF(OR(Y12=1,Y14=1),Styring!AA29*Data!AQ57,IF($Y$26>0,IF(OR(Y8=1,Y10=1,Y20=1),Styring!AA29*Data!AO57)))))))))) -> 258.5669065 | R44: =IF(P44="","",P44/N44) ->  | X44: TRUE
B47: Solvarme | J47: Besparelse [kWh]
C49: Solvarmeanlæg | J49: =IF(X49=FALSE,"",IF(AND($Y$26=0)*(Data!$AO$34=1),Solvarme!D15,IF(AND($Y$26=0)*(Data!$AO$34=2),Solvarme!D15/$AA$8,IF(AND($Y$26=0)*(Data!$AO$34=3),Solvarme!D15/$AA$8,IF(AND($Y$26=0)*(Data!$AO$34=4),Solvarme!D15/$AC$8,IF(AND($Y$26=0)*(Data!$AO$34=5),Solvarme!D15/$AA$8,IF($Y$26>0,Solvarme!D15))))))) -> 9700 | N49: =IF(X49=FALSE,"",IF(AND($Y$26=0)*(Data!$AO$34=1),Solvarme!D15*Data!AO57,IF(AND($Y$26=0)*(Data!$AO$34=2),Solvarme!D15/$AA$8*Data!AO57,IF(AND($Y$26=0)*(Data!$AO$34=3),Solvarme!D15/$AA$8*Data!AO57,IF(AND($Y$26=0)*(Data!$AO$34=4),Solvarme!D15/$AC$8*Data!AO57,IF(AND($Y$26=0)*(Data!$AO$34=5),Solvarme!D15/$AA$8*Data!AO57,IF($Y$26>0,IF(OR(Y12=1,Y14=1),Solvarme!D15*Data!AQ57,IF($Y$26>0,IF(OR(Y8=1,Y10=1,Y20=1),Solvarme!D15*Data!AO57)))))))))) -> 9700 | R49: =IF(P49="","",P49/N49) ->  | X49: TRUE | AH49: =Vedligehold!R11 -> 0
B52: Ventilation | H52: Læs hér | J52: Besparelse [kWh]
J53: Varme | L53: El
C54: Reduktion af driftstid | H54: =IF(OR(X54=FALSE,X64=FALSE),"",IF(AND(X54=TRUE)*(X64=TRUE),IF(AND(Ventilation!$D$25=Ventilation!$J$25)*(Ventilation!$D$27=Ventilation!$J$27)*(Ventilation!$D$29=Ventilation!$J$29),"Fejl - ret i Ventilation",""))) ->  | J54: =IF(OR(X54=FALSE,X64=TRUE),"",IF(Ventilation!$D$33-Ventilation!$J$33<0,0,IF(AND(Ventilation!$D$25=Ventilation!$J$25)*(Ventilation!$D$27=Ventilation!$J$27)*(Ventilation!$D$29=Ventilation!$J$29),0,IF(AND($Y$26=0)*(Data!$AO$34=1),(Ventilation!$D$33-Ventilation!$J$33),IF(AND($Y$26=0)*(Data!$AO$34=2),(Ventilation!$D$33-Ventilation!$J$33)/$AA$8,IF(AND($Y$26=0)*(Data!$AO$34=3),(Ventilation!$D$33-Ventilation!$J$33)/$AA$8,IF(AND($Y$26=0)*(Data!$AO$34=4),(Ventilation!$D$33-Ventilation!$J$33)/$AC$8,IF(AND($Y$26=0)*(Data!$AO$34=5),(Ventilation!$D$33-Ventilation!$J$33)/$AA$8,IF($Y$26>0,(Ventilation!$D$33-Ventilation!$J$33)))))))))) -> 144937.0095 | L54: =IF(OR(X54=FALSE,X64=TRUE),"",((Ventilation!$D$77*(Ventilation!$D$27-Ventilation!$D$25)*Ventilation!$D$29*52)+(Ventilation!$D$79*(Ventilation!$D$27-Ventilation!$D$25)*Ventilation!$D$29*52))-((Ventilation!$D$77*(Ventilation!$J$27-Ventilation!$J$25)*Ventilation!$J$29*52)+(Ventilation!$D$79*(Ventilation!$J$27-Ventilation!$J$25)*Ventilation!$J$29*52))) -> 69800.64 | N54: =IF(OR(X54=FALSE,X64=TRUE),"",IF(Ventilation!$D$33-Ventilation!$J$33<0,0,IF(AND(Ventilation!$D$25=Ventilation!$J$25)*(Ventilation!$D$27=Ventilation!$J$27)*(Ventilation!$D$29=Ventilation!$J$29),0,IF(AND($Y$26=0)*(Data!$AO$34=1),(Ventilation!$D$33-Ventilation!$J$33)*Data!$AO$57+(L54*Data!$N$21),IF(AND($Y$26=0)*(Data!$AO$34=2),((Ventilation!$D$33-Ventilation!$J$33)/$AA$8)*Data!$AO$57+(L54*Data!$N$21),IF(AND($Y$26=0)*(Data!$AO$34=3),(Ventilation!$D$33-Ventilation!$J$33)/$AA$8*Data!$AO$57+(L54*Data!N21),IF(AND($Y$26=0)*(Data!$AO$34=4),(Ventilation!$D$33-Ventilation!$J$33)/$AC$8*Data!$AO$57+(L54*Data!N21),IF(AND($Y$26=0)*(Data!$AO$34=5),(Ventilation!$D$33-Ventilation!$J$33)/$AA$8*Data!$AO$57+(L54*Data!N21),IF($Y$26>0,IF(OR(Y12=1,Y14=1),(Ventilation!$D$33-Ventilation!$J$33)*Data!$AQ$57+(L54*Data!$N$21),(Ventilation!$D$33-Ventilation!$J$33)*Data!$AO$57+(L54*Data!$N$21))))))))))) -> 284538.2895 | R54: =IF(P54="","",P54/N54) ->  | X54: TRUE | Y54: =IF(X54=FALSE,0,1) -> 1 | Z54: =IF(X54=FALSE,0,1) -> 1 | AB54: =IF(AND(Z54=1)*(Z58=0)*(Z62=0),((Ventilation!$D$77*(Ventilation!$D$27-Ventilation!$D$25)*Ventilation!$D$29*52)+(Ventilation!$D$79*(Ventilation!$D$27-Ventilation!$D$25)*Ventilation!$D$29*52))-((Ventilation!$D$77*(Ventilation!$J$27-Ventilation!$J$25)*Ventilation!$J$29*52)+(Ventilation!$D$79*(Ventilation!$J$27-Ventilation!$J$25)*Ventilation!$J$29*52))) -> 69800.64 | AD54: =IF(H54="Fejl - ret i Ventilation",1,0) -> 0
AB55: =IF(AND(Z54=0)*(Z58=1)*(Z62=0),((Ventilation!$D$77-(Ventilation!$D$77*(Ventilation!$J$7/Ventilation!$D$7)^2.5))*(Ventilation!$D$91-Ventilation!$D$89)*Ventilation!$D$93*52)+((Ventilation!$D$79-(Ventilation!$D$79*(Ventilation!$J$9/Ventilation!$D$9)^2.5))*(Ventilation!$D$91-Ventilation!$D$89)*Ventilation!$D$93*52)) -> FALSE
C56: Reduktion af indblæsningstemperatur | H56: =IF(OR(X56=FALSE,X64=FALSE),"",IF(AND(X56=TRUE)*(X64=TRUE),IF(AND(Ventilation!$D$13=Ventilation!$J$13)*(Ventilation!$D$15=Ventilation!$J$15),"Fejl - ret i Ventilation",""))) ->  | J56: =IF(OR(X56=FALSE,X64=TRUE),"",IF(Ventilation!$D$33-Ventilation!$J$33<0,0,IF(Ventilation!$D$13=Ventilation!$J$13,0,IF(AND($Y$26=0)*(Data!$AO$34=1),(Ventilation!$D$33-Ventilation!$J$33),IF(AND($Y$26=0)*(Data!$AO$34=2),(Ventilation!$D$33-Ventilation!$J$33)/$AA$8,IF(AND($Y$26=0)*(Data!$AO$34=3),(Ventilation!$D$33-Ventilation!$J$33)/$AA$8,IF(AND($Y$26=0)*(Data!$AO$34=4),(Ventilation!$D$33-Ventilation!$J$33)/$AC$8,IF(AND($Y$26=0)*(Data!$AO$34=5),(Ventilation!$D$33-Ventilation!$J$33)/$AA$8,IF($Y$26>0,(Ventilation!$D$33-Ventilation!$J$33)))))))))) ->  | N56: =IF(OR(X56=FALSE,X64=TRUE),"",IF(Ventilation!$D$33-Ventilation!$J$33<0,0,IF(Ventilation!$D$13=Ventilation!$J$13,0,IF(AND($Y$26=0)*(Data!$AO$34=1),(Ventilation!$D$33-Ventilation!$J$33)*Data!$AO$57,IF(AND($Y$26=0)*(Data!$AO$34=2),(Ventilation!$D$33-Ventilation!$J$33)/$AA$8*Data!$AO$57,IF(AND($Y$26=0)*(Data!$AO$34=3),(Ventilation!$D$33-Ventilation!$J$33)/$AA$8*Data!$AO$57,IF(AND($Y$26=0)*(Data!$AO$34=4),(Ventilation!$D$33-Ventilation!$J$33)/$AC$8*Data!$AO$57,IF(AND($Y$26=0)*(Data!$AO$34=5),(Ventilation!$D$33-Ventilation!$J$33)/$AA$8*Data!$AO$57,IF($Y$26>0,IF(OR(Y12=1,Y14=1),(Ventilation!$D$33-Ventilation!$J$33)*Data!$AQ$57,(Ventilation!$D$33-Ventilation!$J$33)*Data!$AO$57)))))))))) ->  | R56: =IF(P56="","",P56/N56) ->  | X56: FALSE | Y56: =IF(X56=FALSE,0,1) -> 0 | AB56: =IF(AND(Z54=0)*(Z58=0)*(Z62=1),Ventilation!$D$97-Ventilation!$J$97) -> FALSE | AD56: =IF(H56="Fejl - ret i Ventilation",1,0) -> 0
AB57: =IF(AND(Z54=1)*(Z58=1)*(Z62=0),IF(AND(Ventilation!$D$7=Ventilation!$J$7)*(Ventilation!$D$9=Ventilation!$J$9),((Ventilation!$D$77*(Ventilation!$D$27-Ventilation!$D$25)*Ventilation!$D$29*52)+(Ventilation!$D$79*(Ventilation!$D$27-Ventilation!$D$25)*Ventilation!$D$29*52))-((Ventilation!$D$77*(Ventilation!$J$27-Ventilation!$J$25)*Ventilation!$J$29*52)+(Ventilation!$D$79*(Ventilation!$J$27-Ventilation!$J$25)*Ventilation!$J$29*52)),((Ventilation!$D$77*((Ventilation!$D$91-Ventilation!$D$89)*Ventilation!$D$93*52)))-((Ventilation!$D$77*(Ventilation!$J$7/Ventilation!$D$7)^2.5))*((Ventilation!$P$91-Ventilation!$P$89)*Ventilation!$P$93*52)+((Ventilation!$D$79*((Ventilation!$D$91-Ventilation!$D$89)*Ventilation!$D$93*52)))-((Ventilation!$D$79*(Ventilation!$J$9/Ventilation!$D$9)^2.5))*((Ventilation!$P$91-Ventilation!$P$89)*Ventilation!$P$93*52))) -> FALSE
C58: Reduktion af volumenstrømme | H58: =IF(OR(X58=FALSE,X64=FALSE),"",IF(AND(X58=TRUE)*(X64=TRUE),IF(AND(Ventilation!$D$7=Ventilation!$J$7)*(Ventilation!$D$9=Ventilation!$J$9),"Fejl - ret i Ventilation",""))) ->  | J58: =IF(OR(X58=FALSE,X64=TRUE),"",IF(Ventilation!$D$33-Ventilation!$J$33<0,0,IF(AND(Ventilation!$D$7=Ventilation!$J$7)*(Ventilation!$D$9=Ventilation!$J$9),0,IF(AND($Y$26=0)*(Data!$AO$34=1),(Ventilation!$D$33-Ventilation!$J$33),IF(AND($Y$26=0)*(Data!$AO$34=2),(Ventilation!$D$33-Ventilation!$J$33)/$AA$8,IF(AND($Y$26=0)*(Data!$AO$34=3),(Ventilation!$D$33-Ventilation!$J$33)/$AA$8,IF(AND($Y$26=0)*(Data!$AO$34=4),(Ventilation!$D$33-Ventilation!$J$33)/$AC$8,IF(AND($Y$26=0)*(Data!$AO$34=5),(Ventilation!$D$33-Ventilation!$J$33)/$AA$8,IF($Y$26>0,(Ventilation!$D$33-Ventilation!$J$33)))))))))) ->  | L58: =IF(OR(X58=FALSE,X64=TRUE),"",((Ventilation!$D$77-(Ventilation!$D$77*(Ventilation!$J$7/Ventilation!$D$7)^2.5))*(Ventilation!$D$91-Ventilation!$D$89)*Ventilation!$D$93*52)+((Ventilation!$D$79-(Ventilation!$D$79*(Ventilation!$J$9/Ventilation!$D$9)^2.5))*(Ventilation!$D$91-Ventilation!$D$89)*Ventilation!$D$93*52)) ->  | N58: =IF(OR(X58=FALSE,X64=TRUE),"",IF(Ventilation!$D$33-Ventilation!$J$33<0,0,IF(AND(Ventilation!$D$7=Ventilation!$J$7)*(Ventilation!$D$9=Ventilation!$J$9),0,IF(AND($Y$26=0)*(Data!$AO$34=1),(Ventilation!$D$33-Ventilation!$J$33)*Data!$AO$57+(L58*Data!$N$21),IF(AND($Y$26=0)*(Data!$AO$34=2),(Ventilation!$D$33-Ventilation!$J$33)/$AA$8*Data!$AO$57+(L58*Data!$N$21),IF(AND($Y$26=0)*(Data!$AO$34=3),(Ventilation!$D$33-Ventilation!$J$33)/$AA$8*Data!$AO$57+(L58*Data!$N$21),IF(AND($Y$26=0)*(Data!$AO$34=4),(Ventilation!$D$33-Ventilation!$J$33)/$AC$8*Data!$AO$57+(L58*Data!$N$21),IF(AND($Y$26=0)*(Data!$AO$34=5),(Ventilation!$D$33-Ventilation!$J$33)/$AA$8*Data!$AO$57+(L58*Data!$N$21),IF($Y$26>0,IF(OR(Y12=1,Y14=1),(Ventilation!$D$33-Ventilation!$J$33)*Data!$AQ$57+(L58*Data!$N$21),(Ventilation!$D$33-Ventilation!$J$33)*Data!$AO$57+(L58*Data!$N$21))))))))))) ->  | R58: =IF(P58="","",P58/N58) ->  | X58: FALSE | Y58: =IF(X58=FALSE,0,1) -> 0 | Z58: =IF(X58=FALSE,0,1) -> 0 | AB58: =IF(AND(Z54=1)*(Z58=0)*(Z62=1),Ventilation!$D$97-Ventilation!$J$97) -> FALSE | AD58: =IF(H58="Fejl - ret i Ventilation",1,0) -> 0
AB59: =IF(AND(Z54=0)*(Z58=1)*(Z62=1),Ventilation!$D$97-Ventilation!$J$97) -> FALSE
C60: Etablering eller udskiftning af varmegenvindingsenhed | H60: =IF(OR(X60=FALSE,X64=FALSE),"",IF(AND(X60=TRUE)*(X64=TRUE),IF(Ventilation!$D$21>0,"Fejl - ret i Ventilation",""))) ->  | J60: =IF(OR(X60=FALSE,X64=TRUE),"",IF(Ventilation!$D$33-Ventilation!$J$33<0,0,IF(Ventilation!$D$21>0,0,IF(AND($Y$26=0)*(Data!$AO$34=1),(Ventilation!$D$33-Ventilation!$J$33),IF(AND($Y$26=0)*(Data!$AO$34=2),(Ventilation!$D$33-Ventilation!$J$33)/$AA$8,IF(AND($Y$26=0)*(Data!$AO$34=3),(Ventilation!$D$33-Ventilation!$J$33)/$AA$8,IF(AND($Y$26=0)*(Data!$AO$34=4),(Ventilation!$D$33-Ventilation!$J$33)/$AC$8,IF(AND($Y$26=0)*(Data!$AO$34=5),(Ventilation!$D$33-Ventilation!$J$33)/$AA$8,IF($Y$26>0,(Ventilation!$D$33-Ventilation!$J$33)))))))))) ->  | N60: =IF(OR(X60=FALSE,X64=TRUE),"",IF(Ventilation!$D$33-Ventilation!$J$33<0,0,IF(Ventilation!$D$21>0,0,IF(AND($Y$26=0)*(Data!$AO$34=1),(Ventilation!$D$33-Ventilation!$J$33)*Data!$AO$57,IF(AND($Y$26=0)*(Data!$AO$34=2),(Ventilation!$D$33-Ventilation!$J$33)/$AA$8*Data!$AO$57,IF(AND($Y$26=0)*(Data!$AO$34=3),(Ventilation!$D$33-Ventilation!$J$33)/$AA$8*Data!$AO$57,IF(AND($Y$26=0)*(Data!$AO$34=4),(Ventilation!$D$33-Ventilation!$J$33)/$AC$8*Data!$AO$57,IF(AND($Y$26=0)*(Data!$AO$34=5),(Ventilation!$D$33-Ventilation!$J$33)/$AA$8*Data!$AO$57,IF($Y$26>0,IF(OR(Y12=1,Y14=1),(Ventilation!$D$33-Ventilation!$J$33)*Data!$AQ$57,(Ventilation!$D$33-Ventilation!$J$33)*Data!$AO$57)))))))))) ->  | R60: =IF(P60="","",P60/N60) ->  | X60: FALSE | Y60: =IF(X60=FALSE,0,1) -> 0 | AB60: =IF(AND(Z54=1)*(Z58=1)*(Z62=1),Ventilation!$D$97-Ventilation!$J$97) -> FALSE | AD60: =IF(H60="Fejl - ret i Ventilation",1,0) -> 0
AB61: =SUM(AB54:AB60) -> 69800.64 | AD61: =SUM(AD54:AD60) -> 0
C62: Udskiftning af ventilator og motor | L62: =IF(OR(X62=FALSE,X64=TRUE),"",Ventilation!$D$97-Ventilation!$J$97) ->  | N62: =IF(OR(X62=FALSE,X64=TRUE,Ventilation!$S$43=1),"",(Ventilation!$D$97-Ventilation!$J$97)*Data!$N$21) ->  | R62: =IF(P62="","",P62/N62) ->  | X62: FALSE | Z62: =IF(X62=FALSE,0,1) -> 0
C64: Kombinerede forslag (enkeltforslag vises ikke) | J64: =IF(OR(X64=FALSE,Y66=0,AD61>=1),"",IF(X64=TRUE,IF(Ventilation!$D$33-Ventilation!$J$33<0,0,IF(AND($Y$26=0)*(Data!$AO$34=1),(Ventilation!$D$33-Ventilation!$J$33),IF(AND($Y$26=0)*(Data!$AO$34=2),(Ventilation!$D$33-Ventilation!$J$33)/$AA$8,IF(AND($Y$26=0)*(Data!$AO$34=3),(Ventilation!$D$33-Ventilation!$J$33)/$AA$8,IF(AND($Y$26=0)*(Data!$AO$34=4),(Ventilation!$D$33-Ventilation!$J$33)/$AC$8,IF(AND($Y$26=0)*(Data!$AO$34=5),(Ventilation!$D$33-Ventilation!$J$33)/$AA$8,IF($Y$26>0,(Ventilation!$D$33-Ventilation!$J$33)))))))))) ->  | L64: =IF(OR(X64=FALSE,Z66=0),"",AB61) ->  | N64: =IF(X64=FALSE,"",IF(AND(Y66=0)*(Z66=0),"",IF(OR(Y66<1,AD61>=1),(AB61*Data!$N$21),IF(Y66>=1,IF(AND($Y$26=0)*(Data!$AO$34=1),(Ventilation!$D$33-Ventilation!$J$33)*Data!$AO$57+(AB61*Data!$N$21),IF(AND($Y$26=0)*(Data!$AO$34=2),(Ventilation!$D$33-Ventilation!$J$33)/$AA$8*Data!$AO$57+(AB61*Data!$N$21),IF(AND($Y$26=0)*(Data!$AO$34=3),(Ventilation!$D$33-Ventilation!$J$33)/$AA$8*Data!$AO$57+(AB61*Data!$N$21),IF(AND($Y$26=0)*(Data!$AO$34=4),(Ventilation!$D$33-Ventilation!$J$33)/$AC$8*Data!$AO$57+(AB61*Data!$N$21),IF(AND($Y$26=0)*(Data!$AO$34=5),(Ventilation!$D$33-Ventilation!$J$33)/$AA$8*Data!$AO$57+(AB61*Data!$N$21),IF($Y$26>0,IF(OR(Y12=1,Y14=1),(Ventilation!$D$33-Ventilation!$J$33)*Data!$AQ$57+(AB61*Data!$N$21),(Ventilation!$D$33-Ventilation!$J$33)*Data!$AO$57+(AB61*Data!$N$21)))))))))))) ->  | R64: =IF(P64="","",P64/N64) ->  | X64: FALSE | Y64: =IF(X64=FALSE,0,1) -> 0 | Z64: =IF(X64=FALSE,0,1) -> 0 | AC64: =IF(Y66<1,(AB61*Data!$N$21),IF(Y66>=1,IF(AND($Y$26=0)*(Data!$AO$34=1),(Ventilation!$D$33-Ventilation!$J$33)*Data!$AO$57+(AB61*Data!$N$21),IF(AND($Y$26=0)*(Data!$AO$34=2),(Ventilation!$D$33-Ventilation!$J$33)/$AA$8*Data!$AO$57+(AB61*Data!$N$21),IF(AND($Y$26=0)*(Data!$AO$34=3),(Ventilation!$D$33-Ventilation!$J$33)/$AA$8*Data!$AO$57+(AB61*Data!$N$21),IF($Y$26>0,(Ventilation!$D$33-Ventilation!$J$33)*Data!$AQ$57+(AB61*Data!$N$21))))))) -> 139601.28 | AE64: =IF(AND(X54=TRUE)*(X64=FALSE),L54,IF(AND(X58=TRUE)*(X64=FALSE),L58,IF(AND(X62=TRUE)*(X64=FALSE),L62,IF(X64=TRUE,L64)))) -> 69800.64 | AF64: =IF(AND(X54=FALSE)*(X64=FALSE),SUM(N8,N10,N12,N14,N20,N29,N31,N33,N38,N40,N42,N44,N49),IF(AND(X54=TRUE)*(X64=FALSE),SUM(N8,N10,N12,N14,N20,N29,N31,N33,N38,N40,N42,N44,N49,N54),IF(AND(X56=TRUE)*(X64=FALSE),SUM(N8,N10,N12,N14,N20,N29,N31,N33,N38,N40,N42,N44,N49,N56),IF(AND(X58=TRUE)*(X64=FALSE),SUM(N8,N10,N12,N14,N20,N29,N31,N33,N38,N40,N42,N44,N49,N58),IF(AND(X60=TRUE)*(X64=FALSE),SUM(N8,N10,N12,N14,N20,N29,N31,N33,N38,N40,N42,N44,N49,N60),IF(AND(X62=TRUE)*(X64=FALSE),SUM(N8,N10,N12,N14,N20,N29,N31,N33,N38,N40,N42,N44,N49,N62),IF(X64=TRUE,SUM(N8,N10,N12,N14,N20,N29,N31,N33,N38,N40,N42,N44,N49,N64)))))))) -> 323656.3059
Y66: =SUM(Y54:Y60) -> 1 | Z66: =SUM(Z54:Z62) -> 1
B67: Pumper | J67: Besparelse [kWh]
C69: Udskiftning af pumpe | G69: =IF(OR(X69=FALSE,X79=FALSE),"",IF(AND(X69=TRUE)*(X79=TRUE),IF(AND(Ventilation!$D$25=Ventilation!$J$25)*(Ventilation!$D$27=Ventilation!$J$27)*(Ventilation!$D$29=Ventilation!$J$29),"Fejl - ret i Ventilation",""))) ->  | L69: =IF(X69=FALSE,"",Pumper!Z17-Pumper!Z18) ->  | N69: =IF(X69=FALSE,"",(Pumper!Z17-Pumper!Z18)*Data!$N$21) ->  | R69: =IF(P69="","",P69/N69) ->  | X69: FALSE | AE69: =IF(L69="",0,L69) -> 0 | AF69: =IF(N69="",0,N69) -> 0
B72: Belysning | J72: Besparelse [kWh]
C74: Reduktion af driftstid | L74: =IF(OR(X74=FALSE,X86=TRUE),"",Belysning!AP42) -> 80986.74087 | N74: =IF(OR(X74=FALSE,X86=TRUE),"",Belysning!AP42*Data!$N$21) -> 161973.4817 | P74: 1000000 | R74: =IF(P74="","",P74/N74) -> 6.173850122 | X74: TRUE | Z74: =IF(X74=FALSE,0,1) -> 1
C76: Sektionsopdeling | L76: =IF(OR(X76=FALSE,X86=TRUE),"",Belysning!AP44) ->  | N76: =IF(OR(X76=FALSE,X86=TRUE),"",Belysning!AP44*Data!$N$21) ->  | R76: =IF(P76="","",P76/N76) ->  | X76: FALSE | Z76: =IF(X76=FALSE,0,1) -> 0
C78: Reduktion af belysningsstyrke | L78: =IF(OR(X78=FALSE,X86=TRUE),"",Belysning!AP46) ->  | N78: =IF(OR(X78=FALSE,X86=TRUE),"",Belysning!AP46*Data!$N$21) ->  | R78: =IF(P78="","",P78/N78) ->  | X78: FALSE | Z78: =IF(X78=FALSE,0,1) -> 0
C80: Udskiftning af lyskilder | L80: =IF(OR(X80=FALSE,X86=TRUE),"",Belysning!AP48) ->  | N80: =IF(OR(X80=FALSE,X86=TRUE),"",Belysning!AP48*Data!$N$21+AH80) ->  | R80: =IF(P80="","",P80/N80) ->  | X80: FALSE | Z80: =IF(X80=FALSE,0,1) -> 0 | AH80: =Vedligehold!R12 -> 76500
C82: Udskiftning af forkoblingsenheder | L82: =IF(OR(X82=FALSE,X86=TRUE),"",Belysning!AP50) ->  | N82: =IF(OR(X82=FALSE,X86=TRUE),"",Belysning!AP50*Data!$N$21) ->  | R82: =IF(P82="","",P82/N82) ->  | X82: FALSE | Z82: =IF(X82=FALSE,0,1) -> 0
C84: Udnyttelse af dagslysindfald | L84: =IF(OR(X84=FALSE,X86=TRUE),"",Belysning!AP52) ->  | N84: =IF(OR(X84=FALSE,X86=TRUE),"",Belysning!AP52*Data!$N$21) ->  | R84: =IF(P84="","",P84/N84) ->  | X84: FALSE | Z84: =IF(X84=FALSE,0,1) -> 0
C86: Kombinerede forslag (enkeltforslag vises ikke) | L86: =IF(OR(X86=FALSE,Z88=0),"",Belysning!AP16-Belysning!AP40) ->  | N86: =IF(OR(X86=FALSE,Z88=0),"",(Belysning!AP16-Belysning!AP40)*Data!$N$21) ->  | R86: =IF(P86="","",P86/N86) ->  | X86: FALSE | AE86: =IF(AND(X74=TRUE)*(X86=FALSE),L74,IF(AND(X76=TRUE)*(X86=FALSE),L76,IF(AND(X78=TRUE)*(X86=FALSE),L78,IF(AND(X80=TRUE)*(X86=FALSE),L80,IF(AND(X82=TRUE)*(X86=FALSE),L82,IF(AND(X84=TRUE)*(X86=FALSE),L84,IF(X86=TRUE,L86))))))) -> 80986.74087 | AF86: =IF(AND(X74=TRUE)*(X86=FALSE),N74,IF(AND(X76=TRUE)*(X86=FALSE),N76,IF(AND(X78=TRUE)*(X86=FALSE),N78,IF(AND(X80=TRUE)*(X86=FALSE),N80,IF(AND(X82=TRUE)*(X86=FALSE),N82,IF(AND(X84=TRUE)*(X86=FALSE),N84,IF(X86=TRUE,N86))))))) -> 161973.4817
Z88: =SUM(Z74:Z84) -> 1
B89: Solceller | J89: Besparelse [kWh]
C91: Solcelleanlæg | G91: =IF(OR(X91=FALSE,X101=FALSE),"",IF(AND(X91=TRUE)*(X101=TRUE),IF(AND(Ventilation!$D$25=Ventilation!$J$25)*(Ventilation!$D$27=Ventilation!$J$27)*(Ventilation!$D$29=Ventilation!$J$29),"Fejl - ret i Ventilation",""))) ->  | L91: =IF(X91=FALSE,"",Solceller!K35) ->  | N91: =IF(X91=FALSE,"",Solceller!K35*Data!$N$21+AH91) ->  | R91: =IF(P91="","",P91/N91) ->  | X91: FALSE | AE91: =IF(L91="",0,L91) -> 0 | AF91: =IF(N91="",0,N91) -> 0 | AH91: =0.15*Solceller!K35 -> 743.544972
B94: I alt | J94: Besparelse [kWh]
J95: Varme | L95: El
C96: Samlet energibesparelse | J96: =IF(Y66=0,SUM(J8,J10,J12,J14,J16,J18,J20,J22,J24,J29,J31,J33,J38,J40,J42,J44,J49),IF(AND(X54=TRUE)*(X64=FALSE),SUM(J8,J10,J12,J14,J16,J18,J20,J22,J24,J29,J31,J33,J38,J40,J42,J44,J49,J54),IF(AND(X56=TRUE)*(X64=FALSE),SUM(J8,J10,J12,J14,J16,J18,J20,J22,J24,J29,J31,J33,J38,J40,J42,J44,J49,J56),IF(AND(X58=TRUE)*(X64=FALSE),SUM(JI8,J10,J12,J14,J16,J18,J20,J22,J24,J29,J31,J33,J38,J40,J42,J44,J49,J58),IF(AND(X60=TRUE)*(X64=FALSE),SUM(J8,J10,J12,J14,J16,J18,J20,J22,J24,J29,J31,J33,J38,J40,J42,J44,J49,J60),IF(X64=TRUE,SUM(J8,J10,J12,J14,J16,J18,J20,J22,J24,J29,J31,J33,J38,J40,J42,J44,J49,J64))))))) -> 183430.0259 | L96: =AE64+AE69+AE86+AE91 -> 150787.3809 | N96: =AF64+AF69+AF86+AF91 -> 485629.7876 | P96: =SUM(P8,P10,P12,P14,P16,P18,P20,P22,P24,P29,P31,P33,P38,P40,P42,P44,P49,P54,P56,P58,P60,P62,P64,P69,P74,P76,P78,P80,P82,P84,P86) -> 1000000 | R96: =IF(P96="","",P96/N96) -> 2.059181758
B101: Klassificering af energibesparelser | F101: =(P204-((J204+L204)*Data!N23))/N204 -> 2.442891435
B103: Store bygninger
B105: Udskiftning af varmeproducerende enhed | J105: Besparelse [kWh] | N105: Besparelse [kr.] | P105: Investering [kr.] | R105: TBT [år]
C107: Udskiftning af oliekedel til ny oliekedel | J107: =IF(OR(X107=FALSE,Y115>1),"",Data!AO43-Data!AQ43) ->  | M107: =IF(Y115>1,"Fejl i indtastningen","") ->  | N107: =IF(OR(X107=FALSE,Y115>1),"",(Data!AO43-Data!AQ43)*Data!AO57) ->  | R107: =IF(P107="","",P107/N107) ->  | X107: FALSE | Y107: =IF(X107=FALSE,0,1) -> 0
C109: Udskiftning af oliekedel til ny gaskedel | J109: =IF(OR(X109=FALSE,Data!AP34=2,Y115>1),"",Data!AO43-Data!AQ44) ->  | N109: =IF(OR(X109=FALSE,Data!AP34=2,Y115>1),"",(Data!AO43*Data!AO57)-(Data!AQ44*Data!AQ57)) ->  | R109: =IF(P109="","",P109/N109) ->  | X109: FALSE | Y109: =IF(X109=FALSE,0,1) -> 0
C111: Udskiftning af gaskedel til ny gaskedel | J111: =IF(OR(X111=FALSE,Data!AO34=2,Y115>1),"",Data!AO44-Data!AQ44) ->  | N111: =IF(OR(X111=FALSE,Data!AO34=2,Y115>1),"",(Data!AO44-Data!AQ44)*Data!AO57) ->  | R111: =IF(P111="","",P111/N111) ->  | X111: FALSE | Y111: =IF(X111=FALSE,0,1) -> 0
C113: Udskiftning af gaskedel til ny oliekedel | J113: =IF(OR(X113=FALSE,Data!AO34=2,Data!AP34=3,Y115>1),"",Data!AO44-Data!AQ43) ->  | N113: =IF(OR(X113=FALSE,Data!AO34=2,Data!AP34=3,Y115>1),"",(Data!AO44*Data!AO57)-(Data!AQ43*Data!AQ57)) ->  | R113: =IF(P113="","",P113/N113) ->  | X113: FALSE | Y113: =IF(X113=FALSE,0,1) -> 0
Y115: =SUM(Y107,Y109,Y111,Y113) -> 0
B116: Isolering | J116: Besparelse [kWh]
C118: Isolering af centralvarmeledninger - fremløb | J118: =IF(X118=FALSE,"",IF(AND($Y$115=0)*(Data!$AO$34=1),Rørsystem!D23,IF(AND($Y$115=0)*(Data!$AO$34=2),Rørsystem!D23/$AB$8,IF(AND($Y$115=0)*(Data!$AO$34=3),Rørsystem!D23/$AB$8,IF(AND($Y$115=0)*(Data!$AO$34=4),Rørsystem!D23/$AD$8,IF(AND($Y$115=0)*(Data!$AO$34=5),Rørsystem!D23/$AB$8,IF($Y$115>0,Rørsystem!D23))))))) -> 3992.943719 | N118: =IF(X118=FALSE,"",IF(AND($Y$115=0)*(Data!$AO$34=1),Rørsystem!D23*Data!AO57,IF(AND($Y$115=0)*(Data!$AO$34=2),Rørsystem!D23/$AB$8*Data!AO57,IF(AND($Y$115=0)*(Data!$AO$34=3),Rørsystem!D23/$AB$8*Data!AO57,IF(AND($Y$115=0)*(Data!$AO$34=4),Rørsystem!D23/$AD$8*Data!AO57,IF(AND($Y$115=0)*(Data!$AO$34=5),Rørsystem!D23/$AB$8*Data!AO57,IF($Y$115>0,IF(OR(Y109=1,Y113=1),Rørsystem!D23*Data!AQ57,IF($Y$115>0,IF(OR(Y107=1,Y111=1),Rørsystem!D23*Data!AO57)))))))))) -> 3992.943719 | R118: =IF(P118="","",P118/N118) ->  | X118: TRUE
C120: Isolering af centralvarmeledninger - retur | J120: =IF(X120=FALSE,"",IF(AND($Y$115=0)*(Data!$AO$34=1),Rørsystem!D25,IF(AND($Y$115=0)*(Data!$AO$34=2),Rørsystem!D25/$AB$8,IF(AND($Y$115=0)*(Data!$AO$34=3),Rørsystem!D25/$AB$8,IF(AND($Y$115=0)*(Data!$AO$34=4),Rørsystem!D25/$AD$8,IF(AND($Y$115=0)*(Data!$AO$34=5),Rørsystem!D25/$AB$8,IF($Y$115>0,Rørsystem!D25))))))) -> 3441.352574 | N120: =IF(X120=FALSE,"",IF(AND($Y$115=0)*(Data!$AO$34=1),Rørsystem!D25*Data!AO57,IF(AND($Y$115=0)*(Data!$AO$34=2),Rørsystem!D25/$AB$8*Data!AO57,IF(AND($Y$115=0)*(Data!$AO$34=3),Rørsystem!D25/$AB$8*Data!AO57,IF(AND($Y$115=0)*(Data!$AO$34=4),Rørsystem!D25/$AD$8*Data!AO57,IF(AND($Y$115=0)*(Data!$AO$34=5),Rørsystem!D25/$AB$8*Data!AO57,IF($Y$115>0,IF(OR(Y109=1,Y113=1),Rørsystem!D25*Data!AQ57,IF($Y$115>0,IF(OR(Y107=1,Y111=1),Rørsystem!D25*Data!AO57)))))))))) -> 3441.352574 | R120: =IF(P120="","",P120/N120) ->  | X120: TRUE
C122: Isolering af ledninger til varmt brugsvand | J122: =IF(X122=FALSE,"",IF(AND($Y$115=0)*(Data!$AO$34=1),Rørsystem!D46,IF(AND($Y$115=0)*(Data!$AO$34=2),Rørsystem!D46/$AB$8,IF(AND($Y$115=0)*(Data!$AO$34=3),Rørsystem!D46/$AB$8,IF(AND($Y$115=0)*(Data!$AO$34=4),Rørsystem!D46/$AD$8,IF(AND($Y$115=0)*(Data!$AO$34=5),Rørsystem!D46/$AB$8,IF($Y$115>0,Rørsystem!D46))))))) -> 13334.38049 | N122: =IF(X122=FALSE,"",IF(AND($Y$115=0)*(Data!$AO$34=1),Rørsystem!D46*Data!AO57,IF(AND($Y$115=0)*(Data!$AO$34=2),Rørsystem!D46/$AB$8*Data!AO57,IF(AND($Y$115=0)*(Data!$AO$34=3),Rørsystem!D46/$AB$8*Data!AO57,IF(AND($Y$115=0)*(Data!$AO$34=4),Rørsystem!D46/$AD$8*Data!AO57,IF(AND($Y$115=0)*(Data!$AO$34=5),Rørsystem!D46/$AB$8*Data!AO57,IF($Y$115>0,IF(OR(Y109=1,Y113=1),Rørsystem!D46*Data!AQ57,IF($Y$115>0,IF(OR(Y107=1,Y111=1),Rørsystem!D46*Data!AO57)))))))))) -> 13334.38049 | R122: =IF(P122="","",P122/N122) ->  | X122: TRUE
C124: Isolering af varmtvandsbeholder | J124: =IF(X124=FALSE,"",IF(AND($Y$115=0)*(Data!$AO$34=1),Rørsystem!D72,IF(AND($Y$115=0)*(Data!$AO$34=2),Rørsystem!D72/$AB$8,IF(AND($Y$115=0)*(Data!$AO$34=3),Rørsystem!D72/$AB$8,IF(AND($Y$115=0)*(Data!$AO$34=4),Rørsystem!D72/$AD$8,IF(AND($Y$115=0)*(Data!$AO$34=5),Rørsystem!D72/$AB$8,IF($Y$115>0,Rørsystem!D72))))))) -> 42792.2863 | N124: =IF(X124=FALSE,"",IF(AND($Y$115=0)*(Data!$AO$34=1),Rørsystem!D72*Data!AO57,IF(AND($Y$115=0)*(Data!$AO$34=2),Rørsystem!D72/$AB$8*Data!AO57,IF(AND($Y$115=0)*(Data!$AO$34=3),Rørsystem!D72/$AB$8*Data!AO57,IF(AND($Y$115=0)*(Data!$AO$34=4),Rørsystem!D72/$AD$8*Data!AO57,IF(AND($Y$115=0)*(Data!$AO$34=5),Rørsystem!D72/$AB$8*Data!AO57,IF($Y$115>0,IF(OR(Y109=1,Y113=1),Rørsystem!D72*Data!AQ57,IF($Y$115>0,IF(OR(Y107=1,Y111=1),Rørsystem!D72*Data!AO57)))))))))) -> 42792.2863 | R124: =IF(P124="","",P124/N124) ->  | X124: TRUE
B127: Styring | J127: Besparelse [kWh]
C129: Termostatventiler | J129: =IF(X129=FALSE,"",IF(AND($Y$115=0)*(Data!$AO$34=1),Styring!AA3,IF(AND($Y$115=0)*(Data!$AO$34=2),Styring!AA3/$AB$8,IF(AND($Y$115=0)*(Data!$AO$34=3),Styring!AA3/$AB$8,IF(AND($Y$115=0)*(Data!$AO$34=4),Styring!AA3/$AD$8,IF(AND($Y$115=0)*(Data!$AO$34=5),Styring!AA3/$AB$8,IF($Y$115>0,Styring!AA3))))))) -> 804.4303758 | N129: =IF(X129=FALSE,"",IF(AND($Y$115=0)*(Data!$AO$34=1),Styring!AA3*Data!AO57,IF(AND($Y$115=0)*(Data!$AO$34=2),Styring!AA3/$AB$8*Data!AO57,IF(AND($Y$115=0)*(Data!$AO$34=3),Styring!AA3/$AB$8*Data!AO57,IF(AND($Y$115=0)*(Data!$AO$34=4),Styring!AA3/$AD$8*Data!AO57,IF(AND($Y$115=0)*(Data!$AO$34=5),Styring!AA3/$AB$8*Data!AO57,IF($Y$115>0,IF(OR(Y109=1,Y113=1),Styring!AA3*Data!AQ57,IF($Y$115>0,IF(OR(Y107=1,Y111=1),Styring!AA3*Data!AO57)))))))))) -> 804.4303758 | R129: =IF(P129="","",P129/N129) ->  | X129: TRUE
C131: Rumtemperatur | J131: =IF(X131=FALSE,"",IF(AND($Y$115=0)*(Data!$AO$34=1),Styring!AA13,IF(AND($Y$115=0)*(Data!$AO$34=2),Styring!AA13/$AB$8,IF(AND($Y$115=0)*(Data!$AO$34=3),Styring!AA13/$AB$8,IF(AND($Y$115=0)*(Data!$AO$34=4),Styring!AA13/$AD$8,IF(AND($Y$115=0)*(Data!$AO$34=5),Styring!AA13/$AB$8,IF($Y$115>0,Styring!AA13))))))) -> 804.4303758 | N131: =IF(X131=FALSE,"",IF(AND($Y$115=0)*(Data!$AO$34=1),Styring!AA13*Data!AO57,IF(AND($Y$115=0)*(Data!$AO$34=2),Styring!AA13/$AB$8*Data!AO57,IF(AND($Y$115=0)*(Data!$AO$34=3),Styring!AA13/$AB$8*Data!AO57,IF(AND($Y$115=0)*(Data!$AO$34=4),Styring!AA13/$AD$8*Data!AO57,IF(AND($Y$115=0)*(Data!$AO$34=5),Styring!AA13/$AB$8*Data!AO57,IF($Y$115>0,IF(OR(Y109=1,Y113=1),Styring!AA13*Data!AQ57,IF($Y$115>0,IF(OR(Y107=1,Y111=1),Styring!AA13*Data!AO57)))))))))) -> 804.4303758 | R131: =IF(P131="","",P131/N131) ->  | X131: TRUE
C133: Udekompensering | J133: =IF(X133=FALSE,"",IF(AND($Y$115=0)*(Data!$AO$34=1),Styring!AA23,IF(AND($Y$115=0)*(Data!$AO$34=2),Styring!AA23/$AB$8,IF(AND($Y$115=0)*(Data!$AO$34=3),Styring!AA23/$AB$8,IF(AND($Y$115=0)*(Data!$AO$34=4),Styring!AA23/$AD$8,IF(AND($Y$115=0)*(Data!$AO$34=5),Styring!AA23/$AB$8,IF($Y$115>0,Styring!AA23))))))) -> 804.4303758 | N133: =IF(X133=FALSE,"",IF(AND($Y$115=0)*(Data!$AO$34=1),Styring!AA23*Data!AO57,IF(AND($Y$115=0)*(Data!$AO$34=2),Styring!AA23/$AB$8*Data!AO57,IF(AND($Y$115=0)*(Data!$AO$34=3),Styring!AA23/$AB$8*Data!AO57,IF(AND($Y$115=0)*(Data!$AO$34=4),Styring!AA23/$AD$8*Data!AO57,IF(AND($Y$115=0)*(Data!$AO$34=5),Styring!AA23/$AB$8*Data!AO57,IF($Y$115>0,IF(OR(Y109=1,Y113=1),Styring!AA23*Data!AQ57,IF($Y$115>0,IF(OR(Y107=1,Y111=1),Styring!AA23*Data!AO57)))))))))) -> 804.4303758 | R133: =IF(P133="","",P133/N133) ->  | X133: TRUE
C135: Natsænkning | J135: =IF(X135=FALSE,"",IF(AND($Y$115=0)*(Data!$AO$34=1),Styring!AA29,IF(AND($Y$115=0)*(Data!$AO$34=2),Styring!AA29/$AB$8,IF(AND($Y$115=0)*(Data!$AO$34=3),Styring!AA29/$AB$8,IF(AND($Y$115=0)*(Data!$AO$34=4),Styring!AA29/$AD$8,IF(AND($Y$115=0)*(Data!$AO$34=5),Styring!AA29/$AB$8,IF($Y$115>0,Styring!AA29))))))) -> 287.2965628 | N135: =IF(X135=FALSE,"",IF(AND($Y$115=0)*(Data!$AO$34=1),Styring!AA29*Data!AO57,IF(AND($Y$115=0)*(Data!$AO$34=2),Styring!AA29/$AB$8*Data!AO57,IF(AND($Y$115=0)*(Data!$AO$34=3),Styring!AA29/$AB$8*Data!AO57,IF(AND($Y$115=0)*(Data!$AO$34=4),Styring!AA29/$AD$8*Data!AO57,IF(AND($Y$115=0)*(Data!$AO$34=5),Styring!AA29/$AB$8*Data!AO57,IF($Y$115>0,IF(OR(Y109=1,Y113=1),Styring!AA29*Data!AQ57,IF($Y$115>0,IF(OR(Y107=1,Y111=1),Styring!AA29*Data!AO57)))))))))) -> 287.2965628 | R135: =IF(P135="","",P135/N135) ->  | X135: TRUE
B138: Solvarme | J138: Besparelse [kWh]
C140: Solvarmeanlæg | J140: =IF(X140=FALSE,"",IF(AND($Y$115=0)*(Data!$AO$34=1),Solvarme!D15,IF(AND($Y$115=0)*(Data!$AO$34=2),Solvarme!D15/$AB$8,IF(AND($Y$115=0)*(Data!$AO$34=3),Solvarme!D15/$AB$8,IF(AND($Y$115=0)*(Data!$AO$34=4),Solvarme!D15/$AD$8,IF(AND($Y$115=0)*(Data!$AO$34=5),Solvarme!D15/$AB$8,IF($Y$115>0,Solvarme!D15))))))) -> 10777.77778 | N140: =IF(X140=FALSE,"",IF(AND($Y$115=0)*(Data!$AO$34=1),Solvarme!D15*Data!AO57,IF(AND($Y$115=0)*(Data!$AO$34=2),Solvarme!D15/$AB$8*Data!AO57,IF(AND($Y$115=0)*(Data!$AO$34=3),Solvarme!D15/$AB$8*Data!AO57,IF(AND($Y$115=0)*(Data!$AO$34=4),Solvarme!D15/$AD$8*Data!AO57,IF(AND($Y$115=0)*(Data!$AO$34=5),Solvarme!D15/$AB$8*Data!AO57,IF($Y$115>0,IF(OR(Y109=1,Y113=1),Solvarme!D15*Data!AQ57,IF($Y$115>0,IF(OR(Y107=1,Y111=1),Solvarme!D15*Data!AO57)))))))))) -> 10777.77778 | R140: =IF(P140="","",P140/N140) ->  | X140: TRUE | AH140: =Vedligehold!R11 -> 0
B143: Ventilation | H143: Læs hér | J143: Besparelse [kWh]
J144: Varme | L144: El
C145: Reduktion af driftstid | H145: =IF(OR(X145=FALSE,X155=FALSE),"",IF(AND(X145=TRUE)*(X155=TRUE),IF(AND(Ventilation!$D$25=Ventilation!$J$25)*(Ventilation!$D$27=Ventilation!$J$27)*(Ventilation!$D$29=Ventilation!$J$29),"Fejl - ret i Ventilation",""))) ->  | J145: =IF(OR(X145=FALSE,X155=TRUE),"",IF(Ventilation!$D$33-Ventilation!$J$33<0,0,IF(AND(Ventilation!$D$25=Ventilation!$J$25)*(Ventilation!$D$27=Ventilation!$J$27)*(Ventilation!$D$29=Ventilation!$J$29),0,IF(AND($Y$26=0)*(Data!$AO$34=1),(Ventilation!$D$33-Ventilation!$J$33),IF(AND($Y$26=0)*(Data!$AO$34=2),(Ventilation!$D$33-Ventilation!$J$33)/$AA$8,IF(AND($Y$26=0)*(Data!$AO$34=3),(Ventilation!$D$33-Ventilation!$J$33)/$AA$8,IF(AND($Y$26=0)*(Data!$AO$34=4),(Ventilation!$D$33-Ventilation!$J$33)/$AD$8,IF(AND($Y$26=0)*(Data!$AO$34=5),(Ventilation!$D$33-Ventilation!$J$33)/$AA$8,IF($Y$26>0,(Ventilation!$D$33-Ventilation!$J$33)))))))))) ->  | L145: =IF(OR(X145=FALSE,X155=TRUE),"",((Ventilation!$D$77*(Ventilation!$D$27-Ventilation!$D$25)*Ventilation!$D$29*52)+(Ventilation!$D$79*(Ventilation!$D$27-Ventilation!$D$25)*Ventilation!$D$29*52))-((Ventilation!$D$77*(Ventilation!$J$27-Ventilation!$J$25)*Ventilation!$J$29*52)+(Ventilation!$D$79*(Ventilation!$J$27-Ventilation!$J$25)*Ventilation!$J$29*52))) ->  | N145: =IF(OR(X145=FALSE,X155=TRUE),"",IF(Ventilation!$D$33-Ventilation!$J$33<0,0,IF(AND(Ventilation!$D$25=Ventilation!$J$25)*(Ventilation!$D$27=Ventilation!$J$27)*(Ventilation!$D$29=Ventilation!$J$29),0,IF(AND($Y$115=0)*(Data!$AO$34=1),(Ventilation!$D$33-Ventilation!$J$33)*Data!$AO$57+(L145*Data!$N$21),IF(AND($Y$115=0)*(Data!$AO$34=2),((Ventilation!$D$33-Ventilation!$J$33)/$AA$8)*Data!$AO$57+(L145*Data!$N$21),IF(AND($Y$115=0)*(Data!$AO$34=3),(Ventilation!$D$33-Ventilation!$J$33)/$AA$8*Data!$AO$57+(L145*Data!N81),IF(AND($Y$115=0)*(Data!$AO$34=4),(Ventilation!$D$33-Ventilation!$J$33)/$AD$8*Data!$AO$57+(L145*Data!N81),IF(AND($Y$115=0)*(Data!$AO$34=5),(Ventilation!$D$33-Ventilation!$J$33)/$AA$8*Data!$AO$57+(L145*Data!N81),IF($Y$115>0,IF(OR(Y109=1,Y113=1),(Ventilation!$D$33-Ventilation!$J$33)*Data!$AQ$57+(L145*Data!$N$21),(Ventilation!$D$33-Ventilation!$J$33)*Data!$AO$57+(L145*Data!$N$21))))))))))) ->  | R145: =IF(P145="","",P145/N145) ->  | X145: TRUE | Y145: =IF(X145=FALSE,0,1) -> 1 | Z145: =IF(X145=FALSE,0,1) -> 1 | AB145: =IF(AND(Z145=1)*(Z149=0)*(Z153=0),((Ventilation!$D$77*(Ventilation!$D$27-Ventilation!$D$25)*Ventilation!$D$29*52)+(Ventilation!$D$79*(Ventilation!$D$27-Ventilation!$D$25)*Ventilation!$D$29*52))-((Ventilation!$D$77*(Ventilation!$J$27-Ventilation!$J$25)*Ventilation!$J$29*52)+(Ventilation!$D$79*(Ventilation!$J$27-Ventilation!$J$25)*Ventilation!$J$29*52))) -> 69800.64 | AD145: =IF(H145="Fejl - ret i Ventilation",1,0) -> 0
AB146: =IF(AND(Z145=0)*(Z149=1)*(Z153=0),((Ventilation!$D$77-(Ventilation!$D$77*(Ventilation!$J$7/Ventilation!$D$7)^2.5))*(Ventilation!$D$91-Ventilation!$D$89)*Ventilation!$D$93*52)+((Ventilation!$D$79-(Ventilation!$D$79*(Ventilation!$J$9/Ventilation!$D$9)^2.5))*(Ventilation!$D$91-Ventilation!$D$89)*Ventilation!$D$93*52)) -> FALSE
C147: Reduktion af indblæsningstemperatur | H147: =IF(OR(X147=FALSE,X155=FALSE),"",IF(AND(X147=TRUE)*(X155=TRUE),IF(AND(Ventilation!$D$13=Ventilation!$J$13)*(Ventilation!$D$15=Ventilation!$J$15),"Fejl - ret i Ventilation",""))) ->  | J147: =IF(OR(X147=FALSE,X155=TRUE),"",IF(Ventilation!$D$33-Ventilation!$J$33<0,0,IF(Ventilation!$D$13=Ventilation!$J$13,0,IF(AND($Y$26=0)*(Data!$AO$34=1),(Ventilation!$D$33-Ventilation!$J$33),IF(AND($Y$26=0)*(Data!$AO$34=2),(Ventilation!$D$33-Ventilation!$J$33)/$AA$8,IF(AND($Y$26=0)*(Data!$AO$34=3),(Ventilation!$D$33-Ventilation!$J$33)/$AA$8,IF(AND($Y$26=0)*(Data!$AO$34=4),(Ventilation!$D$33-Ventilation!$J$33)/$AD$8,IF(AND($Y$26=0)*(Data!$AO$34=5),(Ventilation!$D$33-Ventilation!$J$33)/$AA$8,IF($Y$26>0,(Ventilation!$D$33-Ventilation!$J$33)))))))))) ->  | N147: =IF(OR(X147=FALSE,X155=TRUE),"",IF(Ventilation!$D$33-Ventilation!$J$33<0,0,IF(Ventilation!$D$13=Ventilation!$J$13,0,IF(AND($Y$115=0)*(Data!$AO$34=1),(Ventilation!$D$33-Ventilation!$J$33)*Data!$AO$57,IF(AND($Y$115=0)*(Data!$AO$34=2),(Ventilation!$D$33-Ventilation!$J$33)/$AA$8*Data!$AO$57,IF(AND($Y$115=0)*(Data!$AO$34=3),(Ventilation!$D$33-Ventilation!$J$33)/$AA$8*Data!$AO$57,IF(AND($Y$115=0)*(Data!$AO$34=4),(Ventilation!$D$33-Ventilation!$J$33)/$AD$8*Data!$AO$57,IF(AND($Y$115=0)*(Data!$AO$34=5),(Ventilation!$D$33-Ventilation!$J$33)/$AA$8*Data!$AO$57,IF($Y$115>0,IF(OR(Y109=1,Y113=1),(Ventilation!$D$33-Ventilation!$J$33)*Data!$AQ$57),(Ventilation!$D$33-Ventilation!$J$33)*Data!$AO$57))))))))) ->  | R147: =IF(P147="","",P147/N147) ->  | X147: FALSE | Y147: =IF(X147=FALSE,0,1) -> 0 | AB147: =IF(AND(Z145=0)*(Z149=0)*(Z153=1),Ventilation!$D$97-Ventilation!$J$97) -> FALSE | AD147: =IF(H147="Fejl - ret i Ventilation",1,0) -> 0
AB148: =IF(AND(Z145=1)*(Z149=1)*(Z153=0),IF(AND(Ventilation!$D$7=Ventilation!$J$7)*(Ventilation!$D$9=Ventilation!$J$9),((Ventilation!$D$77*(Ventilation!$D$27-Ventilation!$D$25)*Ventilation!$D$29*52)+(Ventilation!$D$79*(Ventilation!$D$27-Ventilation!$D$25)*Ventilation!$D$29*52))-((Ventilation!$D$77*(Ventilation!$J$27-Ventilation!$J$25)*Ventilation!$J$29*52)+(Ventilation!$D$79*(Ventilation!$J$27-Ventilation!$J$25)*Ventilation!$J$29*52)),((Ventilation!$D$77*((Ventilation!$D$91-Ventilation!$D$89)*Ventilation!$D$93*52)))-((Ventilation!$D$77*(Ventilation!$J$7/Ventilation!$D$7)^2.5))*((Ventilation!$P$91-Ventilation!$P$89)*Ventilation!$P$93*52)+((Ventilation!$D$79*((Ventilation!$D$91-Ventilation!$D$89)*Ventilation!$D$93*52)))-((Ventilation!$D$79*(Ventilation!$J$9/Ventilation!$D$9)^2.5))*((Ventilation!$P$91-Ventilation!$P$89)*Ventilation!$P$93*52))) -> FALSE
C149: Reduktion af volumenstrømme | H149: =IF(OR(X149=FALSE,X155=FALSE),"",IF(AND(X149=TRUE)*(X155=TRUE),IF(AND(Ventilation!$D$7=Ventilation!$J$7)*(Ventilation!$D$9=Ventilation!$J$9),"Fejl - ret i Ventilation",""))) ->  | J149: =IF(OR(X149=FALSE,X155=TRUE),"",IF(Ventilation!$D$33-Ventilation!$J$33<0,0,IF(AND(Ventilation!$D$7=Ventilation!$J$7)*(Ventilation!$D$9=Ventilation!$J$9),0,IF(AND($Y$26=0)*(Data!$AO$34=1),(Ventilation!$D$33-Ventilation!$J$33),IF(AND($Y$26=0)*(Data!$AO$34=2),(Ventilation!$D$33-Ventilation!$J$33)/$AA$8,IF(AND($Y$26=0)*(Data!$AO$34=3),(Ventilation!$D$33-Ventilation!$J$33)/$AA$8,IF(AND($Y$26=0)*(Data!$AO$34=4),(Ventilation!$D$33-Ventilation!$J$33)/$AD$8,IF(AND($Y$26=0)*(Data!$AO$34=5),(Ventilation!$D$33-Ventilation!$J$33)/$AA$8,IF($Y$26>0,(Ventilation!$D$33-Ventilation!$J$33)))))))))) ->  | L149: =IF(OR(X149=FALSE,X155=TRUE),"",((Ventilation!$D$77-(Ventilation!$D$77*(Ventilation!$J$7/Ventilation!$D$7)^2.5))*(Ventilation!$D$91-Ventilation!$D$89)*Ventilation!$D$93*52)+((Ventilation!$D$79-(Ventilation!$D$79*(Ventilation!$J$9/Ventilation!$D$9)^2.5))*(Ventilation!$D$91-Ventilation!$D$89)*Ventilation!$D$93*52)) ->  | N149: =IF(OR(X149=FALSE,X155=TRUE),"",IF(Ventilation!$D$33-Ventilation!$J$33<0,0,IF(AND(Ventilation!$D$7=Ventilation!$J$7)*(Ventilation!$D$9=Ventilation!$J$9),0,IF(AND($Y$115=0)*(Data!$AO$34=1),(Ventilation!$D$33-Ventilation!$J$33)*Data!$AO$57+(L149*Data!$N$21),IF(AND($Y$115=0)*(Data!$AO$34=2),(Ventilation!$D$33-Ventilation!$J$33)/$AA$8*Data!$AO$57+(L149*Data!$N$21),IF(AND($Y$115=0)*(Data!$AO$34=3),(Ventilation!$D$33-Ventilation!$J$33)/$AA$8*Data!$AO$57+(L149*Data!$N$21),IF(AND($Y$115=0)*(Data!$AO$34=4),(Ventilation!$D$33-Ventilation!$J$33)/$AD$8*Data!$AO$57+(L149*Data!$N$21),IF(AND($Y$115=0)*(Data!$AO$34=5),(Ventilation!$D$33-Ventilation!$J$33)/$AA$8*Data!$AO$57+(L149*Data!$N$21),IF($Y$115>0,IF(OR(Y109=1,Y113=1),(Ventilation!$D$33-Ventilation!$J$33)*Data!$AQ$57+(L149*Data!$N$21),(Ventilation!$D$33-Ventilation!$J$33)*Data!$AO$57+(L149*Data!$N$21))))))))))) ->  | R149: =IF(P149="","",P149/N149) ->  | X149: FALSE | Y149: =IF(X149=FALSE,0,1) -> 0 | Z149: =IF(X149=FALSE,0,1) -> 0 | AB149: =IF(AND(Z145=1)*(Z149=0)*(Z153=1),Ventilation!$D$97-Ventilation!$J$97) -> FALSE | AD149: =IF(H149="Fejl - ret i Ventilation",1,0) -> 0
AB150: =IF(AND(Z145=0)*(Z149=1)*(Z153=1),Ventilation!$D$97-Ventilation!$J$97) -> FALSE
C151: Etablering eller udskiftning af varmegenvindingsenhed | H151: =IF(OR(X151=FALSE,X155=FALSE),"",IF(AND(X151=TRUE)*(X155=TRUE),IF(Ventilation!$D$21>0,"Fejl - ret i Ventilation",""))) ->  | J151: =IF(OR(X151=FALSE,X155=TRUE),"",IF(Ventilation!$D$33-Ventilation!$J$33<0,0,IF(Ventilation!$D$21>0,0,IF(AND($Y$26=0)*(Data!$AO$34=1),(Ventilation!$D$33-Ventilation!$J$33),IF(AND($Y$26=0)*(Data!$AO$34=2),(Ventilation!$D$33-Ventilation!$J$33)/$AA$8,IF(AND($Y$26=0)*(Data!$AO$34=3),(Ventilation!$D$33-Ventilation!$J$33)/$AA$8,IF(AND($Y$26=0)*(Data!$AO$34=4),(Ventilation!$D$33-Ventilation!$J$33)/$AD$8,IF(AND($Y$26=0)*(Data!$AO$34=5),(Ventilation!$D$33-Ventilation!$J$33)/$AA$8,IF($Y$26>0,(Ventilation!$D$33-Ventilation!$J$33)))))))))) ->  | N151: =IF(OR(X151=FALSE,X155=TRUE),"",IF(Ventilation!$D$33-Ventilation!$J$33<0,0,IF(Ventilation!$D$21>0,0,IF(AND($Y$115=0)*(Data!$AO$34=1),(Ventilation!$D$33-Ventilation!$J$33)*Data!$AO$57,IF(AND($Y$115=0)*(Data!$AO$34=2),(Ventilation!$D$33-Ventilation!$J$33)/$AA$8*Data!$AO$57,IF(AND($Y$115=0)*(Data!$AO$34=3),(Ventilation!$D$33-Ventilation!$J$33)/$AA$8*Data!$AO$57,IF(AND($Y$115=0)*(Data!$AO$34=4),(Ventilation!$D$33-Ventilation!$J$33)/$AD$8*Data!$AO$57,IF(AND($Y$115=0)*(Data!$AO$34=5),(Ventilation!$D$33-Ventilation!$J$33)/$AA$8*Data!$AO$57,IF($Y$115>0,IF(OR(Y109=1,Y113=1),(Ventilation!$D$33-Ventilation!$J$33)*Data!$AQ$57,(Ventilation!$D$33-Ventilation!$J$33)*Data!$AO$57)))))))))) ->  | R151: =IF(P151="","",P151/N151) ->  | X151: FALSE | Y151: =IF(X151=FALSE,0,1) -> 0 | AB151: =IF(AND(Z145=1)*(Z149=1)*(Z153=1),Ventilation!$D$97-Ventilation!$J$97) -> FALSE | AD151: =IF(H151="Fejl - ret i Ventilation",1,0) -> 0
AB152: =SUM(AB145:AB151) -> 69800.64 | AD152: =SUM(AD145:AD151) -> 0
C153: Udskiftning af ventilator og motor | L153: =IF(OR(X153=FALSE,X155=TRUE),"",Ventilation!$D$97-Ventilation!$J$97) ->  | N153: =IF(OR(X153=FALSE,X155=TRUE,Ventilation!$S$43=1),"",(Ventilation!$D$97-Ventilation!$J$97)*Data!$N$21) ->  | R153: =IF(P153="","",P153/N153) ->  | X153: FALSE | Z153: =IF(X153=FALSE,0,1) -> 0
C155: Kombinerede forslag (enkeltforslag vises ikke) | J155: =IF(OR(X155=FALSE,Y157=0,AD152>=1),"",IF(X155=TRUE,IF(Ventilation!$D$33-Ventilation!$J$33<0,0,IF(AND($Y$26=0)*(Data!$AO$34=1),(Ventilation!$D$33-Ventilation!$J$33),IF(AND($Y$26=0)*(Data!$AO$34=2),(Ventilation!$D$33-Ventilation!$J$33)/$AA$8,IF(AND($Y$26=0)*(Data!$AO$34=3),(Ventilation!$D$33-Ventilation!$J$33)/$AA$8,IF(AND($Y$26=0)*(Data!$AO$34=4),(Ventilation!$D$33-Ventilation!$J$33)/$AD$8,IF(AND($Y$26=0)*(Data!$AO$34=5),(Ventilation!$D$33-Ventilation!$J$33)/$AA$8,IF($Y$26>0,(Ventilation!$D$33-Ventilation!$J$33)))))))))) -> 144937.0095 | L155: =IF(OR(X155=FALSE,Z157=0),"",AB152) -> 69800.64 | N155: =IF(X155=FALSE,"",IF(AND(Y157=0)*(Z157=0),"",IF(OR(Y157<1,AD152>=1),(AB152*Data!$N$21),IF(Y157>=1,IF(AND($Y$115=0)*(Data!$AO$34=1),(Ventilation!$D$33-Ventilation!$J$33)*Data!$AO$57+(AB152*Data!$N$21),IF(AND($Y$115=0)*(Data!$AO$34=2),(Ventilation!$D$33-Ventilation!$J$33)/$AA$8*Data!$AO$57+(AB152*Data!$N$21),IF(AND($Y$115=0)*(Data!$AO$34=3),(Ventilation!$D$33-Ventilation!$J$33)/$AA$8*Data!$AO$57+(AB152*Data!$N$21),IF(AND($Y$115=0)*(Data!$AO$34=4),(Ventilation!$D$33-Ventilation!$J$33)/$AD$8*Data!$AO$57+(AB152*Data!$N$21),IF(AND($Y$115=0)*(Data!$AO$34=5),(Ventilation!$D$33-Ventilation!$J$33)/$AA$8*Data!$AO$57+(AB152*Data!$N$21),IF($Y$115>0,IF(OR(Y109=1,Y113=1),(Ventilation!$D$33-Ventilation!$J$33)*Data!$AQ$57+(AB152*Data!$N$21),(Ventilation!$D$33-Ventilation!$J$33)*Data!$AO$57+(AB152*Data!$N$21)))))))))))) -> 302451.8524 | P155: 1000000 | R155: =IF(P155="","",P155/N155) -> 3.306311375 | X155: TRUE | Y155: =IF(X155=FALSE,0,1) -> 1 | Z155: =IF(X155=FALSE,0,1) -> 1 | AC155: =IF(Y66<1,(AB61*Data!$N$21),IF(Y66>=1,IF(AND($Y$26=0)*(Data!$AO$34=1),(Ventilation!$D$33-Ventilation!$J$33)*Data!$AO$57+(AB61*Data!$N$21),IF(AND($Y$26=0)*(Data!$AO$34=2),(Ventilation!$D$33-Ventilation!$J$33)/$AA$8*Data!$AO$57+(AB61*Data!$N$21),IF(AND($Y$26=0)*(Data!$AO$34=3),(Ventilation!$D$33-Ventilation!$J$33)/$AA$8*Data!$AO$57+(AB61*Data!$N$21),IF($Y$26>0,(Ventilation!$D$33-Ventilation!$J$33)*Data!$AQ$57+(AB61*Data!$N$21))))))) -> 139601.28 | AE155: =IF(AND(Z145=1)*(Z155=0),L145,IF(AND(Z149=1)*(Z155=0),L149,IF(AND(Z153=1)*(Z155=0),L153,IF(Z155=1,L155)))) -> 69800.64 | AF155: =IF(AND(X145=FALSE)*(X155=FALSE),SUM(N107,N109,N111,N113,N118,N120,N122,N124,N129,N131,N133,N135,N140),IF(AND(X145=TRUE)*(X155=FALSE),SUM(N107,N109,N111,N113,N118,N120,N122,N124,N129,N131,N133,N135,N140,N145),IF(AND(X147=TRUE)*(X155=FALSE),SUM(N107,N109,N111,N113,N118,N120,N122,N124,N129,N131,N133,N135,N140,N147),IF(AND(X149=TRUE)*(X155=FALSE),SUM(N107,N109,N111,N113,N118,N120,N122,N124,N129,N131,N133,N135,N140,N149),IF(AND(X151=TRUE)*(X155=FALSE),SUM(N107,N109,N111,N113,N118,N120,N122,N124,N129,N131,N133,N135,N140,N151),IF(AND(X153=TRUE)*(X155=FALSE),SUM(N107,N109,N111,N113,N118,N120,N122,N124,N129,N131,N133,N135,N140,N153),IF(X155=TRUE,SUM(N107,N109,N111,N113,N118,N120,N122,N124,N129,N131,N133,N135,N140,N155)))))))) -> 379491.181
Y157: =SUM(Y145:Y151) -> 1 | Z157: =SUM(Z145:Z153) -> 1
B158: Køling | G158: Læs hér
C160: Reduktion af driftstid | G160: =IF(OR(X160=FALSE,X172=FALSE),"",IF(AND(X160=TRUE)*(X172=TRUE),IF(AND(Køling!D27=Køling!J27)*(Køling!D29=Køling!J29)*(Køling!D31=Køling!J31),"Fejl - ret i Køling",""))) ->  | L160: =IF(OR(X160=FALSE,X172=TRUE),"",IF(Køling!D35-Køling!J35<0,0,IF(AND(Køling!D27=Køling!J27)*(Køling!D29=Køling!J29)*(Køling!D31=Køling!J31),0,(Køling!D35-Køling!J35)/Køling!D23))) ->  | N160: =IF(OR(X160=FALSE,X172=TRUE),"",IF(Køling!D35-Køling!J35<0,0,IF(AND(Køling!D27=Køling!J27)*(Køling!D29=Køling!J29)*(Køling!D31=Køling!J31),0,(Køling!D35-Køling!J35)*Data!$N$21/Køling!D23))) ->  | R160: =IF(P160="","",P160/N160) ->  | X160: FALSE | Z160: =IF(X160=FALSE,0,1) -> 0 | AD160: =IF(G160="Fejl - ret i Køling",1,0) -> 0
C162: Reduktion af indblæsningstemperatur | G162: =IF(OR(X162=FALSE,X172=FALSE),"",IF(AND(X162=TRUE)*(X172=TRUE),IF(Køling!$D$13=Køling!$J$13,"Fejl - ret i Køling",""))) ->  | L162: =IF(OR(X162=FALSE,X172=TRUE),"",IF(Køling!D35-Køling!J35<0,0,IF(Køling!$D$13=Køling!$J$13,0,(Køling!D35-Køling!J35)/Køling!D23))) ->  | N162: =IF(OR(X162=FALSE,X172=TRUE),"",IF(Køling!D35-Køling!J35<0,0,IF(Køling!$D$13=Køling!$J$13,0,(Køling!D35-Køling!J35)*Data!$N$21/Køling!D23))) ->  | R162: =IF(P162="","",P162/N162) ->  | X162: FALSE | Z162: =IF(X162=FALSE,0,1) -> 0 | AD162: =IF(G162="Fejl - ret i Køling",1,0) -> 0
C164: Reduktion af kølefladens overfladetemperatur | G164: =IF(OR(X164=FALSE,X172=FALSE),"",IF(AND(X164=TRUE)*(X172=TRUE),IF(Køling!$D$15=Køling!$J$15,"Fejl - ret i Køling",""))) ->  | L164: =IF(OR(X164=FALSE,X172=TRUE),"",IF(Køling!D35-Køling!J35<0,0,IF(Køling!$D$15=Køling!$J$15,0,(Køling!D35-Køling!J35)/Køling!D23))) ->  | N164: =IF(OR(X164=FALSE,X172=TRUE),"",IF(Køling!D35-Køling!J35<0,0,IF(Køling!$D$15=Køling!$J$15,0,(Køling!D35-Køling!J35)*Data!$N$21/Køling!D23))) ->  | R164: =IF(P164="","",P164/N164) ->  | X164: FALSE | Z164: =IF(X164=FALSE,0,1) -> 0 | AD164: =IF(G164="Fejl - ret i Køling",1,0) -> 0
C166: Reduktion af volumenstrøm | G166: =IF(OR(X166=FALSE,X172=FALSE),"",IF(AND(X166=TRUE)*(X172=TRUE),IF(AND(Køling!$D$7=Køling!$J$7)*(Køling!$D$9=Køling!$J$9),"Fejl - ret i Køling",""))) ->  | L166: =IF(OR(X166=FALSE,X172=TRUE),"",IF(Køling!D35-Køling!J35<0,0,IF(AND(Køling!$D$7=Køling!$J$7)*(Køling!$D$9=Køling!$J$9),0,(Køling!D35-Køling!J35)/Køling!D23))) ->  | N166: =IF(OR(X166=FALSE,X172=TRUE),"",IF(Køling!D35-Køling!J35<0,0,IF(AND(Køling!$D$7=Køling!$J$7)*(Køling!$D$9=Køling!$J$9),0,(Køling!D35-Køling!J35)*Data!$N$21/Køling!D23))) ->  | R166: =IF(P166="","",P166/N166) ->  | X166: FALSE | Z166: =IF(X166=FALSE,0,1) -> 0 | AD166: =IF(G166="Fejl - ret i Køling",1,0) -> 0
C168: Hævning af fordampningstemperatur | G168: =IF(OR(X168=FALSE,X172=FALSE),"",IF(AND(X168=TRUE)*(X172=TRUE),IF(Køling!D19=Køling!J19,"Fejl - ret i Køling",""))) ->  | L168: =IF(OR(X168=FALSE,X172=TRUE),"",IF(Køling!D35-Køling!J35<0,0,IF(Køling!D19=Køling!J19,0,(Køling!D35/Køling!D23-Køling!J35/Køl!AZ8771)))) ->  | N168: =IF(OR(X168=FALSE,X172=TRUE),"",IF(Køling!D35-Køling!J35<0,0,IF(Køling!D19=Køling!J19,0,(Køling!D35/Køling!D23-Køling!J35/Køl!AZ8771)*Data!$N$21))) ->  | R168: =IF(P168="","",P168/N168) ->  | X168: FALSE | Z168: =IF(X168=FALSE,0,1) -> 0 | AD168: =IF(G168="Fejl - ret i Køling",1,0) -> 0
C170: Reduktion af kondenseringstemperatur | G170: =IF(OR(X170=FALSE,X172=FALSE),"",IF(AND(X170=TRUE)*(X172=TRUE),IF(Køling!D21=Køling!J21,"Fejl - ret i Køling",""))) ->  | L170: =IF(OR(X170=FALSE,X172=TRUE),"",IF(Køling!D35-Køling!J35<0,0,IF(Køling!D21=Køling!J21,0,(Køling!D35/Køling!D23-Køling!J35/Køl!AX8771)))) ->  | N170: =IF(OR(X170=FALSE,X172=TRUE),"",IF(Køling!D35-Køling!J35<0,0,IF(Køling!D21=Køling!J21,0,(Køling!D35/Køling!D23-Køling!J35/Køl!AX8771)*Data!$N$21))) ->  | R170: =IF(P170="","",P170/N170) ->  | X170: FALSE | Z170: =IF(X170=FALSE,0,1) -> 0 | AD170: =IF(G170="Fejl - ret i Køling",1,0) -> 0
AD171: =SUM(AD160:AD170) -> 0
C172: Kombinerede forslag (enkeltforslag vises ikke) | L172: =IF(OR(X172=FALSE,Z174=0,AD171>=1),"",IF(X172=TRUE,IF(Køling!D35-Køling!J35<0,0,(Køling!D35/Køling!D23-Køling!J35/Køling!J23)))) ->  | N172: =IF(OR(X172=FALSE,Z174=0,AD171>=1),"",IF(X172=TRUE,IF(Køling!D35-Køling!J35<0,0,(Køling!D35-Køling!J35*Data!$N$21/Køling!D23)))) ->  | R172: =IF(P172="","",P172/N172) ->  | X172: FALSE | Z172: =IF(X172=FALSE,0,1) -> 0 | AE172: =IF(AND(X160=TRUE)*(X172=FALSE),L160,IF(AND(X162=TRUE)*(X172=FALSE),L162,IF(AND(X164=TRUE)*(X172=FALSE),L164,IF(AND(X166=TRUE)*(X172=FALSE),L166,IF(AND(X168=TRUE)*(X172=FALSE),L168,IF(AND(X170=TRUE)*(X172=FALSE),L170,IF(X172=TRUE,L172))))))) -> FALSE | AF172: =IF(AND(X160=TRUE)*(X172=FALSE),N160,IF(AND(X162=TRUE)*(X172=FALSE),N162,IF(AND(X164=TRUE)*(X172=FALSE),N164,IF(AND(X166=TRUE)*(X172=FALSE),N166,IF(AND(X168=TRUE)*(X172=FALSE),N168,IF(AND(X170=TRUE)*(X172=FALSE),N170,IF(X172=TRUE,N172))))))) -> FALSE
Z174: =SUM(Z160:Z170) -> 0
B175: Pumper
C177: Udskiftning af pumpe | G177: =IF(OR(X177=FALSE,X186=FALSE),"",IF(AND(X177=TRUE)*(X186=TRUE),IF(AND(Ventilation!$D$25=Ventilation!$J$25)*(Ventilation!$D$27=Ventilation!$J$27)*(Ventilation!$D$29=Ventilation!$J$29),"Fejl - ret i Ventilation",""))) ->  | L177: =IF(X177=FALSE,"",Pumper!Z29-Pumper!Z30) ->  | N177: =IF(X177=FALSE,"",(Pumper!Z29-Pumper!Z30)*Data!$N$21) ->  | R177: =IF(P177="","",P177/N177) ->  | X177: FALSE | AE177: =IF(L177="",0,L177) -> 0 | AF177: =IF(N177="",0,N177) -> 0
B180: Belysning
C182: Reduktion af driftstid | L182: =IF(OR(X182=FALSE,X194=TRUE),"",Belysning!AP42) ->  | N182: =IF(OR(X182=FALSE,X194=TRUE),"",Belysning!AP42*Data!$N$21) ->  | R182: =IF(P182="","",P182/N182) ->  | X182: FALSE | Z182: =IF(X182=FALSE,0,1) -> 0
C184: Sektionsopdeling | L184: =IF(OR(X184=FALSE,X194=TRUE),"",Belysning!AP44) ->  | N184: =IF(OR(X184=FALSE,X194=TRUE),"",Belysning!AP44*Data!$N$21) ->  | R184: =IF(P184="","",P184/N184) ->  | X184: FALSE | Z184: =IF(X184=FALSE,0,1) -> 0
C186: Reduktion af belysningsstyrke | L186: =IF(OR(X186=FALSE,X194=TRUE),"",Belysning!AP46) ->  | N186: =IF(OR(X186=FALSE,X194=TRUE),"",Belysning!AP46*Data!$N$21) ->  | R186: =IF(P186="","",P186/N186) ->  | X186: FALSE | Z186: =IF(X186=FALSE,0,1) -> 0
C188: Udskiftning af lyskilder | L188: =IF(OR(X188=FALSE,X194=TRUE),"",Belysning!AP48) ->  | N188: =IF(OR(X188=FALSE,X194=TRUE),"",Belysning!AP48*Data!$N$21+AH188) ->  | R188: =IF(P188="","",P188/N188) ->  | X188: FALSE | Z188: =IF(X188=FALSE,0,1) -> 0 | AH188: =Vedligehold!R12 -> 76500
C190: Udskiftning af forkoblingsenheder | L190: =IF(OR(X190=FALSE,X194=TRUE),"",Belysning!AP50) ->  | N190: =IF(OR(X190=FALSE,X194=TRUE),"",Belysning!AP50*Data!$N$21) ->  | R190: =IF(P190="","",P190/N190) ->  | X190: FALSE | Z190: =IF(X190=FALSE,0,1) -> 0
C192: Udnyttelse af dagslysindfald | L192: =IF(OR(X192=FALSE,X194=TRUE),"",Belysning!AP52) ->  | N192: =IF(OR(X192=FALSE,X194=TRUE),"",Belysning!AP52*Data!$N$21) ->  | R192: =IF(P192="","",P192/N192) ->  | X192: FALSE | Z192: =IF(X192=FALSE,0,1) -> 0
C194: Kombinerede forslag (enkeltforslag vises ikke) | L194: =IF(OR(X194=FALSE,Z196=0),"",Belysning!AP16-Belysning!AP40) ->  | N194: =IF(OR(X194=FALSE,Z196=0),"",(Belysning!AP16-Belysning!AP40)*Data!$N$21) ->  | R194: =IF(P194="","",P194/N194) ->  | X194: FALSE | AE194: =IF(AND(X182=TRUE)*(X194=FALSE),L182,IF(AND(X184=TRUE)*(X194=FALSE),L184,IF(AND(X186=TRUE)*(X194=FALSE),L186,IF(AND(X188=TRUE)*(X194=FALSE),L188,IF(AND(X190=TRUE)*(X194=FALSE),L190,IF(AND(X192=TRUE)*(X194=FALSE),L192,IF(X194=TRUE,L194))))))) -> FALSE | AF194: =IF(AND(X182=TRUE)*(X194=FALSE),N182,IF(AND(X184=TRUE)*(X194=FALSE),N184,IF(AND(X186=TRUE)*(X194=FALSE),N186,IF(AND(X188=TRUE)*(X194=FALSE),N188,IF(AND(X190=TRUE)*(X194=FALSE),N190,IF(AND(X192=TRUE)*(X194=FALSE),N192,IF(X194=TRUE,N194))))))) -> FALSE
Z196: =SUM(Z182:Z192) -> 0
B197: Solceller
C199: Solcelleanlæg | G199: =IF(OR(X199=FALSE,X209=FALSE),"",IF(AND(X199=TRUE)*(X209=TRUE),IF(AND(Ventilation!$D$25=Ventilation!$J$25)*(Ventilation!$D$27=Ventilation!$J$27)*(Ventilation!$D$29=Ventilation!$J$29),"Fejl - ret i Ventilation",""))) ->  | L199: =IF(X199=FALSE,"",Solceller!K35) ->  | N199: =IF(X199=FALSE,"",Solceller!K35*Data!$N$21+AH199) ->  | R199: =IF(P199="","",P199/N199) ->  | X199: FALSE | AE199: =IF(L199="",0,L199) -> 0 | AF199: =IF(N199="",0,N199) -> 0 | AH199: =0.15*Solceller!K35 -> 743.544972
B202: I alt | J202: Besparelse [kWh]
J203: Varme | L203: El
J204: =IF(Y157=0,SUM(J107,J109,J111,J113,J118,J120,J122,J124,J129,J131,J133,J135,J140),IF(AND(X145=TRUE)*(X155=FALSE),SUM(J107,J109,J111,J113,J118,J120,J122,J124,J129,J131,J133,J135,J140,J145),IF(AND(X147=TRUE)*(X155=FALSE),SUM(J107,J109,J111,J113,J118,J120,J122,J124,J129,J131,J133,J135,J140,J147),IF(AND(X149=TRUE)*(X155=FALSE),SUM(J107,J109,J111,J113,J118,J120,J122,J124,J129,J131,J133,J135,J140,J149),IF(AND(X151=TRUE)*(X155=FALSE),SUM(J107,J109,J111,J113,J118,J120,J122,J124,J129,J131,J133,J135,J140,J151),IF(X155=TRUE,SUM(J107,J109,J111,J113,J118,J120,J122,J124,J129,J131,J133,J135,J140,J155))))))) -> 221976.338 | L204: =AE155+AE172+AE177+AE194+AE199 -> 69800.64 | N204: =AF155+AF172+AF177+AF194+AF199 -> 379491.181 | P204: =SUM(P107,P109,P111,P113,P118,P120,P122,P124,P129,P131,P133,P135,P140,P145,P147,P149,P151,P153,P155,P160,P162,P164,P166,P168,P170,P172,P177,P182,P184,P186,P188,P190,P192,P194) -> 1000000 | R204: =IF(P204="","",P204/N204) -> 2.635107349

Sheet Data
C3: Navn | L3: Udført af
C5: Adresse | L5: Firma
C7: Postnr. og by
C9: Telefon
C11: Mail
C13: Dato for besøg
AL16: Bygning | AM16: GUF | AW16: eller(OG(AO20=1;AL26=1;n3<=1,5);OG(AO20=1;AL26=2;n3<=1500);OG(AO20=1;AL26=3;n3<=417);OG(AO20=1;AL26=4;n3<=70);OG(AO20=1;AL26=5;n3<=1050);OG(AO20=2;n3<=15);OG(AO20=3;n3<=15))
C17: Bygningskategori | L17: Varmepris, før | N17: 10 | P17: =IF(AO34=1,AO47,IF(AO34=2,AO48,IF(AO34=3,AO49,IF(AO34=4,AO50,IF(AO34=5,AO51))))) -> kr./L | AL17: Enfamiliesbolig | AN17: Varmeanlæg med høj virkningsgrad (A-mærket kedel, kondenserende kedel eller fjernvarme) | AW17: eller(OG(Ap20=1;AL26=1;n5<=1,5);OG(Ap20=1;AL26=2;n5<=1500);OG(Ap20=1;AL26=3;n5<=417);OG(Ap20=1;AL26=4;n5<=70);OG(Ap20=1;AL26=5;n5<=1050);OG(Ap20=2;n5<=15);OG(Ap20=3;n5<=15))
AL18: Etagebolig | AM18: 28 | AN18: Varmeanlæg med lav virkningsgrad (Ikke A-mærket kedel eller ikke kondenserende kedel)
C19: Bygningens areal | D19: 150 | F19: m2 | L19: Varmepris, efter | P19: =IF(AP34=1,AQ47,IF(AP34=2,AQ48,IF(AP34=3,AQ49,IF(AP34=4,AQ50,IF(AP34=5,AQ51))))) -> kr./L | AL19: Døgninstitution | AM19: 28
AL20: Administration | AM20: 18 | AN20: 2
C21: Antal personer | D21: 3 | F21: Stk. | L21: Elpris | N21: 2 | P21: kr./kWh | AL21: Skole | AM21: 19
C23: Varmeanlæg - virkningsgrad | L23: Solgt besparelse | N23: 0.25 | P23: kr./kWh | AL23: 1
C26: Før
C28: Hovedvarmeforsyning | D28: Brutto | F28: Enhed | I28: Små anlæg | L28: Store anlæg | T28: Netto brændselsforbrug | AB28: Årsnyttevirkning
D29: brændsesforbrug | T29: Rumopvarmning | V29: Varmt brugsvand | X29: I alt | AB29: [%]
C31: Fjernvarme | T31: =IF(AO34=1,Inddata!H17,"") ->  | V31: =IF(AO34=1,Inddata!H19,"") ->  | X31: =IF(AO34=1,T31+V31,"") ->  | AB31: =IF(OR(D31="",X31=""),"",(X31/D31)*100) -> 
AL32: Før | AP32: Efter
C33: Olie | D33: 2024 | F33: L | T33: =IF(AO34=2,Inddata!H17,"") -> 1034.267626 | V33: =IF(AO34=2,Inddata!H19,"") -> 236.25 | X33: =IF(AO34=2,T33+V33,"") -> 1270.517626 | AB33: =IF(OR(D33="",X33=""),"",(X33/D33)*100) -> 62.77260998 | AL33: Fjernvarme | AM33: Fjv_kWh | AO33: Forsyning | AP33: Forsyning efter | AS33: Fjernvarme | AT33: Fjv_kWh | AV33: =IF(AND(AO34=1,AL23=1,AL40=1),D31<=50000,IF(AND(AO34=1,AL23=1,AL40=2),D31<=50,IF(AND(AO34=1,AL23=1,AL40=3),D31<=180,IF(AND(AO34=1,AL23=1,AL40=4),D31<=1070,IF(AND(AO34=1,AL23=1,AL40=5),D31<=70))))) -> FALSE
AL34: kWh | AM34: 1 | AO34: 2 | AP34: 2 | AS34: kWh | AT34: 1 | AV34: =IF(AND(AO34=1,AL23>1,AL40=1),D31>50000,IF(AND(AO34=1,AL23>1,AL40=2),D31>50,IF(AND(AO34=1,AL23>1,AL40=3),D31>180,IF(AND(AO34=1,AL23>1,AL40=4),D31>1070,IF(AND(AO34=1,AL23>1,AL40=5),D31>70))))) -> FALSE
C35: Gas | F35: m3 | T35: =IF(AO34=3,Inddata!H17,"") ->  | V35: =IF(AO34=3,Inddata!H19,"") ->  | X35: =IF(AO34=3,T35+V35,"") ->  | AB35: =IF(OR(D35="",X35=""),"",(X35/D35)*100) ->  | AL35: MWh | AM35: 1000 | AS35: MWh | AT35: 1000 | AV35: ELLER(OG(ao20=1;al9=1;av19=SAND);OG(ao20=1;al9>1;av20=SAND))
AL36: GJ | AM36: 278 | AS36: GJ | AT36: 278
C37: Varmepumpe | F37: kWh | T37: =IF(AO34=4,Inddata!H17,"") ->  | V37: =IF(AO34=4,Inddata!H19,"") ->  | X37: =IF(AO34=4,T37+V37,"") ->  | AB37: =IF(OR(D37="",X37=""),"",(X37/D37)*100) ->  | AL37: m3 | AM37: 46.5 | AS37: m3 | AT37: 46.5
AL38: m3, kon | AM38: 700 | AS38: m3, kon | AT38: 700
C39: Træpillefyr | F39: Ton, træpiller | T39: =IF(AO34=5,Inddata!H17,"") ->  | V39: =IF(AO34=5,Inddata!H19,"") ->  | X39: =IF(AO34=5,T39+V39,"") ->  | AB39: =IF(OR(D39="",X39=""),"",(X39/D39)*100) -> 
AL40: 1 | AS40: 1
C42: Efter | AL42: =INDEX(AL34:AL38,AL40) -> kWh | AN42: Fjernvarme | AO42: =IF($AL$40=1,AM34*$D$31,IF($AL$40=2,AM35*$D$31,IF($AL$40=3,AM36*$D$31,IF($AL$40=4,AM37*$D$31,IF($AL$40=5,AM38*$D$31))))) -> 0 | AP42: Fjernvarme | AQ42: =IF(D47="",0,IF($AL$40=1,AM34*$D$47,IF($AL$40=2,AM35*$D$47,IF($AL$40=3,AM36*$D$47,IF($AL$40=4,AM37*$D$47,IF($AL$40=5,AM38*$D$47)))))) -> 0
AN43: Olie | AO43: =10*D33 -> 20240 | AP43: Olie | AQ43: =IF(D49="",0,10*D49) -> 12569.32163
C44: Hovedvarmeforsyning | D44: Brutto | F44: Enhed | T44: Netto brændselsforbrug | AB44: Årsnyttevirkning | AN44: Gas | AO44: =10.8*D35 -> 0 | AP44: Gas | AQ44: =IF(D51="",0,10.8*D51) -> 0
D45: brændsesforbrug | T45: Rumopvarmning | V45: Varmt brugsvand | X45: I alt | AB45: [%] | AN45: VP | AO45: =D37 -> 0 | AP45: VP | AQ45: =IF(D53="",0,D53) -> 0
AN46: Træ | AO46: =4850*D39 -> 0 | AP46: Træ | AQ46: =IF(D55="",0,4850*D55) -> 0
C47: Fjernvarme | D47: =IF(OR(AP34=2,AP34=3,AP34=4,AP34=5,AO34=4,AO34=5),"",IF(AL23=1,olievarudskift!O6,IF(AL23>1,D31))) ->  | T47: =IF(OR(AP34=2,AP34=3,AP34=4,AP34=5),"",X47-V47) ->  | V47: =IF(OR(AP34=2,AP34=3,AP34=4,AP34=5),"",Hjælpeark!W37) ->  | X47: =IF(OR(AP34=2,AP34=3,AP34=4,AP34=5),"",olievarudskift!M5) ->  | AB47: =IF(OR(D47="",X47=""),"",(X47/D47)*100) ->  | AN47: Fjern | AO47: =IF(AL40=1,"kr./kWh",IF(AL40=2,"kr./MWh",IF(AL40=3,"kr./GJ",IF(AL40=4,"kr./m3",IF(AL40=5,"kr./m3, kon"))))) -> kr./kWh | AP47: Fjern | AQ47: =IF(AS40=1,"kr./kWh",IF(AS40=2,"kr./MWh",IF(AS40=3,"kr./GJ",IF(AS40=4,"kr./m3",IF(AS40=5,"kr./m3, kon"))))) -> kr./kWh
AN48: Olie | AO48: kr./L | AP48: Olie | AQ48: kr./L
C49: Olie | D49: =IF(OR(AP34=1,AP34=3,AP34=4,AP34=5,AO34=4,AO34=5),"",IF(AL23=1,olievarudskift!M6,IF(AL23>1,'Store kedler'!C43))) -> 1256.932163 | F49: L | T49: =IF(OR(AP34=1,AP34=3,AP34=4,AP34=5),"",X49-V49) -> 1034.267626 | V49: =IF(OR(AP34=1,AP34=3,AP34=4,AP34=5),"",Hjælpeark!G37) -> 236.25 | X49: =IF(OR(AP34=1,AP34=3,AP34=4,AP34=5),"",olievarudskift!M5) -> 1270.517626 | AB49: =IF(OR(D49="",X49=""),"",(X49/D49)*100) -> 101.080843 | AN49: Gas | AO49: kr./m3 | AP49: Gas | AQ49: kr./m3
AN50: VP | AO50: kr./kWh | AP50: VP | AQ50: kr./kWh
C51: Gas | D51: =IF(OR(AP34=1,AP34=2,AP34=4,AP34=5,AO34=4,AO34=5),"",IF(AL23=1,olievarudskift!M6,IF(AL23>1,'Store kedler'!C43))) ->  | F51: m3 | T51: =IF(OR(AP34=1,AP34=2,AP34=4,AP34=5),"",X51-V51) ->  | V51: =IF(OR(AP34=1,AP34=2,AP34=4,AP34=5),"",Hjælpeark!G37) ->  | X51: =IF(OR(AP34=1,AP34=2,AP34=4,AP34=5),"",olievarudskift!M5) ->  | AB51: =IF(OR(D51="",X51=""),"",(X51/D51)*100) ->  | AN51: Træ | AO51: kr./Ton | AP51: Træ | AQ51: kr./Ton
AN52: Fjern | AO52: =IF(AL40=1,N17/AM34,IF(AL40=2,N17/AM35,IF(AL40=3,N17/AM36,IF(AL40=4,N17/AM37,IF(AL40=5,N17/AM38))))) -> 10 | AP52: Fjern | AQ52: =IF(AS40=1,N19/AT34,IF(AS40=2,N19/AT35,IF(AS40=3,N19/AT36,IF(AS40=4,N19/AT37,IF(AS40=5,N19/AT38))))) -> 0
C53: Varmepumpe | D53: =IF(OR(AP34=1,AP34=2,AP34=3,AP34=5,),"",IF(AO34=4,D37,IF(AL23=1,olievarudskift!M6,IF(AL23>1,D37)))) ->  | F53: kWh | T53: =IF(OR(AP34=1,AP34=2,AP34=3,AP34=5),"",X53-V53) ->  | V53: =IF(OR(AP34=1,AP34=2,AP34=3,AP34=5),"",Hjælpeark!AB40) ->  | X53: =IF(OR(AP34=1,AP34=2,AP34=3,AP34=5),"",IF(AO34=4,X37,olievarudskift!M5)) ->  | AB53: =IF(OR(D53="",X53=""),"",(X53/D53)*100) ->  | AN53: Olie | AO53: =N17/10 -> 1 | AP53: Olie | AQ53: =N19/10 -> 0
AN54: Gas | AO54: =N17/10.8 -> 0.9259259259 | AP54: Gas | AQ54: =N19/10.8 -> 0
C55: Træpillefyr | D55: =IF(OR(AP34=1,AP34=2,AP34=3,AP34=4,),"",IF(AO34=5,D39,IF(AL23=1,olievarudskift!M6,IF(AL23>1,D39)))) ->  | F55: Ton, træpiller | T55: =IF(OR(AP34=1,AP34=2,AP34=3,AP34=4),"",X55-V55) ->  | V55: =IF(OR(AP34=1,AP34=2,AP34=3,AP34=4),"",Hjælpeark!AB41) ->  | X55: =IF(OR(AP34=1,AP34=2,AP34=3,AP34=4),"",IF(AO34=5,X39,olievarudskift!M5)) ->  | AB55: =IF(OR(D55="",X55=""),"",(X55/D55)*100) ->  | AN55: VP | AO55: =N17 -> 10 | AP55: VP | AQ55: =N19 -> 0
AN56: Træ | AO56: =N17/4850 -> 0.00206185567 | AP56: Træ | AQ56: =N19/4850 -> 0
AO57: =IF(AO34=1,AO52,IF(AO34=2,AO53,IF(AO34=3,AO54,IF(AO34=4,AO55,IF(AO34=5,AO56))))) -> 1 | AQ57: =IF(AP34=1,AQ52,IF(AP34=2,AQ53,IF(AP34=3,AQ54,IF(AP34=4,AQ55,IF(AP34=5,AQ56))))) -> 0

Sheet Små anlæg
B2: Fjernvarmeanlæg | Y2: Fjernvarmeanlæg | BF2: Fjernvarmeanlæg - efter
AG3: Unit - uden kabinet | AK3: Unit - med kabinet | AO3: Split anlæg - uisoleret | AS3: Split anlæg - isoleret | AX3: Anlæg | AZ3: Placering | BB3: Varmt brugsvand tab, W | BN3: Unit - uden kabinet | BR3: Unit - med kabinet | BV3: Split anlæg - uisoleret | BZ3: Split anlæg - isoleret | CE3: Anlæg | CG3: Placering | CI3: Varmt brugsvand tab, W
B4: System | Q4: Ved ændringer i inddata for enten | Y4: Anlægstype | AG4: Zone 1 | AH4: Zone 2 | AI4: Zone 3 | AJ4: Zone 4 | AK4: Zone 1 | AL4: Zone 2 | AM4: Zone 3 | AN4: Zone 4 | AO4: Zone 1 | AP4: Zone 2 | AQ4: Zone 3 | AR4: Zone 4 | AS4: Zone 1 | AT4: Zone 2 | AU4: Zone 3 | AV4: Zone 4 | AX4: Unit (uden kabinet) | AZ4: Bryggers | BB4: Beholder/veksler | BF4: Anlægstype | BN4: Zone 1 | BO4: Zone 2 | BP4: Zone 3 | BQ4: Zone 4 | BR4: Zone 1 | BS4: Zone 2 | BT4: Zone 3 | BU4: Zone 4 | BV4: Zone 1 | BW4: Zone 2 | BX4: Zone 3 | BY4: Zone 4 | BZ4: Zone 1 | CA4: Zone 2 | CB4: Zone 3 | CC4: Zone 4 | CE4: Unit (uden kabinet) | CG4: Bryggers | CI4: Beholder/veksler
Q5: fjernvarmeanlæg, olie- eller gaskedel, | Y5: Direkte fjernvarme med varmtvandsbeholder | AG5: 1.7 | AH5: 1.2 | AI5: 1.4 | AJ5: 0.7 | AK5: 1.2 | AL5: 0.9 | AM5: 1.1 | AN5: 0.5 | AO5: 4.4 | AP5: 3.3 | AQ5: =IF($BB$8=1,$BB$10,IF($BB$8=2,$BB$10)) -> 4.4 | AR5: 1.1 | AS5: 1.1 | AT5: 0.8 | AU5: =IF($BB$8=1,$BB$10,IF($BB$8=2,$BB$10)) -> 4.4 | AV5: 0.3 | AX5: Unit (med kabinet) | AZ5: Kælder | BB5: Godt isoleret | BF5: Direkte fjernvarme med varmtvandsbeholder | BN5: 1.7 | BO5: 1.2 | BP5: 1.4 | BQ5: 0.7 | BR5: 1.2 | BS5: 0.9 | BT5: 1.1 | BU5: 0.5 | BV5: 4.4 | BW5: 3.3 | BX5: =IF($CI$8=1,$CI$10,IF($CI$8=2,$CI$10)) -> 2.2 | BY5: 1.1 | BZ5: 1.1 | CA5: 0.8 | CB5: =IF($CI$8=1,$CI$10,IF($CI$8=2,$CI$10)) -> 2.2 | CC5: 0.3 | CE5: Unit (med kabinet) | CG5: Kælder | CI5: Godt isoleret
B6: Anlægstype | Q6: varmepumpe eller træpillefyr skal der | Y6: Direkte fjernvarme med brugsvandsveksler | AG6: 1.7 | AH6: 0.6 | AI6: 0.4 | AJ6: 0.7 | AK6: 1.2 | AL6: 0.4 | AM6: 0.2 | AN6: 0.5 | AO6: 4.4 | AP6: 1.7 | AQ6: =IF($BB$8=1,$BC$10,IF($BB$8=2,$BC$10)) -> 1.8 | AR6: 1.1 | AS6: 1.1 | AT6: 0.4 | AU6: =IF($BB$8=1,$BC$10,IF($BB$8=2,$BC$10)) -> 1.8 | AV6: 0.3 | AX6: Splitanlæg (uisoleret) | AZ6: Udhus | BB6: Dårligt isoleret | BF6: Direkte fjernvarme med brugsvandsveksler | BN6: 1.7 | BO6: 0.6 | BP6: 0.4 | BQ6: 0.7 | BR6: 1.2 | BS6: 0.4 | BT6: 0.2 | BU6: 0.5 | BV6: 4.4 | BW6: 1.7 | BX6: =IF($CI$8=1,$CJ$10,IF($CI$8=2,$CJ$10)) -> 0.8 | BY6: 1.1 | BZ6: 1.1 | CA6: 0.4 | CB6: =IF($CI$8=1,$CJ$10,IF($CI$8=2,$CJ$10)) -> 0.8 | CC6: 0.3 | CE6: Splitanlæg (uisoleret) | CG6: Udhus | CI6: Dårligt isoleret
Q7: altid klikkes på "Beregn" | Y7: Direkte fjernvarme med blandesløjfe og varmtvandsbeholder | AG7: 1.7 | AH7: 1.2 | AI7: 1.4 | AJ7: 1.8 | AK7: 1.2 | AL7: 0.9 | AM7: 1.1 | AN7: 1.1 | AO7: 4.4 | AP7: 3.3 | AQ7: =IF($BB$8=1,$BB$10,IF($BB$8=2,$BB$10)) -> 4.4 | AR7: 2.2 | AS7: 1.1 | AT7: 0.8 | AU7: =IF($BB$8=1,$BB$10,IF($BB$8=2,$BB$10)) -> 4.4 | AV7: 0.9 | AX7: Splitanlæg (isoleret) | BF7: Direkte fjernvarme med blandesløjfe og varmtvandsbeholder | BN7: 1.7 | BO7: 1.2 | BP7: 1.4 | BQ7: 1.8 | BR7: 1.2 | BS7: 0.9 | BT7: 1.1 | BU7: 1.1 | BV7: 4.4 | BW7: 3.3 | BX7: =IF($CI$8=1,$CI$10,IF($CI$8=2,$CI$10)) -> 2.2 | BY7: 2.2 | BZ7: 1.1 | CA7: 0.8 | CB7: =IF($CI$8=1,$CI$10,IF($CI$8=2,$CI$10)) -> 2.2 | CC7: 0.9 | CE7: Splitanlæg (isoleret)
B8: Nominel afgivet effekt | F8: 17.2 | H8: kW | Y8: Direkte fjernvarme med blandesløjfe og brugsvandsveksler | AG8: 1.7 | AH8: 0.6 | AI8: 0.4 | AJ8: 1.8 | AK8: 1.2 | AL8: 0.4 | AM8: 0.2 | AN8: 1.1 | AO8: 4.4 | AP8: 1.7 | AQ8: =IF($BB$8=1,$BC$10,IF($BB$8=2,$BC$10)) -> 1.8 | AR8: 2.2 | AS8: 1.1 | AT8: 0.4 | AU8: =IF($BB$8=1,$BC$10,IF($BB$8=2,$BC$10)) -> 1.8 | AV8: 0.9 | AZ8: 1 | BB8: 2 | BF8: Direkte fjernvarme med blandesløjfe og brugsvandsveksler | BN8: 1.7 | BO8: 0.6 | BP8: 0.4 | BQ8: 1.8 | BR8: 1.2 | BS8: 0.4 | BT8: 0.2 | BU8: 1.1 | BV8: 4.4 | BW8: 1.7 | BX8: =IF($CI$8=1,$CJ$10,IF($CI$8=2,$CJ$10)) -> 0.8 | BY8: 2.2 | BZ8: 1.1 | CA8: 0.4 | CB8: =IF($CI$8=1,$CJ$10,IF($CI$8=2,$CJ$10)) -> 0.8 | CC8: 0.9 | CG8: 1 | CI8: 1
Y9: Indirekte fjernvarme med blandesløjfe og varmtvandsbeholder | AG9: 1.7 | AH9: 1.2 | AI9: 1.4 | AJ9: 2.2 | AK9: 1.2 | AL9: 0.9 | AM9: 1.1 | AN9: 1.3 | AO9: 4.4 | AP9: 3.3 | AQ9: =IF($BB$8=1,$BB$10,IF($BB$8=2,$BB$10)) -> 4.4 | AR9: 2.6 | AS9: 1.1 | AT9: 0.8 | AU9: =IF($BB$8=1,$BB$10,IF($BB$8=2,$BB$10)) -> 4.4 | AV9: 1.1 | AX9: 1 | BF9: Indirekte fjernvarme med blandesløjfe og varmtvandsbeholder | BN9: 1.7 | BO9: 1.2 | BP9: 1.4 | BQ9: 2.2 | BR9: 1.2 | BS9: 0.9 | BT9: 1.1 | BU9: 1.3 | BV9: 4.4 | BW9: 3.3 | BX9: =IF($CI$8=1,$CI$10,IF($CI$8=2,$CI$10)) -> 2.2 | BY9: 2.6 | BZ9: 1.1 | CA9: 0.8 | CB9: =IF($CI$8=1,$CI$10,IF($CI$8=2,$CI$10)) -> 2.2 | CC9: 1.1 | CE9: 1
B10: Fremløbstemperatur (primær side) | F10: 80 | H10: °C | Y10: Indirekte fjernvarme med blandesløjfe og brugsvandsveksler | AG10: 1.7 | AH10: 0.6 | AI10: 0.4 | AJ10: 2.2 | AK10: 1.2 | AL10: 0.4 | AM10: 0.2 | AN10: 1.3 | AO10: 4.4 | AP10: 1.7 | AQ10: =IF($BB$8=1,$BC$10,IF($BB$8=2,$BC$10)) -> 1.8 | AR10: 2.6 | AS10: 1.1 | AT10: 0.4 | AU10: =IF($BB$8=1,$BC$10,IF($BB$8=2,$BC$10)) -> 1.8 | AV10: 1.1 | AZ10: =IF(AZ8=1,10,IF(AZ8=2,20,IF(AZ8=3,0))) -> 10 | BB10: =IF(BB8=1,2.2,IF(BB8=2,4.4)) -> 4.4 | BC10: =IF(BB8=1,0.8,IF(BB8=2,1.8)) -> 1.8 | BF10: Indirekte fjernvarme med blandesløjfe og brugsvandsveksler | BN10: 1.7 | BO10: 0.6 | BP10: 0.4 | BQ10: 2.2 | BR10: 1.2 | BS10: 0.4 | BT10: 0.2 | BU10: 1.3 | BV10: 4.4 | BW10: 1.7 | BX10: =IF($CI$8=1,$CJ$10,IF($CI$8=2,$CJ$10)) -> 0.8 | BY10: 2.6 | BZ10: 1.1 | CA10: 0.4 | CB10: =IF($CI$8=1,$CJ$10,IF($CI$8=2,$CJ$10)) -> 0.8 | CC10: 1.1 | CG10: =IF(CG8=1,10,IF(CG8=2,20,IF(CG8=3,0))) -> 10 | CI10: =IF(CI8=1,2.2,IF(CI8=2,4.4)) -> 2.2 | CJ10: =IF(CI8=1,0.8,IF(CI8=2,1.8)) -> 0.8
B12: Returtemperatur (primær side) | F12: 40 | H12: °C | Y12: 1 | AG12: =IF(Y12=1,AG5+AH5+AJ5,IF(Y12=2,AG6+AH6+AJ6,IF(Y12=3,AG7+AH7+AJ7,IF(Y12=4,AG8+AH8+AJ8,IF(Y12=5,AG9+AH9+AJ9,IF(Y12=6,AG10+AH10+AJ10)))))) -> 3.6 | AI12: =IF(Y12=1,AI5,IF(Y12=2,AI6,IF(Y12=3,AI7,IF(Y12=4,AI8,IF(Y12=5,AI9,IF(Y12=6,AI10)))))) -> 1.4 | AK12: =IF(Y12=1,AK5+AL5+AN5,IF(Y12=2,AK6+AL6+AN6,IF(Y12=3,AK7+AL7+AN7,IF(Y12=4,AK8+AL8+AN8,IF(Y12=5,AK9+AL9+AN9,IF(Y12=6,AK10+AL10+AN10)))))) -> 2.6 | AM12: =IF(Y12=1,AM5,IF(Y12=2,AM6,IF(Y12=3,AM7,IF(Y12=4,AM8,IF(Y12=5,AM9,IF(Y12=6,AM10)))))) -> 1.1 | AO12: =IF(Y12=1,AO5+AP5+AR5,IF(Y12=2,AO6+AP6+AR6,IF(Y12=3,AO7+AP7+AR7,IF(Y12=4,AO8+AP8+AR8,IF(Y12=5,AO9+AP9+AR9,IF(Y12=6,AO10+AP10+AR10)))))) -> 8.8 | AQ12: =IF(Y12=1,AQ5,IF(Y12=2,AQ6,IF(Y12=3,AQ7,IF(Y12=4,AQ8,IF(Y12=5,AQ9,IF(Y12=6,AQ10)))))) -> 4.4 | AS12: =IF(Y12=1,AS5+AT5+AV5,IF(Y12=2,AS6+AT6+AV6,IF(Y12=3,AS7+AT7+AV7,IF(Y12=4,AS8+AT8+AV8,IF(Y12=5,AS9+AT9+AV9,IF(Y12=6,AS10+AT10+AV10)))))) -> 2.2 | AU12: =IF(Y12=1,AU5,IF(Y12=2,AU6,IF(Y12=3,AU7,IF(Y12=4,AU8,IF(Y12=5,AU9,IF(Y12=6,AU10)))))) -> 4.4 | BB12: =IF(AX9=1,AI12,IF(AX9=2,AM12,IF(AX9=3,AQ12,IF(AX9=4,AU12)))) -> 1.4 | BF12: 1 | BN12: =IF(BF12=1,BN5+BO5+BQ5,IF(BF12=2,BN6+BO6+BQ6,IF(BF12=3,BN7+BO7+BQ7,IF(BF12=4,BN8+BO8+BQ8,IF(BF12=5,BN9+BO9+BQ9,IF(BF12=6,BN10+BO10+BQ10)))))) -> 3.6 | BP12: =IF(BF12=1,BP5,IF(BF12=2,BP6,IF(BF12=3,BP7,IF(BF12=4,BP8,IF(BF12=5,BP9,IF(BF12=6,BP10)))))) -> 1.4 | BR12: =IF(BF12=1,BR5+BS5+BU5,IF(BF12=2,BR6+BS6+BU6,IF(BF12=3,BR7+BS7+BU7,IF(BF12=4,BR8+BS8+BU8,IF(BF12=5,BR9+BS9+BU9,IF(BF12=6,BR10+BS10+BU10)))))) -> 2.6 | BT12: =IF(BF12=1,BT5,IF(BF12=2,BT6,IF(BF12=3,BT7,IF(BF12=4,BT8,IF(BF12=5,BT9,IF(BF12=6,BT10)))))) -> 1.1 | BV12: =IF(BF12=1,BV5+BW5+BY5,IF(BF12=2,BV6+BW6+BY6,IF(BF12=3,BV7+BW7+BY7,IF(BF12=4,BV8+BW8+BY8,IF(BF12=5,BV9+BW9+BY9,IF(BF12=6,BV10+BW10+BY10)))))) -> 8.8 | BX12: =IF(BF12=1,BX5,IF(BF12=2,BX6,IF(BF12=3,BX7,IF(BF12=4,BX8,IF(BF12=5,BX9,IF(BF12=6,BX10)))))) -> 2.2 | BZ12: =IF(BF12=1,BZ5+CA5+CC5,IF(BF12=2,BZ6+CA6+CC6,IF(BF12=3,BZ7+CA7+CC7,IF(BF12=4,BZ8+CA8+CC8,IF(BF12=5,BZ9+CA9+CC9,IF(BF12=6,BZ10+CA10+CC10)))))) -> 2.2 | CB12: =IF(BF12=1,CB5,IF(BF12=2,CB6,IF(BF12=3,CB7,IF(BF12=4,CB8,IF(BF12=5,CB9,IF(BF12=6,CB10)))))) -> 2.2 | CI12: =IF(CE9=1,BP12,IF(CE9=2,BT12,IF(CE9=3,BX12,IF(CE9=4,CB12)))) -> 1.4
B14: Placering
B16: Varmtvandstemperatur | F16: 55 | H16: °C
B18: Varmtvandsbeholderens/vekslerens | I18: Dårligt isolereret betyder, at beholderen eller veksleren er isoleret
B19: isoleringsgrad | I19: med mindre end 20 mm isoleringsmateriale
B24: Oliekedel | Y24: Oliekedel
B26: Kedelklasse | Y26: Kedelklasse | AG26: Gruppe | AH26: Kedeltemp | AI26: Røgtemp_standard | AJ26: Ilt | AK26: Røgtemp_beregn | AL26: Tab standard | AM26: Placering | AO26: Sluk sommer | AQ26: Varmt brugsvand tab, W | AT26: Lav temp kedel
Y27: Kedel fra før 1977 | AG27: Gruppe 3 | AH27: 60 | AI27: 230 | AJ27: 6 | AK27: =($F$32*100/(68/(21-AJ27)+0.7))+20 -> 230.1910828 | AL27: =+(68/(21-AJ27)+0.7)*(AI27-20)/100 -> 10.99 | AM27: Bryggers | AO27: FALSE | AQ27: Godt isoleret | AT27: Nej
B28: Nominel afgivet kedeleffekt | F28: 17.2 | H28: kW | Y28: Kedel fra efter 1977 | AG28: E-kedel | AH28: 60 | AI28: 180 | AJ28: 4 | AK28: =($F$32*100/(68/(21-AJ28)+0.7))+20 -> 254.0425532 | AL28: =+(68/(21-AJ28)+0.7)*(AI28-20)/100 -> 7.52 | AM28: Kælder | AQ28: Dårligt isoleret | AT28: Nej
Y29: Kedel fra efter 1991 | AG29: C-kedel | AH29: 60 | AI29: 160 | AJ29: 4 | AK29: 254.0425532 | AL29: 6.58 | AM29: Udhus | AO29: =IF(AO27=FALSE,2,1) -> 2 | AQ29: Indbygget i kedel | AT29: Ja
B30: Kedeltemperatur | F30: 60 | H30: °C | Y30: Kondenserende kedel | AG30: A-kedel | AH30: 60 | AI30: 66 | AJ30: 3 | AK30: 265.6575682 | AL30: 2.059777778 | AT30: Ja
AM31: 1 | AQ31: 2
B32: Røggastab | F32: 11 | H32: %
AM33: =IF(AM31=1,10,IF(AM31=2,20,IF(AM31=3,0))) -> 10 | AQ33: =IF(AQ31=1,2.2,IF(AQ31=2,4.4,IF(AQ31=3,0))) -> 4.4
B34: Placering
B36: Skukkes kedlen i sommerperioden
B37: sæt kryds hvis ja | Y37: 1 | AH37: =IF($Y$37=1,AH27,IF($Y$37=2,AH28,IF($Y$37=3,AH29,IF($Y$37=4,AH30)))) -> 60 | AI37: =IF($Y$37=1,AI27,IF($Y$37=2,AI28,IF($Y$37=3,AI29,IF($Y$37=4,AI30)))) -> 230 | AJ37: =IF($Y$37=1,AJ27,IF($Y$37=2,AJ28,IF($Y$37=3,AJ29,IF($Y$37=4,AJ30)))) -> 6 | AK37: =IF($Y$37=1,AK27,IF($Y$37=2,AK28,IF($Y$37=3,AK29,IF($Y$37=4,AK30)))) -> 230.1910828 | AL37: =IF($Y$37=1,AL27,IF($Y$37=2,AL28,IF($Y$37=3,AL29,IF($Y$37=4,AL30)))) -> 10.99
B39: Varmtvandstemperatur | F39: 55 | H39: °C | Y39: =IF(Y37=1,AG27,IF(Y37=2,AG28,IF(Y37=3,AG29,IF(Y37=4,AG30,IF(Y37=5,AG31,IF(Y37=6,AG32,IF(Y37=7,AG33,IF(Y37=8,AG34,IF(Y37=9,AG35))))))))) -> Gruppe 3
B41: Varmtvandsbeholderens | I41: Dårligt isolereret betyder, at beholderen er isoleret med mindre end | Y41: =IF(Y39="Gruppe 3",4,IF(Y39="A-kedel",9,IF(Y39="C-kedel",11,IF(Y39="E-kedel",13)))) -> 4
B42: isoleringsgrad | I42: 20 mm isoleringsmateriale
B47: Gaskedel | Y47: Gaskedel
B49: Kedelklasse | Y49: Kedelklasse | AG49: Gruppe | AH49: Kedeltemp | AI49: Røgtemp | AJ49: Ilt | AK49: Røgtemp_beregn | AL49: Tab standard | AM49: Placering | AO49: Sluk sommer | AQ49: Varmt brugsvand tab, W | AT49: Lav temp kedel
Y50: Kedel med gasblæsebrænder fra før 1977 | AG50: Gruppe 3 | AH50: 65 | AI50: 220 | AJ50: 6 | AK50: =($F$55*100/(68/(21-AJ50)+0.7))+20 -> 230.1910828 | AL50: =+(68/(21-AJ50)+0.7)*(AI50-20)/100 -> 10.46666667 | AM50: Bryggers | AO50: FALSE | AQ50: Godt isoleret | AT50: Nej
B51: Nominel afgivet kedeleffekt | F51: 17.2 | H51: kW | Y51: Kedel med gasblæsebrænder fra efter 1977 | AG51: E-kedel | AH51: 65 | AI51: 200 | AJ51: 4 | AK51: 254.0425532 | AL51: =+(68/(21-AJ51)+0.7)*(AI51-20)/100 -> 8.46 | AM51: Kælder | AQ51: Dårligt isoleret | AT51: Nej
Y52: Kedel med åben forbrænding med trækafbryder | AG52: Gruppe 6 | AH52: 65 | AI52: 180 | AJ52: 11 | AK52: 166.6666667 | AL52: 12 | AM52: Udhus | AO52: =IF(AO50=FALSE,2,1) -> 2 | AQ52: Indbygget i kedel | AT52: Nej
B53: Kedeltemperatur | F53: 60 | H53: °C | Y53: Kedel med lukket forbrænding med balanceret eller splitaftræk | AG53: E-kedel | AH53: 60 | AI53: 180 | AJ53: 8 | AK53: 205.4734112 | AL53: 9.489230769 | AT53: Nej
Y54: Ældre kondenserende kedel | AG54: A-kedel | AH54: 60 | AM54: 1 | AQ54: 1 | AT54: Ja
B55: Røggastab | F55: 11 | H55: % | Y55: Ny kondenserende kedel | AG55: A-kedel | AH55: 60 | AT55: Ja
AM56: =IF(AM54=1,10,IF(AM54=2,20,IF(AM54=3,0))) -> 10 | AQ56: =IF(AQ54=1,2.2,IF(AQ54=2,4.4,IF(AQ54=3,0))) -> 2.2
B57: Placering
B59: Skukkes kedlen i sommerperioden
B60: sæt kryds hvis ja
B62: Varmtvandstemperatur | F62: 55 | H62: °C | Y62: 1 | AH62: =IF($Y$62=1,AH50,IF($Y$62=2,AH51,IF($Y$62=3,AH52,IF($Y$62=4,AH53,IF($Y$62=5,AH54,IF($Y$62=6,AH55)))))) -> 65 | AI62: =IF($Y$62=1,AI50,IF($Y$62=2,AI51,IF($Y$62=3,AI52,IF($Y$62=4,AI53,IF($Y$62=5,AI54,IF($Y$62=6,AI55)))))) -> 220 | AJ62: =IF($Y$62=1,AJ50,IF($Y$62=2,AJ51,IF($Y$62=3,AJ52,IF($Y$62=4,AJ53,IF($Y$62=5,AJ54,IF($Y$62=6,AJ55)))))) -> 6 | AK62: =IF($Y$62=1,AK50,IF($Y$62=2,AK51,IF($Y$62=3,AK52,IF($Y$62=4,AK53,IF($Y$62=5,AK54,IF($Y$62=6,AK55)))))) -> 230.1910828 | AL62: =IF($Y$62=1,AL50,IF($Y$62=2,AL51,IF($Y$62=3,AL52,IF($Y$62=4,AL53,IF($Y$62=5,AL54,IF($Y$62=6,AL55)))))) -> 10.46666667
B64: Varmtvandsbeholderens | I64: Dårligt isolereret betyder, at beholderen er isoleret med mindre end | Y64: =IF(Y62=1,AG50,IF(Y62=2,AG51,IF(Y62=3,AG52,IF(Y62=4,AG53,IF(Y62=5,AG54,IF(Y62=6,AG55)))))) -> Gruppe 3
B65: isoleringsgrad | I65: 20 mm isoleringsmateriale
Y66: =IF(Y64="Gruppe 3",4,IF(Y64="Gruppe 6",7,IF(Y64="A-kedel",9,IF(Y64="E-kedel",13)))) -> 4
B70: Varmepumpe (anvendes både i en eventuel før- og eftersituation) | Y70: Varmepumpe
B72: Varmepumpetype | Y72: Varmepumpetype | AA72: Varmeafgiversystem | AC72: Inst. år | AD72: Placering | AF72: Varmt brugsvand tab, W
Y73: Væske/vand | AA73: Radiatorer | AC73: 1970-1988 | AD73: Bryggers | AF73: Godt isoleret | AH73: =-0.00002*F84^2+0.0148*F84 -> 2.16 | AI73: Ved udskiftning
B74: Installationstidspunkt | Y74: Luft/vand | AA74: Gulvvarme | AC74: 1989-1975 | AD74: Kælder | AF74: Dårligt isoleret
Y75: Luft/luft | AC75: 1996-2008 | AD75: Udhus
B76: Nominel afgivet varmeeffekt | F76: 17.2 | H76: kW | AA76: 1 | AC76: 2009- | AF76: 2
Y77: 1 | AD77: 1
B78: Varmeafgiversystem | AC78: 4 | AF78: =IF(AF76=1,-0.00002*F84^2+0.0148*F84,IF(AF76=2,-0.00002*F84^2+0.0201*F84)) -> 3.22
Y79: =IF(Y77=1,AG73,IF(Y77=2,AG74,IF(Y77=3,AG75,IF(Y77=4,AG76,IF(Y77=5,AG77,IF(Y77=6,AG78,IF(Y77=7,AG79,IF(Y77=8,AG80,IF(Y77=9,AG81,IF(Y77=10,AK84,IF(Y77=11,AK85))))))))))) -> 0 | AD79: =IF(AD77=1,10,IF(AD77=2,20,IF(AD77=3,0))) -> 10
B80: Placering
Y81: =IF(Y79="Gruppe 1",1,IF(Y79="Gruppe 4",4,IF(Y79="Gruppe 6",6,IF(Y79="A-kedel",8,IF(Y79="D-kedel",11,IF(Y79="E-kedel",12)))))) -> FALSE
B82: Varmtvandstemperatur | F82: 55 | H82: °C
B84: Varmtvandsbeholder størrelse | F84: 200 | H84: L
B86: Varmtvandsbeholderens
B87: isoleringsgrad
Y90: Træpillefyr
B92: Træpillefyr | Y92: Kedelklasse | AG92: Gruppe | AH92: Kedeltemp | AI92: Røgtemp_standard | AJ92: Ilt | AK92: Røgtemp_beregn | AL92: Tab standard | AM92: Placering | AO92: Sluk sommer | AQ92: Varmt brugsvand tab, W | AT92: Lav temp kedel
Y93: Kedel - klasse C | AG93: Klasse C | AH93: 60 | AI93: 230 | AJ93: 6 | AK93: =($F$32*100/(68/(21-AJ93)+0.7))+20 -> 230.1910828 | AL93: =+(68/(21-AJ93)+0.7)*(AI93-20)/100 -> 10.99 | AM93: Bryggers | AO93: FALSE | AQ93: Godt isoleret | AT93: Nej
B94: Kedelklasse | Y94: Kedel - klasse A | AG94: Klasse A | AH94: 60 | AI94: 180 | AJ94: 4 | AK94: =($F$32*100/(68/(21-AJ94)+0.7))+20 -> 254.0425532 | AL94: =+(68/(21-AJ94)+0.7)*(AI94-20)/100 -> 7.52 | AM94: Kælder | AQ94: Dårligt isoleret | AT94: Nej
AM95: Udhus | AO95: =IF(AO93=FALSE,2,1) -> 2 | AQ95: Indbygget i kedel | AT95: Nej
B96: Nominel afgivet kedeleffekt | F96: 17.2 | H96: kW | AT96: Nej
AM97: 1 | AQ97: 2
B98: Kedeltemperatur | F98: 60 | H98: °C
AM99: =IF(AM97=1,10,IF(AM97=2,20,IF(AM97=3,0))) -> 10 | AQ99: =IF(AQ97=1,2.2,IF(AQ97=2,4.4,IF(AQ97=3,0))) -> 4.4
B100: Røggastab | F100: 11 | H100: %
Y101: 1 | AH101: =IF($Y$101=1,AH93,IF($Y$101=2,AH94,)) -> 60 | AI101: =IF($Y$101=1,AI93,IF($Y$101=2,AI94)) -> 230 | AJ101: =IF($Y$101=1,AJ93,IF($Y$101=2,AJ94)) -> 6 | AK101: =IF($Y$101=1,AK93,IF($Y$101=2,AK94)) -> 230.1910828 | AL101: =IF($Y$101=1,AL93,IF($Y$101=2,AL94)) -> 10.99
B102: Placering
Y103: =IF(Y101=1,AG93,IF(Y101=2,AG94,)) -> Klasse C
B104: Skukkes kedlen i sommerperioden
B105: sæt kryds hvis ja | Y105: =IF(Y103="Klasse C",1,IF(Y103="Klasse A",2)) -> 1
B107: Varmtvandstemperatur | F107: 55 | H107: °C
B109: Varmtvandsbeholderens
B110: isoleringsgrad

Sheet Store kedler
R1: =+'Skal kunne ses'!B58 -> 0
B2: Inddata eksisterende kedel | R2: 1367.092939
R3: Olie | T3: FALSE
B4: Brændsel | C4: =IF(Data!AO34=1,"Fejl",IF(Data!AO34=2,"Olie",IF(Data!AO34=3,"Gas"))) -> Olie | M4: Ved ændringer i inddtata for | R4: Gas | T4: =IF(T3=FALSE,"n","j") -> n
M5: olie- eller gaskedel skal der altid
B6: Brutto brændselsforbrug | C6: =IF(Data!AO34=1,"Fejl",IF(Data!AO34=2,Data!D33,IF(Data!AO34=3,Data!D35))) -> 2024 | E6: =IF(Data!AO34=1,"Fejl",IF(Data!AO34=2,"L",IF(Data!AO34=3,"m3"))) -> L | M6: klikkes på "Beregn" | R6: =IF(C4="Olie",1,IF(C4="Gas",2)) -> 1 | T6: =T4 -> n
B8: Kondenserende røggaskøler | R8: =IF(R6=1,"olie","gas") -> olie | BI8: 1
B10: Røggastab ved lille flamme | C10: 10 | E10: % | R10: Anlæg ældre end 20 år
R11: Nyere anlæg
B12: Anlægstype
R13: 1
R15: =IF(R13=1,2,5) -> 2
B17: Resultater eksisterende kedel
T18: =IF(ABS(R1)<0.0001,"Beregning er ok","Tryk beregn") -> Beregning er ok
B19: Energiforbrug indfyret | C19: =(R8="gas")*C6*10.9+(R8="olie")*10*C6 -> 20240 | E19: kWh
B21: Årsvirkningsgrad eksisterende kedel | C21: =+'4 Ikke skjules'!C43 -> 65.344931 | E21: %
B23: Årsvarmeforbrug netto | C23: =+C21/100*C19 -> 13225.81403 | E23: kWh | F23: (Rumvarme + varmt brugsvand)
B27: Inddata ny kedel
R28: Olie | T28: TRUE
B29: Brændsel | C29: =IF(Data!AP34=1,"Fejl",IF(Data!AP34=2,"Olie",IF(Data!AP34=3,"Gas"))) -> Olie | R29: Gas | T29: =IF(T28=FALSE,"n","j") -> j
B31: Kondenserende røggaskøler | R31: =IF(C29="Olie",1,IF(C29="Gas",2)) -> 1 | T31: =T29 -> j
B33: Estimeret kedelstørrelse i kW | C33: =+C23/2000 -> 6.612907017 | R33: =IF(R31=1,"olie","gas") -> olie
B37: Resultater økonomi
B39: Årsirkningsgrad for ny kedel | C39: =+'4 Ikke skjules'!I43 -> 84.2722331 | E39: %
B41: Årsvarmeforbrug brutto | C41: =+C23/C39*100 -> 15694.15399 | E41: kWh
B43: Brutto brændselsforbrug | C43: =++C41/((R33="gas")*10.9+(R33="olie")*10) -> 1569.415399 | E43: =IF(Data!AP34=1,"Fejl",IF(Data!AP34=2,"L",IF(Data!AP34=3,"m3"))) -> L

Sheet Rørsystem
B2: Varme
D4: Medietemperatur | F4: Omgivelsestemperatur | H4: Rørdiameter | J4: Rørlængde | L4: Driftstid
D5: [°C] | F5: [°C] | H5: [mm] | J5: [m] | L5: [h/år]
B7: Fremløbsledning | D7: 50 | F7: 4 | H7: 35 | J7: 10 | L7: 6000
B9: Returledning | D9: 45 | F9: 4 | H9: 35 | J9: 10 | L9: 6000
D12: Nuværende isoleringstykkelse | F12: Ønsket isoleringstykkelse
D13: [mm] | F13: [mm]
B15: Fremløbsledning | D15: 0 | F15: 50 | J15: Ledninger i drift i varmesæsonen med temperaturer varierende
J16: med belastningen skal isoleres efter klasse 2, hvis de er
B17: Returledning | D17: 0 | F17: 50 | J17: placeret i uopvarmede rum.
J19: Ledninger i drift i varmesæsonen med temperaturer varierende
D20: Årlig nettovarmebesparelse | J20: med belastningen skal isoleres efter klasse 1, hvis de er
D21: [kWh] | J21: placeret i opvarmede rum.
B23: Fremløbsledning | D23: =((Rør_beregn!C19-Rør_beregn!D19)/1000)*J7*L7 -> 3593.649347 | J23: I beregningerne er anvendt en lambda-værdi for
J24: isoleringsmaterialet på 0,04 W/m2K. Det svarer til lambda-
B25: Returledning | D25: =((Rør_beregn!G19-Rør_beregn!H19)/1000)*J9*L9 -> 3097.217316 | J25: værdien for typiske anvendte rørskåle med mineraluld.
B29: Varmt brugsvand
D31: Medietemperatur | F31: Omgivelsestemperatur | H31: Rørdiameter | J31: Rørlængde | L31: Driftstid
D32: [°C] | F32: [°C] | H32: [mm] | J32: [m] | L32: [h/år]
B34: Cirkulationsledning | D34: 55 | F34: 4 | H34: 35 | J34: 20 | L34: 8760
D37: Nuværende isoleringstykkelse | F37: Ønsket isoleringstykkelse
D38: [mm] | F38: [mm]
B40: Cirkulationsledning | D40: 0 | F40: 50 | J40: Hovedledninger der er i drift hele året skal isoleres efter klasse 4.
J42: Fordelingsledninger med en driftstid på mere end 60 timer/uge
D43: Årlig nettovarmebesparelse | J43: skal isoleres efter klasse 3.
D44: [kWh]
J45: Fordelingsledninger med en driftstid på mindre end 60 timer/uge
B46: Cirkulationsledning | D46: =((Rør_beregn!K19-Rør_beregn!L19)/1000)*J34*L34 -> 12000.94244 | J46: skal isoleres efter klasse 2.
J48: I beregningerne er anvendt en lambda-værdi for
J49: isoleringsmaterialet på 0,04 W/m2K. Det svarer til lambda-
J50: værdien for typiske anvendte rørskåle med mineraluld.
B55: Beholder (beregninger foretages kun for store kedler)
D57: Medietemperatur | F57: Omgivelsestemperatur | H57: Beholderdiameter | J57: Beholderhøjde
D58: [°C] | F58: [°C] | H58: [m] | J58: [m]
B60: Beholder | D60: 50 | F60: 4 | H60: 1 | J60: 2
D63: Nuværende isoleringstykkelse | F63: Ønsket isoleringstykkelse
D64: [mm] | F64: [mm]
B66: Beholder | D66: 0 | F66: 50 | J66: Varmtvandsbeholdere skal isoleres efter klasse 4.
J68: Varmtvandsbeholdere med spiral skal dog isoleres efter
D69: Årlig nettovarmebesparelse | J69: klasse 3.
D70: [kWh]
J71: I beregningerne er anvendt en lambda-værdi for
B72: Beholder | D72: =(((1.2*Rør_beregn!O19)-(1.2*Rør_beregn!P19))*((((PI()/4)*H60^2)*2)+(PI()*H60*J60))/1000)*8760 -> 38513.05767 | J72: isoleringsmaterialet på 0,04 W/m2K. Det svarer til lambda-
J73: værdien for typiske anvendte isoleringsmåtter med mineraluld.

Sheet Styring
B2: Termostatventiler | V2: Netto brændelsesforbrug | Y2: Besparelsesprocent | AA2: Besparelse
V3: =IF(AND(Data!AL23=1,Data!AO34=1),Data!T31,IF(AND(Data!AL23=1,Data!AO34=2),Data!T33*10,IF(AND(Data!AL23=1,Data!AO34=3),Data!T35*10.8,IF(AND(Data!AL23=1,Data!AO34=4),Data!T37,IF(AND(Data!AL23=1,Data!AO34=5),Data!T39*4850,IF(AND(Data!AL23=2,Data!AO34>1),(1-Data!AM18/100)*'Store kedler'!C23,IF(AND(Data!AL23=2,Data!AO34=1),(1-Data!AM18/100)*Data!AO42,IF(AND(Data!AL23=3,Data!AO34>1),(1-Data!AM19/100)*'Store kedler'!C23,IF(AND(Data!AL23=3,Data!AO34=1),(1-Data!AM19/100)*Data!AO42,IF(AND(Data!AL23=4,Data!AO34>1),(1-Data!AM20/100)*'Store kedler'!C23,IF(AND(Data!AL23=4,Data!AO34=1),(1-Data!AM20/100)*Data!AO42,IF(AND(Data!AL23=5,Data!AO34>1),(1-Data!AM21/100)*'Store kedler'!C23,IF(AND(Data!AL23=5,Data!AO34=1),(1-Data!AM21/100)*Data!AO42))))))))))))) -> 10342.67626 | Y3: 7 | AA3: =(Y3/100)*((H6+H8)/H4)*V6 -> 723.9873382
B4: Antal radiatorer i alt | H4: 8 | J4: Stk. | V4: =IF(AND(Data!AL23=2,Data!AO34=4),(1-Data!AM18/100)*Data!AO45,IF(AND(Data!AL23=3,Data!AO34=4),(1-Data!AM19/100)*Data!AO45,IF(AND(Data!AL23=4,Data!AO34=4),(1-Data!AM20/100)*Data!AO45,IF(AND(Data!AL23=5,Data!AO34=4),(1-Data!AM21/100)*Data!AO45)))) -> FALSE
V5: =IF(AND(Data!AL23=2,Data!AO34=5),(1-Data!AM18/100)*Data!AO46,IF(AND(Data!AL23=3,Data!AO34=5),(1-Data!AM19/100)*Data!AO46,IF(AND(Data!AL23=4,Data!AO34=5),(1-Data!AM20/100)*Data!AO46,IF(AND(Data!AL23=5,Data!AO34=5),(1-Data!AM21/100)*Data!AO46)))) -> FALSE
B6: Antal radiatorer med manuelle ventiler | H6: 8 | J6: Stk. | V6: =SUM(V3:V5) -> 10342.67626
B8: Antal radiatorer med returventiler | J8: Stk.
B12: Reduktion af rumtemperatur | V12: Netto brændelsesforbrug | Y12: Besparelsesprocent | AA12: Besparelse
V13: =IF(AND(Data!AL23=1,Data!AO34=1),Data!T31,IF(AND(Data!AL23=1,Data!AO34=2),Data!T33*10,IF(AND(Data!AL23=1,Data!AO34=3),Data!T35*10.8,IF(AND(Data!AL23=1,Data!AO34=4),Data!T37,IF(AND(Data!AL23=1,Data!AO34=5),Data!T39*4850,IF(AND(Data!AL23=2,Data!AO34>1),(1-Data!AM18/100)*'Store kedler'!C23,IF(AND(Data!AL23=2,Data!AO34=1),(1-Data!AM18/100)*Data!AO42,IF(AND(Data!AL23=3,Data!AO34>1),(1-Data!AM19/100)*'Store kedler'!C23,IF(AND(Data!AL23=3,Data!AO34=1),(1-Data!AM19/100)*Data!AO42,IF(AND(Data!AL23=4,Data!AO34>1),(1-Data!AM20/100)*'Store kedler'!C23,IF(AND(Data!AL23=4,Data!AO34=1),(1-Data!AM20/100)*Data!AO42,IF(AND(Data!AL23=5,Data!AO34>1),(1-Data!AM21/100)*'Store kedler'!C23,IF(AND(Data!AL23=5,Data!AO34=1),(1-Data!AM21/100)*Data!AO42))))))))))))) -> 10342.67626 | Y13: 7 | AA13: =(Y13/100)*(H14-H16)*(H18/100)*V16 -> 723.9873382
B14: Nuværende rumtemperatur | H14: 23 | J14: °C | V14: =IF(AND(Data!AL23=2,Data!AO34=4),(1-Data!AM18/100)*Data!AO45,IF(AND(Data!AL23=3,Data!AO34=4),(1-Data!AM19/100)*Data!AO45,IF(AND(Data!AL23=4,Data!AO34=4),(1-Data!AM20/100)*Data!AO45,IF(AND(Data!AL23=5,Data!AO34=4),(1-Data!AM21/100)*Data!AO45)))) -> FALSE
V15: =IF(AND(Data!AL23=2,Data!AO34=5),(1-Data!AM18/100)*Data!AO46,IF(AND(Data!AL23=3,Data!AO34=5),(1-Data!AM19/100)*Data!AO46,IF(AND(Data!AL23=4,Data!AO34=5),(1-Data!AM20/100)*Data!AO46,IF(AND(Data!AL23=5,Data!AO34=5),(1-Data!AM21/100)*Data!AO46)))) -> FALSE
B16: Ønsket rumtemperaur | H16: 21 | J16: °C | V16: =SUM(V13:V15) -> 10342.67626
B18: Andel af huset hvor rumtemperaturen kan reduceres | H18: 50 | J18: %
B22: Udekompensering | U22: FALSE | V22: Netto brændelsesforbrug | Y22: Besparelsesprocent | AA22: Besparelse
V23: =IF(AND(Data!AL23=1,Data!AO34=1),Data!T31,IF(AND(Data!AL23=1,Data!AO34=2),Data!T33*10,IF(AND(Data!AL23=1,Data!AO34=3),Data!T35*10.8,IF(AND(Data!AL23=1,Data!AO34=4),Data!T37,IF(AND(Data!AL23=1,Data!AO34=5),Data!T39*4850,IF(AND(Data!AL23=2,Data!AO34>1),(1-Data!AM18/100)*'Store kedler'!C23,IF(AND(Data!AL23=2,Data!AO34=1),(1-Data!AM18/100)*Data!AO42,IF(AND(Data!AL23=3,Data!AO34>1),(1-Data!AM19/100)*'Store kedler'!C23,IF(AND(Data!AL23=3,Data!AO34=1),(1-Data!AM19/100)*Data!AO42,IF(AND(Data!AL23=4,Data!AO34>1),(1-Data!AM20/100)*'Store kedler'!C23,IF(AND(Data!AL23=4,Data!AO34=1),(1-Data!AM20/100)*Data!AO42,IF(AND(Data!AL23=5,Data!AO34>1),(1-Data!AM21/100)*'Store kedler'!C23,IF(AND(Data!AL23=5,Data!AO34=1),(1-Data!AM21/100)*Data!AO42))))))))))))) -> 10342.67626 | Y23: 7 | AA23: =(Y23/100)*V26 -> 723.9873382
B24: Kan der benyttes der udekompensering | J24: Sæt kryds hvis ja | V24: =IF(AND(Data!AL23=2,Data!AO34=4),(1-Data!AM18/100)*Data!AO45,IF(AND(Data!AL23=3,Data!AO34=4),(1-Data!AM19/100)*Data!AO45,IF(AND(Data!AL23=4,Data!AO34=4),(1-Data!AM20/100)*Data!AO45,IF(AND(Data!AL23=5,Data!AO34=4),(1-Data!AM21/100)*Data!AO45)))) -> FALSE
V25: =IF(AND(Data!AL23=2,Data!AO34=5),(1-Data!AM18/100)*Data!AO46,IF(AND(Data!AL23=3,Data!AO34=5),(1-Data!AM19/100)*Data!AO46,IF(AND(Data!AL23=4,Data!AO34=5),(1-Data!AM20/100)*Data!AO46,IF(AND(Data!AL23=5,Data!AO34=5),(1-Data!AM21/100)*Data!AO46)))) -> FALSE
V26: =SUM(V23:V25) -> 10342.67626
B28: Natsænkning | U28: FALSE | V28: Netto brændelsesforbrug | Y28: Besparelsesprocent | AA28: Besparelse
V29: =IF(AND(Data!AL23=1,Data!AO34=1),Data!T31,IF(AND(Data!AL23=1,Data!AO34=2),Data!T33*10,IF(AND(Data!AL23=1,Data!AO34=3),Data!T35*10.8,IF(AND(Data!AL23=1,Data!AO34=4),Data!T37,IF(AND(Data!AL23=1,Data!AO34=5),Data!T39*4850,IF(AND(Data!AL23=2,Data!AO34>1),(1-Data!AM18/100)*'Store kedler'!C23,IF(AND(Data!AL23=2,Data!AO34=1),(1-Data!AM18/100)*Data!AO42,IF(AND(Data!AL23=3,Data!AO34>1),(1-Data!AM19/100)*'Store kedler'!C23,IF(AND(Data!AL23=3,Data!AO34=1),(1-Data!AM19/100)*Data!AO42,IF(AND(Data!AL23=4,Data!AO34>1),(1-Data!AM20/100)*'Store kedler'!C23,IF(AND(Data!AL23=4,Data!AO34=1),(1-Data!AM20/100)*Data!AO42,IF(AND(Data!AL23=5,Data!AO34>1),(1-Data!AM21/100)*'Store kedler'!C23,IF(AND(Data!AL23=5,Data!AO34=1),(1-Data!AM21/100)*Data!AO42))))))))))))) -> 10342.67626 | Y29: 2.5 | AA29: =(Y29/100)*V32 -> 258.5669065
B30: Kan der benyttes der natsænkning | J30: Sæt kryds hvis ja | V30: =IF(AND(Data!AL23=2,Data!AO34=4),(1-Data!AM18/100)*Data!AO45,IF(AND(Data!AL23=3,Data!AO34=4),(1-Data!AM19/100)*Data!AO45,IF(AND(Data!AL23=4,Data!AO34=4),(1-Data!AM20/100)*Data!AO45,IF(AND(Data!AL23=5,Data!AO34=4),(1-Data!AM21/100)*Data!AO45)))) -> FALSE
V31: =IF(AND(Data!AL23=2,Data!AO34=5),(1-Data!AM18/100)*Data!AO46,IF(AND(Data!AL23=3,Data!AO34=5),(1-Data!AM19/100)*Data!AO46,IF(AND(Data!AL23=4,Data!AO34=5),(1-Data!AM20/100)*Data!AO46,IF(AND(Data!AL23=5,Data!AO34=5),(1-Data!AM21/100)*Data!AO46)))) -> FALSE
V32: =SUM(V29:V31) -> 10342.67626

Sheet Solvarme
B2: Solvarme til varmt brugsvand
B4: Størrelse | D4: 10 | F4: m2 | L4: For enfamilieshuse kan der regnes med 1-1,5 m2
L5: solfanger pr. person
B6: Orientering og | U6: 01: Syd+/-22,5 grader (SSØ-SSV). Hældning 15-75 grader
B7: hældning | L7: For store bygninger bør solfangerarealet være | U7: 02: Syd +/-67,5 grader (ØSØ-VSV). Andre orienteringer og hældninger end 01
L8: ca. V/50 m2, hvor V er bygningens daglige | U8: 03: Syd+/-90 grader (ØV). Andre orienteringer og hældninger end 01 og 02
L9: varmtvandsforbrug i liter | U9: 04: Alle andre orienteringer. Det vil sige orienteringer > 90 grader fra syd
U11: 1
B13: Resultat - solvarme
B15: Energibesparelse | D15: =IF(U11=4,0,Data_sol!M28*Solvarme!D4) -> 9700 | F15: kWh
B16: (netto)

Sheet Ventilation
B2: Ventilationsanlæg - varmeberegninger
B4: Før | H4: Efter
B7: Målt volumenstrøm | C7: ind | D7: 18000 | E7: m3/h | H7: Volumenstrøm | I7: ind | J7: 18000 | K7: m3/h
B9: Målt volumenstrøm | C9: ud | D9: 18000 | E9: m3/h | H9: Volumenstrøm | I9: ud | J9: 18000 | K9: m3/h
B13: Målt temperatur | C13: ind | D13: 20 | E13: ° C | H13: Temperatur | I13: ind | J13: 20 | K13: ° C
B15: Målt temperatur | C15: ud | D15: 20 | E15: ° C | H15: Temperatur | I15: ud | J15: 20 | K15: ° C
I17: Læs hér
B19: Varmeveksler | H19: Varmeveksler | J19: =IF(OR(Veksler!P10=0,R19=TRUE),"",Veksler!P10) -> Krydsveksler | R19: FALSE
B21: Målt temperaturvirkningsgrad | D21: 60 | E21: % | H21: Temperaturvirkningsgrad | J21: =IF(OR(D21=0,R19=TRUE),P21,Veksler!E8*100) -> 59.98497681 | K21: % | M21: Læs hér | P21: =Veksler!R12 -> 0
P23: =IF(D21=0,P21,Veksler!E8*100) -> 59.98497681
B25: Start | D25: 0 | H25: Start | J25: 6
B27: Stop | D27: 24 | H27: Stop | J27: 18
B29: Antal dage | D29: 7 | H29: Antal dage | J29: 7
B33: Varmeforbrug | D33: =Varme!I4 -> 263166.5966 | E33: kWh | G33: =D33-J33 -> 144937.0095 | H33: Varmeforbrug | J33: =Varme!I13 -> 118229.5871 | K33: kWh
B38: Ventilationsanlæg - elberegninger
B40: Før | H40: Efter (med spareventilator og sparemotor, IE2)
M42: Beregning med
B43: Målt volumenstrøm | C43: ind | D43: =D7 -> 18000 | E43: m3/h | H43: Målt volumenstrøm | I43: ind | J43: =IF($R$43=FALSE,D43,P43) -> 18000 | K43: m3/h | M43: ændrede volumen- | P43: =J7 -> 18000 | R43: FALSE | S43: =IF(R43=FALSE,0,1) -> 0
M44: strømme og driftstid.
B45: Målt volumenstrøm | C45: ud | D45: =D9 -> 18000 | E45: m3/h | H45: Målt volumenstrøm | I45: ud | J45: =IF($R$43=FALSE,D45,P45) -> 18000 | K45: m3/h | M45: Sæt kryds hvis ja | P45: =J9 -> 18000
B49: Statisk tryk sugeside | C49: ind | D49: -510 | E49: Pa | H49: Statisk tryk sugeside | I49: ind | J49: =IF($R$43=FALSE,D49,P49) -> -510 | K49: Pa | P49: =D49*($P$43/$D$43)^2 -> -510
B51: Statisk tryk trykside | C51: ind | D51: 160 | E51: Pa | H51: Statisk tryk trykside | I51: ind | J51: =IF($R$43=FALSE,D51,P51) -> 160 | K51: Pa | P51: =D51*($P$43/$D$43)^2 -> 160
B53: Indløbsareal | C53: ind | E53: m2 | H53: Indløbsareal | I53: ind | J53: =IF(D53="","",D53) ->  | K53: m2
B55: Udløbsareal | C55: ind | D55: 0.48 | E55: m2 | H55: Udløbsareal | I55: ind | J55: =IF(D55="","",D55) -> 0.48 | K55: m2
B57: Dynamisk tryk sugeside | C57: ind | D57: =IF(D53="",0,0.6*((D43/3600)/D53)^2) -> 0 | H57: Dynamisk tryk sugeside | I57: ind | J57: =IF($R$43=FALSE,D57,P57) -> 0 | P57: =IF(D57="","",D57*($P$43/$D$43)^2) -> 0
B59: Dynamisk tryk trykside | C59: ind | D59: =IF(D55="","",0.6*((D43/3600)/D55)^2) -> 65.10416667 | E59: Pa | H59: Dynamisk tryk trykside | I59: ind | J59: =IF($R$43=FALSE,D59,P59) -> 65.10416667 | K59: Pa | P59: =D59*($P$43/$D$43)^2 -> 65.10416667
B63: Statisk tryk sugeside | C63: ud | D63: -510 | E63: Pa | H63: Statisk tryk sugeside | I63: ud | J63: =IF($R$43=FALSE,D63,P63) -> -510 | K63: Pa | P63: =D63*($P$45/$D$45)^2 -> -510
B65: Statisk tryk trykside | C65: ud | D65: 160 | E65: Pa | H65: Statisk tryk trykside | I65: ud | J65: =IF($R$43=FALSE,D65,P65) -> 160 | K65: Pa | P65: =D65*($P$45/$D$45)^2 -> 160
B67: Indløbsareal | C67: ud | E67: m2 | H67: Indløbsareal | I67: ud | J67: =IF(D67="","",D67) ->  | K67: m2
B69: Udløbsareal | C69: ud | D69: 0.48 | E69: m2 | H69: Udløbsareal | I69: ud | J69: =IF(D69="","",D69) -> 0.48 | K69: m2
B71: Dynamisk tryk sugeside | C71: ud | D71: =IF(D67="",0,0.6*((D45/3600)/D67)^2) -> 0 | E71: Pa | H71: Dynamisk tryk sugeside | I71: ud | J71: =IF($R$43=FALSE,D71,P71) -> 0 | K71: Pa | P71: =D71*($P$45/$D$45)^2 -> 0
B73: Dynamisk tryk trykside | C73: ud | D73: =IF(D69="","",0.6*((D45/3600)/D69)^2) -> 65.10416667 | E73: Pa | H73: Dynamisk tryk trykside | I73: ud | J73: =IF($R$43=FALSE,D73,P73) -> 65.10416667 | K73: Pa | P73: =D73*($P$45/$D$45)^2 -> 65.10416667
B77: Pmotor | C77: ind | D77: 7.99 | E77: kW | H77: Pmotor | I77: ind | J77: =IF($R$43=FALSE,Motor!E6,P77) -> 5.255853833 | K77: kW | P77: =Motor!E15 -> 5.255853833
B79: Pmotor | C79: ud | D79: 7.99 | E79: kW | H79: Pmotor | I79: ud | J79: =IF($R$43=FALSE,Motor!K6,P79) -> 5.255853833 | K79: kW | P79: =Motor!K15 -> 5.255853833
B83: htotal | C83: ind | D83: =((D43/3600)*((D51+D59)-(D49+D57))/(D77*1000)*100) -> 46.00151231 | E83: % | H83: htotal | I83: ind | J83: =((J43/3600)*((J51+J59)-(J49+J57))/(J77*1000)*100) -> 69.9319454 | K83: % | P83: =((P43/3600)*((P51+P59)-(P49+P57))/(P77*1000)*100) -> 69.9319454
B85: htotal | C85: ud | D85: =((D45/3600)*((D65+D73)-(D63+D71))/(D79*1000)*100) -> 46.00151231 | E85: % | H85: htotal | I85: ud | J85: =IF(J71="",((J45/3600)*((J65+J73)-J63))/(J79*1000)*100,((J45/3600)*((J65+J73)-(J63+J71))/(J79*1000)*100)) -> 69.9319454 | K85: % | P85: =IF(P71="",((P45/3600)*((P65+P73)-P63))/(P79*1000)*100,((P45/3600)*((P65+P73)-(P63+P71))/(P79*1000)*100)) -> 69.9319454
B89: Start | D89: =D25 -> 0 | H89: Start | J89: =IF($R$43=FALSE,D89,P89) -> 0 | P89: =J25 -> 6
B91: Stop | D91: =D27 -> 24 | H91: Stop | J91: =IF($R$43=FALSE,D91,P91) -> 24 | P91: =J27 -> 18
B93: Antal dage | D93: =D29 -> 7 | H93: Antal dage | J93: =IF($R$43=FALSE,D93,P93) -> 7 | P93: =J29 -> 7
B97: Elforbrug | D97: =(D77*(D91-D89)*D93*52)+(D79*(D91-D89)*D93*52) -> 139601.28 | E97: kWh | H97: Elforbrug | J97: =IF($R$43=FALSE,(J77*(J91-J89)*J93*52)+(J79*(J91-J89)*J93*52),P97) -> 91830.27818 | K97: kWh | P97: =(P77*(P91-P89)*P93*52)+(P79*(P91-P89)*P93*52) -> 45915.13909

Sheet Køling
B2: Køling (luftkonditionering)
B4: Før | H4: Efter
B7: Målt volumenstrøm | C7: ind | D7: 10000 | E7: m3/h | H7: Volumenstrøm | I7: ind | J7: 10000 | K7: m3/h
B9: Målt volumenstrøm | C9: ud | D9: 10000 | E9: m3/h | H9: Volumenstrøm | I9: ud | J9: 10000 | K9: m3/h
B13: Temperatur køl | C13: ind | D13: 16 | E13: ° C | H13: Temperatur køl | I13: ind | J13: 16 | K13: ° C
B15: Temperatur overflade | C15: ind | D15: 6 | E15: ° C | H15: Temperatur overflade | I15: ind | J15: 6 | K15: ° C
W17: Anvendes ikke
B19: Fordampningstemperatur, T0 | D19: 0 | E19: ° C | H19: Fordampningstemperatur, T0 | J19: 0 | K19: ° C | W19: Ændring af fordampningstemperatur | AA19: =IF(OR(J19="",D19="",D21=""),0,((J19-D19)/(D21-D19))) -> 0
W20: Ændring af kondenseringstemperatur | AA20: =IF(OR(D21="",J21="",D19=""),0,((D21-J21)/(D21-D19))) -> 0.4
B21: Kondenseringstemperatur, Tk | D21: 50 | E21: ° C | H21: Kondenseringstemperatur, Tk | J21: 30 | K21: ° C
B23: COP-værdi (års middel) | D23: =0.5*((D19+273.15)/(D21-D19)) -> 2.7315 | E23: - | H23: COP-værdi (års middel) | J23: =Køl!AX8771 -> 4.538141685 | K23: -
B27: Start | D27: 0 | H27: Start | J27: 0
B29: Stop | D29: 24 | H29: Stop | J29: 24
B31: Antal dage | D31: 7 | H31: Antal dage | J31: 7
B35: Køleforbrug | D35: =Køl!AP43 -> 21302.16682 | E35: kWh | H35: Køleforbrug | J35: =Køl!AP50 -> 21302.16682 | K35: kWh

Sheet Pumper
B2: Pumper - enfamiliesbolig
C4: Varmeanlæg | Y4: Fjernvarmeanlæg med blandesløjfe (direkte) | AA4: En strengs | AC4: Trin 3 | AE4: Netto brændelsesforbrug
Y5: Fjernvarmeanlæg med veksler (indirekte) | AA5: To strengs | AC5: Trin 2 | AE5: =IF(AND(Data!AL23=1,Data!AO34=1),Data!T31,IF(AND(Data!AL23=1,Data!AO34=2),Data!T33*10,IF(AND(Data!AL23=1,Data!AO34=3),Data!T35*10.8,IF(AND(Data!AL23=1,Data!AO34=4),Data!T37,IF(AND(Data!AL23=1,Data!AO34=5),Data!T39*4850))))) -> 10342.67626 | AF5: kWh
C6: Anlægstype | Y6: Oliekedler med stort vandindhold | AA6: Gulvvarme | AC6: Trin 1 | AE6: =AE5/Data!D19 -> 68.95117507 | AF6: kWh/m2
Y7: Gas- og oliekedler med lille vandindhold
C8: Trinindstilling af pumpe | Y8: Varmepumpe | AA8: 2 | AC8: 1
C10: Effektoptag | F10: 60 | G10: W | Y10: 1 | AA10: FALSE
AE11: Tryk | AF11: En-stregns | AG11: To-strengs | AH11: Gulvvarme
C12: Skukkes pumpen i sommerperioden | Y12: =IF(AND(Y10=1,AA8=1),10,IF(AND(Y10=1,AA8=2),20,IF(AND(Y10=1,AA8=3),5,IF(AND(Y10=2,AA8=1),10,IF(AND(Y10=2,AA8=2),20,IF(AND(Y10=2,AA8=3),5,IF(AND(Y10=3,AA8=1),10,IF(AND(Y10=3,AA8=2),20,IF(AND(Y10=3,AA8=3),5,IF(AND(Y10=4,AA8=1),10,IF(AND(Y10=4,AA8=2),15,IF(AND(Y10=4,AA8=3),5,IF(AND(Y10=5,AA8=1),10,IF(AND(Y10=5,AA8=2),20,IF(AND(Y10=5,AA8=3),5))))))))))))))) -> 20 | Z12: °C | AA12: Dimensionerende flow, Qmax | AB12: =IF(AE6<50,3.6*((AE5/1500)/(4.2*Y12)),IF(AND(AE6>=50,AE6<=100),3.6*((AE5/2000)/(4.2*Y12)),IF(AE6>100,3.6*((AE5/2500)/(4.2*Y12))))) -> 0.221628777 | AC12: m3/h | AE12: Fjv direkte | AF12: 1 | AG12: 1.5 | AH12: 2
C13: sæt kryds hvis ja | AA13: Dimensionerende differenstryk, Hmax | AB13: =IF(AND(Y10=1,AA8=1),AF12,IF(AND(Y10=1,AA8=2),AG12,IF(AND(Y10=1,AA8=3),AH12,IF(AND(Y10=2,AA8=1),AF13,IF(AND(Y10=2,AA8=2),AG13,IF(AND(Y10=2,AA8=3),AH13,IF(AND(Y10=3,AA8=1),AF14,IF(AND(Y10=3,AA8=2),AG14,IF(AND(Y10=3,AA8=3),AH14,IF(AND(Y10=4,AA8=1),AF15,IF(AND(Y10=4,AA8=2),AG15,IF(AND(Y10=4,AA8=3),AH15,IF(AND(Y10=5,AA8=1),#REF!,IF(AND(Y10=5,AA8=2),#REF!,IF(AND(Y10=5,AA8=3),#REF!))))))))))))))) -> 1.5 | AC13: m | AE13: Fjv indirekte | AF13: 2 | AG13: 2.5 | AH13: 3
AA14: Phyd | AB14: =((AB12/3600)*(AB13*9.81))*1000 -> 0.905907626 | AC14: W | AE14: Oliekedel med stort vandindhold | AF14: 1 | AG14: 1.5 | AH14: 2
AA15: P1 | AB15: =IF(AB12<=0.5,AB14/0.2,IF(AND(AB12>0.5,AB12<=1),AB14/0.3,IF(AND(AB12>1,AB12<=3),AB14/0.4,IF(AND(AB12>3,AB12<=5),AB14/0.45)))) -> 4.52953813 | AC15: W | AE15: Gas- og oliekedler med lille vandindhold | AF15: 1 | AG15: 1.5 | AH15: 2
Y17: Elforbrug før | Z17: =IF(AA10=FALSE,(F10/1000)*8760,(F10/1000)*6550) -> 525.6 | AA17: kWh
B18: Pumper - større bygninger | Y18: Elforbrug efter | Z18: =IF(AA10=FALSE,(AB15/1000)*8760,(AB15/1000)*6550) -> 39.67875402 | AA18: kWh
B20: Anlægstype og dimensionerende driftspunkt
C22: Anlægstype | Y22: En strengs | AB22: Netto brændelsesforbrug | AF22: Driftstid
Y23: To strengs | AB23: =IF(AND(Data!AL23=2,Data!AO34>1),(1-Data!AM18/100)*'Store kedler'!C23,IF(AND(Data!AL23=2,Data!AO34=1),(1-Data!AM18/100)*Data!AO42,IF(AND(Data!AL23=3,Data!AO34>1),(1-Data!AM19/100)*'Store kedler'!C23,IF(AND(Data!AL23=3,Data!AO34=1),(1-Data!AM19/100)*Data!AO42,IF(AND(Data!AL23=4,Data!AO34>1),(1-Data!AM20/100)*'Store kedler'!C23,IF(AND(Data!AL23=4,Data!AO34=1),(1-Data!AM20/100)*Data!AO42,IF(AND(Data!AL23=5,Data!AO34>1),(1-Data!AM21/100)*'Store kedler'!C23,IF(AND(Data!AL23=5,Data!AO34=1),(1-Data!AM21/100)*Data!AO42)))))))) -> FALSE | AF23: 2904
C24: Dimensionerende temperaturdifferens, ΔT | G24: °C | AB24: =IF(AND(Data!AL23=2,Data!AO34=4),(1-Data!AM18/100)*Data!AO45,IF(AND(Data!AL23=3,Data!AO34=4),(1-Data!AM19/100)*Data!AO45,IF(AND(Data!AL23=4,Data!AO34=4),(1-Data!AM20/100)*Data!AO45,IF(AND(Data!AL23=5,Data!AO34=4),(1-Data!AM21/100)*Data!AO45)))) -> FALSE | AF24: 1440
Y25: 2 | AB25: =IF(AND(Data!AL23=2,Data!AO34=5),(1-Data!AM18/100)*Data!AO46,IF(AND(Data!AL23=3,Data!AO34=5),(1-Data!AM19/100)*Data!AO46,IF(AND(Data!AL23=4,Data!AO34=5),(1-Data!AM20/100)*Data!AO46,IF(AND(Data!AL23=5,Data!AO34=5),(1-Data!AM21/100)*Data!AO46)))) -> FALSE | AF25: 2208
C26: Skukkes pumpen i sommerperioden | AB26: =SUM(AB23:AB25) -> 0 | AF26: 2208
C27: sæt kryds hvis ja | Y27: FALSE
C29: Dimensionerende flow, Qmax | F29: =IF(AB26=0,"",IF(F24>0,3.6*((AB26/2600)/(4.2*F24)),IF(AND(Y25=1)*(F24=""),3.6*((AB26/2600)/(4.2*10)),IF(AND(Y25=2)*(F24=""),3.6*((AB26/2600)/(4.2*20)))))) ->  | G29: m3/h | Y29: Elforbrug før | Z29: =IF(Y27=FALSE,(E41*AF23)+(E43*AF24)+(E45*AF25)+(E47*AF26),(E41*AF23)+(E43*AF24)+(E45*AF25)) -> 0
Y30: Elforbrug efter | Z30: =IF(Y27=FALSE,(H41*AF23)+(H43*AF24)+(H45*AF25)+(H47*AF26),(H41*AF23)+(H43*AF24)+(H45*AF25)) -> 0
C31: Dimensionerende differenstryk, Hmax | F31: =IF(AB26=0,"",((0.0082*(AB26/2600))+0.5088)+1+0.5) ->  | G31: m
B35: Sammenhængende værdier for flow samt effektoptag før og efter udskiftningen | I35: Læs hér
C37: Volumenstrøm | E37: Effektoptag for den | H37: Effektoptag for den
E38: uregulerede pumpe | H38: omdrejningstal regulerbare pumpe
C39: [m3/h] | E39: [kW] | H39: [kW]
C41: =IF(AB26=0,"",IF(Y25=1,0.957*F29,0.893*F29)) -> 
C43: =IF(AB26=0,"",IF(Y25=1,0.941*F29,0.852*F29)) -> 
C45: =IF(AB26=0,"",IF(Y25=1,0.921*F29,0.802*F29)) -> 
C47: =IF(OR(AB26=0,Y27=TRUE),"",IF(Y25=1,0.904*F29,0.76*F29)) -> 

Sheet Belysning
C2: Belysningsanlæg - før | AB2: Lampe- | AC2: Traditionel | AD2: Elektronisk | AF2: Traditionel | AG2: Elektronisk | AJ2: 1 | AK2: 2 | AL2: 3 | AM2: 4 | AN2: 5 | AO2: 6 | AR2: Styring
AB3: effekt | AC3: forkobling | AD3: forkobling | AF3: forkobling | AG3: forkobling
C4: Sted/zone | E4: Antal armaturer | G4: Lyskildetype | I4: Antal | K4: Lyskildeeffekt | M4: Forkobling- | O4: Årlig driftstid | Q4: Belysningsstyrke | S4: Dagslysfaktor | U4: Styringsform | AB4: [W] | AC4: [W] | AD4: [W] | AI4: Glødelampe | AJ4: =IF(AND($G$7=$AI$4,$M$7=$AI$18),$AF$5,IF(AND($G$7=$AI$4,$M$7=$AI$19),$AG$5)) -> FALSE | AK4: =IF(AND($G$9=$AI$4,$M$9=$AI$18),$AF$5,IF(AND($G$9=$AI$4,$M$9=$AI$19),$AG$5)) -> FALSE | AL4: =IF(AND($G$11=$AI$4,$M$11=$AI$18),$AF$5,IF(AND($G$11=$AI$4,$M$11=$AI$19),$AG$5)) -> FALSE | AM4: =IF(AND($G$13=$AI$4,$M$13=$AI$18),$AF$5,IF(AND($G$13=$AI$4,$M$13=$AI$19),$AG$5)) -> FALSE | AN4: =IF(AND($G$15=$AI$4,$M$15=$AI$18),$AF$5,IF(AND($G$15=$AI$4,$M$15=$AI$19),$AG$5)) -> FALSE | AO4: =IF(AND($G$17=$AI$4,$M$17=$AI$18),$AF$5,IF(AND($G$17=$AI$4,$M$17=$AI$19),$AG$5)) -> FALSE | AR4: On/off | AW4: Kontinuert
E5: [stk.] | I5: [stk.] | K5: [W] | M5: enhed | O5: [h/år] | Q5: [Lux] | S5: [-] | AA5: Glødelampe | AB5: 25 | AC5: 25 | AD5: - | AF5: 1 | AG5: 1 | AI5: Lavenergilampe | AJ5: =IF(AND($G$7=$AI$5,$M$7=$AI$18),$AF$10,IF(AND($G$7=$AI$5,$M$7=$AI$19),$AG$10)) -> FALSE | AK5: =IF(AND($G$9=$AI$5,$M$9=$AI$18),$AF$10,IF(AND($G$9=$AI$5,$M$9=$AI$19),$AG$10)) -> FALSE | AL5: =IF(AND($G$11=$AI$5,$M$11=$AI$18),$AF$10,IF(AND($G$11=$AI$5,$M$11=$AI$19),$AG$10)) -> FALSE | AM5: =IF(AND($G$13=$AI$5,$M$13=$AI$18),$AF$10,IF(AND($G$13=$AI$5,$M$13=$AI$19),$AG$10)) -> FALSE | AN5: =IF(AND($G$15=$AI$5,$M$15=$AI$18),$AF$10,IF(AND($G$15=$AI$5,$M$15=$AI$19),$AG$10)) -> FALSE | AO5: =IF(AND($G$17=$AI$5,$M$17=$AI$18),$AF$10,IF(AND($G$17=$AI$5,$M$17=$AI$19),$AG$10)) -> FALSE
AB6: 40 | AC6: 40 | AD6: - | AI6: Halogenlampe (12 V) | AJ6: =IF(AND($G$7=$AI$6,$M$7=$AI$18),$AF$16,IF(AND($G$7=$AI$6,$M$7=$AI$19),$AG$16)) -> FALSE | AK6: =IF(AND($G$9=$AI$6,$M$9=$AI$18),$AF$16,IF(AND($G$9=$AI$6,$M$9=$AI$19),$AG$16)) -> FALSE | AL6: =IF(AND($G$11=$AI$6,$M$11=$AI$18),$AF$16,IF(AND($G$11=$AI$6,$M$11=$AI$19),$AG$16)) -> FALSE | AM6: =IF(AND($G$13=$AI$6,$M$13=$AI$18),$AF$16,IF(AND($G$13=$AI$6,$M$13=$AI$19),$AG$16)) -> FALSE | AN6: =IF(AND($G$15=$AI$6,$M$15=$AI$18),$AF$16,IF(AND($G$15=$AI$6,$M$15=$AI$19),$AG$16)) -> FALSE | AO6: =IF(AND($G$17=$AI$6,$M$17=$AI$18),$AF$16,IF(AND($G$17=$AI$6,$M$17=$AI$19),$AG$16)) -> FALSE | AT6: Nord | AU6: Syd | AV6: Middel | AY6: Nord | AZ6: Syd | BA6: Middel
E7: 100 | G7: Lysstofrør (T8) | I7: 3 | K7: 36 | M7: Traditionel | O7: 4000 | Q7: 500 | S7: 0.01 | U7: Manuel | AB7: 60 | AC7: 60 | AD7: - | AI7: Halogenlampe (230 V) | AJ7: =IF(AND($G$7=$AI$7,$M$7=$AI$18),$AF$21,IF(AND($G$7=$AI$7,$M$7=$AI$19),$AG$21)) -> FALSE | AK7: =IF(AND($G$9=$AI$7,$M$9=$AI$18),$AF$21,IF(AND($G$9=$AI$7,$M$9=$AI$19),$AG$21)) -> FALSE | AL7: =IF(AND($G$11=$AI$7,$M$11=$AI$18),$AF$21,IF(AND($G$11=$AI$7,$M$11=$AI$19),$AG$21)) -> FALSE | AM7: =IF(AND($G$13=$AI$7,$M$13=$AI$18),$AF$21,IF(AND($G$13=$AI$7,$M$13=$AI$19),$AG$21)) -> FALSE | AN7: =IF(AND($G$15=$AI$7,$M$15=$AI$18),$AF$21,IF(AND($G$15=$AI$7,$M$15=$AI$19),$AG$21)) -> FALSE | AO7: =IF(AND($G$17=$AI$7,$M$17=$AI$18),$AF$21,IF(AND($G$17=$AI$7,$M$17=$AI$19),$AG$21)) -> FALSE | AR7: 0 | AS7: =AR7^2 -> 0 | AT7: 90 | AU7: 90 | AV7: =AVERAGEA(AT7:AU7) -> 90 | AW7: 0 | AX7: =AW7^2 -> 0 | AY7: 90 | AZ7: 90 | BA7: =AVERAGEA(AY7:AZ7) -> 90
AB8: 75 | AC8: 75 | AD8: - | AI8: LED | AJ8: =IF(AND($G$7=$AI$8,$M$7=$AI$18),$AF$26,IF(AND($G$7=$AI$8,$M$7=$AI$19),$AG$26)) -> FALSE | AK8: =IF(AND($G$9=$AI$8,$M$9=$AI$18),$AF$26,IF(AND($G$9=$AI$8,$M$9=$AI$19),$AG$26)) -> FALSE | AL8: =IF(AND($G$11=$AI$8,$M$11=$AI$18),$AF$26,IF(AND($G$11=$AI$8,$M$11=$AI$19),$AG$26)) -> FALSE | AM8: =IF(AND($G$13=$AI$8,$M$13=$AI$18),$AF$26,IF(AND($G$13=$AI$8,$M$13=$AI$19),$AG$26)) -> FALSE | AN8: =IF(AND($G$15=$AI$8,$M$15=$AI$18),$AF$26,IF(AND($G$15=$AI$8,$M$15=$AI$19),$AG$26)) -> FALSE | AO8: =IF(AND($G$17=$AI$8,$M$17=$AI$18),$AF$26,IF(AND($G$17=$AI$8,$M$17=$AI$19),$AG$26)) -> FALSE | AR8: 5000 | AS8: =AR8^2 -> 25000000 | AT8: 72 | AU8: 74 | AV8: =AVERAGEA(AT8:AU8) -> 73 | AW8: 5000 | AX8: =AW8^2 -> 25000000 | AY8: 82 | AZ8: 86 | BA8: =AVERAGEA(AY8:AZ8) -> 84
E9: 100 | G9: Lysstofrør (T8) | I9: 3 | K9: 36 | M9: Traditionel | O9: 4000 | Q9: 500 | S9: 0.01 | U9: On/off | AB9: 100 | AC9: 100 | AD9: - | AI9: Lysstofrør (T5) | AJ9: =IF(AND($G$7=$AI$9,$M$7=$AI$18),$AF$30,IF(AND($G$7=$AI$9,$M$7=$AI$19),$AG$30)) -> FALSE | AK9: =IF(AND($G$9=$AI$9,$M$9=$AI$18),$AF$30,IF(AND($G$9=$AI$9,$M$9=$AI$19),$AG$30)) -> FALSE | AL9: =IF(AND($G$11=$AI$9,$M$11=$AI$18),$AF$30,IF(AND($G$11=$AI$9,$M$11=$AI$19),$AG$30)) -> FALSE | AM9: =IF(AND($G$13=$AI$9,$M$13=$AI$18),$AF$30,IF(AND($G$13=$AI$9,$M$13=$AI$19),$AG$30)) -> FALSE | AN9: =IF(AND($G$15=$AI$9,$M$15=$AI$18),$AF$30,IF(AND($G$15=$AI$9,$M$15=$AI$19),$AG$30)) -> FALSE | AO9: =IF(AND($G$17=$AI$9,$M$17=$AI$18),$AF$30,IF(AND($G$17=$AI$9,$M$17=$AI$19),$AG$30)) -> FALSE | AR9: 10000 | AS9: 100000000 | AT9: 60 | AU9: 67 | AV9: 63.5 | AW9: 10000 | AX9: 100000000 | AY9: 73 | AZ9: 77 | BA9: 75
AA10: Lavenergi- | AB10: 7 | AC10: 7 | AD10: - | AF10: 1 | AG10: 1 | AI10: Lysstofrør (T8) | AJ10: =IF(AND($G$7=$AI$10,$M$7=$AI$18),$AF$36,IF(AND($G$7=$AI$10,$M$7=$AI$19),$AG$36)) -> 1.249795384 | AK10: =IF(AND($G$9=$AI$10,$M$9=$AI$18),$AF$36,IF(AND($G$9=$AI$10,$M$9=$AI$19),$AG$36)) -> 1.249795384 | AL10: =IF(AND($G$11=$AI$10,$M$11=$AI$18),$AF$36,IF(AND($G$11=$AI$10,$M$11=$AI$19),$AG$36)) -> 1.249795384 | AM10: =IF(AND($G$13=$AI$10,$M$13=$AI$18),$AF$36,IF(AND($G$13=$AI$10,$M$13=$AI$19),$AG$36)) -> 1.249795384 | AN10: =IF(AND($G$15=$AI$10,$M$15=$AI$18),$AF$36,IF(AND($G$15=$AI$10,$M$15=$AI$19),$AG$36)) -> 1.249795384 | AO10: =IF(AND($G$17=$AI$10,$M$17=$AI$18),$AF$36,IF(AND($G$17=$AI$10,$M$17=$AI$19),$AG$36)) -> 1.249795384 | AR10: 15000 | AS10: 225000000 | AT10: 40 | AU10: 55 | AV10: 47.5 | AW10: 15000 | AX10: 225000000 | AY10: 65 | AZ10: 70 | BA10: 67.5
E11: 100 | G11: Lysstofrør (T8) | I11: 3 | K11: 36 | M11: Traditionel | O11: 4000 | Q11: 500 | S11: 0.01 | U11: Manuel | AA11: lampe | AB11: 9 | AC11: 9 | AD11: - | AI11: Kompaktlysstofrør | AJ11: =IF(AND($G$7=$AI$11,$M$7=$AI$18),$AF$41,IF(AND($G$7=$AI$11,$M$7=$AI$19),$AG$41)) -> FALSE | AK11: =IF(AND($G$9=$AI$11,$M$9=$AI$18),$AF$41,IF(AND($G$9=$AI$11,$M$9=$AI$19),$AG$41)) -> FALSE | AL11: =IF(AND($G$11=$AI$11,$M$11=$AI$18),$AF$41,IF(AND($G$11=$AI$11,$M$11=$AI$19),$AG$41)) -> FALSE | AM11: =IF(AND($G$13=$AI$11,$M$13=$AI$18),$AF$41,IF(AND($G$13=$AI$11,$M$13=$AI$19),$AG$41)) -> FALSE | AN11: =IF(AND($G$15=$AI$11,$M$15=$AI$18),$AF$41,IF(AND($G$15=$AI$11,$M$15=$AI$19),$AG$41)) -> FALSE | AO11: =IF(AND($G$17=$AI$11,$M$17=$AI$18),$AF$41,IF(AND($G$17=$AI$11,$M$17=$AI$19),$AG$41)) -> FALSE | AR11: 20000 | AS11: 400000000 | AT11: 34 | AU11: 45 | AV11: 39.5 | AW11: 20000 | AX11: 400000000 | AY11: 58 | AZ11: 63 | BA11: 60.5
AB12: 11 | AC12: 11 | AD12: - | AI12: Højtryksnatriumdamplampe | AJ12: =IF(AND($G$7=$AI$12,$M$7=$AI$18),$AF$49,IF(AND($G$7=$AI$12,$M$7=$AI$19),$AG$49)) -> FALSE | AK12: =IF(AND($G$9=$AI$12,$M$9=$AI$18),$AF$49,IF(AND($G$9=$AI$12,$M$9=$AI$19),$AG$49)) -> FALSE | AL12: =IF(AND($G$11=$AI$12,$M$11=$AI$18),$AF$49,IF(AND($G$11=$AI$12,$M$11=$AI$19),$AG$49)) -> FALSE | AM12: =IF(AND($G$13=$AI$12,$M$13=$AI$18),$AF$49,IF(AND($G$13=$AI$12,$M$13=$AI$19),$AG$49)) -> FALSE | AN12: =IF(AND($G$15=$AI$12,$M$15=$AI$18),$AF$49,IF(AND($G$15=$AI$12,$M$15=$AI$19),$AG$49)) -> FALSE | AO12: =IF(AND($G$17=$AI$12,$M$17=$AI$18),$AF$49,IF(AND($G$17=$AI$12,$M$17=$AI$19),$AG$49)) -> FALSE | AR12: 25000 | AS12: 625000000 | AT12: 25 | AU12: 37 | AV12: 31 | AW12: 25000 | AX12: 625000000 | AY12: 52 | AZ12: 56 | BA12: 54
E13: 100 | G13: Lysstofrør (T8) | I13: 3 | K13: 36 | M13: Traditionel | O13: 4000 | Q13: 500 | S13: 0.01 | U13: On/off | AB13: 15 | AC13: 15 | AD13: - | AI13: Kviksølvdamplampe | AJ13: =IF(AND($G$7=$AI$13,$M$7=$AI$18),$AF$54,IF(AND($G$7=$AI$13,$M$7=$AI$19),$AG$54)) -> FALSE | AK13: =IF(AND($G$9=$AI$13,$M$9=$AI$18),$AF$54,IF(AND($G$9=$AI$13,$M$9=$AI$19),$AG$54)) -> FALSE | AL13: =IF(AND($G$11=$AI$13,$M$11=$AI$18),$AF$54,IF(AND($G$11=$AI$13,$M$11=$AI$19),$AG$54)) -> FALSE | AM13: =IF(AND($G$13=$AI$13,$M$13=$AI$18),$AF$54,IF(AND($G$13=$AI$13,$M$13=$AI$19),$AG$54)) -> FALSE | AN13: =IF(AND($G$15=$AI$13,$M$15=$AI$18),$AF$54,IF(AND($G$15=$AI$13,$M$15=$AI$19),$AG$54)) -> FALSE | AO13: =IF(AND($G$17=$AI$13,$M$17=$AI$18),$AF$54,IF(AND($G$17=$AI$13,$M$17=$AI$19),$AG$54)) -> FALSE | AR13: 30000 | AS13: 900000000 | AT13: 17 | AU13: 30 | AV13: 23.5 | AW13: 30000 | AX13: 900000000 | AY13: 46 | AZ13: 52 | BA13: 49
AB14: 20 | AC14: 20 | AD14: - | AI14: Metalhalogen | AJ14: =IF(AND($G$7=$AI$14,$M$7=$AI$18),$AF$60,IF(AND($G$7=$AI$14,$M$7=$AI$19),$AG$60)) -> FALSE | AK14: =IF(AND($G$9=$AI$14,$M$9=$AI$18),$AF$60,IF(AND($G$9=$AI$14,$M$9=$AI$19),$AG$60)) -> FALSE | AL14: =IF(AND($G$11=$AI$14,$M$11=$AI$18),$AF$60,IF(AND($G$11=$AI$14,$M$11=$AI$19),$AG$60)) -> FALSE | AM14: =IF(AND($G$13=$AI$14,$M$13=$AI$18),$AF$60,IF(AND($G$13=$AI$14,$M$13=$AI$19),$AG$60)) -> FALSE | AN14: =IF(AND($G$15=$AI$14,$M$15=$AI$18),$AF$60,IF(AND($G$15=$AI$14,$M$15=$AI$19),$AG$60)) -> FALSE | AO14: =IF(AND($G$17=$AI$14,$M$17=$AI$18),$AF$60,IF(AND($G$17=$AI$14,$M$17=$AI$19),$AG$60)) -> FALSE | AR14: 35000 | AS14: 1225000000 | AT14: 7 | AU14: 21 | AV14: 14 | AW14: 35000 | AX14: 1225000000 | AY14: 41 | AZ14: 47 | BA14: 44
E15: 100 | G15: Lysstofrør (T8) | I15: 3 | K15: 36 | M15: Traditionel | O15: 4000 | Q15: 500 | S15: 0.01 | U15: Manuel | AB15: 23 | AC15: 23 | AD15: - | AR15: 40000 | AS15: 1600000000 | AT15: 2 | AU15: 17 | AV15: 9.5 | AW15: 40000 | AX15: 1600000000 | AY15: 35 | AZ15: 42 | BA15: 38.5
AA16: Halogen- | AB16: 15 | AC16: =1.15*AB16 -> 17.25 | AD16: =1.05*AB16 -> 15.75 | AF16: =LINEST(AC16:AC20,AB16:AB20,FALSE,FALSE) -> 1.15 | AG16: =LINEST(AD16:AD20,AB16:AB20,FALSE,FALSE) -> 1.05 | AI16: Elforbrug | AJ16: =SUM(AJ4:AJ14)*$E$7*$I$7*$K$7*$O$7*0.001 -> 53991.16058 | AK16: =SUM(AK4:AK14)*$E$9*$I$9*$K$9*$O$9*0.001 -> 53991.16058 | AL16: =SUM(AL4:AL14)*$E$11*$I$11*$K$11*$O$11*0.001 -> 53991.16058 | AM16: =SUM(AM4:AM14)*$E$13*$I$13*$K$13*$O$13*0.001 -> 53991.16058 | AN16: =SUM(AN4:AN14)*$E$15*$I$15*$K$15*$O$15*0.001 -> 53991.16058 | AO16: =SUM(AO4:AO14)*$E$17*$I$17*$K$17*$O$17*0.001 -> 53991.16058 | AP16: =SUM(AJ16:AO16) -> 323946.9635 | AR16: 45000 | AS16: 2025000000 | AU16: 8 | AV16: 8 | AW16: 45000 | AX16: 2025000000 | AY16: 30 | AZ16: 37 | BA16: 33.5
E17: 100 | G17: Lysstofrør (T8) | I17: 3 | K17: 36 | M17: Traditionel | O17: 4000 | Q17: 500 | S17: 0.01 | U17: Kontinuert | AA17: lampe (12 V) | AB17: 20 | AC17: =1.15*AB17 -> 23 | AD17: =1.05*AB17 -> 21 | AR17: 50000 | AS17: 2500000000 | AU17: 0 | AV17: 0 | AW17: 50000 | AX17: 2500000000 | AY17: 25 | AZ17: 32 | BA17: 28.5
AB18: 30 | AC18: 34.5 | AD18: 31.5 | AI18: Traditionel | AW18: 55000 | AX18: 3025000000 | AY18: 20 | AZ18: 26 | BA18: 23
AB19: 35 | AC19: 40.25 | AD19: 36.75 | AI19: Elektronisk | AW19: 60000 | AX19: 3600000000 | AY19: 15 | AZ19: 20 | BA19: 17.5
AB20: 50 | AC20: 57.5 | AD20: 52.5
AA21: Halogen- | AB21: 15 | AC21: 15 | AD21: - | AF21: 1 | AG21: 1
C22: Belysningsanlæg - efter | AA22: lampe (230 V) | AB22: 20 | AC22: 20 | AD22: - | AJ22: 1 | AK22: 2 | AL22: 3 | AM22: 4 | AN22: 5 | AO22: 6 | AR22: X^2 | AS22: X | AT22: K | AW22: X^2 | AX22: X | AY22: K | BA22: Styringsform
AB23: 30 | AC23: 30 | AD23: - | AR23: =LINEST(AV7:AV17,AR7:AS17,TRUE,TRUE) -> 2.41025641e-08 | AS23: -0.002941491841 | AT23: 88.76573427 | AW23: =LINEST(BA7:BA19,AW7:AX19,TRUE,TRUE) -> 5.874125874e-09 | AX23: -0.001541458541 | AY23: 90.05494505
C24: Sted/zone | E24: Antal armaturer | G24: Lyskildetype | I24: Antal | K24: Lyskildeeffekt | M24: Forkobling- | O24: Årlig driftstid | Q24: Belysningsstyrke | S24: Dagslysfaktor | U24: Styringsform | AB24: 35 | AC24: 35 | AD24: - | AI24: Glødelampe | AJ24: =IF(AND($G$27=$AI$24,$M$27=$AI$38),$AF$5,IF(AND($G$27=$AI$24,$M$27=$AI$39),$AG$5)) -> FALSE | AK24: =IF(AND($G$29=$AI$24,$M$29=$AI$38),$AF$5,IF(AND($G$29=$AI$24,$M$29=$AI$39),$AG$5)) -> FALSE | AL24: =IF(AND($G$31=$AI$24,$M$31=$AI$38),$AF$5,IF(AND($G$31=$AI$24,$M$31=$AI$39),$AG$5)) -> FALSE | AM24: =IF(AND($G$33=$AI$24,$M$33=$AI$38),$AF$5,IF(AND($G$33=$AI$24,$M$33=$AI$39),$AG$5)) -> FALSE | AN24: =IF(AND($G$35=$AI$24,$M$35=$AI$38),$AF$5,IF(AND($G$35=$AI$24,$M$35=$AI$39),$AG$5)) -> FALSE | AO24: =IF(AND($G$37=$AI$24,$M$37=$AI$38),$AF$5,IF(AND($G$37=$AI$24,$M$37=$AI$39),$AG$5)) -> FALSE | AR24: 2.621160038e-09 | AS24: 0.0001360733018 | AT24: 1.462339524 | AW24: 8.69876929e-10 | AX24: 5.414940214e-05 | AY24: 0.6992912444 | BA24: Manuel
E25: [stk.] | I25: [stk.] | K25: [W] | M25: enhed | O25: [h/år] | Q25: [Lux] | S25: [-] | AB25: 50 | AC25: 50 | AD25: - | AI25: Lavenergilampe | AJ25: =IF(AND($G$27=$AI$25,$M$27=$AI$38),$AF$10,IF(AND($G$27=$AI$25,$M$27=$AI$39),$AG$10)) -> FALSE | AK25: =IF(AND($G$29=$AI$25,$M$29=$AI$38),$AF$10,IF(AND($G$29=$AI$25,$M$29=$AI$39),$AG$10)) -> FALSE | AL25: =IF(AND($G$31=$AI$25,$M$31=$AI$38),$AF$10,IF(AND($G$31=$AI$25,$M$31=$AI$39),$AG$10)) -> FALSE | AM25: =IF(AND($G$33=$AI$25,$M$33=$AI$38),$AF$10,IF(AND($G$33=$AI$25,$M$33=$AI$39),$AG$10)) -> FALSE | AN25: =IF(AND($G$35=$AI$25,$M$35=$AI$38),$AF$10,IF(AND($G$35=$AI$25,$M$35=$AI$39),$AG$10)) -> FALSE | AO25: =IF(AND($G$37=$AI$25,$M$37=$AI$38),$AF$10,IF(AND($G$37=$AI$25,$M$37=$AI$39),$AG$10)) -> FALSE | AR25: 0.9965855082 | AS25: 1.919451711 | AW25: 0.9985400538 | AX25: 0.9730381271 | BA25: On/off
AA26: LED | AB26: 2 | AC26: - | AD26: - | AF26: 1.05 | AG26: 1.05 | AI26: Halogenlampe (12 V) | AJ26: =IF(AND($G$27=$AI$26,$M$27=$AI$38),$AF$16,IF(AND($G$27=$AI$26,$M$27=$AI$39),$AG$16)) -> FALSE | AK26: =IF(AND($G$29=$AI$26,$M$29=$AI$38),$AF$16,IF(AND($G$29=$AI$26,$M$29=$AI$39),$AG$16)) -> FALSE | AL26: =IF(AND($G$31=$AI$26,$M$31=$AI$38),$AF$16,IF(AND($G$31=$AI$26,$M$31=$AI$39),$AG$16)) -> FALSE | AM26: =IF(AND($G$33=$AI$26,$M$33=$AI$38),$AF$16,IF(AND($G$33=$AI$26,$M$33=$AI$39),$AG$16)) -> FALSE | AN26: =IF(AND($G$35=$AI$26,$M$35=$AI$38),$AF$16,IF(AND($G$35=$AI$26,$M$35=$AI$39),$AG$16)) -> FALSE | AO26: =IF(AND($G$37=$AI$26,$M$37=$AI$38),$AF$16,IF(AND($G$37=$AI$26,$M$37=$AI$39),$AG$16)) -> FALSE | AR26: 1167.477401 | AS26: 8 | AW26: 3419.783698 | AX26: 10 | BA26: Kontinuert
E27: 75 | G27: Lysstofrør (T8) | I27: 2 | K27: 36 | M27: Elektronisk | O27: 3000 | Q27: 300 | S27: 0.01 | U27: Kontinuert | AB27: 3 | AC27: - | AD27: - | AI27: Halogenlampe (230 V) | AJ27: =IF(AND($G$27=$AI$27,$M$27=$AI$38),$AF$21,IF(AND($G$27=$AI$27,$M$27=$AI$39),$AG$21)) -> FALSE | AK27: =IF(AND($G$29=$AI$27,$M$29=$AI$38),$AF$21,IF(AND($G$29=$AI$27,$M$29=$AI$39),$AG$21)) -> FALSE | AL27: =IF(AND($G$31=$AI$27,$M$31=$AI$38),$AF$21,IF(AND($G$31=$AI$27,$M$31=$AI$39),$AG$21)) -> FALSE | AM27: =IF(AND($G$33=$AI$27,$M$33=$AI$38),$AF$21,IF(AND($G$33=$AI$27,$M$33=$AI$39),$AG$21)) -> FALSE | AN27: =IF(AND($G$35=$AI$27,$M$35=$AI$38),$AF$21,IF(AND($G$35=$AI$27,$M$35=$AI$39),$AG$21)) -> FALSE | AO27: =IF(AND($G$37=$AI$27,$M$37=$AI$38),$AF$21,IF(AND($G$37=$AI$27,$M$37=$AI$39),$AG$21)) -> FALSE | AR27: 8602.662005 | AS27: 29.47435897 | AW27: 6475.724276 | AX27: 9.468031968
AB28: 5 | AC28: - | AD28: - | AI28: LED | AJ28: =IF(AND($G$27=$AI$28,$M$27=$AI$38),$AF$26,IF(AND($G$27=$AI$28,$M$27=$AI$39),$AG$26)) -> FALSE | AK28: =IF(AND($G$29=$AI$28,$M$29=$AI$38),$AF$26,IF(AND($G$29=$AI$28,$M$29=$AI$39),$AG$26)) -> FALSE | AL28: =IF(AND($G$31=$AI$28,$M$31=$AI$38),$AF$26,IF(AND($G$31=$AI$28,$M$31=$AI$39),$AG$26)) -> FALSE | AM28: =IF(AND($G$33=$AI$28,$M$33=$AI$38),$AF$26,IF(AND($G$33=$AI$28,$M$33=$AI$39),$AG$26)) -> FALSE | AN28: =IF(AND($G$35=$AI$28,$M$35=$AI$38),$AF$26,IF(AND($G$35=$AI$28,$M$35=$AI$39),$AG$26)) -> FALSE | AO28: =IF(AND($G$37=$AI$28,$M$37=$AI$38),$AF$26,IF(AND($G$37=$AI$28,$M$37=$AI$39),$AG$26)) -> FALSE
E29: 75 | G29: Lysstofrør (T8) | I29: 2 | K29: 36 | M29: Elektronisk | O29: 3000 | Q29: 300 | S29: 0.01 | U29: Kontinuert | AB29: 9 | AC29: - | AD29: - | AI29: Lysstofrør (T5) | AJ29: =IF(AND($G$27=$AI$29,$M$27=$AI$38),$AF$30,IF(AND($G$27=$AI$29,$M$27=$AI$39),$AG$30)) -> FALSE | AK29: =IF(AND($G$29=$AI$29,$M$29=$AI$38),$AF$30,IF(AND($G$29=$AI$29,$M$29=$AI$39),$AG$30)) -> FALSE | AL29: =IF(AND($G$31=$AI$29,$M$31=$AI$38),$AF$30,IF(AND($G$31=$AI$29,$M$31=$AI$39),$AG$30)) -> FALSE | AM29: =IF(AND($G$33=$AI$29,$M$33=$AI$38),$AF$30,IF(AND($G$33=$AI$29,$M$33=$AI$39),$AG$30)) -> FALSE | AN29: =IF(AND($G$35=$AI$29,$M$35=$AI$38),$AF$30,IF(AND($G$35=$AI$29,$M$35=$AI$39),$AG$30)) -> FALSE | AO29: =IF(AND($G$37=$AI$29,$M$37=$AI$38),$AF$30,IF(AND($G$37=$AI$29,$M$37=$AI$39),$AG$30)) -> FALSE | AS29: 1 | AT29: 2 | AU29: 3 | AV29: 4 | AW29: 5 | AX29: 6
AA30: Lysstofrør | AB30: 13 | AC30: 14 | AD30: =1.125*AC30 -> 15.75 | AF30: =AG30 -> 1.227883238 | AG30: =LINEST(AD30:AD35,AB30:AB35,FALSE,FALSE) -> 1.227883238 | AI30: Lysstofrør (T8) | AJ30: =IF(AND($G$27=$AI$30,$M$27=$AI$38),$AF$36,IF(AND($G$27=$AI$30,$M$27=$AI$39),$AG$36)) -> 0.9839580946 | AK30: =IF(AND($G$29=$AI$30,$M$29=$AI$38),$AF$36,IF(AND($G$29=$AI$30,$M$29=$AI$39),$AG$36)) -> 0.9839580946 | AL30: =IF(AND($G$31=$AI$30,$M$31=$AI$38),$AF$36,IF(AND($G$31=$AI$30,$M$31=$AI$39),$AG$36)) -> 0.9839580946 | AM30: =IF(AND($G$33=$AI$30,$M$33=$AI$38),$AF$36,IF(AND($G$33=$AI$30,$M$33=$AI$39),$AG$36)) -> 0.9839580946 | AN30: =IF(AND($G$35=$AI$30,$M$35=$AI$38),$AF$36,IF(AND($G$35=$AI$30,$M$35=$AI$39),$AG$36)) -> 0.9839580946 | AO30: =IF(AND($G$37=$AI$30,$M$37=$AI$38),$AF$36,IF(AND($G$37=$AI$30,$M$37=$AI$39),$AG$36)) -> 0.9839580946 | AS30: =$Q$7/$S$7 -> 50000 | AT30: =$Q$9/$S$9 -> 50000 | AU30: =$Q$11/$S$11 -> 50000 | AV30: =$Q$13/$S$13 -> 50000 | AW30: =$Q$15/$S$15 -> 50000 | AX30: =$Q$17/$S$17 -> 50000
E31: 75 | G31: Lysstofrør (T8) | I31: 2 | K31: 36 | M31: Elektronisk | O31: 3000 | Q31: 300 | S31: 0.01 | U31: Kontinuert | AA31: (T5) | AB31: 19 | AC31: 21 | AD31: =1.125*AC31 -> 23.625 | AI31: Kompaktlysstofrør | AJ31: =IF(AND($G$27=$AI$31,$M$27=$AI$38),$AF$41,IF(AND($G$27=$AI$31,$M$27=$AI$39),$AG$41)) -> FALSE | AK31: =IF(AND($G$29=$AI$31,$M$29=$AI$38),$AF$41,IF(AND($G$29=$AI$31,$M$29=$AI$39),$AG$41)) -> FALSE | AL31: =IF(AND($G$31=$AI$31,$M$31=$AI$38),$AF$41,IF(AND($G$31=$AI$31,$M$31=$AI$39),$AG$41)) -> FALSE | AM31: =IF(AND($G$33=$AI$31,$M$33=$AI$38),$AF$41,IF(AND($G$33=$AI$31,$M$33=$AI$39),$AG$41)) -> FALSE | AN31: =IF(AND($G$35=$AI$31,$M$35=$AI$38),$AF$41,IF(AND($G$35=$AI$31,$M$35=$AI$39),$AG$41)) -> FALSE | AO31: =IF(AND($G$37=$AI$31,$M$37=$AI$38),$AF$41,IF(AND($G$37=$AI$31,$M$37=$AI$39),$AG$41)) -> FALSE | AR31: On/off | AS31: =($AR$23*AS30^2)+($AS$23*AS30)+($AT$23) -> 1.947552448 | AT31: 1.947552448 | AU31: 1.947552448 | AV31: 1.947552448 | AW31: 1.947552448 | AX31: 1.947552448
AB32: 25 | AC32: 28 | AD32: 31.5 | AI32: Højtryksnatriumdamplampe | AJ32: =IF(AND($G$27=$AI$32,$M$27=$AI$38),$AF$49,IF(AND($G$27=$AI$32,$M$27=$AI$39),$AG$49)) -> FALSE | AK32: =IF(AND($G$29=$AI$32,$M$29=$AI$38),$AF$49,IF(AND($G$29=$AI$32,$M$29=$AI$39),$AG$49)) -> FALSE | AL32: =IF(AND($G$31=$AI$32,$M$31=$AI$38),$AF$49,IF(AND($G$31=$AI$32,$M$31=$AI$39),$AG$49)) -> FALSE | AM32: =IF(AND($G$33=$AI$32,$M$33=$AI$38),$AF$49,IF(AND($G$33=$AI$32,$M$33=$AI$39),$AG$49)) -> FALSE | AN32: =IF(AND($G$35=$AI$32,$M$35=$AI$38),$AF$49,IF(AND($G$35=$AI$32,$M$35=$AI$39),$AG$49)) -> FALSE | AO32: =IF(AND($G$37=$AI$32,$M$37=$AI$38),$AF$49,IF(AND($G$37=$AI$32,$M$37=$AI$39),$AG$49)) -> FALSE | AR32: Kontinuert | AS32: =($AW$23*AS30^2)+($AX$23*AS30)+($AY$23) -> 27.66733267 | AT32: 27.66733267 | AU32: 27.66733267 | AV32: 27.66733267 | AW32: 27.66733267 | AX32: 27.66733267
E33: 75 | G33: Lysstofrør (T8) | I33: 2 | K33: 36 | M33: Elektronisk | O33: 3000 | Q33: 300 | S33: 0.01 | U33: Kontinuert | AB33: 28 | AC33: 30 | AD33: 33.75 | AI33: Kviksølvdamplampe | AJ33: =IF(AND($G$27=$AI$33,$M$27=$AI$38),$AF$54,IF(AND($G$27=$AI$33,$M$27=$AI$39),$AG$54)) -> FALSE | AK33: =IF(AND($G$29=$AI$33,$M$29=$AI$38),$AF$54,IF(AND($G$29=$AI$33,$M$29=$AI$39),$AG$54)) -> FALSE | AL33: =IF(AND($G$31=$AI$33,$M$11=$AI$38),$AF$54,IF(AND($G$31=$AI$33,$M$31=$AI$39),$AG$54)) -> FALSE | AM33: =IF(AND($G$33=$AI$33,$M$33=$AI$38),$AF$54,IF(AND($G$33=$AI$33,$M$33=$AI$39),$AG$54)) -> FALSE | AN33: =IF(AND($G$35=$AI$33,$M$35=$AI$38),$AF$54,IF(AND($G$35=$AI$33,$M$35=$AI$39),$AG$54)) -> FALSE | AO33: =IF(AND($G$37=$AI$33,$M$37=$AI$38),$AF$54,IF(AND($G$37=$AI$33,$M$37=$AI$39),$AG$54)) -> FALSE
AB34: 32 | AC34: 35 | AD34: 39.375 | AI34: Metalhalogen | AJ34: =IF(AND($G$27=$AI$34,$M$27=$AI$38),$AF$60,IF(AND($G$27=$AI$34,$M$27=$AI$39),$AG$60)) -> FALSE | AK34: =IF(AND($G$29=$AI$34,$M$29=$AI$38),$AF$60,IF(AND($G$29=$AI$34,$M$29=$AI$39),$AG$60)) -> FALSE | AL34: =IF(AND($G$31=$AI$34,$M$31=$AI$38),$AF$60,IF(AND($G$31=$AI$34,$M$31=$AI$39),$AG$60)) -> FALSE | AM34: =IF(AND($G$33=$AI$34,$M$33=$AI$38),$AF$60,IF(AND($G$33=$AI$34,$M$33=$AI$39),$AG$60)) -> FALSE | AN34: =IF(AND($G$35=$AI$34,$M$35=$AI$38),$AF$60,IF(AND($G$35=$AI$34,$M$35=$AI$39),$AG$60)) -> FALSE | AO34: =IF(AND($G$37=$AI$34,$M$37=$AI$38),$AF$60,IF(AND($G$37=$AI$34,$M$37=$AI$39),$AG$60)) -> FALSE
E35: 75 | G35: Lysstofrør (T8) | I35: 2 | K35: 36 | M35: Elektronisk | O35: 3000 | Q35: 300 | S35: 0.01 | U35: Kontinuert | AB35: 35 | AC35: 38 | AD35: 42.75
AA36: Lysstofrør | AB36: 15 | AC36: 19 | AD36: 15 | AF36: =LINEST(AC36:AC40,AB36:AB40,FALSE,FALSE) -> 1.249795384 | AG36: =LINEST(AD36:AD40,AB36:AB40,FALSE,FALSE) -> 0.9839580946 | AI36: Elforbrug | AJ36: =SUM(AJ24:AJ34)*$E$27*$I$27*$K$27*$O$27*0.001 -> 15940.12113 | AK36: =SUM(AK24:AK34)*$E$29*$I$29*$K$29*$O$29*0.001 -> 15940.12113 | AL36: =SUM(AL24:AL34)*$E$31*$I$31*$K$31*$O$31*0.001 -> 15940.12113 | AM36: =SUM(AM24:AM34)*$E$33*$I$33*$K$33*$O$33*0.001 -> 15940.12113 | AN36: =SUM(AN24:AN34)*$E$35*$I$35*$K$35*$O$35*0.001 -> 15940.12113 | AO36: =SUM(AO24:AO34)*$E$37*$I$37*$K$37*$O$37*0.001 -> 15940.12113 | AP36: =SUM(AJ36:AO36) -> 95640.7268
E37: 75 | G37: Lysstofrør (T8) | I37: 2 | K37: 36 | M37: Elektronisk | O37: 3000 | Q37: 300 | S37: 0.01 | U37: Kontinuert | AA37: (T8) | AB37: 18 | AC37: 23 | AD37: 19
AB38: 30 | AC38: 38 | AD38: 30 | AI38: Traditionel | AJ38: =IF(AND($U$7=$BA$24,$U$27=$BA$24),0,IF(AND($U$7=$BA$24,$U$27=$BA$25),AJ36*AS31/100,IF(AND($U$7=$BA$24,$U$27=$BA$26),AJ36*AS32/100,IF(AND($U$7=$BA$25,$U$27=$BA$25),0,IF(AND($U$7=$BA$25,$U$27=$BA$26),AJ36*(AS32-AS31)/100,IF(AND($U$7=$BA$26,$U$27=$BA$26),0)))))) -> 4410.206341 | AK38: =IF(AND($U$9=$BA$24,$U$29=$BA$24),0,IF(AND($U$9=$BA$24,$U$29=$BA$25),AK36*AT31/100,IF(AND($U$9=$BA$24,$U$29=$BA$26),AK36*AT32/100,IF(AND($U$9=$BA$25,$U$29=$BA$25),0,IF(AND($U$9=$BA$25,$U$29=$BA$26),AK36*(AT32-AT31)/100,IF(AND($U$9=$BA$26,$U$29=$BA$26),0)))))) -> 4099.764122 | AL38: =IF(AND($U$11=$BA$24,$U$31=$BA$24),0,IF(AND($U$11=$BA$24,$U$31=$BA$25),AL36*AU31/100,IF(AND($U$11=$BA$24,$U$31=$BA$26),AL36*AU32/100,IF(AND($U$11=$BA$25,$U$31=$BA$25),0,IF(AND($U$11=$BA$25,$U$31=$BA$26),AL36*(AU32-AU31)/100,IF(AND($U$11=$BA$26,$U$31=$BA$26),0)))))) -> 4410.206341 | AM38: =IF(AND($U$13=$BA$24,$U$33=$BA$24),0,IF(AND($U$13=$BA$24,$U$33=$BA$25),AM36*AV31/100,IF(AND($U$13=$BA$24,$U$33=$BA$26),AM36*AV32/100,IF(AND($U$13=$BA$25,$U$33=$BA$25),0,IF(AND($U$13=$BA$25,$U$33=$BA$26),AM36*(AV32-AV31)/100,IF(AND($U$13=$BA$26,$U$33=$BA$26),0)))))) -> 4099.764122 | AN38: =IF(AND($U$15=$BA$24,$U$35=$BA$24),0,IF(AND($U$15=$BA$24,$U$35=$BA$25),AN36*AW31/100,IF(AND($U$15=$BA$24,$U$35=$BA$26),AN36*AW32/100,IF(AND($U$15=$BA$25,$U$35=$BA$25),0,IF(AND($U$15=$BA$25,$U$35=$BA$26),AN36*(AW32-AW31)/100,IF(AND($U$15=$BA$26,$U$35=$BA$26),0)))))) -> 4410.206341 | AO38: =IF(AND($U$17=$BA$24,$U$37=$BA$24),0,IF(AND($U$17=$BA$24,$U$37=$BA$25),AO36*AX31/100,IF(AND($U$17=$BA$24,$U$37=$BA$26),AO36*AX32/100,IF(AND($U$17=$BA$25,$U$37=$BA$25),0,IF(AND($U$17=$BA$25,$U$37=$BA$26),AO36*(AX32-AX31)/100,IF(AND($U$17=$BA$26,$U$37=$BA$26),0)))))) -> 0 | AP38: =SUM(AJ38:AO38) -> 21430.14727
AB39: 36 | AC39: 45 | AD39: 36 | AI39: Elektronisk
AB40: 58 | AC40: 72 | AD40: 56 | AP40: =AP36-AP38 -> 74210.57953
AA41: Kompakt- | AB41: 9 | AC41: 13 | AD41: 10 | AF41: =LINEST(AC41:AC48,AB41:AB48,FALSE,FALSE) -> 1.229510326 | AG41: =LINEST(AD41:AD48,AB41:AB48,FALSE,FALSE) -> 1.037017795
AA42: lysstofrør | AB42: 11 | AC42: 15 | AD42: 13 | AI42: Driftstid | AJ42: =SUM(AJ4:AJ14)*$E$7*$I$7*$K$7*($O$7-$O$27)*0.001 -> 13497.79015 | AK42: =SUM(AK4:AK14)*$E$9*$I$9*$K$9*($O$9-$O$29)*0.001 -> 13497.79015 | AL42: =SUM(AL4:AL14)*$E$11*$I$11*$K$11*($O$11-$O$31)*0.001 -> 13497.79015 | AM42: =SUM(AM4:AM14)*$E$13*$I$13*$K$13*($O$13-$O$33)*0.001 -> 13497.79015 | AN42: =SUM(AN4:AN14)*$E$15*$I$15*$K$15*($O$15-$O$35)*0.001 -> 13497.79015 | AO42: =SUM(AO4:AO14)*$E$7*$I$7*$K$7*($O$7-$O$37)*0.001 -> 13497.79015 | AP42: =SUM(AJ42:AO42) -> 80986.74087
AB43: 18 | AC43: 22 | AD43: 21
AB44: 24 | AC44: 28 | AD44: 28 | AI44: Sektionsopdeling | AJ44: =SUM(AJ4:AJ14)*$E$7*$I$7*$K$7*($O$7-$O$27)*0.001 -> 13497.79015 | AK44: =SUM(AK4:AK14)*$E$9*$I$9*$K$9*($O$9-$O$29)*0.001 -> 13497.79015 | AL44: =SUM(AL4:AL14)*$E$11*$I$11*$K$11*($O$11-$O$31)*0.001 -> 13497.79015 | AM44: =SUM(AM4:AM14)*$E$13*$I$13*$K$13*($O$13-$O$33)*0.001 -> 13497.79015 | AN44: =SUM(AN4:AN14)*$E$15*$I$15*$K$15*($O$15-$O$35)*0.001 -> 13497.79015 | AO44: =SUM(AO4:AO14)*$E$7*$I$7*$K$7*($O$7-$O$37)*0.001 -> 13497.79015 | AP44: =SUM(AJ44:AO44) -> 80986.74087
AB45: 26 | AC45: 32 | AD45: 30
AB46: 36 | AC46: 44 | AD46: 36 | AI46: Belysningsstyrke | AJ46: =IF(Q7="",0,AJ16-(AJ16*(Q27/Q7))) -> 21596.46423 | AK46: =IF(Q9="",0,AK16-(AK16*(Q29/Q9))) -> 21596.46423 | AL46: =IF(Q11="",0,AL16-(AL16*(Q31/Q11))) -> 21596.46423 | AM46: =IF(Q13="",0,AM16-(AM16*(Q33/Q13))) -> 21596.46423 | AN46: =IF(Q15="",0,AN16-(AN16*(Q35/Q15))) -> 21596.46423 | AO46: =IF(Q17="",0,AO16-(AO16*(Q37/Q17))) -> 21596.46423 | AP46: =SUM(AJ46:AO46) -> 129578.7854 | AR46: Fjerne armaturer eller lyskilder, spændingsregulering
AB47: 40 | AC47: 49 | AD47: 40
AB48: 55 | AC48: 68 | AD48: 55 | AI48: Lyskilder | AJ48: =(SUM(AJ4:AJ14)*$E$7*$I$7*$K$7*$O$7*0.001)-(SUM(AJ24:AJ34)*$E$27*$I$27*$K$27*$O$7*0.001) -> 32737.66574 | AK48: =(SUM(AK4:AK14)*$E$9*$I$9*$K$9*$O$9*0.001)-(SUM(AK24:AK34)*$E$29*$I$29*$K$29*$O$9*0.001) -> 32737.66574 | AL48: =(SUM(AL4:AL14)*$E$11*$I$11*$K$11*$O$11*0.001)-(SUM(AL24:AL34)*$E$31*$I$31*$K$31*$O$11*0.001) -> 32737.66574 | AM48: =(SUM(AM4:AM14)*$E$13*$I$13*$K$13*$O$13*0.001)-(SUM(AM24:AM34)*$E$33*$I$33*$K$33*$O$13*0.001) -> 32737.66574 | AN48: =(SUM(AN4:AN14)*$E$15*$I$15*$K$15*$O$15*0.001)-(SUM(AN24:AN34)*$E$35*$I$35*$K$35*$O$15*0.001) -> 32737.66574 | AO48: =(SUM(AO4:AO14)*$E$17*$I$17*$K$17*$O$17*0.001)-(SUM(AO24:AO34)*$E$37*$I$37*$K$37*$O$17*0.001) -> 32737.66574 | AP48: =SUM(AJ48:AO48) -> 196425.9944
AA49: Højtryks- | AB49: 70 | AC49: =1.17*AB49 -> 81.9 | AD49: =1.1*AB49 -> 77 | AF49: =LINEST(AC49:AC53,AB49:AB53,FALSE,FALSE) -> 1.17 | AG49: =LINEST(AD49:AD53,AB49:AB53,FALSE,FALSE) -> 1.1
AA50: natrium- | AB50: 150 | AC50: =1.17*AB50 -> 175.5 | AD50: =1.1*AB50 -> 165 | AI50: Forkoblinger | AJ50: =IF(M7=M27,0,(SUM(AJ4:AJ14)*$E$7*$I$7*$K$7*$O$7*0.001)-(SUM(AJ24:AJ34)*$E$7*$I$7*$K$7*$O$7*0.001)) -> 11484.1709 | AK50: =IF(M9=M29,0,(SUM(AK4:AK14)*$E$9*$I$9*$K$9*$O$9*0.001)-(SUM(AK24:AK34)*$E$9*$I$9*$K$9*$O$9*0.001)) -> 11484.1709 | AL50: =IF(M11=M31,0,(SUM(AL4:AL14)*$E$11*$I$11*$K$11*$O$11*0.001)-(SUM(AL24:AL34)*$E$11*$I$11*$K$11*$O$11*0.001)) -> 11484.1709 | AM50: =IF(M13=M33,0,(SUM(AM4:AM14)*$E$13*$I$13*$K$13*$O$13*0.001)-(SUM(AM24:AM34)*$E$13*$I$13*$K$13*$O$13*0.001)) -> 11484.1709 | AN50: =IF(M15=M35,0,(SUM(AN4:AN14)*$E$15*$I$15*$K$15*$O$15*0.001)-(SUM(AN24:AN34)*$E$15*$I$15*$K$15*$O$15*0.001)) -> 11484.1709 | AO50: =IF(M17=M37,0,(SUM(AO4:AO14)*$E$17*$I$17*$K$17*$O$17*0.001)-(SUM(AO24:AO34)*$E$17*$I$17*$K$17*$O$17*0.001)) -> 11484.1709 | AP50: =SUM(AJ50:AO50) -> 68905.02537
AA51: damplampe | AB51: 250 | AC51: 292.5 | AD51: 275
AB52: 400 | AC52: 468 | AD52: 440 | AI52: Dagslys | AJ52: =IF(AND($U$7=$BA$24,$U$27=$BA$24),0,IF(AND($U$7=$BA$24,$U$27=$BA$25),AJ16*AS31/100,IF(AND($U$7=$BA$24,$U$27=$BA$26),AJ16*AS32/100,IF(AND($U$7=$BA$25,$U$27=$BA$25),0,IF(AND($U$7=$BA$25,$U$27=$BA$26),AJ16*(AS32-AS31)/100,IF(AND($U$7=$BA$26,$U$27=$BA$26),0)))))) -> 14937.91401 | AK52: =IF(AND($U$9=$BA$24,$U$29=$BA$24),0,IF(AND($U$9=$BA$24,$U$29=$BA$25),AK16*AT31/100,IF(AND($U$9=$BA$24,$U$29=$BA$26),AK16*AT32/100,IF(AND($U$9=$BA$25,$U$29=$BA$25),0,IF(AND($U$9=$BA$25,$U$29=$BA$26),AK16*(AT32-AT31)/100,IF(AND($U$9=$BA$26,$U$29=$BA$26),0)))))) -> 13886.40784 | AL52: =IF(AND($U$11=$BA$24,$U$31=$BA$24),0,IF(AND($U$11=$BA$24,$U$31=$BA$25),AL16*AU31/100,IF(AND($U$11=$BA$24,$U$31=$BA$26),AL16*AU32/100,IF(AND($U$11=$BA$25,$U$31=$BA$25),0,IF(AND($U$11=$BA$25,$U$31=$BA$26),AL16*(AU32-AU31)/100,IF(AND($U$11=$BA$26,$U$31=$BA$26),0)))))) -> 14937.91401 | AM52: =IF(AND($U$13=$BA$24,$U$33=$BA$24),0,IF(AND($U$13=$BA$24,$U$33=$BA$25),AM16*AV31/100,IF(AND($U$13=$BA$24,$U$33=$BA$26),AM16*AV32/100,IF(AND($U$13=$BA$25,$U$33=$BA$25),0,IF(AND($U$13=$BA$25,$U$33=$BA$26),AM16*(AV32-AV31)/100,IF(AND($U$13=$BA$26,$U$33=$BA$26),0)))))) -> 13886.40784 | AN52: =IF(AND($U$15=$BA$24,$U$35=$BA$24),0,IF(AND($U$15=$BA$24,$U$35=$BA$25),AN16*AW31/100,IF(AND($U$15=$BA$24,$U$35=$BA$26),AN16*AW32/100,IF(AND($U$15=$BA$25,$U$35=$BA$25),0,IF(AND($U$15=$BA$25,$U$35=$BA$26),AN16*(AW32-AW31)/100,IF(AND($U$15=$BA$26,$U$35=$BA$26),0)))))) -> 14937.91401 | AO52: =IF(AND($U$17=$BA$24,$U$37=$BA$24),0,IF(AND($U$17=$BA$24,$U$37=$BA$25),AO16*AX31/100,IF(AND($U$17=$BA$24,$U$37=$BA$26),AO16*AX32/100,IF(AND($U$17=$BA$25,$U$37=$BA$25),0,IF(AND($U$17=$BA$25,$U$37=$BA$26),AO16*(AX32-AX31)/100,IF(AND($U$17=$BA$26,$U$37=$BA$26),0)))))) -> 0 | AP52: =SUM(AJ52:AO52) -> 72586.55771
AB53: 1000 | AC53: 1170 | AD53: 1100
AA54: Kviksølv- | AB54: 50 | AC54: =1.19*AB54 -> 59.5 | AD54: - | AF54: =LINEST(AC54:AC59,AB54:AB59,FALSE,FALSE) -> 1.19 | AG54: =AF54 -> 1.19
AA55: damplampe | AB55: 80 | AC55: =1.19*AB55 -> 95.2 | AD55: -
AB56: 125 | AC56: =1.19*AB56 -> 148.75 | AD56: -
AB57: 250 | AC57: 297.5 | AD57: -
AB58: 400 | AC58: 476 | AD58: -
AB59: 1000 | AC59: 1190 | AD59: -
AA60: Metalhalogen | AB60: 35 | AC60: =1.1*AB60 -> 38.5 | AD60: - | AF60: =LINEST(AC60:AC64,AB60:AB64,FALSE,FALSE) -> 1.1 | AG60: =AF60 -> 1.1
AB61: 50 | AC61: =1.1*AB61 -> 55 | AD61: -
AB62: 70 | AC62: 77 | AD62: -
AB63: 100 | AC63: 110 | AD63: -
AB64: 150 | AC64: 165 | AD64: -

Sheet Køl (hidden)
B2: Temp. ind køl | C2: =Køling!D13 -> 16 | D2: ° C | F2: Temp overflade | H2: =Køling!D15 -> 6 | J2: Start | K2: =Køling!D27 -> 0 | M2: Stop | N2: =Køling!D29 -> 24 | P2: Antal dage | Q2: =Køling!D31 -> 7 | S2: Fordampningstemp. | U2: =Køling!J19 -> 0
B4: Temp. ind køl | C4: =Køling!J13 -> 16 | D4: ° C | F4: Temp overflade | H4: =Køling!J15 -> 6 | J4: Start | K4: =Køling!J27 -> 0 | M4: Stop | N4: =Køling!J29 -> 24 | P4: Antal dage | Q4: =Køling!J31 -> 7 | S4: Kondenseringstemp. | U4: =Køling!J21 -> 30
B7: Maaned | C7: Dag | D7: Time | E7: Lufttemp | F7: Dugpunkt | G7: Relativluft | H7: pm1 | I7: x1 | J7: h1 | K7: pmk1 | L7: xk | M7: hk | N7: a | O7: b | P7: x2 | Q7: h2 | R7: pmk1 | S7: xk | T7: hk | U7: a | V7: b | W7: x2 | X7: h2 | Y7: Tør køling | Z7: Energi tør | AA7: Våd køling | AB7: Energi våd | AC7: Sum | AE7: Tør køling | AF7: Energi tør | AG7: Våd køling | AH7: Energi våd | AI7: Sum | AL7: Før | AO7: Efter | AR7: Tk = 25 | AS7: Tk>25 | AU7: Anvendes ikke | AX7: Komb | AY7: Tk var | AZ7: T0 var
B8: {1..12} | C8: {1..31} | D8: {1..24} | E8: [grd. C] | F8: [grd. C] | G8: [%]
B11: 1 | C11: 1 | D11: 1 | E11: 2.799999952 | F11: -0.200000003 | G11: 80 | H11: =(('pm1'!$B$41*Køl!E11^3)+('pm1'!$C$41*Køl!E11^2)+('pm1'!$D$41*Køl!E11)+'pm1'!$E$41)/1000 -> 0.00713567971 | I11: =0.622*((G11/100)*H11)/((1.013-((G11/100)*H11))) -> 0.003525011755 | J11: =(1.006*E11)+(I11*((1.86*E11)+2501)) -> 11.65121261 | K11: =(('pm1'!$B$41*Køl!$H$2^3)+('pm1'!$C$41*Køl!$H$2^2)+('pm1'!$D$41*Køl!$H$2)+'pm1'!$E$41)/1000 -> 0.008964720962 | L11: =0.622*((100/100)*K11)/((1.013-((100/100)*K11))) -> 0.005553645927 | M11: =(1.006*$H$2)+(L11*((1.86*$H$2)+2501)) -> 19.98764715 | N11: =IF(I11-L11=0,0,(E11-$H$2)/(I11-L11)) -> 1577.416023 | O11: =E11-(N11*I11) -> -2.760410069 | P11: =IF(N11=0,L11,($C$2-O11)/N11) -> 0.01189312762 | Q11: =(1.006*$C$2)+(P11*((1.86*$C$2)+2501)) -> 46.19465166 | R11: =(('pm1'!$B$41*Køl!$H$4^3)+('pm1'!$C$41*Køl!$H$4^2)+('pm1'!$D$41*Køl!$H$4)+'pm1'!$E$41)/1000 -> 0.008964720962 | S11: =0.622*((100/100)*R11)/((1.013-((100/100)*R11))) -> 0.005553645927 | T11: =(1.006*$H$4)+(S11*((1.86*$H$4)+2501)) -> 19.98764715 | U11: =IF(I11-S11=0,0,(E11-$H$4)/(I11-S11)) -> 1577.416023 | V11: =E11-(U11*I11) -> -2.760410069 | W11: =IF(U11=0,S11,($C$4-V11)/U11) -> 0.01189312762 | X11: =(1.006*$C$4)+(W11*((1.86*$C$4)+2501)) -> 46.19465166 | Y11: =IF(E11<$C$2,0,IF($H$2>F11,E11-$C$2)) -> 0 | Z11: =1.2*(Køling!$D$7/3600)*Y11 -> 0 | AA11: =IF($H$2<=F11,IF(Q11>J11,0,Q11-J11),0) -> 0 | AB11: =-1*1.2*(Køling!$D$7/3600)*AA11 -> 0 | AC11: =Z11+AB11 -> 0 | AE11: =IF(E11<$C$4,0,IF($H$4>F11,E11-$C$4)) -> 0 | AF11: =1.2*(Køling!$J$7/3600)*AE11 -> 0 | AG11: =IF($H$4<=F11,IF(X11>J11,0,X11-J11),0) -> 0 | AH11: =-1*1.2*(Køling!$J$7/3600)*AG11 -> 0 | AI11: =AF11+AH11 -> 0 | AL11: 1 | AM11: =AD375 -> 112.1608954 | AO11: 1 | AP11: =AJ375 -> 112.1608954 | AR11: =IF(E11>=$U$4-10,E11+10,IF(E11<$U$4-10,25)) -> 25 | AS11: =IF(E11>=$U$4-10,E11+10,IF(E11<$U$4-10,$U$4)) -> 30 | AT11: =IF($U$4=25,AR11,IF($U$4>25,AS11)) -> 30 | AU11: =IF(OR(Køling!$D$21="",Køling!$J$21="",Køling!$D$19=""),0,((Køling!$D$21-AT11)/(Køling!$D$21-Køling!$D$19))) -> 0.4 | AV11: =AU11*AI11 -> 0 | AX11: =0.5*(($U$2+273.15)/(AT11-$U$2)) -> 4.5525 | AY11: =0.5*((Køling!$D$19+273.15)/(AT11-Køling!$D$19)) -> 4.5525 | AZ11: =0.5*(($U$2+273.15)/(Køling!$D$21-$U$2)) -> 2.7315
B12: 1 | C12: 2 | D12: 1 | E12: 4.599999905 | F12: -1.399999976 | G12: 63 | H12: =(('pm1'!$B$41*Køl!E12^3)+('pm1'!$C$41*Køl!E12^2)+('pm1'!$D$41*Køl!E12)+'pm1'!$E$41)/1000 -> 0.008109291268 | I12: =0.622*((G12/100)*H12)/((1.013-((G12/100)*H12))) -> 0.003152827453 | J12: =(1.006*E12)+(I12*((1.86*E12)+2501)) -> 12.53979696 | K12: =(('pm1'!$B$41*Køl!$H$2^3)+('pm1'!$C$41*Køl!$H$2^2)+('pm1'!$D$41*Køl!$H$2)+'pm1'!$E$41)/1000 -> 0.008964720962 | L12: =0.622*((100/100)*K12)/((1.013-((100/100)*K12))) -> 0.005553645927 | M12: =(1.006*$H$2)+(L12*((1.86*$H$2)+2501)) -> 19.98764715 | N12: =IF(I12-L12=0,0,(E12-$H$2)/(I12-L12)) -> 583.134506 | O12: =E12-(N12*I12) -> 2.761477426 | P12: =IF(N12=0,L12,($C$2-O12)/N12) -> 0.02270234815 | Q12: =(1.006*$C$2)+(P12*((1.86*$C$2)+2501)) -> 73.55019461 | R12: =(('pm1'!$B$41*Køl!$H$4^3)+('pm1'!$C$41*Køl!$H$4^2)+('pm1'!$D$41*Køl!$H$4)+'pm1'!$E$41)/1000 -> 0.008964720962 | S12: =0.622*((100/100)*R12)/((1.013-((100/100)*R12))) -> 0.005553645927 | T12: =(1.006*$H$4)+(S12*((1.86*$H$4)+2501)) -> 19.98764715 | U12: =IF(I12-S12=0,0,(E12-$H$4)/(I12-S12)) -> 583.134506 | V12: =E12-(U12*I12) -> 2.761477426 | W12: =IF(U12=0,S12,($C$4-V12)/U12) -> 0.02270234815 | X12: =(1.006*$C$4)+(W12*((1.86*$C$4)+2501)) -> 73.55019461 | Y12: =IF(E12<$C$2,0,IF($H$2>F12,E12-$C$2)) -> 0 | Z12: =1.2*(Køling!$D$7/3600)*Y12 -> 0 | AA12: =IF($H$2<=F12,IF(Q12>J12,0,Q12-J12),0) -> 0 | AB12: =-1*1.2*(Køling!$D$7/3600)*AA12 -> 0 | AC12: =Z12+AB12 -> 0 | AE12: =IF(E12<$C$4,0,IF($H$4>F12,E12-$C$4)) -> 0 | AF12: =1.2*(Køling!$J$7/3600)*AE12 -> 0 | AG12: =IF($H$4<=F12,IF(X12>J12,0,X12-J12),0) -> 0 | AH12: =-1*1.2*(Køling!$J$7/3600)*AG12 -> 0 | AI12: =AF12+AH12 -> 0 | AL12: 2 | AM12: =AD740 -> 77.81760868 | AO12: 2 | AP12: =AJ740 -> 77.81760868 | AR12: =IF(E12>=$U$4-10,E12+10,IF(E12<$U$4-10,25)) -> 25 | AS12: =IF(E12>=$U$4-10,E12+10,IF(E12<$U$4-10,$U$4)) -> 30 | AT12: =IF($U$4=25,AR12,IF($U$4>25,AS12)) -> 30 | AU12: =IF(OR(Køling!$D$21="",Køling!$J$21="",Køling!$D$19=""),0,((Køling!$D$21-AT12)/(Køling!$D$21-Køling!$D$19))) -> 0.4 | AV12: =AU12*AI12 -> 0 | AX12: =0.5*(($U$2+273.15)/(AT12-$U$2)) -> 4.5525 | AY12: =0.5*((Køling!$D$19+273.15)/(AT12-Køling!$D$19)) -> 4.5525 | AZ12: =0.5*(($U$2+273.15)/(Køling!$D$21-$U$2)) -> 2.7315
B13: 1 | C13: 3 | D13: 1 | E13: 1.600000024 | F13: 0.6000000238 | G13: 93 | H13: =(('pm1'!$B$41*Køl!E13^3)+('pm1'!$C$41*Køl!E13^2)+('pm1'!$D$41*Køl!E13)+'pm1'!$E$41)/1000 -> 0.006559704398 | I13: 0.003768525757 | J13: 11.04589808 | K13: =(('pm1'!$B$41*Køl!$H$2^3)+('pm1'!$C$41*Køl!$H$2^2)+('pm1'!$D$41*Køl!$H$2)+'pm1'!$E$41)/1000 -> 0.008964720962 | L13: 0.005553645927 | M13: 19.98764715 | N13: 2464.820044 | O13: -7.688737798 | P13: 0.009610737245 | Q13: 40.41846939 | R13: =(('pm1'!$B$41*Køl!$H$4^3)+('pm1'!$C$41*Køl!$H$4^2)+('pm1'!$D$41*Køl!$H$4)+'pm1'!$E$41)/1000 -> 0.008964720962 | S13: 0.005553645927 | T13: 19.98764715 | U13: 2464.820044 | V13: -7.688737798 | W13: 0.009610737245 | X13: 40.41846939 | Y13: 0 | Z13: =1.2*(Køling!$D$7/3600)*Y13 -> 0 | AA13: 0 | AB13: =-1*1.2*(Køling!$D$7/3600)*AA13 -> 0 | AC13: 0 | AE13: 0 | AF13: =1.2*(Køling!$J$7/3600)*AE13 -> 0 | AG13: 0 | AH13: =-1*1.2*(Køling!$J$7/3600)*AG13 -> 0 | AI13: 0 | AL13: 3 | AM13: =AD1105 -> 84.45822496 | AO13: 3 | AP13: =AJ1105 -> 84.45822496 | AR13: 25 | AS13: 30 | AT13: 30 | AU13: =IF(OR(Køling!$D$21="",Køling!$J$21="",Køling!$D$19=""),0,((Køling!$D$21-AT13)/(Køling!$D$21-Køling!$D$19))) -> 0.4 | AV13: 0 | AX13: 4.5525 | AY13: =0.5*((Køling!$D$19+273.15)/(AT13-Køling!$D$19)) -> 4.5525 | AZ13: =0.5*(($U$2+273.15)/(Køling!$D$21-$U$2)) -> 2.7315
B14: 1 | C14: 4 | D14: 1 | E14: 1.700000048 | F14: -0.3000000119 | G14: 86 | H14: =(('pm1'!$B$41*Køl!E14^3)+('pm1'!$C$41*Køl!E14^2)+('pm1'!$D$41*Køl!E14)+'pm1'!$E$41)/1000 -> 0.006605585428 | I14: 0.003507785585 | J14: 10.49426341 | K14: =(('pm1'!$B$41*Køl!$H$2^3)+('pm1'!$C$41*Køl!$H$2^2)+('pm1'!$D$41*Køl!$H$2)+'pm1'!$E$41)/1000 -> 0.008964720962 | L14: 0.005553645927 | M14: 19.98764715 | N14: 2101.805222 | O14: -5.672682014 | P14: 0.01031146073 | Q14: 42.19183236 | R14: =(('pm1'!$B$41*Køl!$H$4^3)+('pm1'!$C$41*Køl!$H$4^2)+('pm1'!$D$41*Køl!$H$4)+'pm1'!$E$41)/1000 -> 0.008964720962 | S14: 0.005553645927 | T14: 19.98764715 | U14: 2101.805222 | V14: -5.672682014 | W14: 0.01031146073 | X14: 42.19183236 | Y14: 0 | Z14: =1.2*(Køling!$D$7/3600)*Y14 -> 0 | AA14: 0 | AB14: =-1*1.2*(Køling!$D$7/3600)*AA14 -> 0 | AC14: 0 | AE14: 0 | AF14: =1.2*(Køling!$J$7/3600)*AE14 -> 0 | AG14: 0 | AH14: =-1*1.2*(Køling!$J$7/3600)*AG14 -> 0 | AI14: 0 | AL14: 4 | AM14: =AD1470 -> 71.34189299 | AO14: 4 | AP14: =AJ1470 -> 71.34189299 | AR14: 25 | AS14: 30 | AT14: 30 | AU14: =IF(OR(Køling!$D$21="",Køling!$J$21="",Køling!$D$19=""),0,((Køling!$D$21-AT14)/(Køling!$D$21-Køling!$D$19))) -> 0.4 | AV14: 0 | AX14: 4.5525 | AY14: =0.5*((Køling!$D$19+273.15)/(AT14-Køling!$D$19)) -> 4.5525 | AZ14: =0.5*(($U$2+273.15)/(Køling!$D$21-$U$2)) -> 2.7315
B15: 1 | C15: 5 | D15: 1 | E15: -0.400000006 | F15: -1.399999976 | G15: 91 | H15: =(('pm1'!$B$41*Køl!E15^3)+('pm1'!$C$41*Køl!E15^2)+('pm1'!$D$41*Køl!E15)+'pm1'!$E$41)/1000 -> 0.00571799726 | I15: 0.00321146225 | J15: 7.627077754 | K15: =(('pm1'!$B$41*Køl!$H$2^3)+('pm1'!$C$41*Køl!$H$2^2)+('pm1'!$D$41*Køl!$H$2)+'pm1'!$E$41)/1000 -> 0.008964720962 | L15: 0.005553645927 | M15: 19.98764715 | N15: 2732.492788 | O15: -9.175297444 | P15: 0.009213307919 | Q15: 39.41267115 | R15: =(('pm1'!$B$41*Køl!$H$4^3)+('pm1'!$C$41*Køl!$H$4^2)+('pm1'!$D$41*Køl!$H$4)+'pm1'!$E$41)/1000 -> 0.008964720962 | S15: 0.005553645927 | T15: 19.98764715 | U15: 2732.492788 | V15: -9.175297444 | W15: 0.009213307919 | X15: 39.41267115 | Y15: 0 | Z15: =1.2*(Køling!$D$7/3600)*Y15 -> 0 | AA15: 0 | AB15: =-1*1.2*(Køling!$D$7/3600)*AA15 -> 0 | AC15: 0 | AE15: 0 | AF15: =1.2*(Køling!$J$7/3600)*AE15 -> 0 | AG15: 0 | AH15: =-1*1.2*(Køling!$J$7/3600)*AG15 -> 0 | AI15: 0 | AL15: 5 | AM15: =AD1835 -> 54.53053739 | AO15: 5 | AP15: =AJ1835 -> 54.53053739 | AR15: 25 | AS15: 30 | AT15: 30 | AU15: =IF(OR(Køling!$D$21="",Køling!$J$21="",Køling!$D$19=""),0,((Køling!$D$21-AT15)/(Køling!$D$21-Køling!$D$19))) -> 0.4 | AV15: 0 | AX15: 4.5525 | AY15: =0.5*((Køling!$D$19+273.15)/(AT15-Køling!$D$19)) -> 4.5525 | AZ15: =0.5*(($U$2+273.15)/(Køling!$D$21-$U$2)) -> 2.7315
B16: 1 | C16: 6 | D16: 1 | E16: -8.199999809 | F16: -8.199999809 | G16: 100 | H16: =(('pm1'!$B$41*Køl!E16^3)+('pm1'!$C$41*Køl!E16^2)+('pm1'!$D$41*Køl!E16)+'pm1'!$E$41)/1000 -> 0.003540222655 | I16: 0.002181383093 | J16: -2.826831147 | K16: =(('pm1'!$B$41*Køl!$H$2^3)+('pm1'!$C$41*Køl!$H$2^2)+('pm1'!$D$41*Køl!$H$2)+'pm1'!$E$41)/1000 -> 0.008964720962 | L16: 0.005553645927 | M16: 19.98764715 | N16: 4210.822378 | O16: -17.38541655 | P16: 0.007928478941 | Q16: 36.16107737 | R16: =(('pm1'!$B$41*Køl!$H$4^3)+('pm1'!$C$41*Køl!$H$4^2)+('pm1'!$D$41*Køl!$H$4)+'pm1'!$E$41)/1000 -> 0.008964720962 | S16: 0.005553645927 | T16: 19.98764715 | U16: 4210.822378 | V16: -17.38541655 | W16: 0.007928478941 | X16: 36.16107737 | Y16: 0 | Z16: =1.2*(Køling!$D$7/3600)*Y16 -> 0 | AA16: 0 | AB16: =-1*1.2*(Køling!$D$7/3600)*AA16 -> 0 | AC16: 0 | AE16: 0 | AF16: =1.2*(Køling!$J$7/3600)*AE16 -> 0 | AG16: 0 | AH16: =-1*1.2*(Køling!$J$7/3600)*AG16 -> 0 | AI16: 0 | AL16: 6 | AM16: =AD2200 -> 149.4434654 | AO16: 6 | AP16: =AJ2200 -> 149.4434654 | AR16: 25 | AS16: 30 | AT16: 30 | AU16: =IF(OR(Køling!$D$21="",Køling!$J$21="",Køling!$D$19=""),0,((Køling!$D$21-AT16)/(Køling!$D$21-Køling!$D$19))) -> 0.4 | AV16: 0 | AX16: 4.5525 | AY16: =0.5*((Køling!$D$19+273.15)/(AT16-Køling!$D$19)) -> 4.5525 | AZ16: =0.5*(($U$2+273.15)/(Køling!$D$21-$U$2)) -> 2.7315
B17: 1 | C17: 7 | D17: 1 | E17: -13.10000038 | F17: -13.10000038 | G17: 100 | H17: =(('pm1'!$B$41*Køl!E17^3)+('pm1'!$C$41*Køl!E17^2)+('pm1'!$D$41*Køl!E17)+'pm1'!$E$41)/1000 -> 0.002737095464 | I17: 0.001685178552 | J17: -9.005029886 | K17: =(('pm1'!$B$41*Køl!$H$2^3)+('pm1'!$C$41*Køl!$H$2^2)+('pm1'!$D$41*Køl!$H$2)+'pm1'!$E$41)/1000 -> 0.008964720962 | L17: 0.005553645927 | M17: 19.98764715 | N17: 4937.355941 | O17: -21.42032672 | P17: 0.007579021476 | Q17: 35.27668439 | R17: =(('pm1'!$B$41*Køl!$H$4^3)+('pm1'!$C$41*Køl!$H$4^2)+('pm1'!$D$41*Køl!$H$4)+'pm1'!$E$41)/1000 -> 0.008964720962 | S17: 0.005553645927 | T17: 19.98764715 | U17: 4937.355941 | V17: -21.42032672 | W17: 0.007579021476 | X17: 35.27668439 | Y17: 0 | Z17: =1.2*(Køling!$D$7/3600)*Y17 -> 0 | AA17: 0 | AB17: =-1*1.2*(Køling!$D$7/3600)*AA17 -> 0 | AC17: 0 | AE17: 0 | AF17: =1.2*(Køling!$J$7/3600)*AE17 -> 0 | AG17: 0 | AH17: =-1*1.2*(Køling!$J$7/3600)*AG17 -> 0 | AI17: 0 | AL17: 7 | AM17: =AD2565 -> 253.8263344 | AO17: 7 | AP17: =AJ2565 -> 253.8263344 | AR17: 25 | AS17: 30 | AT17: 30 | AU17: =IF(OR(Køling!$D$21="",Køling!$J$21="",Køling!$D$19=""),0,((Køling!$D$21-AT17)/(Køling!$D$21-Køling!$D$19))) -> 0.4 | AV17: 0 | AX17: 4.5525 | AY17: =0.5*((Køling!$D$19+273.15)/(AT17-Køling!$D$19)) -> 4.5525 | AZ17: =0.5*(($U$2+273.15)/(Køling!$D$21-$U$2)) -> 2.7315
B18: 1 | C18: 8 | D18: 1 | E18: -19.60000038 | F18: -19.60000038 | G18: 100 | H18: =(('pm1'!$B$41*Køl!E18^3)+('pm1'!$C$41*Køl!E18^2)+('pm1'!$D$41*Køl!E18)+'pm1'!$E$41)/1000 -> 0.001824173794 | I18: 0.001122095753 | J18: -16.95214603 | K18: =(('pm1'!$B$41*Køl!$H$2^3)+('pm1'!$C$41*Køl!$H$2^2)+('pm1'!$D$41*Køl!$H$2)+'pm1'!$E$41)/1000 -> 0.008964720962 | L18: 0.005553645927 | M18: 19.98764715 | N18: 5776.759683 | O18: -26.08207789 | P18: 0.007284720189 | Q18: 34.53187846 | R18: =(('pm1'!$B$41*Køl!$H$4^3)+('pm1'!$C$41*Køl!$H$4^2)+('pm1'!$D$41*Køl!$H$4)+'pm1'!$E$41)/1000 -> 0.008964720962 | S18: 0.005553645927 | T18: 19.98764715 | U18: 5776.759683 | V18: -26.08207789 | W18: 0.007284720189 | X18: 34.53187846 | Y18: 0 | Z18: =1.2*(Køling!$D$7/3600)*Y18 -> 0 | AA18: 0 | AB18: =-1*1.2*(Køling!$D$7/3600)*AA18 -> 0 | AC18: 0 | AE18: 0 | AF18: =1.2*(Køling!$J$7/3600)*AE18 -> 0 | AG18: 0 | AH18: =-1*1.2*(Køling!$J$7/3600)*AG18 -> 0 | AI18: 0 | AL18: 8 | AM18: =AD2930 -> 471.0998918 | AO18: 8 | AP18: =AJ2930 -> 471.0998918 | AR18: 25 | AS18: 30 | AT18: 30 | AU18: =IF(OR(Køling!$D$21="",Køling!$J$21="",Køling!$D$19=""),0,((Køling!$D$21-AT18)/(Køling!$D$21-Køling!$D$19))) -> 0.4 | AV18: 0 | AX18: 4.5525 | AY18: =0.5*((Køling!$D$19+273.15)/(AT18-Køling!$D$19)) -> 4.5525 | AZ18: =0.5*(($U$2+273.15)/(Køling!$D$21-$U$2)) -> 2.7315
B19: 1 | C19: 9 | D19: 1 | E19: 0.8000000119 | F19: 0.6000000238 | G19: 99 | H19: =(('pm1'!$B$41*Køl!E19^3)+('pm1'!$C$41*Køl!E19^2)+('pm1'!$D$41*Køl!E19)+'pm1'!$E$41)/1000 -> 0.006205985899 | I19: 0.00379549977 | J19: 10.30299264 | K19: =(('pm1'!$B$41*Køl!$H$2^3)+('pm1'!$C$41*Køl!$H$2^2)+('pm1'!$D$41*Køl!$H$2)+'pm1'!$E$41)/1000 -> 0.008964720962 | L19: 0.005553645927 | M19: 19.98764715 | N19: 2957.660809 | O19: -10.42580091 | P19: 0.008934696239 | Q19: 38.70757185 | R19: =(('pm1'!$B$41*Køl!$H$4^3)+('pm1'!$C$41*Køl!$H$4^2)+('pm1'!$D$41*Køl!$H$4)+'pm1'!$E$41)/1000 -> 0.008964720962 | S19: 0.005553645927 | T19: 19.98764715 | U19: 2957.660809 | V19: -10.42580091 | W19: 0.008934696239 | X19: 38.70757185 | Y19: 0 | Z19: =1.2*(Køling!$D$7/3600)*Y19 -> 0 | AA19: 0 | AB19: =-1*1.2*(Køling!$D$7/3600)*AA19 -> 0 | AC19: 0 | AE19: 0 | AF19: =1.2*(Køling!$J$7/3600)*AE19 -> 0 | AG19: 0 | AH19: =-1*1.2*(Køling!$J$7/3600)*AG19 -> 0 | AI19: 0 | AL19: 9 | AM19: =AD3295 -> 761.2371208 | AO19: 9 | AP19: =AJ3295 -> 761.2371208 | AR19: 25 | AS19: 30 | AT19: 30 | AU19: =IF(OR(Køling!$D$21="",Køling!$J$21="",Køling!$D$19=""),0,((Køling!$D$21-AT19)/(Køling!$D$21-Køling!$D$19))) -> 0.4 | AV19: 0 | AX19: 4.5525 | AY19: =0.5*((Køling!$D$19+273.15)/(AT19-Køling!$D$19)) -> 4.5525 | AZ19: =0.5*(($U$2+273.15)/(Køling!$D$21-$U$2)) -> 2.7315
B20: 1 | C20: 10 | D20: 1 | E20: 2.400000095 | F20: 2.400000095 | G20: 100 | H20: =(('pm1'!$B$41*Køl!E20^3)+('pm1'!$C$41*Køl!E20^2)+('pm1'!$D$41*Køl!E20)+'pm1'!$E$41)/1000 -> 0.00693744775 | I20: 0.004289089671 | J20: 13.16055986 | K20: =(('pm1'!$B$41*Køl!$H$2^3)+('pm1'!$C$41*Køl!$H$2^2)+('pm1'!$D$41*Køl!$H$2)+'pm1'!$E$41)/1000 -> 0.008964720962 | L20: 0.005553645927 | M20: 19.98764715 | N20: 2846.848359 | O20: -9.810387797 | P20: 0.009066302289 | Q20: 39.04063518 | R20: =(('pm1'!$B$41*Køl!$H$4^3)+('pm1'!$C$41*Køl!$H$4^2)+('pm1'!$D$41*Køl!$H$4)+'pm1'!$E$41)/1000 -> 0.008964720962 | S20: 0.005553645927 | T20: 19.98764715 | U20: 2846.848359 | V20: -9.810387797 | W20: 0.009066302289 | X20: 39.04063518 | Y20: 0 | Z20: =1.2*(Køling!$D$7/3600)*Y20 -> 0 | AA20: 0 | AB20: =-1*1.2*(Køling!$D$7/3600)*AA20 -> 0 | AC20: 0 | AE20: 0 | AF20: =1.2*(Køling!$J$7/3600)*AE20 -> 0 | AG20: 0 | AH20: =-1*1.2*(Køling!$J$7/3600)*AG20 -> 0 | AI20: 0 | AL20: 10 | AM20: =AD3660 -> 1117.36824 | AO20: 10 | AP20: =AJ3660 -> 1117.36824 | AR20: 25 | AS20: 30 | AT20: 30 | AU20: =IF(OR(Køling!$D$21="",Køling!$J$21="",Køling!$D$19=""),0,((Køling!$D$21-AT20)/(Køling!$D$21-Køling!$D$19))) -> 0.4 | AV20: 0 | AX20: 4.5525 | AY20: =0.5*((Køling!$D$19+273.15)/(AT20-Køling!$D$19)) -> 4.5525 | AZ20: =0.5*(($U$2+273.15)/(Køling!$D$21-$U$2)) -> 2.7315
B21: 1 | C21: 11 | D21: 1 | E21: 1.600000024 | F21: -3.400000095 | G21: 65 | H21: =(('pm1'!$B$41*Køl!E21^3)+('pm1'!$C$41*Køl!E21^2)+('pm1'!$D$41*Køl!E21)+'pm1'!$E$41)/1000 -> 0.006559704398 | I21: 0.002629119991 | J21: 8.192853382 | K21: =(('pm1'!$B$41*Køl!$H$2^3)+('pm1'!$C$41*Køl!$H$2^2)+('pm1'!$D$41*Køl!$H$2)+'pm1'!$E$41)/1000 -> 0.008964720962 | L21: 0.005553645927 | M21: 19.98764715 | N21: 1504.517338 | O21: -2.355556585 | P21: 0.01220029582 | Q21: 46.97202065 | R21: =(('pm1'!$B$41*Køl!$H$4^3)+('pm1'!$C$41*Køl!$H$4^2)+('pm1'!$D$41*Køl!$H$4)+'pm1'!$E$41)/1000 -> 0.008964720962 | S21: 0.005553645927 | T21: 19.98764715 | U21: 1504.517338 | V21: -2.355556585 | W21: 0.01220029582 | X21: 46.97202065 | Y21: 0 | Z21: =1.2*(Køling!$D$7/3600)*Y21 -> 0 | AA21: 0 | AB21: =-1*1.2*(Køling!$D$7/3600)*AA21 -> 0 | AC21: 0 | AE21: 0 | AF21: =1.2*(Køling!$J$7/3600)*AE21 -> 0 | AG21: 0 | AH21: =-1*1.2*(Køling!$J$7/3600)*AG21 -> 0 | AI21: 0 | AL21: 11 | AM21: =AD4025 -> 1490.563498 | AO21: 11 | AP21: =AJ4025 -> 1490.563498 | AR21: 25 | AS21: 30 | AT21: 30 | AU21: =IF(OR(Køling!$D$21="",Køling!$J$21="",Køling!$D$19=""),0,((Køling!$D$21-AT21)/(Køling!$D$21-Køling!$D$19))) -> 0.4 | AV21: 0 | AX21: 4.5525 | AY21: =0.5*((Køling!$D$19+273.15)/(AT21-Køling!$D$19)) -> 4.5525 | AZ21: =0.5*(($U$2+273.15)/(Køling!$D$21-$U$2)) -> 2.7315
B22: 1 | C22: 12 | D22: 1 | E22: 1.200000048 | F22: 0 | G22: 92 | H22: =(('pm1'!$B$41*Køl!E22^3)+('pm1'!$C$41*Køl!E22^2)+('pm1'!$D$41*Køl!E22)+'pm1'!$E$41)/1000 -> 0.006379912271 | I22: 0.003624993055 | J22: 10.28139866 | K22: =(('pm1'!$B$41*Køl!$H$2^3)+('pm1'!$C$41*Køl!$H$2^2)+('pm1'!$D$41*Køl!$H$2)+'pm1'!$E$41)/1000 -> 0.008964720962 | L22: 0.005553645927 | M22: 19.98764715 | N22: 2488.783762 | O22: -7.821823806 | P22: 0.009571672785 | Q22: 40.31960662 | R22: =(('pm1'!$B$41*Køl!$H$4^3)+('pm1'!$C$41*Køl!$H$4^2)+('pm1'!$D$41*Køl!$H$4)+'pm1'!$E$41)/1000 -> 0.008964720962 | S22: 0.005553645927 | T22: 19.98764715 | U22: 2488.783762 | V22: -7.821823806 | W22: 0.009571672785 | X22: 40.31960662 | Y22: 0 | Z22: =1.2*(Køling!$D$7/3600)*Y22 -> 0 | AA22: 0 | AB22: =-1*1.2*(Køling!$D$7/3600)*AA22 -> 0 | AC22: 0 | AE22: 0 | AF22: =1.2*(Køling!$J$7/3600)*AE22 -> 0 | AG22: 0 | AH22: =-1*1.2*(Køling!$J$7/3600)*AG22 -> 0 | AI22: 0 | AL22: 12 | AM22: =AD4390 -> 1803.320262 | AO22: 12 | AP22: =AJ4390 -> 1803.320262 | AR22: 25 | AS22: 30 | AT22: 30 | AU22: =IF(OR(Køling!$D$21="",Køling!$J$21="",Køling!$D$19=""),0,((Køling!$D$21-AT22)/(Køling!$D$21-Køling!$D$19))) -> 0.4 | AV22: 0 | AX22: 4.5525 | AY22: =0.5*((Køling!$D$19+273.15)/(AT22-Køling!$D$19)) -> 4.5525 | AZ22: =0.5*(($U$2+273.15)/(Køling!$D$21-$U$2)) -> 2.7315
B23: 1 | C23: 13 | D23: 1 | E23: -0.400000006 | F23: -0.400000006 | G23: 100 | H23: =(('pm1'!$B$41*Køl!E23^3)+('pm1'!$C$41*Køl!E23^2)+('pm1'!$D$41*Køl!E23)+'pm1'!$E$41)/1000 -> 0.00571799726 | I23: 0.0035308824 | J23: 8.425709901 | K23: =(('pm1'!$B$41*Køl!$H$2^3)+('pm1'!$C$41*Køl!$H$2^2)+('pm1'!$D$41*Køl!$H$2)+'pm1'!$E$41)/1000 -> 0.008964720962 | L23: 0.005553645927 | M23: 19.98764715 | N23: 3163.988237 | O23: -11.57167039 | P23: 0.008714213935 | Q23: 38.14958406 | R23: =(('pm1'!$B$41*Køl!$H$4^3)+('pm1'!$C$41*Køl!$H$4^2)+('pm1'!$D$41*Køl!$H$4)+'pm1'!$E$41)/1000 -> 0.008964720962 | S23: 0.005553645927 | T23: 19.98764715 | U23: 3163.988237 | V23: -11.57167039 | W23: 0.008714213935 | X23: 38.14958406 | Y23: 0 | Z23: =1.2*(Køling!$D$7/3600)*Y23 -> 0 | AA23: 0 | AB23: =-1*1.2*(Køling!$D$7/3600)*AA23 -> 0 | AC23: 0 | AE23: 0 | AF23: =1.2*(Køling!$J$7/3600)*AE23 -> 0 | AG23: 0 | AH23: =-1*1.2*(Køling!$J$7/3600)*AG23 -> 0 | AI23: 0 | AL23: 13 | AM23: =AD4755 -> 1979.781842 | AO23: 13 | AP23: =AJ4755 -> 1979.781842 | AR23: 25 | AS23: 30 | AT23: 30 | AU23: =IF(OR(Køling!$D$21="",Køling!$J$21="",Køling!$D$19=""),0,((Køling!$D$21-AT23)/(Køling!$D$21-Køling!$D$19))) -> 0.4 | AV23: 0 | AX23: 4.5525 | AY23: =0.5*((Køling!$D$19+273.15)/(AT23-Køling!$D$19)) -> 4.5525 | AZ23: =0.5*(($U$2+273.15)/(Køling!$D$21-$U$2)) -> 2.7315
B24: 1 | C24: 14 | D24: 1 | E24: -5 | F24: -7 | G24: 82 | H24: =(('pm1'!$B$41*Køl!E24^3)+('pm1'!$C$41*Køl!E24^2)+('pm1'!$D$41*Køl!E24)+'pm1'!$E$41)/1000 -> 0.00425642951 | I24: 0.002150498651 | J24: 0.328397488 | K24: =(('pm1'!$B$41*Køl!$H$2^3)+('pm1'!$C$41*Køl!$H$2^2)+('pm1'!$D$41*Køl!$H$2)+'pm1'!$E$41)/1000 -> 0.008964720962 | L24: 0.005553645927 | M24: 19.98764715 | N24: 3232.302074 | O24: -11.95106125 | P24: 0.008647416179 | Q24: 37.98053497 | R24: =(('pm1'!$B$41*Køl!$H$4^3)+('pm1'!$C$41*Køl!$H$4^2)+('pm1'!$D$41*Køl!$H$4)+'pm1'!$E$41)/1000 -> 0.008964720962 | S24: 0.005553645927 | T24: 19.98764715 | U24: 3232.302074 | V24: -11.95106125 | W24: 0.008647416179 | X24: 37.98053497 | Y24: 0 | Z24: =1.2*(Køling!$D$7/3600)*Y24 -> 0 | AA24: 0 | AB24: =-1*1.2*(Køling!$D$7/3600)*AA24 -> 0 | AC24: 0 | AE24: 0 | AF24: =1.2*(Køling!$J$7/3600)*AE24 -> 0 | AG24: 0 | AH24: =-1*1.2*(Køling!$J$7/3600)*AG24 -> 0 | AI24: 0 | AL24: 14 | AM24: =AD5121 -> 2113.546633 | AO24: 14 | AP24: =AJ5121 -> 2113.546633 | AR24: 25 | AS24: 30 | AT24: 30 | AU24: =IF(OR(Køling!$D$21="",Køling!$J$21="",Køling!$D$19=""),0,((Køling!$D$21-AT24)/(Køling!$D$21-Køling!$D$19))) -> 0.4 | AV24: 0 | AX24: 4.5525 | AY24: =0.5*((Køling!$D$19+273.15)/(AT24-Køling!$D$19)) -> 4.5525 | AZ24: =0.5*(($U$2+273.15)/(Køling!$D$21-$U$2)) -> 2.7315
B25: 1 | C25: 15 | D25: 1 | E25: 2.700000048 | F25: 2.700000048 | G25: 100 | H25: =(('pm1'!$B$41*Køl!E25^3)+('pm1'!$C$41*Køl!E25^2)+('pm1'!$D$41*Køl!E25)+'pm1'!$E$41)/1000 -> 0.007085524659 | I25: 0.004381283346 | J25: 13.6957925 | K25: =(('pm1'!$B$41*Køl!$H$2^3)+('pm1'!$C$41*Køl!$H$2^2)+('pm1'!$D$41*Køl!$H$2)+'pm1'!$E$41)/1000 -> 0.008964720962 | L25: 0.005553645927 | M25: 19.98764715 | N25: 2814.828794 | O25: -9.63256247 | P25: 0.009106259863 | Q25: 39.14175821 | R25: =(('pm1'!$B$41*Køl!$H$4^3)+('pm1'!$C$41*Køl!$H$4^2)+('pm1'!$D$41*Køl!$H$4)+'pm1'!$E$41)/1000 -> 0.008964720962 | S25: 0.005553645927 | T25: 19.98764715 | U25: 2814.828794 | V25: -9.63256247 | W25: 0.009106259863 | X25: 39.14175821 | Y25: 0 | Z25: =1.2*(Køling!$D$7/3600)*Y25 -> 0 | AA25: 0 | AB25: =-1*1.2*(Køling!$D$7/3600)*AA25 -> 0 | AC25: 0 | AE25: 0 | AF25: =1.2*(Køling!$J$7/3600)*AE25 -> 0 | AG25: 0 | AH25: =-1*1.2*(Køling!$J$7/3600)*AG25 -> 0 | AI25: 0 | AL25: 15 | AM25: =AD5485 -> 2232.434388 | AO25: 15 | AP25: =AJ5485 -> 2232.434388 | AR25: 25 | AS25: 30 | AT25: 30 | AU25: =IF(OR(Køling!$D$21="",Køling!$J$21="",Køling!$D$19=""),0,((Køling!$D$21-AT25)/(Køling!$D$21-Køling!$D$19))) -> 0.4 | AV25: 0 | AX25: 4.5525 | AY25: =0.5*((Køling!$D$19+273.15)/(AT25-Køling!$D$19)) -> 4.5525 | AZ25: =0.5*(($U$2+273.15)/(Køling!$D$21-$U$2)) -> 2.7315
B26: 1 | C26: 16 | D26: 1 | E26: 0.200000003 | F26: -3.599999905 | G26: 70 | H26: =(('pm1'!$B$41*Køl!E26^3)+('pm1'!$C$41*Køl!E26^2)+('pm1'!$D$41*Køl!E26)+'pm1'!$E$41)/1000 -> 0.005955787521 | I26: 0.002570450371 | J26: 6.630852588 | K26: =(('pm1'!$B$41*Køl!$H$2^3)+('pm1'!$C$41*Køl!$H$2^2)+('pm1'!$D$41*Køl!$H$2)+'pm1'!$E$41)/1000 -> 0.008964720962 | L26: 0.005553645927 | M26: 19.98764715 | N26: 1944.223866 | O26: -4.797530954 | P26: 0.01069708654 | Q26: 43.16775874 | R26: =(('pm1'!$B$41*Køl!$H$4^3)+('pm1'!$C$41*Køl!$H$4^2)+('pm1'!$D$41*Køl!$H$4)+'pm1'!$E$41)/1000 -> 0.008964720962 | S26: 0.005553645927 | T26: 19.98764715 | U26: 1944.223866 | V26: -4.797530954 | W26: 0.01069708654 | X26: 43.16775874 | Y26: 0 | Z26: =1.2*(Køling!$D$7/3600)*Y26 -> 0 | AA26: 0 | AB26: =-1*1.2*(Køling!$D$7/3600)*AA26 -> 0 | AC26: 0 | AE26: 0 | AF26: =1.2*(Køling!$J$7/3600)*AE26 -> 0 | AG26: 0 | AH26: =-1*1.2*(Køling!$J$7/3600)*AG26 -> 0 | AI26: 0 | AL26: 16 | AM26: =AD5850 -> 2050.112543 | AO26: 16 | AP26: =AJ5850 -> 2050.112543 | AR26: 25 | AS26: 30 | AT26: 30 | AU26: =IF(OR(Køling!$D$21="",Køling!$J$21="",Køling!$D$19=""),0,((Køling!$D$21-AT26)/(Køling!$D$21-Køling!$D$19))) -> 0.4 | AV26: 0 | AX26: 4.5525 | AY26: =0.5*((Køling!$D$19+273.15)/(AT26-Køling!$D$19)) -> 4.5525 | AZ26: =0.5*(($U$2+273.15)/(Køling!$D$21-$U$2)) -> 2.7315
B27: 1 | C27: 17 | D27: 1 | E27: -1.299999952 | F27: -3.299999952 | G27: 83 | H27: =(('pm1'!$B$41*Køl!E27^3)+('pm1'!$C$41*Køl!E27^2)+('pm1'!$D$41*Køl!E27)+'pm1'!$E$41)/1000 -> 0.005383540383 | I27: 0.002755795048 | J27: 5.57777995 | K27: =(('pm1'!$B$41*Køl!$H$2^3)+('pm1'!$C$41*Køl!$H$2^2)+('pm1'!$D$41*Køl!$H$2)+'pm1'!$E$41)/1000 -> 0.008964720962 | L27: 0.005553645927 | M27: 19.98764715 | N27: 2609.145471 | O27: -8.49027012 | P27: 0.009386318391 | Q27: 39.85051913 | R27: =(('pm1'!$B$41*Køl!$H$4^3)+('pm1'!$C$41*Køl!$H$4^2)+('pm1'!$D$41*Køl!$H$4)+'pm1'!$E$41)/1000 -> 0.008964720962 | S27: 0.005553645927 | T27: 19.98764715 | U27: 2609.145471 | V27: -8.49027012 | W27: 0.009386318391 | X27: 39.85051913 | Y27: 0 | Z27: =1.2*(Køling!$D$7/3600)*Y27 -> 0 | AA27: 0 | AB27: =-1*1.2*(Køling!$D$7/3600)*AA27 -> 0 | AC27: 0 | AE27: 0 | AF27: =1.2*(Køling!$J$7/3600)*AE27 -> 0 | AG27: 0 | AH27: =-1*1.2*(Køling!$J$7/3600)*AG27 -> 0 | AI27: 0 | AL27: 17 | AM27: =AD6215 -> 1809.964496 | AO27: 17 | AP27: =AJ6215 -> 1809.964496 | AR27: 25 | AS27: 30 | AT27: 30 | AU27: =IF(OR(Køling!$D$21="",Køling!$J$21="",Køling!$D$19=""),0,((Køling!$D$21-AT27)/(Køling!$D$21-Køling!$D$19))) -> 0.4 | AV27: 0 | AX27: 4.5525 | AY27: =0.5*((Køling!$D$19+273.15)/(AT27-Køling!$D$19)) -> 4.5525 | AZ27: =0.5*(($U$2+273.15)/(Køling!$D$21-$U$2)) -> 2.7315
B28: 1 | C28: 18 | D28: 1 | E28: -3.700000048 | F28: -5.699999809 | G28: 83 | H28: =(('pm1'!$B$41*Køl!E28^3)+('pm1'!$C$41*Køl!E28^2)+('pm1'!$D$41*Køl!E28)+'pm1'!$E$41)/1000 -> 0.004610767004 | I28: 0.002358717905 | J28: 2.160720735 | K28: =(('pm1'!$B$41*Køl!$H$2^3)+('pm1'!$C$41*Køl!$H$2^2)+('pm1'!$D$41*Køl!$H$2)+'pm1'!$E$41)/1000 -> 0.008964720962 | L28: 0.005553645927 | M28: 19.98764715 | N28: 3036.062152 | O28: -10.86121421 | P28: 0.008847386141 | Q28: 38.48661095 | R28: =(('pm1'!$B$41*Køl!$H$4^3)+('pm1'!$C$41*Køl!$H$4^2)+('pm1'!$D$41*Køl!$H$4)+'pm1'!$E$41)/1000 -> 0.008964720962 | S28: 0.005553645927 | T28: 19.98764715 | U28: 3036.062152 | V28: -10.86121421 | W28: 0.008847386141 | X28: 38.48661095 | Y28: 0 | Z28: =1.2*(Køling!$D$7/3600)*Y28 -> 0 | AA28: 0 | AB28: =-1*1.2*(Køling!$D$7/3600)*AA28 -> 0 | AC28: 0 | AE28: 0 | AF28: =1.2*(Køling!$J$7/3600)*AE28 -> 0 | AG28: 0 | AH28: =-1*1.2*(Køling!$J$7/3600)*AG28 -> 0 | AI28: 0 | AL28: 18 | AM28: =AD6580 -> 1495.654443 | AO28: 18 | AP28: =AJ6580 -> 1495.654443 | AR28: 25 | AS28: 30 | AT28: 30 | AU28: =IF(OR(Køling!$D$21="",Køling!$J$21="",Køling!$D$19=""),0,((Køling!$D$21-AT28)/(Køling!$D$21-Køling!$D$19))) -> 0.4 | AV28: 0 | AX28: 4.5525 | AY28: =0.5*((Køling!$D$19+273.15)/(AT28-Køling!$D$19)) -> 4.5525 | AZ28: =0.5*(($U$2+273.15)/(Køling!$D$21-$U$2)) -> 2.7315
B29: 1 | C29: 19 | D29: 1 | E29: -5.800000191 | F29: -6.800000191 | G29: 91 | H29: =(('pm1'!$B$41*Køl!E29^3)+('pm1'!$C$41*Køl!E29^2)+('pm1'!$D$41*Køl!E29)+'pm1'!$E$41)/1000 -> 0.004058051068 | I29: 0.002275757198 | J29: -0.1676823083 | K29: =(('pm1'!$B$41*Køl!$H$2^3)+('pm1'!$C$41*Køl!$H$2^2)+('pm1'!$D$41*Køl!$H$2)+'pm1'!$E$41)/1000 -> 0.008964720962 | L29: 0.005553645927 | M29: 19.98764715 | N29: 3599.878204 | O29: -13.99244893 | P29: 0.008331517687 | Q29: 37.1810717 | R29: =(('pm1'!$B$41*Køl!$H$4^3)+('pm1'!$C$41*Køl!$H$4^2)+('pm1'!$D$41*Køl!$H$4)+'pm1'!$E$41)/1000 -> 0.008964720962 | S29: 0.005553645927 | T29: 19.98764715 | U29: 3599.878204 | V29: -13.99244893 | W29: 0.008331517687 | X29: 37.1810717 | Y29: 0 | Z29: =1.2*(Køling!$D$7/3600)*Y29 -> 0 | AA29: 0 | AB29: =-1*1.2*(Køling!$D$7/3600)*AA29 -> 0 | AC29: 0 | AE29: 0 | AF29: =1.2*(Køling!$J$7/3600)*AE29 -> 0 | AG29: 0 | AH29: =-1*1.2*(Køling!$J$7/3600)*AG29 -> 0 | AI29: 0 | AL29: 19 | AM29: =AD6946 -> 1164.692454 | AO29: 19 | AP29: =AJ6946 -> 1164.692454 | AR29: 25 | AS29: 30 | AT29: 30 | AU29: =IF(OR(Køling!$D$21="",Køling!$J$21="",Køling!$D$19=""),0,((Køling!$D$21-AT29)/(Køling!$D$21-Køling!$D$19))) -> 0.4 | AV29: 0 | AX29: 4.5525 | AY29: =0.5*((Køling!$D$19+273.15)/(AT29-Køling!$D$19)) -> 4.5525 | AZ29: =0.5*(($U$2+273.15)/(Køling!$D$21-$U$2)) -> 2.7315
B30: 1 | C30: 20 | D30: 1 | E30: -2.099999905 | F30: -4.099999905 | G30: 83 | H30: =(('pm1'!$B$41*Køl!E30^3)+('pm1'!$C$41*Køl!E30^2)+('pm1'!$D$41*Køl!E30)+'pm1'!$E$41)/1000 -> 0.005107494645 | I30: 0.002613895424 | J30: 4.414542677 | K30: =(('pm1'!$B$41*Køl!$H$2^3)+('pm1'!$C$41*Køl!$H$2^2)+('pm1'!$D$41*Køl!$H$2)+'pm1'!$E$41)/1000 -> 0.008964720962 | L30: 0.005553645927 | M30: 19.98764715 | N30: 2755.335834 | O30: -9.302159634 | P30: 0.009182967579 | Q30: 39.33588703 | R30: =(('pm1'!$B$41*Køl!$H$4^3)+('pm1'!$C$41*Køl!$H$4^2)+('pm1'!$D$41*Køl!$H$4)+'pm1'!$E$41)/1000 -> 0.008964720962 | S30: 0.005553645927 | T30: 19.98764715 | U30: 2755.335834 | V30: -9.302159634 | W30: 0.009182967579 | X30: 39.33588703 | Y30: 0 | Z30: =1.2*(Køling!$D$7/3600)*Y30 -> 0 | AA30: 0 | AB30: =-1*1.2*(Køling!$D$7/3600)*AA30 -> 0 | AC30: 0 | AE30: 0 | AF30: =1.2*(Køling!$J$7/3600)*AE30 -> 0 | AG30: 0 | AH30: =-1*1.2*(Køling!$J$7/3600)*AG30 -> 0 | AI30: 0 | AL30: 20 | AM30: =AD7310 -> 849.4103636 | AO30: 20 | AP30: =AJ7310 -> 849.4103636 | AR30: 25 | AS30: 30 | AT30: 30 | AU30: =IF(OR(Køling!$D$21="",Køling!$J$21="",Køling!$D$19=""),0,((Køling!$D$21-AT30)/(Køling!$D$21-Køling!$D$19))) -> 0.4 | AV30: 0 | AX30: 4.5525 | AY30: =0.5*((Køling!$D$19+273.15)/(AT30-Køling!$D$19)) -> 4.5525 | AZ30: =0.5*(($U$2+273.15)/(Køling!$D$21-$U$2)) -> 2.7315
B31: 1 | C31: 21 | D31: 1 | E31: -9.699999809 | F31: -11.69999981 | G31: 82 | H31: =(('pm1'!$B$41*Køl!E31^3)+('pm1'!$C$41*Køl!E31^2)+('pm1'!$D$41*Køl!E31)+'pm1'!$E$41)/1000 -> 0.003265411157 | I31: 0.001648474158 | J31: -5.665107709 | K31: =(('pm1'!$B$41*Køl!$H$2^3)+('pm1'!$C$41*Køl!$H$2^2)+('pm1'!$D$41*Køl!$H$2)+'pm1'!$E$41)/1000 -> 0.008964720962 | L31: 0.005553645927 | M31: 19.98764715 | N31: 4020.309665 | O31: -16.3273764 | P31: 0.008041016511 | Q31: 36.44588295 | R31: =(('pm1'!$B$41*Køl!$H$4^3)+('pm1'!$C$41*Køl!$H$4^2)+('pm1'!$D$41*Køl!$H$4)+'pm1'!$E$41)/1000 -> 0.008964720962 | S31: 0.005553645927 | T31: 19.98764715 | U31: 4020.309665 | V31: -16.3273764 | W31: 0.008041016511 | X31: 36.44588295 | Y31: 0 | Z31: =1.2*(Køling!$D$7/3600)*Y31 -> 0 | AA31: 0 | AB31: =-1*1.2*(Køling!$D$7/3600)*AA31 -> 0 | AC31: 0 | AE31: 0 | AF31: =1.2*(Køling!$J$7/3600)*AE31 -> 0 | AG31: 0 | AH31: =-1*1.2*(Køling!$J$7/3600)*AG31 -> 0 | AI31: 0 | AL31: 21 | AM31: =AD7675 -> 518.6433994 | AO31: 21 | AP31: =AJ7675 -> 518.6433994 | AR31: 25 | AS31: 30 | AT31: 30 | AU31: =IF(OR(Køling!$D$21="",Køling!$J$21="",Køling!$D$19=""),0,((Køling!$D$21-AT31)/(Køling!$D$21-Køling!$D$19))) -> 0.4 | AV31: 0 | AX31: 4.5525 | AY31: =0.5*((Køling!$D$19+273.15)/(AT31-Køling!$D$19)) -> 4.5525 | AZ31: =0.5*(($U$2+273.15)/(Køling!$D$21-$U$2)) -> 2.7315
B32: 1 | C32: 22 | D32: 1 | E32: -5.099999905 | F32: -5.099999905 | G32: 100 | H32: =(('pm1'!$B$41*Køl!E32^3)+('pm1'!$C$41*Køl!E32^2)+('pm1'!$D$41*Køl!E32)+'pm1'!$E$41)/1000 -> 0.004230848262 | I32: 0.002608711433 | J32: 1.369041152 | K32: =(('pm1'!$B$41*Køl!$H$2^3)+('pm1'!$C$41*Køl!$H$2^2)+('pm1'!$D$41*Køl!$H$2)+'pm1'!$E$41)/1000 -> 0.008964720962 | L32: 0.005553645927 | M32: 19.98764715 | N32: 3769.183975 | O32: -14.93271323 | P32: 0.008206740089 | Q32: 36.86528955 | R32: =(('pm1'!$B$41*Køl!$H$4^3)+('pm1'!$C$41*Køl!$H$4^2)+('pm1'!$D$41*Køl!$H$4)+'pm1'!$E$41)/1000 -> 0.008964720962 | S32: 0.005553645927 | T32: 19.98764715 | U32: 3769.183975 | V32: -14.93271323 | W32: 0.008206740089 | X32: 36.86528955 | Y32: 0 | Z32: =1.2*(Køling!$D$7/3600)*Y32 -> 0 | AA32: 0 | AB32: =-1*1.2*(Køling!$D$7/3600)*AA32 -> 0 | AC32: 0 | AE32: 0 | AF32: =1.2*(Køling!$J$7/3600)*AE32 -> 0 | AG32: 0 | AH32: =-1*1.2*(Køling!$J$7/3600)*AG32 -> 0 | AI32: 0 | AL32: 22 | AM32: =AD8040 -> 320.7051928 | AO32: 22 | AP32: =AJ8040 -> 320.7051928 | AR32: 25 | AS32: 30 | AT32: 30 | AU32: =IF(OR(Køling!$D$21="",Køling!$J$21="",Køling!$D$19=""),0,((Køling!$D$21-AT32)/(Køling!$D$21-Køling!$D$19))) -> 0.4 | AV32: 0 | AX32: 4.5525 | AY32: =0.5*((Køling!$D$19+273.15)/(AT32-Køling!$D$19)) -> 4.5525 | AZ32: =0.5*(($U$2+273.15)/(Køling!$D$21-$U$2)) -> 2.7315
B33: 1 | C33: 23 | D33: 1 | E33: 1.600000024 | F33: 1.600000024 | G33: 100 | H33: =(('pm1'!$B$41*Køl!E33^3)+('pm1'!$C$41*Køl!E33^2)+('pm1'!$D$41*Køl!E33)+'pm1'!$E$41)/1000 -> 0.006559704398 | I33: 0.004054027003 | J33: 11.76078634 | K33: =(('pm1'!$B$41*Køl!$H$2^3)+('pm1'!$C$41*Køl!$H$2^2)+('pm1'!$D$41*Køl!$H$2)+'pm1'!$E$41)/1000 -> 0.008964720962 | L33: 0.005553645927 | M33: 19.98764715 | N33: 2934.078722 | O33: -10.29483434 | P33: 0.008961870773 | Q33: 38.77634408 | R33: =(('pm1'!$B$41*Køl!$H$4^3)+('pm1'!$C$41*Køl!$H$4^2)+('pm1'!$D$41*Køl!$H$4)+'pm1'!$E$41)/1000 -> 0.008964720962 | S33: 0.005553645927 | T33: 19.98764715 | U33: 2934.078722 | V33: -10.29483434 | W33: 0.008961870773 | X33: 38.77634408 | Y33: 0 | Z33: =1.2*(Køling!$D$7/3600)*Y33 -> 0 | AA33: 0 | AB33: =-1*1.2*(Køling!$D$7/3600)*AA33 -> 0 | AC33: 0 | AE33: 0 | AF33: =1.2*(Køling!$J$7/3600)*AE33 -> 0 | AG33: 0 | AH33: =-1*1.2*(Køling!$J$7/3600)*AG33 -> 0 | AI33: 0 | AL33: 23 | AM33: =AD8405 -> 192.4643189 | AO33: 23 | AP33: =AJ8405 -> 192.4643189 | AR33: 25 | AS33: 30 | AT33: 30 | AU33: =IF(OR(Køling!$D$21="",Køling!$J$21="",Køling!$D$19=""),0,((Køling!$D$21-AT33)/(Køling!$D$21-Køling!$D$19))) -> 0.4 | AV33: 0 | AX33: 4.5525 | AY33: =0.5*((Køling!$D$19+273.15)/(AT33-Køling!$D$19)) -> 4.5525 | AZ33: =0.5*(($U$2+273.15)/(Køling!$D$21-$U$2)) -> 2.7315
B34: 1 | C34: 24 | D34: 1 | E34: 3 | F34: 3 | G34: 100 | H34: =(('pm1'!$B$41*Køl!E34^3)+('pm1'!$C$41*Køl!E34^2)+('pm1'!$D$41*Køl!E34)+'pm1'!$E$41)/1000 -> 0.007237197277 | I34: 0.004475743877 | J34: 14.23681009 | K34: =(('pm1'!$B$41*Køl!$H$2^3)+('pm1'!$C$41*Køl!$H$2^2)+('pm1'!$D$41*Køl!$H$2)+'pm1'!$E$41)/1000 -> 0.008964720962 | L34: 0.005553645927 | M34: 19.98764715 | N34: 2783.184242 | O34: -9.456819831 | P34: 0.009146652761 | Q34: 39.24398294 | R34: =(('pm1'!$B$41*Køl!$H$4^3)+('pm1'!$C$41*Køl!$H$4^2)+('pm1'!$D$41*Køl!$H$4)+'pm1'!$E$41)/1000 -> 0.008964720962 | S34: 0.005553645927 | T34: 19.98764715 | U34: 2783.184242 | V34: -9.456819831 | W34: 0.009146652761 | X34: 39.24398294 | Y34: 0 | Z34: =1.2*(Køling!$D$7/3600)*Y34 -> 0 | AA34: 0 | AB34: =-1*1.2*(Køling!$D$7/3600)*AA34 -> 0 | AC34: 0 | AE34: 0 | AF34: =1.2*(Køling!$J$7/3600)*AE34 -> 0 | AG34: 0 | AH34: =-1*1.2*(Køling!$J$7/3600)*AG34 -> 0 | AI34: 0 | AL34: 24 | AM34: =AD8770 -> 127.588777 | AO34: 24 | AP34: =AJ8770 -> 127.588777 | AR34: 25 | AS34: 30 | AT34: 30 | AU34: =IF(OR(Køling!$D$21="",Køling!$J$21="",Køling!$D$19=""),0,((Køling!$D$21-AT34)/(Køling!$D$21-Køling!$D$19))) -> 0.4 | AV34: 0 | AX34: 4.5525 | AY34: =0.5*((Køling!$D$19+273.15)/(AT34-Køling!$D$19)) -> 4.5525 | AZ34: =0.5*(($U$2+273.15)/(Køling!$D$21-$U$2)) -> 2.7315
B35: 1 | C35: 25 | D35: 1 | E35: 2.700000048 | F35: 2.700000048 | G35: 100 | H35: =(('pm1'!$B$41*Køl!E35^3)+('pm1'!$C$41*Køl!E35^2)+('pm1'!$D$41*Køl!E35)+'pm1'!$E$41)/1000 -> 0.007085524659 | I35: 0.004381283346 | J35: 13.6957925 | K35: =(('pm1'!$B$41*Køl!$H$2^3)+('pm1'!$C$41*Køl!$H$2^2)+('pm1'!$D$41*Køl!$H$2)+'pm1'!$E$41)/1000 -> 0.008964720962 | L35: 0.005553645927 | M35: 19.98764715 | N35: 2814.828794 | O35: -9.63256247 | P35: 0.009106259863 | Q35: 39.14175821 | R35: =(('pm1'!$B$41*Køl!$H$4^3)+('pm1'!$C$41*Køl!$H$4^2)+('pm1'!$D$41*Køl!$H$4)+'pm1'!$E$41)/1000 -> 0.008964720962 | S35: 0.005553645927 | T35: 19.98764715 | U35: 2814.828794 | V35: -9.63256247 | W35: 0.009106259863 | X35: 39.14175821 | Y35: 0 | Z35: =1.2*(Køling!$D$7/3600)*Y35 -> 0 | AA35: 0 | AB35: =-1*1.2*(Køling!$D$7/3600)*AA35 -> 0 | AC35: 0 | AE35: 0 | AF35: =1.2*(Køling!$J$7/3600)*AE35 -> 0 | AG35: 0 | AH35: =-1*1.2*(Køling!$J$7/3600)*AG35 -> 0 | AI35: 0 | AR35: 25 | AS35: 30 | AT35: 30 | AU35: =IF(OR(Køling!$D$21="",Køling!$J$21="",Køling!$D$19=""),0,((Køling!$D$21-AT35)/(Køling!$D$21-Køling!$D$19))) -> 0.4 | AV35: 0 | AX35: 4.5525 | AY35: =0.5*((Køling!$D$19+273.15)/(AT35-Køling!$D$19)) -> 4.5525 | AZ35: =0.5*(($U$2+273.15)/(Køling!$D$21-$U$2)) -> 2.7315
B36: 1 | C36: 26 | D36: 1 | E36: 0.6000000238 | F36: -6.400000095 | G36: 52 | H36: =(('pm1'!$B$41*Køl!E36^3)+('pm1'!$C$41*Køl!E36^2)+('pm1'!$D$41*Køl!E36)+'pm1'!$E$41)/1000 -> 0.006121178511 | I36: 0.001960586921 | J36: 5.509215928 | K36: =(('pm1'!$B$41*Køl!$H$2^3)+('pm1'!$C$41*Køl!$H$2^2)+('pm1'!$D$41*Køl!$H$2)+'pm1'!$E$41)/1000 -> 0.008964720962 | L36: 0.005553645927 | M36: 19.98764715 | N36: 1502.897661 | O36: -2.346561473 | P36: 0.01220745893 | Q36: 46.99014877 | R36: =(('pm1'!$B$41*Køl!$H$4^3)+('pm1'!$C$41*Køl!$H$4^2)+('pm1'!$D$41*Køl!$H$4)+'pm1'!$E$41)/1000 -> 0.008964720962 | S36: 0.005553645927 | T36: 19.98764715 | U36: 1502.897661 | V36: -2.346561473 | W36: 0.01220745893 | X36: 46.99014877 | Y36: 0 | Z36: =1.2*(Køling!$D$7/3600)*Y36 -> 0 | AA36: 0 | AB36: =-1*1.2*(Køling!$D$7/3600)*AA36 -> 0 | AC36: 0 | AE36: 0 | AF36: =1.2*(Køling!$J$7/3600)*AE36 -> 0 | AG36: 0 | AH36: =-1*1.2*(Køling!$J$7/3600)*AG36 -> 0 | AI36: 0 | AM36: =SUM(AM11:AM35) -> 21302.16682 | AP36: =SUM(AP11:AP35) -> 21302.16682 | AR36: 25 | AS36: 30 | AT36: 30 | AU36: =IF(OR(Køling!$D$21="",Køling!$J$21="",Køling!$D$19=""),0,((Køling!$D$21-AT36)/(Køling!$D$21-Køling!$D$19))) -> 0.4 | AV36: 0 | AX36: 4.5525 | AY36: =0.5*((Køling!$D$19+273.15)/(AT36-Køling!$D$19)) -> 4.5525 | AZ36: =0.5*(($U$2+273.15)/(Køling!$D$21-$U$2)) -> 2.7315
B37: 1 | C37: 27 | D37: 1 | E37: -3.799999952 | F37: -5.800000191 | G37: 83 | H37: =(('pm1'!$B$41*Køl!E37^3)+('pm1'!$C$41*Køl!E37^2)+('pm1'!$D$41*Køl!E37)+'pm1'!$E$41)/1000 -> 0.004582017145 | I37: 0.002343954991 | J37: 2.022864408 | K37: =(('pm1'!$B$41*Køl!$H$2^3)+('pm1'!$C$41*Køl!$H$2^2)+('pm1'!$D$41*Køl!$H$2)+'pm1'!$E$41)/1000 -> 0.008964720962 | L37: 0.005553645927 | M37: 19.98764715 | N37: 3053.253459 | O37: -10.95668864 | P37: 0.008828840776 | Q37: 38.43967708 | R37: =(('pm1'!$B$41*Køl!$H$4^3)+('pm1'!$C$41*Køl!$H$4^2)+('pm1'!$D$41*Køl!$H$4)+'pm1'!$E$41)/1000 -> 0.008964720962 | S37: 0.005553645927 | T37: 19.98764715 | U37: 3053.253459 | V37: -10.95668864 | W37: 0.008828840776 | X37: 38.43967708 | Y37: 0 | Z37: =1.2*(Køling!$D$7/3600)*Y37 -> 0 | AA37: 0 | AB37: =-1*1.2*(Køling!$D$7/3600)*AA37 -> 0 | AC37: 0 | AE37: 0 | AF37: =1.2*(Køling!$J$7/3600)*AE37 -> 0 | AG37: 0 | AH37: =-1*1.2*(Køling!$J$7/3600)*AG37 -> 0 | AI37: 0 | AR37: 25 | AS37: 30 | AT37: 30 | AU37: =IF(OR(Køling!$D$21="",Køling!$J$21="",Køling!$D$19=""),0,((Køling!$D$21-AT37)/(Køling!$D$21-Køling!$D$19))) -> 0.4 | AV37: 0 | AX37: 4.5525 | AY37: =0.5*((Køling!$D$19+273.15)/(AT37-Køling!$D$19)) -> 4.5525 | AZ37: =0.5*(($U$2+273.15)/(Køling!$D$21-$U$2)) -> 2.7315
B38: 1 | C38: 28 | D38: 1 | E38: 3 | F38: 2 | G38: 93 | H38: =(('pm1'!$B$41*Køl!E38^3)+('pm1'!$C$41*Køl!E38^2)+('pm1'!$D$41*Køl!E38)+'pm1'!$E$41)/1000 -> 0.007237197277 | I38: 0.004160346235 | J38: 13.44624067 | K38: =(('pm1'!$B$41*Køl!$H$2^3)+('pm1'!$C$41*Køl!$H$2^2)+('pm1'!$D$41*Køl!$H$2)+'pm1'!$E$41)/1000 -> 0.008964720962 | L38: 0.005553645927 | M38: 19.98764715 | N38: 2153.162034 | O38: -5.957899564 | P38: 0.01019797823 | Q38: 41.9046354 | R38: =(('pm1'!$B$41*Køl!$H$4^3)+('pm1'!$C$41*Køl!$H$4^2)+('pm1'!$D$41*Køl!$H$4)+'pm1'!$E$41)/1000 -> 0.008964720962 | S38: 0.005553645927 | T38: 19.98764715 | U38: 2153.162034 | V38: -5.957899564 | W38: 0.01019797823 | X38: 41.9046354 | Y38: 0 | Z38: =1.2*(Køling!$D$7/3600)*Y38 -> 0 | AA38: 0 | AB38: =-1*1.2*(Køling!$D$7/3600)*AA38 -> 0 | AC38: 0 | AE38: 0 | AF38: =1.2*(Køling!$J$7/3600)*AE38 -> 0 | AG38: 0 | AH38: =-1*1.2*(Køling!$J$7/3600)*AG38 -> 0 | AI38: 0 | AR38: 25 | AS38: 30 | AT38: 30 | AU38: =IF(OR(Køling!$D$21="",Køling!$J$21="",Køling!$D$19=""),0,((Køling!$D$21-AT38)/(Køling!$D$21-Køling!$D$19))) -> 0.4 | AV38: 0 | AX38: 4.5525 | AY38: =0.5*((Køling!$D$19+273.15)/(AT38-Køling!$D$19)) -> 4.5525 | AZ38: =0.5*(($U$2+273.15)/(Køling!$D$21-$U$2)) -> 2.7315
B39: 1 | C39: 29 | D39: 1 | E39: 3.099999905 | F39: 3.099999905 | G39: 100 | H39: =(('pm1'!$B$41*Køl!E39^3)+('pm1'!$C$41*Køl!E39^2)+('pm1'!$D$41*Køl!E39)+'pm1'!$E$41)/1000 -> 0.007288564062 | I39: 0.004507741171 | J39: 14.41845221 | K39: =(('pm1'!$B$41*Køl!$H$2^3)+('pm1'!$C$41*Køl!$H$2^2)+('pm1'!$D$41*Køl!$H$2)+'pm1'!$E$41)/1000 -> 0.008964720962 | L39: 0.005553645927 | M39: 19.98764715 | N39: 2772.719101 | O39: -9.398700144 | P39: 0.009160213933 | Q39: 39.27830301 | R39: =(('pm1'!$B$41*Køl!$H$4^3)+('pm1'!$C$41*Køl!$H$4^2)+('pm1'!$D$41*Køl!$H$4)+'pm1'!$E$41)/1000 -> 0.008964720962 | S39: 0.005553645927 | T39: 19.98764715 | U39: 2772.719101 | V39: -9.398700144 | W39: 0.009160213933 | X39: 39.27830301 | Y39: 0 | Z39: =1.2*(Køling!$D$7/3600)*Y39 -> 0 | AA39: 0 | AB39: =-1*1.2*(Køling!$D$7/3600)*AA39 -> 0 | AC39: 0 | AE39: 0 | AF39: =1.2*(Køling!$J$7/3600)*AE39 -> 0 | AG39: 0 | AH39: =-1*1.2*(Køling!$J$7/3600)*AG39 -> 0 | AI39: 0 | AL39: =IF($K$2=0,0,IF($K$2=1,$AM$11,IF($K$2=2,SUM($AM$11:$AM$12),IF($K$2=3,SUM($AM$11:$AM$13),IF($K$2=4,SUM($AM$11:$AM$14),IF($K$2=5,SUM($AM$11:$AM$15),IF($K$2=6,SUM($AM$11:$AM$16)))))))) -> 0 | AM39: =IF($K$2=7,SUM($AM$11:$AM$17),IF($K$2=8,SUM($AM$11:$AM$18),IF($K$2=9,SUM($AM$11:$AM$19),IF($K$2=10,SUM($AM$11:$AM$20),IF($K$2=11,SUM($AM$11:$AM$21),IF($K$2=12,SUM($AM$11:$AM$22),IF($K$2=13,SUM($AM$11:$AM$23)))))))) -> FALSE | AN39: =IF($K$2=14,SUM($AM$11:$AM$24),IF($K$2=15,SUM($AM$11:$AM$25),IF($K$2=16,SUM($AM$11:$AM$26),IF($K$2=17,SUM($AM$11:$AM$27),IF($K$2=18,SUM($AM$11:$AM$28),IF($K$2=19,SUM($AM$11:$AM$29),IF($K$2=20,SUM($AM$11:$AM$30)))))))) -> FALSE | AO39: =IF($K$2=21,SUM($AM$11:$AM$31),IF($K$2=22,SUM($AM$11:$AM$32),IF($K$2=23,SUM($AM$11:$AM$33),IF($K$2=24,SUM($AM$11:$AM$34))))) -> FALSE | AP39: =SUM(AL39:AO39) -> 0 | AR39: 25 | AS39: 30 | AT39: 30 | AU39: =IF(OR(Køling!$D$21="",Køling!$J$21="",Køling!$D$19=""),0,((Køling!$D$21-AT39)/(Køling!$D$21-Køling!$D$19))) -> 0.4 | AV39: 0 | AX39: 4.5525 | AY39: =0.5*((Køling!$D$19+273.15)/(AT39-Køling!$D$19)) -> 4.5525 | AZ39: =0.5*(($U$2+273.15)/(Køling!$D$21-$U$2)) -> 2.7315
B40: 1 | C40: 30 | D40: 1 | E40: 4.800000191 | F40: 3.799999952 | G40: 93 | H40: =(('pm1'!$B$41*Køl!E40^3)+('pm1'!$C$41*Køl!E40^2)+('pm1'!$D$41*Køl!E40)+'pm1'!$E$41)/1000 -> 0.008226060701 | I40: 0.004733125968 | J40: 16.70860559 | K40: =(('pm1'!$B$41*Køl!$H$2^3)+('pm1'!$C$41*Køl!$H$2^2)+('pm1'!$D$41*Køl!$H$2)+'pm1'!$E$41)/1000 -> 0.008964720962 | L40: 0.005553645927 | M40: 19.98764715 | N40: 1462.487043 | O40: -2.12213521 | P40: 0.01239131334 | Q40: 47.45544016 | R40: =(('pm1'!$B$41*Køl!$H$4^3)+('pm1'!$C$41*Køl!$H$4^2)+('pm1'!$D$41*Køl!$H$4)+'pm1'!$E$41)/1000 -> 0.008964720962 | S40: 0.005553645927 | T40: 19.98764715 | U40: 1462.487043 | V40: -2.12213521 | W40: 0.01239131334 | X40: 47.45544016 | Y40: 0 | Z40: =1.2*(Køling!$D$7/3600)*Y40 -> 0 | AA40: 0 | AB40: =-1*1.2*(Køling!$D$7/3600)*AA40 -> 0 | AC40: 0 | AE40: 0 | AF40: =1.2*(Køling!$J$7/3600)*AE40 -> 0 | AG40: 0 | AH40: =-1*1.2*(Køling!$J$7/3600)*AG40 -> 0 | AI40: 0 | AR40: 25 | AS40: 30 | AT40: 30 | AU40: =IF(OR(Køling!$D$21="",Køling!$J$21="",Køling!$D$19=""),0,((Køling!$D$21-AT40)/(Køling!$D$21-Køling!$D$19))) -> 0.4 | AV40: 0 | AX40: 4.5525 | AY40: =0.5*((Køling!$D$19+273.15)/(AT40-Køling!$D$19)) -> 4.5525 | AZ40: =0.5*(($U$2+273.15)/(Køling!$D$21-$U$2)) -> 2.7315
B41: 1 | C41: 31 | D41: 1 | E41: 6.699999809 | F41: 6.699999809 | G41: 100 | H41: =(('pm1'!$B$41*Køl!E41^3)+('pm1'!$C$41*Køl!E41^2)+('pm1'!$D$41*Køl!E41)+'pm1'!$E$41)/1000 -> 0.009426746211 | I41: 0.005842559196 | J41: 21.42525033 | K41: =(('pm1'!$B$41*Køl!$H$2^3)+('pm1'!$C$41*Køl!$H$2^2)+('pm1'!$D$41*Køl!$H$2)+'pm1'!$E$41)/1000 -> 0.008964720962 | L41: 0.005553645927 | M41: 19.98764715 | N41: 2422.871789 | O41: -7.455772046 | P41: 0.009680979467 | Q41: 40.5962356 | R41: =(('pm1'!$B$41*Køl!$H$4^3)+('pm1'!$C$41*Køl!$H$4^2)+('pm1'!$D$41*Køl!$H$4)+'pm1'!$E$41)/1000 -> 0.008964720962 | S41: 0.005553645927 | T41: 19.98764715 | U41: 2422.871789 | V41: -7.455772046 | W41: 0.009680979467 | X41: 40.5962356 | Y41: 0 | Z41: =1.2*(Køling!$D$7/3600)*Y41 -> 0 | AA41: 0 | AB41: =-1*1.2*(Køling!$D$7/3600)*AA41 -> 0 | AC41: 0 | AE41: 0 | AF41: =1.2*(Køling!$J$7/3600)*AE41 -> 0 | AG41: 0 | AH41: =-1*1.2*(Køling!$J$7/3600)*AG41 -> 0 | AI41: 0 | AL41: =IF($N$2=0,0,IF($N$2=1,$AM$11,IF($N$2=2,SUM($AM$11:$AM$12),IF($N$2=3,SUM($AM$11:$AM$13),IF($N$2=4,SUM($AM$11:$AM$14),IF($N$2=5,SUM($AM$11:$AM$15),IF($N$2=6,SUM($AM$11:$AM$16)))))))) -> FALSE | AM41: =IF($N$2=7,SUM($AM$11:$AM$17),IF($N$2=8,SUM($AM$11:$AM$18),IF($N$2=9,SUM($AM$11:$AM$19),IF($N$2=10,SUM($AM$11:$AM$20),IF($N$2=11,SUM($AM$11:$AM$21),IF($N$2=12,SUM($AM$11:$AM$22),IF($N$2=13,SUM($AM$11:$AM$23)))))))) -> FALSE | AN41: =IF($N$2=14,SUM($AM$11:$AM$24),IF($N$2=15,SUM($AM$11:$AM$25),IF($N$2=16,SUM($AM$11:$AM$26),IF($N$2=17,SUM($AM$11:$AM$27),IF($N$2=18,SUM($AM$11:$AM$28),IF($N$2=19,SUM($AM$11:$AM$29),IF($N$2=20,SUM($AM$11:$AM$30)))))))) -> FALSE | AO41: =IF($N$2=21,SUM($AM$11:$AM$31),IF($N$2=22,SUM($AM$11:$AM$32),IF($N$2=23,SUM($AM$11:$AM$33),IF($N$2=24,SUM($AM$11:$AM$34))))) -> 21302.16682 | AP41: =SUM(AL41:AO41) -> 21302.16682 | AR41: 25 | AS41: 30 | AT41: 30 | AU41: =IF(OR(Køling!$D$21="",Køling!$J$21="",Køling!$D$19=""),0,((Køling!$D$21-AT41)/(Køling!$D$21-Køling!$D$19))) -> 0.4 | AV41: 0 | AX41: 4.5525 | AY41: =0.5*((Køling!$D$19+273.15)/(AT41-Køling!$D$19)) -> 4.5525 | AZ41: =0.5*(($U$2+273.15)/(Køling!$D$21-$U$2)) -> 2.7315
B42: 2 | C42: 1 | D42: 1 | E42: -3.700000048 | F42: -4.800000191 | G42: 90 | H42: =(('pm1'!$B$41*Køl!E42^3)+('pm1'!$C$41*Køl!E42^2)+('pm1'!$D$41*Køl!E42)+'pm1'!$E$41)/1000 -> 0.004610767004 | I42: 0.002558464169 | J42: 2.658911487 | K42: =(('pm1'!$B$41*Køl!$H$2^3)+('pm1'!$C$41*Køl!$H$2^2)+('pm1'!$D$41*Køl!$H$2)+'pm1'!$E$41)/1000 -> 0.008964720962 | L42: 0.005553645927 | M42: 19.98764715 | N42: 3238.534697 | O42: -11.98567503 | P42: 0.008641462158 | Q42: 37.96546677 | R42: =(('pm1'!$B$41*Køl!$H$4^3)+('pm1'!$C$41*Køl!$H$4^2)+('pm1'!$D$41*Køl!$H$4)+'pm1'!$E$41)/1000 -> 0.008964720962 | S42: 0.005553645927 | T42: 19.98764715 | U42: 3238.534697 | V42: -11.98567503 | W42: 0.008641462158 | X42: 37.96546677 | Y42: 0 | Z42: =1.2*(Køling!$D$7/3600)*Y42 -> 0 | AA42: 0 | AB42: =-1*1.2*(Køling!$D$7/3600)*AA42 -> 0 | AC42: 0 | AE42: 0 | AF42: =1.2*(Køling!$J$7/3600)*AE42 -> 0 | AG42: 0 | AH42: =-1*1.2*(Køling!$J$7/3600)*AG42 -> 0 | AI42: 0 | AR42: 25 | AS42: 30 | AT42: 30 | AU42: =IF(OR(Køling!$D$21="",Køling!$J$21="",Køling!$D$19=""),0,((Køling!$D$21-AT42)/(Køling!$D$21-Køling!$D$19))) -> 0.4 | AV42: 0 | AX42: 4.5525 | AY42: =0.5*((Køling!$D$19+273.15)/(AT42-Køling!$D$19)) -> 4.5525 | AZ42: =0.5*(($U$2+273.15)/(Køling!$D$21-$U$2)) -> 2.7315
B43: 2 | C43: 2 | D43: 1 | E43: -2.400000095 | F43: -4.300000191 | G43: 84 | H43: =(('pm1'!$B$41*Køl!E43^3)+('pm1'!$C$41*Køl!E43^2)+('pm1'!$D$41*Køl!E43)+'pm1'!$E$41)/1000 -> 0.005008892143 | I43: 0.002594236067 | J43: 4.062203637 | K43: =(('pm1'!$B$41*Køl!$H$2^3)+('pm1'!$C$41*Køl!$H$2^2)+('pm1'!$D$41*Køl!$H$2)+'pm1'!$E$41)/1000 -> 0.008964720962 | L43: 0.005553645927 | M43: 19.98764715 | N43: 2838.403766 | O43: -9.763489518 | P43: 0.009076752865 | Q43: 39.06708308 | R43: =(('pm1'!$B$41*Køl!$H$4^3)+('pm1'!$C$41*Køl!$H$4^2)+('pm1'!$D$41*Køl!$H$4)+'pm1'!$E$41)/1000 -> 0.008964720962 | S43: 0.005553645927 | T43: 19.98764715 | U43: 2838.403766 | V43: -9.763489518 | W43: 0.009076752865 | X43: 39.06708308 | Y43: 0 | Z43: =1.2*(Køling!$D$7/3600)*Y43 -> 0 | AA43: 0 | AB43: =-1*1.2*(Køling!$D$7/3600)*AA43 -> 0 | AC43: 0 | AE43: 0 | AF43: =1.2*(Køling!$J$7/3600)*AE43 -> 0 | AG43: 0 | AH43: =-1*1.2*(Køling!$J$7/3600)*AG43 -> 0 | AI43: 0 | AP43: =(AP41-AP39)*(Q2/7) -> 21302.16682 | AR43: 25 | AS43: 30 | AT43: 30 | AU43: =IF(OR(Køling!$D$21="",Køling!$J$21="",Køling!$D$19=""),0,((Køling!$D$21-AT43)/(Køling!$D$21-Køling!$D$19))) -> 0.4 | AV43: 0 | AX43: 4.5525 | AY43: =0.5*((Køling!$D$19+273.15)/(AT43-Køling!$D$19)) -> 4.5525 | AZ43: =0.5*(($U$2+273.15)/(Køling!$D$21-$U$2)) -> 2.7315
B44: 2 | C44: 3 | D44: 1 | E44: -3 | F44: -4.900000095 | G44: 83 | H44: =(('pm1'!$B$41*Køl!E44^3)+('pm1'!$C$41*Køl!E44^2)+('pm1'!$D$41*Køl!E44)+'pm1'!$E$41)/1000 -> 0.004819393854 | I44: 0.002465867701 | J44: 3.135375577 | K44: =(('pm1'!$B$41*Køl!$H$2^3)+('pm1'!$C$41*Køl!$H$2^2)+('pm1'!$D$41*Køl!$H$2)+'pm1'!$E$41)/1000 -> 0.008964720962 | L44: 0.005553645927 | M44: 19.98764715 | N44: 2914.7171 | O44: -10.18730675 | P44: 0.008984510624 | Q44: 38.83364011 | R44: =(('pm1'!$B$41*Køl!$H$4^3)+('pm1'!$C$41*Køl!$H$4^2)+('pm1'!$D$41*Køl!$H$4)+'pm1'!$E$41)/1000 -> 0.008964720962 | S44: 0.005553645927 | T44: 19.98764715 | U44: 2914.7171 | V44: -10.18730675 | W44: 0.008984510624 | X44: 38.83364011 | Y44: 0 | Z44: =1.2*(Køling!$D$7/3600)*Y44 -> 0 | AA44: 0 | AB44: =-1*1.2*(Køling!$D$7/3600)*AA44 -> 0 | AC44: 0 | AE44: 0 | AF44: =1.2*(Køling!$J$7/3600)*AE44 -> 0 | AG44: 0 | AH44: =-1*1.2*(Køling!$J$7/3600)*AG44 -> 0 | AI44: 0 | AR44: 25 | AS44: 30 | AT44: 30 | AU44: =IF(OR(Køling!$D$21="",Køling!$J$21="",Køling!$D$19=""),0,((Køling!$D$21-AT44)/(Køling!$D$21-Køling!$D$19))) -> 0.4 | AV44: 0 | AX44: 4.5525 | AY44: =0.5*((Køling!$D$19+273.15)/(AT44-Køling!$D$19)) -> 4.5525 | AZ44: =0.5*(($U$2+273.15)/(Køling!$D$21-$U$2)) -> 2.7315
B45: 2 | C45: 4 | D45: 1 | E45: -4.599999905 | F45: -5.599999905 | G45: 91 | H45: =(('pm1'!$B$41*Køl!E45^3)+('pm1'!$C$41*Køl!E45^2)+('pm1'!$D$41*Køl!E45)+'pm1'!$E$41)/1000 -> 0.004361082314 | I45: 0.002446365668 | J45: 1.469829527 | K45: =(('pm1'!$B$41*Køl!$H$2^3)+('pm1'!$C$41*Køl!$H$2^2)+('pm1'!$D$41*Køl!$H$2)+'pm1'!$E$41)/1000 -> 0.008964720962 | L45: 0.005553645927 | M45: 19.98764715 | N45: 3411.343368 | O45: -12.9453932 | P45: 0.008485042425 | Q45: 37.56960597 | R45: =(('pm1'!$B$41*Køl!$H$4^3)+('pm1'!$C$41*Køl!$H$4^2)+('pm1'!$D$41*Køl!$H$4)+'pm1'!$E$41)/1000 -> 0.008964720962 | S45: 0.005553645927 | T45: 19.98764715 | U45: 3411.343368 | V45: -12.9453932 | W45: 0.008485042425 | X45: 37.56960597 | Y45: 0 | Z45: =1.2*(Køling!$D$7/3600)*Y45 -> 0 | AA45: 0 | AB45: =-1*1.2*(Køling!$D$7/3600)*AA45 -> 0 | AC45: 0 | AE45: 0 | AF45: =1.2*(Køling!$J$7/3600)*AE45 -> 0 | AG45: 0 | AH45: =-1*1.2*(Køling!$J$7/3600)*AG45 -> 0 | AI45: 0 | AR45: 25 | AS45: 30 | AT45: 30 | AU45: =IF(OR(Køling!$D$21="",Køling!$J$21="",Køling!$D$19=""),0,((Køling!$D$21-AT45)/(Køling!$D$21-Køling!$D$19))) -> 0.4 | AV45: 0 | AX45: 4.5525 | AY45: =0.5*((Køling!$D$19+273.15)/(AT45-Køling!$D$19)) -> 4.5525 | AZ45: =0.5*(($U$2+273.15)/(Køling!$D$21-$U$2)) -> 2.7315
B46: 2 | C46: 5 | D46: 1 | E46: -3 | F46: -5 | G46: 83 | H46: =(('pm1'!$B$41*Køl!E46^3)+('pm1'!$C$41*Køl!E46^2)+('pm1'!$D$41*Køl!E46)+'pm1'!$E$41)/1000 -> 0.004819393854 | I46: 0.002465867701 | J46: 3.135375577 | K46: =(('pm1'!$B$41*Køl!$H$2^3)+('pm1'!$C$41*Køl!$H$2^2)+('pm1'!$D$41*Køl!$H$2)+'pm1'!$E$41)/1000 -> 0.008964720962 | L46: 0.005553645927 | M46: 19.98764715 | N46: 2914.7171 | O46: -10.18730675 | P46: 0.008984510624 | Q46: 38.83364011 | R46: =(('pm1'!$B$41*Køl!$H$4^3)+('pm1'!$C$41*Køl!$H$4^2)+('pm1'!$D$41*Køl!$H$4)+'pm1'!$E$41)/1000 -> 0.008964720962 | S46: 0.005553645927 | T46: 19.98764715 | U46: 2914.7171 | V46: -10.18730675 | W46: 0.008984510624 | X46: 38.83364011 | Y46: 0 | Z46: =1.2*(Køling!$D$7/3600)*Y46 -> 0 | AA46: 0 | AB46: =-1*1.2*(Køling!$D$7/3600)*AA46 -> 0 | AC46: 0 | AE46: 0 | AF46: =1.2*(Køling!$J$7/3600)*AE46 -> 0 | AG46: 0 | AH46: =-1*1.2*(Køling!$J$7/3600)*AG46 -> 0 | AI46: 0 | AL46: =IF($K$4=0,0,IF($K$4=1,$AP$11,IF($K$4=2,SUM($AP$11:$AP$12),IF($K$4=3,SUM($AP$11:$AP$13),IF($K$4=4,SUM($AP$11:$AP$14),IF($K$4=5,SUM($AP$11:$AP$15),IF($K$4=6,SUM($AP$11:$AP$16)))))))) -> 0 | AM46: =IF($K$4=7,SUM($AP$11:$AP$17),IF($K$4=8,SUM($AP$11:$AP$18),IF($K$4=9,SUM($AP$11:$AP$19),IF($K$4=10,SUM($AP$11:$AP$20),IF($K$4=11,SUM($AP$11:$AP$21),IF($K$4=12,SUM($AP$11:$AP$22),IF($K$4=13,SUM($AP$11:$AP$23)))))))) -> FALSE | AN46: =IF($K$4=14,SUM($AP$11:$AP$24),IF($K$4=15,SUM($AP$11:$AP$25),IF($K$4=16,SUM($AP$11:$AP$26),IF($K$4=17,SUM($AP$11:$AP$27),IF($K$4=18,SUM($AP$11:$AP$28),IF($K$4=19,SUM($AP$11:$AP$29),IF($K$4=20,SUM($AP$11:$AP$30)))))))) -> FALSE | AO46: =IF($K$4=21,SUM($AP$11:$AP$31),IF($K$4=22,SUM($AP$11:$AP$32),IF($K$4=23,SUM($AP$11:$AP$33),IF($K$4=24,SUM($AP$11:$AP$34))))) -> FALSE | AP46: =SUM(AL46:AO46) -> 0 | AR46: 25 | AS46: 30 | AT46: 30 | AU46: =IF(OR(Køling!$D$21="",Køling!$J$21="",Køling!$D$19=""),0,((Køling!$D$21-AT46)/(Køling!$D$21-Køling!$D$19))) -> 0.4 | AV46: 0 | AX46: 4.5525 | AY46: =0.5*((Køling!$D$19+273.15)/(AT46-Køling!$D$19)) -> 4.5525 | AZ46: =0.5*(($U$2+273.15)/(Køling!$D$21-$U$2)) -> 2.7315
B47: 2 | C47: 6 | D47: 1 | E47: -10.39999962 | F47: -11.19999981 | G47: 92 | H47: =(('pm1'!$B$41*Køl!E47^3)+('pm1'!$C$41*Køl!E47^2)+('pm1'!$D$41*Køl!E47)+'pm1'!$E$41)/1000 -> 0.003147430015 | I47: 0.001783068577 | J47: -6.037436783 | K47: =(('pm1'!$B$41*Køl!$H$2^3)+('pm1'!$C$41*Køl!$H$2^2)+('pm1'!$D$41*Køl!$H$2)+'pm1'!$E$41)/1000 -> 0.008964720962 | L47: 0.005553645927 | M47: 19.98764715 | N47: 4349.466434 | O47: -18.15539655 | P47: 0.007852778511 | Q47: 35.96949774 | R47: =(('pm1'!$B$41*Køl!$H$4^3)+('pm1'!$C$41*Køl!$H$4^2)+('pm1'!$D$41*Køl!$H$4)+'pm1'!$E$41)/1000 -> 0.008964720962 | S47: 0.005553645927 | T47: 19.98764715 | U47: 4349.466434 | V47: -18.15539655 | W47: 0.007852778511 | X47: 35.96949774 | Y47: 0 | Z47: =1.2*(Køling!$D$7/3600)*Y47 -> 0 | AA47: 0 | AB47: =-1*1.2*(Køling!$D$7/3600)*AA47 -> 0 | AC47: 0 | AE47: 0 | AF47: =1.2*(Køling!$J$7/3600)*AE47 -> 0 | AG47: 0 | AH47: =-1*1.2*(Køling!$J$7/3600)*AG47 -> 0 | AI47: 0 | AR47: 25 | AS47: 30 | AT47: 30 | AU47: =IF(OR(Køling!$D$21="",Køling!$J$21="",Køling!$D$19=""),0,((Køling!$D$21-AT47)/(Køling!$D$21-Køling!$D$19))) -> 0.4 | AV47: 0 | AX47: 4.5525 | AY47: =0.5*((Køling!$D$19+273.15)/(AT47-Køling!$D$19)) -> 4.5525 | AZ47: =0.5*(($U$2+273.15)/(Køling!$D$21-$U$2)) -> 2.7315
B48: 2 | C48: 7 | D48: 1 | E48: 0.1000000015 | F48: -4.699999809 | G48: 64 | H48: =(('pm1'!$B$41*Køl!E48^3)+('pm1'!$C$41*Køl!E48^2)+('pm1'!$D$41*Køl!E48)+'pm1'!$E$41)/1000 -> 0.005915306935 | I48: 0.002333266195 | J48: 5.936532742 | K48: =(('pm1'!$B$41*Køl!$H$2^3)+('pm1'!$C$41*Køl!$H$2^2)+('pm1'!$D$41*Køl!$H$2)+'pm1'!$E$41)/1000 -> 0.008964720962 | L48: 0.005553645927 | M48: 19.98764715 | N48: 1832.08208 | O48: -4.174735182 | P48: 0.01101191666 | Q48: 43.96451821 | R48: =(('pm1'!$B$41*Køl!$H$4^3)+('pm1'!$C$41*Køl!$H$4^2)+('pm1'!$D$41*Køl!$H$4)+'pm1'!$E$41)/1000 -> 0.008964720962 | S48: 0.005553645927 | T48: 19.98764715 | U48: 1832.08208 | V48: -4.174735182 | W48: 0.01101191666 | X48: 43.96451821 | Y48: 0 | Z48: =1.2*(Køling!$D$7/3600)*Y48 -> 0 | AA48: 0 | AB48: =-1*1.2*(Køling!$D$7/3600)*AA48 -> 0 | AC48: 0 | AE48: 0 | AF48: =1.2*(Køling!$J$7/3600)*AE48 -> 0 | AG48: 0 | AH48: =-1*1.2*(Køling!$J$7/3600)*AG48 -> 0 | AI48: 0 | AL48: =IF($N$4=0,0,IF($N$4=1,$AP$11,IF($N$4=2,SUM($AP$11:$AP$12),IF($N$4=3,SUM($AP$11:$AP$13),IF($N$4=4,SUM($AP$11:$AP$14),IF($N$4=5,SUM($AP$11:$AP$15),IF($N$4=6,SUM($AP$11:$AP$16)))))))) -> FALSE | AM48: =IF($N$4=7,SUM($AP$11:$AP$17),IF($N$4=8,SUM($AP$11:$AP$18),IF($N$4=9,SUM($AP$11:$AP$19),IF($N$4=10,SUM($AP$11:$AP$20),IF($N$4=11,SUM($AP$11:$AP$21),IF($N$4=12,SUM($AP$11:$AP$22),IF($N$4=13,SUM($AP$11:$AP$23)))))))) -> FALSE | AN48: =IF($N$4=14,SUM($AP$11:$AP$24),IF($N$4=15,SUM($AP$11:$AP$25),IF($N$4=16,SUM($AP$11:$AP$26),IF($N$4=17,SUM($AP$11:$AP$27),IF($N$4=18,SUM($AP$11:$AP$28),IF($N$4=19,SUM($AP$11:$AP$29),IF($N$4=20,SUM($AP$11:$AP$30)))))))) -> FALSE | AO48: =IF($N$4=21,SUM($AP$11:$AP$31),IF($N$4=22,SUM($AP$11:$AP$32),IF($N$4=23,SUM($AP$11:$AP$33),IF($N$4=24,SUM($AP$11:$AP$34))))) -> 21302.16682 | AP48: =SUM(AL48:AO48) -> 21302.16682 | AR48: 25 | AS48: 30 | AT48: 30 | AU48: =IF(OR(Køling!$D$21="",Køling!$J$21="",Køling!$D$19=""),0,((Køling!$D$21-AT48)/(Køling!$D$21-Køling!$D$19))) -> 0.4 | AV48: 0 | AX48: 4.5525 | AY48: =0.5*((Køling!$D$19+273.15)/(AT48-Køling!$D$19)) -> 4.5525 | AZ48: =0.5*(($U$2+273.15)/(Køling!$D$21-$U$2)) -> 2.7315
B49: 2 | C49: 8 | D49: 1 | E49: -3.200000048 | F49: -7 | G49: 69 | H49: =(('pm1'!$B$41*Køl!E49^3)+('pm1'!$C$41*Køl!E49^2)+('pm1'!$D$41*Køl!E49)+'pm1'!$E$41)/1000 -> 0.004758446797 | I49: 0.002022577475 | J49: 1.827227835 | K49: =(('pm1'!$B$41*Køl!$H$2^3)+('pm1'!$C$41*Køl!$H$2^2)+('pm1'!$D$41*Køl!$H$2)+'pm1'!$E$41)/1000 -> 0.008964720962 | L49: 0.005553645927 | M49: 19.98764715 | N49: 2605.443698 | O49: -8.469711784 | P49: 0.009391763791 | Q49: 39.86430013 | R49: =(('pm1'!$B$41*Køl!$H$4^3)+('pm1'!$C$41*Køl!$H$4^2)+('pm1'!$D$41*Køl!$H$4)+'pm1'!$E$41)/1000 -> 0.008964720962 | S49: 0.005553645927 | T49: 19.98764715 | U49: 2605.443698 | V49: -8.469711784 | W49: 0.009391763791 | X49: 39.86430013 | Y49: 0 | Z49: =1.2*(Køling!$D$7/3600)*Y49 -> 0 | AA49: 0 | AB49: =-1*1.2*(Køling!$D$7/3600)*AA49 -> 0 | AC49: 0 | AE49: 0 | AF49: =1.2*(Køling!$J$7/3600)*AE49 -> 0 | AG49: 0 | AH49: =-1*1.2*(Køling!$J$7/3600)*AG49 -> 0 | AI49: 0 | AR49: 25 | AS49: 30 | AT49: 30 | AU49: =IF(OR(Køling!$D$21="",Køling!$J$21="",Køling!$D$19=""),0,((Køling!$D$21-AT49)/(Køling!$D$21-Køling!$D$19))) -> 0.4 | AV49: 0 | AX49: 4.5525 | AY49: =0.5*((Køling!$D$19+273.15)/(AT49-Køling!$D$19)) -> 4.5525 | AZ49: =0.5*(($U$2+273.15)/(Køling!$D$21-$U$2)) -> 2.7315
B50: 2 | C50: 9 | D50: 1 | E50: -1.899999976 | F50: -3.299999952 | G50: 88 | H50: =(('pm1'!$B$41*Køl!E50^3)+('pm1'!$C$41*Køl!E50^2)+('pm1'!$D$41*Køl!E50)+'pm1'!$E$41)/1000 -> 0.005174696949 | I50: 0.0028086991 | J50: 5.103230531 | K50: =(('pm1'!$B$41*Køl!$H$2^3)+('pm1'!$C$41*Køl!$H$2^2)+('pm1'!$D$41*Køl!$H$2)+'pm1'!$E$41)/1000 -> 0.008964720962 | L50: 0.005553645927 | M50: 19.98764715 | N50: 2878.015668 | O50: -9.983479992 | P50: 0.009028262175 | Q50: 38.94436478 | R50: =(('pm1'!$B$41*Køl!$H$4^3)+('pm1'!$C$41*Køl!$H$4^2)+('pm1'!$D$41*Køl!$H$4)+'pm1'!$E$41)/1000 -> 0.008964720962 | S50: 0.005553645927 | T50: 19.98764715 | U50: 2878.015668 | V50: -9.983479992 | W50: 0.009028262175 | X50: 38.94436478 | Y50: 0 | Z50: =1.2*(Køling!$D$7/3600)*Y50 -> 0 | AA50: 0 | AB50: =-1*1.2*(Køling!$D$7/3600)*AA50 -> 0 | AC50: 0 | AE50: 0 | AF50: =1.2*(Køling!$J$7/3600)*AE50 -> 0 | AG50: 0 | AH50: =-1*1.2*(Køling!$J$7/3600)*AG50 -> 0 | AI50: 0 | AP50: =(AP48-AP46)*(Q4/7) -> 21302.16682 | AR50: 25 | AS50: 30 | AT50: 30 | AU50: =IF(OR(Køling!$D$21="",Køling!$J$21="",Køling!$D$19=""),0,((Køling!$D$21-AT50)/(Køling!$D$21-Køling!$D$19))) -> 0.4 | AV50: 0 | AX50: 4.5525 | AY50: =0.5*((Køling!$D$19+273.15)/(AT50-Køling!$D$19)) -> 4.5525 | AZ50: =0.5*(($U$2+273.15)/(Køling!$D$21-$U$2)) -> 2.7315
B51: 2 | C51: 10 | D51: 1 | E51: 0 | F51: -0.6000000238 | G51: 95 | H51: =(('pm1'!$B$41*Køl!E51^3)+('pm1'!$C$41*Køl!E51^2)+('pm1'!$D$41*Køl!E51)+'pm1'!$E$41)/1000 -> 0.005875168825 | I51: 0.003446072263 | J51: 8.618626729 | K51: =(('pm1'!$B$41*Køl!$H$2^3)+('pm1'!$C$41*Køl!$H$2^2)+('pm1'!$D$41*Køl!$H$2)+'pm1'!$E$41)/1000 -> 0.008964720962 | L51: 0.005553645927 | M51: 19.98764715 | N51: 2846.87558 | O51: -9.810538973 | P51: 0.009066268702 | Q51: 39.04055018 | R51: =(('pm1'!$B$41*Køl!$H$4^3)+('pm1'!$C$41*Køl!$H$4^2)+('pm1'!$D$41*Køl!$H$4)+'pm1'!$E$41)/1000 -> 0.008964720962 | S51: 0.005553645927 | T51: 19.98764715 | U51: 2846.87558 | V51: -9.810538973 | W51: 0.009066268702 | X51: 39.04055018 | Y51: 0 | Z51: =1.2*(Køling!$D$7/3600)*Y51 -> 0 | AA51: 0 | AB51: =-1*1.2*(Køling!$D$7/3600)*AA51 -> 0 | AC51: 0 | AE51: 0 | AF51: =1.2*(Køling!$J$7/3600)*AE51 -> 0 | AG51: 0 | AH51: =-1*1.2*(Køling!$J$7/3600)*AG51 -> 0 | AI51: 0 | AR51: 25 | AS51: 30 | AT51: 30 | AU51: =IF(OR(Køling!$D$21="",Køling!$J$21="",Køling!$D$19=""),0,((Køling!$D$21-AT51)/(Køling!$D$21-Køling!$D$19))) -> 0.4 | AV51: 0 | AX51: 4.5525 | AY51: =0.5*((Køling!$D$19+273.15)/(AT51-Køling!$D$19)) -> 4.5525 | AZ51: =0.5*(($U$2+273.15)/(Køling!$D$21-$U$2)) -> 2.7315
B52: 2 | C52: 11 | D52: 1 | E52: 1.799999952 | F52: 1.399999976 | G52: 97 | H52: =(('pm1'!$B$41*Køl!E52^3)+('pm1'!$C$41*Køl!E52^2)+('pm1'!$D$41*Køl!E52)+'pm1'!$E$41)/1000 -> 0.006651843984 | I52: 0.003987216407 | J52: 11.79617739 | K52: =(('pm1'!$B$41*Køl!$H$2^3)+('pm1'!$C$41*Køl!$H$2^2)+('pm1'!$D$41*Køl!$H$2)+'pm1'!$E$41)/1000 -> 0.008964720962 | L52: 0.005553645927 | M52: 19.98764715 | N52: 2681.256957 | O52: -8.890751778 | P52: 0.00928323998 | Q52: 39.58965241 | R52: =(('pm1'!$B$41*Køl!$H$4^3)+('pm1'!$C$41*Køl!$H$4^2)+('pm1'!$D$41*Køl!$H$4)+'pm1'!$E$41)/1000 -> 0.008964720962 | S52: 0.005553645927 | T52: 19.98764715 | U52: 2681.256957 | V52: -8.890751778 | W52: 0.00928323998 | X52: 39.58965241 | Y52: 0 | Z52: =1.2*(Køling!$D$7/3600)*Y52 -> 0 | AA52: 0 | AB52: =-1*1.2*(Køling!$D$7/3600)*AA52 -> 0 | AC52: 0 | AE52: 0 | AF52: =1.2*(Køling!$J$7/3600)*AE52 -> 0 | AG52: 0 | AH52: =-1*1.2*(Køling!$J$7/3600)*AG52 -> 0 | AI52: 0 | AR52: 25 | AS52: 30 | AT52: 30 | AU52: =IF(OR(Køling!$D$21="",Køling!$J$21="",Køling!$D$19=""),0,((Køling!$D$21-AT52)/(Køling!$D$21-Køling!$D$19))) -> 0.4 | AV52: 0 | AX52: 4.5525 | AY52: =0.5*((Køling!$D$19+273.15)/(AT52-Køling!$D$19)) -> 4.5525 | AZ52: =0.5*(($U$2+273.15)/(Køling!$D$21-$U$2)) -> 2.7315
B53: 2 | C53: 12 | D53: 1 | E53: 0.6999999881 | F53: 0 | G53: 95 | H53: =(('pm1'!$B$41*Køl!E53^3)+('pm1'!$C$41*Køl!E53^2)+('pm1'!$D$41*Køl!E53)+'pm1'!$E$41)/1000 -> 0.006163404372 | I53: 0.003616119318 | J53: 9.752822588 | K53: =(('pm1'!$B$41*Køl!$H$2^3)+('pm1'!$C$41*Køl!$H$2^2)+('pm1'!$D$41*Køl!$H$2)+'pm1'!$E$41)/1000 -> 0.008964720962 | L53: 0.005553645927 | M53: 19.98764715 | N53: 2735.446308 | O53: -9.191700249 | P53: 0.009209356504 | Q53: 39.40267107 | R53: =(('pm1'!$B$41*Køl!$H$4^3)+('pm1'!$C$41*Køl!$H$4^2)+('pm1'!$D$41*Køl!$H$4)+'pm1'!$E$41)/1000 -> 0.008964720962 | S53: 0.005553645927 | T53: 19.98764715 | U53: 2735.446308 | V53: -9.191700249 | W53: 0.009209356504 | X53: 39.40267107 | Y53: 0 | Z53: =1.2*(Køling!$D$7/3600)*Y53 -> 0 | AA53: 0 | AB53: =-1*1.2*(Køling!$D$7/3600)*AA53 -> 0 | AC53: 0 | AE53: 0 | AF53: =1.2*(Køling!$J$7/3600)*AE53 -> 0 | AG53: 0 | AH53: =-1*1.2*(Køling!$J$7/3600)*AG53 -> 0 | AI53: 0 | AR53: 25 | AS53: 30 | AT53: 30 | AU53: =IF(OR(Køling!$D$21="",Køling!$J$21="",Køling!$D$19=""),0,((Køling!$D$21-AT53)/(Køling!$D$21-Køling!$D$19))) -> 0.4 | AV53: 0 | AX53: 4.5525 | AY53: =0.5*((Køling!$D$19+273.15)/(AT53-Køling!$D$19)) -> 4.5525 | AZ53: =0.5*(($U$2+273.15)/(Køling!$D$21-$U$2)) -> 2.7315
B54: 2 | C54: 13 | D54: 1 | E54: 0.8000000119 | F54: 0.200000003 | G54: 96 | H54: =(('pm1'!$B$41*Køl!E54^3)+('pm1'!$C$41*Køl!E54^2)+('pm1'!$D$41*Køl!E54)+'pm1'!$E$41)/1000 -> 0.006205985899 | I54: 0.003679804186 | J54: 10.01346583 | K54: =(('pm1'!$B$41*Køl!$H$2^3)+('pm1'!$C$41*Køl!$H$2^2)+('pm1'!$D$41*Køl!$H$2)+'pm1'!$E$41)/1000 -> 0.008964720962 | L54: 0.005553645927 | M54: 19.98764715 | N54: 2775.047579 | O54: -9.411631685 | P54: 0.009157187746 | Q54: 39.27064446 | R54: =(('pm1'!$B$41*Køl!$H$4^3)+('pm1'!$C$41*Køl!$H$4^2)+('pm1'!$D$41*Køl!$H$4)+'pm1'!$E$41)/1000 -> 0.008964720962 | S54: 0.005553645927 | T54: 19.98764715 | U54: 2775.047579 | V54: -9.411631685 | W54: 0.009157187746 | X54: 39.27064446 | Y54: 0 | Z54: =1.2*(Køling!$D$7/3600)*Y54 -> 0 | AA54: 0 | AB54: =-1*1.2*(Køling!$D$7/3600)*AA54 -> 0 | AC54: 0 | AE54: 0 | AF54: =1.2*(Køling!$J$7/3600)*AE54 -> 0 | AG54: 0 | AH54: =-1*1.2*(Køling!$J$7/3600)*AG54 -> 0 | AI54: 0 | AR54: 25 | AS54: 30 | AT54: 30 | AU54: =IF(OR(Køling!$D$21="",Køling!$J$21="",Køling!$D$19=""),0,((Køling!$D$21-AT54)/(Køling!$D$21-Køling!$D$19))) -> 0.4 | AV54: 0 | AX54: 4.5525 | AY54: =0.5*((Køling!$D$19+273.15)/(AT54-Køling!$D$19)) -> 4.5525 | AZ54: =0.5*(($U$2+273.15)/(Køling!$D$21-$U$2)) -> 2.7315
B55: 2 | C55: 14 | D55: 1 | E55: -1.299999952 | F55: -3.5 | G55: 81 | H55: =(('pm1'!$B$41*Køl!E55^3)+('pm1'!$C$41*Køl!E55^2)+('pm1'!$D$41*Køl!E55)+'pm1'!$E$41)/1000 -> 0.005383540383 | I55: 0.002689103259 | J55: 5.411145048 | K55: =(('pm1'!$B$41*Køl!$H$2^3)+('pm1'!$C$41*Køl!$H$2^2)+('pm1'!$D$41*Køl!$H$2)+'pm1'!$E$41)/1000 -> 0.008964720962 | L55: 0.005553645927 | M55: 19.98764715 | N55: 2548.399796 | O55: -8.152910149 | P55: 0.009477677006 | Q55: 40.08172586 | R55: =(('pm1'!$B$41*Køl!$H$4^3)+('pm1'!$C$41*Køl!$H$4^2)+('pm1'!$D$41*Køl!$H$4)+'pm1'!$E$41)/1000 -> 0.008964720962 | S55: 0.005553645927 | T55: 19.98764715 | U55: 2548.399796 | V55: -8.152910149 | W55: 0.009477677006 | X55: 40.08172586 | Y55: 0 | Z55: =1.2*(Køling!$D$7/3600)*Y55 -> 0 | AA55: 0 | AB55: =-1*1.2*(Køling!$D$7/3600)*AA55 -> 0 | AC55: 0 | AE55: 0 | AF55: =1.2*(Køling!$J$7/3600)*AE55 -> 0 | AG55: 0 | AH55: =-1*1.2*(Køling!$J$7/3600)*AG55 -> 0 | AI55: 0 | AR55: 25 | AS55: 30 | AT55: 30 | AU55: =IF(OR(Køling!$D$21="",Køling!$J$21="",Køling!$D$19=""),0,((Køling!$D$21-AT55)/(Køling!$D$21-Køling!$D$19))) -> 0.4 | AV55: 0 | AX55: 4.5525 | AY55: =0.5*((Køling!$D$19+273.15)/(AT55-Køling!$D$19)) -> 4.5525 | AZ55: =0.5*(($U$2+273.15)/(Køling!$D$21-$U$2)) -> 2.7315
B56: 2 | C56: 15 | D56: 1 | E56: -5.400000095 | F56: -9.199999809 | G56: 69 | H56: =(('pm1'!$B$41*Køl!E56^3)+('pm1'!$C$41*Køl!E56^2)+('pm1'!$D$41*Køl!E56)+'pm1'!$E$41)/1000 -> 0.004155465903 | I56: 0.001765552987 | J56: -1.034485289 | K56: =(('pm1'!$B$41*Køl!$H$2^3)+('pm1'!$C$41*Køl!$H$2^2)+('pm1'!$D$41*Køl!$H$2)+'pm1'!$E$41)/1000 -> 0.008964720962 | L56: 0.005553645927 | M56: 19.98764715 | N56: 3009.429883 | O56: -10.71330802 | P56: 0.008876534444 | Q56: 38.56037831 | R56: =(('pm1'!$B$41*Køl!$H$4^3)+('pm1'!$C$41*Køl!$H$4^2)+('pm1'!$D$41*Køl!$H$4)+'pm1'!$E$41)/1000 -> 0.008964720962 | S56: 0.005553645927 | T56: 19.98764715 | U56: 3009.429883 | V56: -10.71330802 | W56: 0.008876534444 | X56: 38.56037831 | Y56: 0 | Z56: =1.2*(Køling!$D$7/3600)*Y56 -> 0 | AA56: 0 | AB56: =-1*1.2*(Køling!$D$7/3600)*AA56 -> 0 | AC56: 0 | AE56: 0 | AF56: =1.2*(Køling!$J$7/3600)*AE56 -> 0 | AG56: 0 | AH56: =-1*1.2*(Køling!$J$7/3600)*AG56 -> 0 | AI56: 0 | AR56: 25 | AS56: 30 | AT56: 30 | AU56: =IF(OR(Køling!$D$21="",Køling!$J$21="",Køling!$D$19=""),0,((Køling!$D$21-AT56)/(Køling!$D$21-Køling!$D$19))) -> 0.4 | AV56: 0 | AX56: 4.5525 | AY56: =0.5*((Køling!$D$19+273.15)/(AT56-Køling!$D$19)) -> 4.5525 | AZ56: =0.5*(($U$2+273.15)/(Køling!$D$21-$U$2)) -> 2.7315
B57: 2 | C57: 16 | D57: 1 | E57: -8.899999619 | F57: -11.19999981 | G57: 79 | H57: =(('pm1'!$B$41*Køl!E57^3)+('pm1'!$C$41*Køl!E57^2)+('pm1'!$D$41*Køl!E57)+'pm1'!$E$41)/1000 -> 0.00340793771 | I57: 0.001657507296 | J57: -4.835412245 | K57: =(('pm1'!$B$41*Køl!$H$2^3)+('pm1'!$C$41*Køl!$H$2^2)+('pm1'!$D$41*Køl!$H$2)+'pm1'!$E$41)/1000 -> 0.008964720962 | L57: 0.005553645927 | M57: 19.98764715 | N57: 3824.29914 | O57: -15.23880335 | P57: 0.008168504136 | Q57: 36.76852353 | R57: =(('pm1'!$B$41*Køl!$H$4^3)+('pm1'!$C$41*Køl!$H$4^2)+('pm1'!$D$41*Køl!$H$4)+'pm1'!$E$41)/1000 -> 0.008964720962 | S57: 0.005553645927 | T57: 19.98764715 | U57: 3824.29914 | V57: -15.23880335 | W57: 0.008168504136 | X57: 36.76852353 | Y57: 0 | Z57: =1.2*(Køling!$D$7/3600)*Y57 -> 0 | AA57: 0 | AB57: =-1*1.2*(Køling!$D$7/3600)*AA57 -> 0 | AC57: 0 | AE57: 0 | AF57: =1.2*(Køling!$J$7/3600)*AE57 -> 0 | AG57: 0 | AH57: =-1*1.2*(Køling!$J$7/3600)*AG57 -> 0 | AI57: 0 | AR57: 25 | AS57: 30 | AT57: 30 | AU57: =IF(OR(Køling!$D$21="",Køling!$J$21="",Køling!$D$19=""),0,((Køling!$D$21-AT57)/(Køling!$D$21-Køling!$D$19))) -> 0.4 | AV57: 0 | AX57: 4.5525 | AY57: =0.5*((Køling!$D$19+273.15)/(AT57-Køling!$D$19)) -> 4.5525 | AZ57: =0.5*(($U$2+273.15)/(Køling!$D$21-$U$2)) -> 2.7315
B58: 2 | C58: 17 | D58: 1 | E58: -11.10000038 | F58: -11.80000019 | G58: 93 | H58: =(('pm1'!$B$41*Køl!E58^3)+('pm1'!$C$41*Køl!E58^2)+('pm1'!$D$41*Køl!E58)+'pm1'!$E$41)/1000 -> 0.003034941191 | I58: 0.00173790455 | J58: -6.855981882 | K58: =(('pm1'!$B$41*Køl!$H$2^3)+('pm1'!$C$41*Køl!$H$2^2)+('pm1'!$D$41*Køl!$H$2)+'pm1'!$E$41)/1000 -> 0.008964720962 | L58: 0.005553645927 | M58: 19.98764715 | N58: 4481.435896 | O58: -18.88830821 | P58: 0.007785073584 | Q58: 35.79815282 | R58: =(('pm1'!$B$41*Køl!$H$4^3)+('pm1'!$C$41*Køl!$H$4^2)+('pm1'!$D$41*Køl!$H$4)+'pm1'!$E$41)/1000 -> 0.008964720962 | S58: 0.005553645927 | T58: 19.98764715 | U58: 4481.435896 | V58: -18.88830821 | W58: 0.007785073584 | X58: 35.79815282 | Y58: 0 | Z58: =1.2*(Køling!$D$7/3600)*Y58 -> 0 | AA58: 0 | AB58: =-1*1.2*(Køling!$D$7/3600)*AA58 -> 0 | AC58: 0 | AE58: 0 | AF58: =1.2*(Køling!$J$7/3600)*AE58 -> 0 | AG58: 0 | AH58: =-1*1.2*(Køling!$J$7/3600)*AG58 -> 0 | AI58: 0 | AR58: 25 | AS58: 30 | AT58: 30 | AU58: =IF(OR(Køling!$D$21="",Køling!$J$21="",Køling!$D$19=""),0,((Køling!$D$21-AT58)/(Køling!$D$21-Køling!$D$19))) -> 0.4 | AV58: 0 | AX58: 4.5525 | AY58: =0.5*((Køling!$D$19+273.15)/(AT58-Køling!$D$19)) -> 4.5525 | AZ58: =0.5*(($U$2+273.15)/(Køling!$D$21-$U$2)) -> 2.7315
B59: 2 | C59: 18 | D59: 1 | E59: -1.200000048 | F59: -2.599999905 | G59: 88 | H59: =(('pm1'!$B$41*Køl!E59^3)+('pm1'!$C$41*Køl!E59^2)+('pm1'!$D$41*Køl!E59)+'pm1'!$E$41)/1000 -> 0.005419425939 | I59: 0.002942160339 | J59: 6.144576058 | K59: =(('pm1'!$B$41*Køl!$H$2^3)+('pm1'!$C$41*Køl!$H$2^2)+('pm1'!$D$41*Køl!$H$2)+'pm1'!$E$41)/1000 -> 0.008964720962 | L59: 0.005553645927 | M59: 19.98764715 | N59: 2757.05142 | O59: -9.311687389 | P59: 0.00918070922 | Q59: 39.33017167 | R59: =(('pm1'!$B$41*Køl!$H$4^3)+('pm1'!$C$41*Køl!$H$4^2)+('pm1'!$D$41*Køl!$H$4)+'pm1'!$E$41)/1000 -> 0.008964720962 | S59: 0.005553645927 | T59: 19.98764715 | U59: 2757.05142 | V59: -9.311687389 | W59: 0.00918070922 | X59: 39.33017167 | Y59: 0 | Z59: =1.2*(Køling!$D$7/3600)*Y59 -> 0 | AA59: 0 | AB59: =-1*1.2*(Køling!$D$7/3600)*AA59 -> 0 | AC59: 0 | AE59: 0 | AF59: =1.2*(Køling!$J$7/3600)*AE59 -> 0 | AG59: 0 | AH59: =-1*1.2*(Køling!$J$7/3600)*AG59 -> 0 | AI59: 0 | AR59: 25 | AS59: 30 | AT59: 30 | AU59: =IF(OR(Køling!$D$21="",Køling!$J$21="",Køling!$D$19=""),0,((Køling!$D$21-AT59)/(Køling!$D$21-Køling!$D$19))) -> 0.4 | AV59: 0 | AX59: 4.5525 | AY59: =0.5*((Køling!$D$19+273.15)/(AT59-Køling!$D$19)) -> 4.5525 | AZ59: =0.5*(($U$2+273.15)/(Køling!$D$21-$U$2)) -> 2.7315
B60: 2 | C60: 19 | D60: 1 | E60: -2.200000048 | F60: -3.599999905 | G60: 88 | H60: =(('pm1'!$B$41*Køl!E60^3)+('pm1'!$C$41*Køl!E60^2)+('pm1'!$D$41*Køl!E60)+'pm1'!$E$41)/1000 -> 0.005074335839 | I60: 0.002753984353 | J60: 4.663245513 | K60: =(('pm1'!$B$41*Køl!$H$2^3)+('pm1'!$C$41*Køl!$H$2^2)+('pm1'!$D$41*Køl!$H$2)+'pm1'!$E$41)/1000 -> 0.008964720962 | L60: 0.005553645927 | M60: 19.98764715 | N60: 2928.925454 | O60: -10.26621492 | P60: 0.00896786734 | Q60: 38.79151995 | R60: =(('pm1'!$B$41*Køl!$H$4^3)+('pm1'!$C$41*Køl!$H$4^2)+('pm1'!$D$41*Køl!$H$4)+'pm1'!$E$41)/1000 -> 0.008964720962 | S60: 0.005553645927 | T60: 19.98764715 | U60: 2928.925454 | V60: -10.26621492 | W60: 0.00896786734 | X60: 38.79151995 | Y60: 0 | Z60: =1.2*(Køling!$D$7/3600)*Y60 -> 0 | AA60: 0 | AB60: =-1*1.2*(Køling!$D$7/3600)*AA60 -> 0 | AC60: 0 | AE60: 0 | AF60: =1.2*(Køling!$J$7/3600)*AE60 -> 0 | AG60: 0 | AH60: =-1*1.2*(Køling!$J$7/3600)*AG60 -> 0 | AI60: 0 | AR60: 25 | AS60: 30 | AT60: 30 | AU60: =IF(OR(Køling!$D$21="",Køling!$J$21="",Køling!$D$19=""),0,((Køling!$D$21-AT60)/(Køling!$D$21-Køling!$D$19))) -> 0.4 | AV60: 0 | AX60: 4.5525 | AY60: =0.5*((Køling!$D$19+273.15)/(AT60-Køling!$D$19)) -> 4.5525 | AZ60: =0.5*(($U$2+273.15)/(Køling!$D$21-$U$2)) -> 2.7315
B61: 2 | C61: 20 | D61: 1 | E61: -5.099999905 | F61: -5.199999809 | G61: 99 | H61: =(('pm1'!$B$41*Køl!E61^3)+('pm1'!$C$41*Køl!E61^2)+('pm1'!$D$41*Køl!E61)+'pm1'!$E$41)/1000 -> 0.004230848262 | I61: 0.002582516006 | J61: 1.30377488 | K61: =(('pm1'!$B$41*Køl!$H$2^3)+('pm1'!$C$41*Køl!$H$2^2)+('pm1'!$D$41*Køl!$H$2)+'pm1'!$E$41)/1000 -> 0.008964720962 | L61: 0.005553645927 | M61: 19.98764715 | N61: 3735.952381 | O61: -14.74815673 | P61: 0.008230339573 | Q61: 36.92501418 | R61: =(('pm1'!$B$41*Køl!$H$4^3)+('pm1'!$C$41*Køl!$H$4^2)+('pm1'!$D$41*Køl!$H$4)+'pm1'!$E$41)/1000 -> 0.008964720962 | S61: 0.005553645927 | T61: 19.98764715 | U61: 3735.952381 | V61: -14.74815673 | W61: 0.008230339573 | X61: 36.92501418 | Y61: 0 | Z61: =1.2*(Køling!$D$7/3600)*Y61 -> 0 | AA61: 0 | AB61: =-1*1.2*(Køling!$D$7/3600)*AA61 -> 0 | AC61: 0 | AE61: 0 | AF61: =1.2*(Køling!$J$7/3600)*AE61 -> 0 | AG61: 0 | AH61: =-1*1.2*(Køling!$J$7/3600)*AG61 -> 0 | AI61: 0 | AR61: 25 | AS61: 30 | AT61: 30 | AU61: =IF(OR(Køling!$D$21="",Køling!$J$21="",Køling!$D$19=""),0,((Køling!$D$21-AT61)/(Køling!$D$21-Køling!$D$19))) -> 0.4 | AV61: 0 | AX61: 4.5525 | AY61: =0.5*((Køling!$D$19+273.15)/(AT61-Køling!$D$19)) -> 4.5525 | AZ61: =0.5*(($U$2+273.15)/(Køling!$D$21-$U$2)) -> 2.7315
B62: 2 | C62: 21 | D62: 1 | E62: -3.299999952 | F62: -3.299999952 | G62: 100 | H62: =(('pm1'!$B$41*Køl!E62^3)+('pm1'!$C$41*Køl!E62^2)+('pm1'!$D$41*Køl!E62)+'pm1'!$E$41)/1000 -> 0.004728379505 | I62: 0.002916924361 | J62: 3.957523793 | K62: =(('pm1'!$B$41*Køl!$H$2^3)+('pm1'!$C$41*Køl!$H$2^2)+('pm1'!$D$41*Køl!$H$2)+'pm1'!$E$41)/1000 -> 0.008964720962 | L62: 0.005553645927 | M62: 19.98764715 | N62: 3527.107325 | O62: -13.58830523 | P62: 0.008388830422 | Q62: 37.32611648 | R62: =(('pm1'!$B$41*Køl!$H$4^3)+('pm1'!$C$41*Køl!$H$4^2)+('pm1'!$D$41*Køl!$H$4)+'pm1'!$E$41)/1000 -> 0.008964720962 | S62: 0.005553645927 | T62: 19.98764715 | U62: 3527.107325 | V62: -13.58830523 | W62: 0.008388830422 | X62: 37.32611648 | Y62: 0 | Z62: =1.2*(Køling!$D$7/3600)*Y62 -> 0 | AA62: 0 | AB62: =-1*1.2*(Køling!$D$7/3600)*AA62 -> 0 | AC62: 0 | AE62: 0 | AF62: =1.2*(Køling!$J$7/3600)*AE62 -> 0 | AG62: 0 | AH62: =-1*1.2*(Køling!$J$7/3600)*AG62 -> 0 | AI62: 0 | AR62: 25 | AS62: 30 | AT62: 30 | AU62: =IF(OR(Køling!$D$21="",Køling!$J$21="",Køling!$D$19=""),0,((Køling!$D$21-AT62)/(Køling!$D$21-Køling!$D$19))) -> 0.4 | AV62: 0 | AX62: 4.5525 | AY62: =0.5*((Køling!$D$19+273.15)/(AT62-Køling!$D$19)) -> 4.5525 | AZ62: =0.5*(($U$2+273.15)/(Køling!$D$21-$U$2)) -> 2.7315
B63: 2 | C63: 22 | D63: 1 | E63: -0.8999999762 | F63: -1.299999952 | G63: 96 | H63: =(('pm1'!$B$41*Køl!E63^3)+('pm1'!$C$41*Køl!E63^2)+('pm1'!$D$41*Køl!E63)+'pm1'!$E$41)/1000 -> 0.005528975226 | I63: 0.003276260092 | J63: 7.283042056 | K63: =(('pm1'!$B$41*Køl!$H$2^3)+('pm1'!$C$41*Køl!$H$2^2)+('pm1'!$D$41*Køl!$H$2)+'pm1'!$E$41)/1000 -> 0.008964720962 | L63: 0.005553645927 | M63: 19.98764715 | N63: 3029.789626 | O63: -10.82637881 | P63: 0.00885420512 | Q63: 38.50386815 | R63: =(('pm1'!$B$41*Køl!$H$4^3)+('pm1'!$C$41*Køl!$H$4^2)+('pm1'!$D$41*Køl!$H$4)+'pm1'!$E$41)/1000 -> 0.008964720962 | S63: 0.005553645927 | T63: 19.98764715 | U63: 3029.789626 | V63: -10.82637881 | W63: 0.00885420512 | X63: 38.50386815 | Y63: 0 | Z63: =1.2*(Køling!$D$7/3600)*Y63 -> 0 | AA63: 0 | AB63: =-1*1.2*(Køling!$D$7/3600)*AA63 -> 0 | AC63: 0 | AE63: 0 | AF63: =1.2*(Køling!$J$7/3600)*AE63 -> 0 | AG63: 0 | AH63: =-1*1.2*(Køling!$J$7/3600)*AG63 -> 0 | AI63: 0 | AR63: 25 | AS63: 30 | AT63: 30 | AU63: =IF(OR(Køling!$D$21="",Køling!$J$21="",Køling!$D$19=""),0,((Køling!$D$21-AT63)/(Køling!$D$21-Køling!$D$19))) -> 0.4 | AV63: 0 | AX63: 4.5525 | AY63: =0.5*((Køling!$D$19+273.15)/(AT63-Køling!$D$19)) -> 4.5525 | AZ63: =0.5*(($U$2+273.15)/(Køling!$D$21-$U$2)) -> 2.7315
B64: 2 | C64: 23 | D64: 1 | E64: 0 | F64: -2.400000095 | G64: 80 | H64: =(('pm1'!$B$41*Køl!E64^3)+('pm1'!$C$41*Køl!E64^2)+('pm1'!$D$41*Køl!E64)+'pm1'!$E$41)/1000 -> 0.005875168825 | I64: 0.002899419219 | J64: 7.251447467 | K64: =(('pm1'!$B$41*Køl!$H$2^3)+('pm1'!$C$41*Køl!$H$2^2)+('pm1'!$D$41*Køl!$H$2)+'pm1'!$E$41)/1000 -> 0.008964720962 | L64: 0.005553645927 | M64: 19.98764715 | N64: 2260.545409 | O64: -6.554268805 | P64: 0.009977357108 | Q64: 41.34629627 | R64: =(('pm1'!$B$41*Køl!$H$4^3)+('pm1'!$C$41*Køl!$H$4^2)+('pm1'!$D$41*Køl!$H$4)+'pm1'!$E$41)/1000 -> 0.008964720962 | S64: 0.005553645927 | T64: 19.98764715 | U64: 2260.545409 | V64: -6.554268805 | W64: 0.009977357108 | X64: 41.34629627 | Y64: 0 | Z64: =1.2*(Køling!$D$7/3600)*Y64 -> 0 | AA64: 0 | AB64: =-1*1.2*(Køling!$D$7/3600)*AA64 -> 0 | AC64: 0 | AE64: 0 | AF64: =1.2*(Køling!$J$7/3600)*AE64 -> 0 | AG64: 0 | AH64: =-1*1.2*(Køling!$J$7/3600)*AG64 -> 0 | AI64: 0 | AR64: 25 | AS64: 30 | AT64: 30 | AU64: =IF(OR(Køling!$D$21="",Køling!$J$21="",Køling!$D$19=""),0,((Køling!$D$21-AT64)/(Køling!$D$21-Køling!$D$19))) -> 0.4 | AV64: 0 | AX64: 4.5525 | AY64: =0.5*((Køling!$D$19+273.15)/(AT64-Køling!$D$19)) -> 4.5525 | AZ64: =0.5*(($U$2+273.15)/(Køling!$D$21-$U$2)) -> 2.7315
B65: 2 | C65: 24 | D65: 1 | E65: 1 | F65: -0.1000000015 | G65: 92 | H65: =(('pm1'!$B$41*Køl!E65^3)+('pm1'!$C$41*Køl!E65^2)+('pm1'!$D$41*Køl!E65)+'pm1'!$E$41)/1000 -> 0.006292224626 | I65: 0.003574883586 | J65: 9.953433132 | K65: =(('pm1'!$B$41*Køl!$H$2^3)+('pm1'!$C$41*Køl!$H$2^2)+('pm1'!$D$41*Køl!$H$2)+'pm1'!$E$41)/1000 -> 0.008964720962 | L65: 0.005553645927 | M65: 19.98764715 | N65: 2526.831998 | O65: -8.033130234 | P65: 0.00951117061 | Q65: 40.16649013 | R65: =(('pm1'!$B$41*Køl!$H$4^3)+('pm1'!$C$41*Køl!$H$4^2)+('pm1'!$D$41*Køl!$H$4)+'pm1'!$E$41)/1000 -> 0.008964720962 | S65: 0.005553645927 | T65: 19.98764715 | U65: 2526.831998 | V65: -8.033130234 | W65: 0.00951117061 | X65: 40.16649013 | Y65: 0 | Z65: =1.2*(Køling!$D$7/3600)*Y65 -> 0 | AA65: 0 | AB65: =-1*1.2*(Køling!$D$7/3600)*AA65 -> 0 | AC65: 0 | AE65: 0 | AF65: =1.2*(Køling!$J$7/3600)*AE65 -> 0 | AG65: 0 | AH65: =-1*1.2*(Køling!$J$7/3600)*AG65 -> 0 | AI65: 0 | AR65: 25 | AS65: 30 | AT65: 30 | AU65: =IF(OR(Køling!$D$21="",Køling!$J$21="",Køling!$D$19=""),0,((Køling!$D$21-AT65)/(Køling!$D$21-Køling!$D$19))) -> 0.4 | AV65: 0 | AX65: 4.5525 | AY65: =0.5*((Køling!$D$19+273.15)/(AT65-Køling!$D$19)) -> 4.5525 | AZ65: =0.5*(($U$2+273.15)/(Køling!$D$21-$U$2)) -> 2.7315
B66: 2 | C66: 25 | D66: 1 | E66: 1.200000048 | F66: 1.100000024 | G66: 99 | H66: =(('pm1'!$B$41*Køl!E66^3)+('pm1'!$C$41*Køl!E66^2)+('pm1'!$D$41*Køl!E66)+'pm1'!$E$41)/1000 -> 0.006379912271 | I66: 0.003902538254 | J66: 10.97615869 | K66: =(('pm1'!$B$41*Køl!$H$2^3)+('pm1'!$C$41*Køl!$H$2^2)+('pm1'!$D$41*Køl!$H$2)+'pm1'!$E$41)/1000 -> 0.008964720962 | L66: 0.005553645927 | M66: 19.98764715 | N66: 2907.139268 | O66: -10.14522215 | P66: 0.008993453614 | Q66: 38.85627267 | R66: =(('pm1'!$B$41*Køl!$H$4^3)+('pm1'!$C$41*Køl!$H$4^2)+('pm1'!$D$41*Køl!$H$4)+'pm1'!$E$41)/1000 -> 0.008964720962 | S66: 0.005553645927 | T66: 19.98764715 | U66: 2907.139268 | V66: -10.14522215 | W66: 0.008993453614 | X66: 38.85627267 | Y66: 0 | Z66: =1.2*(Køling!$D$7/3600)*Y66 -> 0 | AA66: 0 | AB66: =-1*1.2*(Køling!$D$7/3600)*AA66 -> 0 | AC66: 0 | AE66: 0 | AF66: =1.2*(Køling!$J$7/3600)*AE66 -> 0 | AG66: 0 | AH66: =-1*1.2*(Køling!$J$7/3600)*AG66 -> 0 | AI66: 0 | AR66: 25 | AS66: 30 | AT66: 30 | AU66: =IF(OR(Køling!$D$21="",Køling!$J$21="",Køling!$D$19=""),0,((Køling!$D$21-AT66)/(Køling!$D$21-Køling!$D$19))) -> 0.4 | AV66: 0 | AX66: 4.5525 | AY66: =0.5*((Køling!$D$19+273.15)/(AT66-Køling!$D$19)) -> 4.5525 | AZ66: =0.5*(($U$2+273.15)/(Køling!$D$21-$U$2)) -> 2.7315
B67: 2 | C67: 26 | D67: 1 | E67: 4.400000095 | F67: 2.099999905 | G67: 85 | H67: =(('pm1'!$B$41*Køl!E67^3)+('pm1'!$C$41*Køl!E67^2)+('pm1'!$D$41*Køl!E67)+'pm1'!$E$41)/1000 -> 0.007994286961 | I67: 0.00420051592 | J67: 14.96626743 | K67: =(('pm1'!$B$41*Køl!$H$2^3)+('pm1'!$C$41*Køl!$H$2^2)+('pm1'!$D$41*Køl!$H$2)+'pm1'!$E$41)/1000 -> 0.008964720962 | L67: 0.005553645927 | M67: 19.98764715 | N67: 1182.443591 | O67: -0.5668730311 | P67: 0.01401070898 | Q67: 51.55374185 | R67: =(('pm1'!$B$41*Køl!$H$4^3)+('pm1'!$C$41*Køl!$H$4^2)+('pm1'!$D$41*Køl!$H$4)+'pm1'!$E$41)/1000 -> 0.008964720962 | S67: 0.005553645927 | T67: 19.98764715 | U67: 1182.443591 | V67: -0.5668730311 | W67: 0.01401070898 | X67: 51.55374185 | Y67: 0 | Z67: =1.2*(Køling!$D$7/3600)*Y67 -> 0 | AA67: 0 | AB67: =-1*1.2*(Køling!$D$7/3600)*AA67 -> 0 | AC67: 0 | AE67: 0 | AF67: =1.2*(Køling!$J$7/3600)*AE67 -> 0 | AG67: 0 | AH67: =-1*1.2*(Køling!$J$7/3600)*AG67 -> 0 | AI67: 0 | AR67: 25 | AS67: 30 | AT67: 30 | AU67: =IF(OR(Køling!$D$21="",Køling!$J$21="",Køling!$D$19=""),0,((Køling!$D$21-AT67)/(Køling!$D$21-Køling!$D$19))) -> 0.4 | AV67: 0 | AX67: 4.5525 | AY67: =0.5*((Køling!$D$19+273.15)/(AT67-Køling!$D$19)) -> 4.5525 | AZ67: =0.5*(($U$2+273.15)/(Køling!$D$21-$U$2)) -> 2.7315
B68: 2 | C68: 27 | D68: 1 | E68: 3.200000048 | F68: 2 | G68: 92 | H68: =(('pm1'!$B$41*Køl!E68^3)+('pm1'!$C$41*Køl!E68^2)+('pm1'!$D$41*Køl!E68)+'pm1'!$E$41)/1000 -> 0.007340339269 | I68: 0.004174358991 | J68: 13.68411767 | K68: =(('pm1'!$B$41*Køl!$H$2^3)+('pm1'!$C$41*Køl!$H$2^2)+('pm1'!$D$41*Køl!$H$2)+'pm1'!$E$41)/1000 -> 0.008964720962 | L68: 0.005553645927 | M68: 19.98764715 | N68: 2030.034417 | O68: -5.274092371 | P68: 0.01047967079 | Q68: 42.61753164 | R68: =(('pm1'!$B$41*Køl!$H$4^3)+('pm1'!$C$41*Køl!$H$4^2)+('pm1'!$D$41*Køl!$H$4)+'pm1'!$E$41)/1000 -> 0.008964720962 | S68: 0.005553645927 | T68: 19.98764715 | U68: 2030.034417 | V68: -5.274092371 | W68: 0.01047967079 | X68: 42.61753164 | Y68: 0 | Z68: =1.2*(Køling!$D$7/3600)*Y68 -> 0 | AA68: 0 | AB68: =-1*1.2*(Køling!$D$7/3600)*AA68 -> 0 | AC68: 0 | AE68: 0 | AF68: =1.2*(Køling!$J$7/3600)*AE68 -> 0 | AG68: 0 | AH68: =-1*1.2*(Køling!$J$7/3600)*AG68 -> 0 | AI68: 0 | AR68: 25 | AS68: 30 | AT68: 30 | AU68: =IF(OR(Køling!$D$21="",Køling!$J$21="",Køling!$D$19=""),0,((Køling!$D$21-AT68)/(Køling!$D$21-Køling!$D$19))) -> 0.4 | AV68: 0 | AX68: 4.5525 | AY68: =0.5*((Køling!$D$19+273.15)/(AT68-Køling!$D$19)) -> 4.5525 | AZ68: =0.5*(($U$2+273.15)/(Køling!$D$21-$U$2)) -> 2.7315
B69: 2 | C69: 28 | D69: 1 | E69: 3.799999952 | F69: 3.400000095 | G69: 97 | H69: =(('pm1'!$B$41*Køl!E69^3)+('pm1'!$C$41*Køl!E69^2)+('pm1'!$D$41*Køl!E69)+'pm1'!$E$41)/1000 -> 0.007659687189 | I69: 0.004595796606 | J69: 15.34937035 | K69: =(('pm1'!$B$41*Køl!$H$2^3)+('pm1'!$C$41*Køl!$H$2^2)+('pm1'!$D$41*Køl!$H$2)+'pm1'!$E$41)/1000 -> 0.008964720962 | L69: 0.005553645927 | M69: 19.98764715 | N69: 2296.812243 | O69: -6.755681956 | P69: 0.009907506384 | Q69: 41.16952086 | R69: =(('pm1'!$B$41*Køl!$H$4^3)+('pm1'!$C$41*Køl!$H$4^2)+('pm1'!$D$41*Køl!$H$4)+'pm1'!$E$41)/1000 -> 0.008964720962 | S69: 0.005553645927 | T69: 19.98764715 | U69: 2296.812243 | V69: -6.755681956 | W69: 0.009907506384 | X69: 41.16952086 | Y69: 0 | Z69: =1.2*(Køling!$D$7/3600)*Y69 -> 0 | AA69: 0 | AB69: =-1*1.2*(Køling!$D$7/3600)*AA69 -> 0 | AC69: 0 | AE69: 0 | AF69: =1.2*(Køling!$J$7/3600)*AE69 -> 0 | AG69: 0 | AH69: =-1*1.2*(Køling!$J$7/3600)*AG69 -> 0 | AI69: 0 | AR69: 25 | AS69: 30 | AT69: 30 | AU69: =IF(OR(Køling!$D$21="",Køling!$J$21="",Køling!$D$19=""),0,((Køling!$D$21-AT69)/(Køling!$D$21-Køling!$D$19))) -> 0.4 | AV69: 0 | AX69: 4.5525 | AY69: =0.5*((Køling!$D$19+273.15)/(AT69-Køling!$D$19)) -> 4.5525 | AZ69: =0.5*(($U$2+273.15)/(Køling!$D$21-$U$2)) -> 2.7315
B70: 3 | C70: 1 | D70: 1 | E70: 3.400000095 | F70: 3.200000048 | G70: 99 | H70: =(('pm1'!$B$41*Køl!E70^3)+('pm1'!$C$41*Køl!E70^2)+('pm1'!$D$41*Køl!E70)+'pm1'!$E$41)/1000 -> 0.007445123237 | I70: 0.004558894475 | J70: 14.85102563 | K70: =(('pm1'!$B$41*Køl!$H$2^3)+('pm1'!$C$41*Køl!$H$2^2)+('pm1'!$D$41*Køl!$H$2)+'pm1'!$E$41)/1000 -> 0.008964720962 | L70: 0.005553645927 | M70: 19.98764715 | N70: 2613.718128 | O70: -8.515665038 | P70: 0.009379613193 | Q70: 39.83354988 | R70: =(('pm1'!$B$41*Køl!$H$4^3)+('pm1'!$C$41*Køl!$H$4^2)+('pm1'!$D$41*Køl!$H$4)+'pm1'!$E$41)/1000 -> 0.008964720962 | S70: 0.005553645927 | T70: 19.98764715 | U70: 2613.718128 | V70: -8.515665038 | W70: 0.009379613193 | X70: 39.83354988 | Y70: 0 | Z70: =1.2*(Køling!$D$7/3600)*Y70 -> 0 | AA70: 0 | AB70: =-1*1.2*(Køling!$D$7/3600)*AA70 -> 0 | AC70: 0 | AE70: 0 | AF70: =1.2*(Køling!$J$7/3600)*AE70 -> 0 | AG70: 0 | AH70: =-1*1.2*(Køling!$J$7/3600)*AG70 -> 0 | AI70: 0 | AR70: 25 | AS70: 30 | AT70: 30 | AU70: =IF(OR(Køling!$D$21="",Køling!$J$21="",Køling!$D$19=""),0,((Køling!$D$21-AT70)/(Køling!$D$21-Køling!$D$19))) -> 0.4 | AV70: 0 | AX70: 4.5525 | AY70: =0.5*((Køling!$D$19+273.15)/(AT70-Køling!$D$19)) -> 4.5525 | AZ70: =0.5*(($U$2+273.15)/(Køling!$D$21-$U$2)) -> 2.7315
B71: 3 | C71: 2 | D71: 1 | E71: -1.100000024 | F71: -4.099999905 | G71: 75 | H71: =(('pm1'!$B$41*Køl!E71^3)+('pm1'!$C$41*Køl!E71^2)+('pm1'!$D$41*Køl!E71)+'pm1'!$E$41)/1000 -> 0.005455625491 | I71: 0.002522577463 | J71: 5.197205017 | K71: =(('pm1'!$B$41*Køl!$H$2^3)+('pm1'!$C$41*Køl!$H$2^2)+('pm1'!$D$41*Køl!$H$2)+'pm1'!$E$41)/1000 -> 0.008964720962 | L71: 0.005553645927 | M71: 19.98764715 | N71: 2342.408331 | O71: -7.008906489 | P71: 0.009822756426 | Q71: 40.95503905 | R71: =(('pm1'!$B$41*Køl!$H$4^3)+('pm1'!$C$41*Køl!$H$4^2)+('pm1'!$D$41*Køl!$H$4)+'pm1'!$E$41)/1000 -> 0.008964720962 | S71: 0.005553645927 | T71: 19.98764715 | U71: 2342.408331 | V71: -7.008906489 | W71: 0.009822756426 | X71: 40.95503905 | Y71: 0 | Z71: =1.2*(Køling!$D$7/3600)*Y71 -> 0 | AA71: 0 | AB71: =-1*1.2*(Køling!$D$7/3600)*AA71 -> 0 | AC71: 0 | AE71: 0 | AF71: =1.2*(Køling!$J$7/3600)*AE71 -> 0 | AG71: 0 | AH71: =-1*1.2*(Køling!$J$7/3600)*AG71 -> 0 | AI71: 0 | AR71: 25 | AS71: 30 | AT71: 30 | AU71: =IF(OR(Køling!$D$21="",Køling!$J$21="",Køling!$D$19=""),0,((Køling!$D$21-AT71)/(Køling!$D$21-Køling!$D$19))) -> 0.4 | AV71: 0 | AX71: 4.5525 | AY71: =0.5*((Køling!$D$19+273.15)/(AT71-Køling!$D$19)) -> 4.5525 | AZ71: =0.5*(($U$2+273.15)/(Køling!$D$21-$U$2)) -> 2.7315
B72: 3 | C72: 3 | D72: 1 | E72: 2 | F72: 1.600000024 | G72: 97 | H72: =(('pm1'!$B$41*Køl!E72^3)+('pm1'!$C$41*Køl!E72^2)+('pm1'!$D$41*Køl!E72)+'pm1'!$E$41)/1000 -> 0.00674550273 | I72: 0.004043721862 | J72: 12.14039102 | K72: =(('pm1'!$B$41*Køl!$H$2^3)+('pm1'!$C$41*Køl!$H$2^2)+('pm1'!$D$41*Køl!$H$2)+'pm1'!$E$41)/1000 -> 0.008964720962 | L72: 0.005553645927 | M72: 19.98764715 | N72: 2649.139842 | O72: -8.712384693 | P72: 0.009328456091 | Q72: 39.70408354 | R72: =(('pm1'!$B$41*Køl!$H$4^3)+('pm1'!$C$41*Køl!$H$4^2)+('pm1'!$D$41*Køl!$H$4)+'pm1'!$E$41)/1000 -> 0.008964720962 | S72: 0.005553645927 | T72: 19.98764715 | U72: 2649.139842 | V72: -8.712384693 | W72: 0.009328456091 | X72: 39.70408354 | Y72: 0 | Z72: =1.2*(Køling!$D$7/3600)*Y72 -> 0 | AA72: 0 | AB72: =-1*1.2*(Køling!$D$7/3600)*AA72 -> 0 | AC72: 0 | AE72: 0 | AF72: =1.2*(Køling!$J$7/3600)*AE72 -> 0 | AG72: 0 | AH72: =-1*1.2*(Køling!$J$7/3600)*AG72 -> 0 | AI72: 0 | AR72: 25 | AS72: 30 | AT72: 30 | AU72: =IF(OR(Køling!$D$21="",Køling!$J$21="",Køling!$D$19=""),0,((Køling!$D$21-AT72)/(Køling!$D$21-Køling!$D$19))) -> 0.4 | AV72: 0 | AX72: 4.5525 | AY72: =0.5*((Køling!$D$19+273.15)/(AT72-Køling!$D$19)) -> 4.5525 | AZ72: =0.5*(($U$2+273.15)/(Køling!$D$21-$U$2)) -> 2.7315
B73: 3 | C73: 4 | D73: 1 | E73: 0.6999999881 | F73: 0.1000000015 | G73: 96 | H73: =(('pm1'!$B$41*Køl!E73^3)+('pm1'!$C$41*Køl!E73^2)+('pm1'!$D$41*Køl!E73)+'pm1'!$E$41)/1000 -> 0.006163404372 | I73: 0.003654407369 | J73: 9.848630857 | K73: =(('pm1'!$B$41*Køl!$H$2^3)+('pm1'!$C$41*Køl!$H$2^2)+('pm1'!$D$41*Køl!$H$2)+'pm1'!$E$41)/1000 -> 0.008964720962 | L73: 0.005553645927 | M73: 19.98764715 | N73: 2790.592045 | O73: -9.497960147 | P73: 0.009137114897 | Q73: 39.2198449 | R73: =(('pm1'!$B$41*Køl!$H$4^3)+('pm1'!$C$41*Køl!$H$4^2)+('pm1'!$D$41*Køl!$H$4)+'pm1'!$E$41)/1000 -> 0.008964720962 | S73: 0.005553645927 | T73: 19.98764715 | U73: 2790.592045 | V73: -9.497960147 | W73: 0.009137114897 | X73: 39.2198449 | Y73: 0 | Z73: =1.2*(Køling!$D$7/3600)*Y73 -> 0 | AA73: 0 | AB73: =-1*1.2*(Køling!$D$7/3600)*AA73 -> 0 | AC73: 0 | AE73: 0 | AF73: =1.2*(Køling!$J$7/3600)*AE73 -> 0 | AG73: 0 | AH73: =-1*1.2*(Køling!$J$7/3600)*AG73 -> 0 | AI73: 0 | AR73: 25 | AS73: 30 | AT73: 30 | AU73: =IF(OR(Køling!$D$21="",Køling!$J$21="",Køling!$D$19=""),0,((Køling!$D$21-AT73)/(Køling!$D$21-Køling!$D$19))) -> 0.4 | AV73: 0 | AX73: 4.5525 | AY73: =0.5*((Køling!$D$19+273.15)/(AT73-Køling!$D$19)) -> 4.5525 | AZ73: =0.5*(($U$2+273.15)/(Køling!$D$21-$U$2)) -> 2.7315
B74: 3 | C74: 5 | D74: 1 | E74: 3 | F74: 1.899999976 | G74: 92 | H74: =(('pm1'!$B$41*Køl!E74^3)+('pm1'!$C$41*Køl!E74^2)+('pm1'!$D$41*Køl!E74)+'pm1'!$E$41)/1000 -> 0.007237197277 | I74: 0.004115315351 | J74: 13.33336715 | K74: =(('pm1'!$B$41*Køl!$H$2^3)+('pm1'!$C$41*Køl!$H$2^2)+('pm1'!$D$41*Køl!$H$2)+'pm1'!$E$41)/1000 -> 0.008964720962 | L74: 0.005553645927 | M74: 19.98764715 | N74: 2085.751391 | O74: -5.58352472 | P74: 0.01034808118 | Q74: 42.28450993 | R74: =(('pm1'!$B$41*Køl!$H$4^3)+('pm1'!$C$41*Køl!$H$4^2)+('pm1'!$D$41*Køl!$H$4)+'pm1'!$E$41)/1000 -> 0.008964720962 | S74: 0.005553645927 | T74: 19.98764715 | U74: 2085.751391 | V74: -5.58352472 | W74: 0.01034808118 | X74: 42.28450993 | Y74: 0 | Z74: =1.2*(Køling!$D$7/3600)*Y74 -> 0 | AA74: 0 | AB74: =-1*1.2*(Køling!$D$7/3600)*AA74 -> 0 | AC74: 0 | AE74: 0 | AF74: =1.2*(Køling!$J$7/3600)*AE74 -> 0 | AG74: 0 | AH74: =-1*1.2*(Køling!$J$7/3600)*AG74 -> 0 | AI74: 0 | AR74: 25 | AS74: 30 | AT74: 30 | AU74: =IF(OR(Køling!$D$21="",Køling!$J$21="",Køling!$D$19=""),0,((Køling!$D$21-AT74)/(Køling!$D$21-Køling!$D$19))) -> 0.4 | AV74: 0 | AX74: 4.5525 | AY74: =0.5*((Køling!$D$19+273.15)/(AT74-Køling!$D$19)) -> 4.5525 | AZ74: =0.5*(($U$2+273.15)/(Køling!$D$21-$U$2)) -> 2.7315
B75: 3 | C75: 6 | D75: 1 | E75: -0.1000000015 | F75: -0.200000003 | G75: 99 | H75: =(('pm1'!$B$41*Køl!E75^3)+('pm1'!$C$41*Køl!E75^2)+('pm1'!$D$41*Køl!E75)+'pm1'!$E$41)/1000 -> 0.005835370996 | I75: 0.003567536498 | J75: 8.821145217 | K75: =(('pm1'!$B$41*Køl!$H$2^3)+('pm1'!$C$41*Køl!$H$2^2)+('pm1'!$D$41*Køl!$H$2)+'pm1'!$E$41)/1000 -> 0.008964720962 | L75: 0.005553645927 | M75: 19.98764715 | N75: 3071.331272 | O75: -11.05708641 | P75: 0.008809563024 | Q75: 38.39088972 | R75: =(('pm1'!$B$41*Køl!$H$4^3)+('pm1'!$C$41*Køl!$H$4^2)+('pm1'!$D$41*Køl!$H$4)+'pm1'!$E$41)/1000 -> 0.008964720962 | S75: 0.005553645927 | T75: 19.98764715 | U75: 3071.331272 | V75: -11.05708641 | W75: 0.008809563024 | X75: 38.39088972 | Y75: 0 | Z75: =1.2*(Køling!$D$7/3600)*Y75 -> 0 | AA75: 0 | AB75: =-1*1.2*(Køling!$D$7/3600)*AA75 -> 0 | AC75: 0 | AE75: 0 | AF75: =1.2*(Køling!$J$7/3600)*AE75 -> 0 | AG75: 0 | AH75: =-1*1.2*(Køling!$J$7/3600)*AG75 -> 0 | AI75: 0 | AR75: 25 | AS75: 30 | AT75: 30 | AU75: =IF(OR(Køling!$D$21="",Køling!$J$21="",Køling!$D$19=""),0,((Køling!$D$21-AT75)/(Køling!$D$21-Køling!$D$19))) -> 0.4 | AV75: 0 | AX75: 4.5525 | AY75: =0.5*((Køling!$D$19+273.15)/(AT75-Køling!$D$19)) -> 4.5525 | AZ75: =0.5*(($U$2+273.15)/(Køling!$D$21-$U$2)) -> 2.7315
B76: 3 | C76: 7 | D76: 1 | E76: 4.900000095 | F76: 4 | G76: 94 | H76: =(('pm1'!$B$41*Køl!E76^3)+('pm1'!$C$41*Køl!E76^2)+('pm1'!$D$41*Køl!E76)+'pm1'!$E$41)/1000 -> 0.00828511258 | I76: =0.622*((G76/100)*H76)/((1.013-((G76/100)*H76))) -> 0.004819022904 | J76: =(1.006*E76)+(I76*((1.86*E76)+2501)) -> 17.02569695 | K76: =(('pm1'!$B$41*Køl!$H$2^3)+('pm1'!$C$41*Køl!$H$2^2)+('pm1'!$D$41*Køl!$H$2)+'pm1'!$E$41)/1000 -> 0.008964720962 | L76: =0.622*((100/100)*K76)/((1.013-((100/100)*K76))) -> 0.005553645927 | M76: =(1.006*$H$2)+(L76*((1.86*$H$2)+2501)) -> 19.98764715 | N76: =IF(I76-L76=0,0,(E76-$H$2)/(I76-L76)) -> 1497.3665 | O76: =E76-(N76*I76) -> -2.315843363 | P76: =IF(N76=0,L76,($C$2-O76)/N76) -> 0.01223203762 | Q76: =(1.006*$C$2)+(P76*((1.86*$C$2)+2501)) -> 47.05235154 | R76: =(('pm1'!$B$41*Køl!$H$4^3)+('pm1'!$C$41*Køl!$H$4^2)+('pm1'!$D$41*Køl!$H$4)+'pm1'!$E$41)/1000 -> 0.008964720962 | S76: =0.622*((100/100)*R76)/((1.013-((100/100)*R76))) -> 0.005553645927 | T76: =(1.006*$H$4)+(S76*((1.86*$H$4)+2501)) -> 19.98764715 | U76: =IF(I76-S76=0,0,(E76-$H$4)/(I76-S76)) -> 1497.3665 | V76: =E76-(U76*I76) -> -2.315843363 | W76: =IF(U76=0,S76,($C$4-V76)/U76) -> 0.01223203762 | X76: =(1.006*$C$4)+(W76*((1.86*$C$4)+2501)) -> 47.05235154 | Y76: =IF(E76<$C$2,0,IF($H$2>F76,E76-$C$2)) -> 0 | Z76: =1.2*(Køling!$D$7/3600)*Y76 -> 0 | AA76: =IF($H$2<=F76,IF(Q76>J76,0,Q76-J76),0) -> 0 | AB76: =-1*1.2*(Køling!$D$7/3600)*AA76 -> 0 | AC76: =Z76+AB76 -> 0 | AE76: =IF(E76<$C$4,0,IF($H$4>F76,E76-$C$4)) -> 0 | AF76: =1.2*(Køling!$J$7/3600)*AE76 -> 0 | AG76: =IF($H$4<=F76,IF(X76>J76,0,X76-J76),0) -> 0 | AH76: =-1*1.2*(Køling!$J$7/3600)*AG76 -> 0 | AI76: =AF76+AH76 -> 0 | AR76: =IF(E76>=$U$4-10,E76+10,IF(E76<$U$4-10,25)) -> 25 | AS76: =IF(E76>=$U$4-10,E76+10,IF(E76<$U$4-10,$U$4)) -> 30 | AT76: =IF($U$4=25,AR76,IF($U$4>25,AS76)) -> 30 | AU76: =IF(OR(Køling!$D$21="",Køling!$J$21="",Køling!$D$19=""),0,((Køling!$D$21-AT76)/(Køling!$D$21-Køling!$D$19))) -> 0.4 | AV76: =AU76*AI76 -> 0 | AX76: =0.5*(($U$2+273.15)/(AT76-$U$2)) -> 4.5525 | AY76: =0.5*((Køling!$D$19+273.15)/(AT76-Køling!$D$19)) -> 4.5525 | AZ76: =0.5*(($U$2+273.15)/(Køling!$D$21-$U$2)) -> 2.7315
B77: 3 | C77: 8 | D77: 1 | E77: 2.099999905 | F77: -2 | G77: 71 | H77: =(('pm1'!$B$41*Køl!E77^3)+('pm1'!$C$41*Køl!E77^2)+('pm1'!$D$41*Køl!E77)+'pm1'!$E$41)/1000 -> 0.006792907197 | I77: 0.002975552477 | J77: 9.566079156 | K77: =(('pm1'!$B$41*Køl!$H$2^3)+('pm1'!$C$41*Køl!$H$2^2)+('pm1'!$D$41*Køl!$H$2)+'pm1'!$E$41)/1000 -> 0.008964720962 | L77: 0.005553645927 | M77: 19.98764715 | N77: 1512.745822 | O77: -2.401254671 | P77: 0.01216414179 | Q77: 46.88052349 | R77: =(('pm1'!$B$41*Køl!$H$4^3)+('pm1'!$C$41*Køl!$H$4^2)+('pm1'!$D$41*Køl!$H$4)+'pm1'!$E$41)/1000 -> 0.008964720962 | S77: 0.005553645927 | T77: 19.98764715 | U77: 1512.745822 | V77: -2.401254671 | W77: 0.01216414179 | X77: 46.88052349 | Y77: 0 | Z77: =1.2*(Køling!$D$7/3600)*Y77 -> 0 | AA77: 0 | AB77: =-1*1.2*(Køling!$D$7/3600)*AA77 -> 0 | AC77: 0 | AE77: 0 | AF77: =1.2*(Køling!$J$7/3600)*AE77 -> 0 | AG77: 0 | AH77: =-1*1.2*(Køling!$J$7/3600)*AG77 -> 0 | AI77: 0 | AR77: 25 | AS77: 30 | AT77: 30 | AU77: =IF(OR(Køling!$D$21="",Køling!$J$21="",Køling!$D$19=""),0,((Køling!$D$21-AT77)/(Køling!$D$21-Køling!$D$19))) -> 0.4 | AV77: 0 | AX77: 4.5525 | AY77: =0.5*((Køling!$D$19+273.15)/(AT77-Køling!$D$19)) -> 4.5525 | AZ77: =0.5*(($U$2+273.15)/(Køling!$D$21-$U$2)) -> 2.7315
B78: 3 | C78: 9 | D78: 1 | E78: -3.299999952 | F78: -4.599999905 | G78: 88 | H78: =(('pm1'!$B$41*Køl!E78^3)+('pm1'!$C$41*Køl!E78^2)+('pm1'!$D$41*Køl!E78)+'pm1'!$E$41)/1000 -> 0.004728379505 | I78: 0.002565449729 | J78: 3.08064309 | K78: =(('pm1'!$B$41*Køl!$H$2^3)+('pm1'!$C$41*Køl!$H$2^2)+('pm1'!$D$41*Køl!$H$2)+'pm1'!$E$41)/1000 -> 0.008964720962 | L78: 0.005553645927 | M78: 19.98764715 | N78: 3112.245426 | O78: -11.28430914 | P78: 0.008766760136 | Q78: 38.28256588 | R78: =(('pm1'!$B$41*Køl!$H$4^3)+('pm1'!$C$41*Køl!$H$4^2)+('pm1'!$D$41*Køl!$H$4)+'pm1'!$E$41)/1000 -> 0.008964720962 | S78: 0.005553645927 | T78: 19.98764715 | U78: 3112.245426 | V78: -11.28430914 | W78: 0.008766760136 | X78: 38.28256588 | Y78: 0 | Z78: =1.2*(Køling!$D$7/3600)*Y78 -> 0 | AA78: 0 | AB78: =-1*1.2*(Køling!$D$7/3600)*AA78 -> 0 | AC78: 0 | AE78: 0 | AF78: =1.2*(Køling!$J$7/3600)*AE78 -> 0 | AG78: 0 | AH78: =-1*1.2*(Køling!$J$7/3600)*AG78 -> 0 | AI78: 0 | AR78: 25 | AS78: 30 | AT78: 30 | AU78: =IF(OR(Køling!$D$21="",Køling!$J$21="",Køling!$D$19=""),0,((Køling!$D$21-AT78)/(Køling!$D$21-Køling!$D$19))) -> 0.4 | AV78: 0 | AX78: 4.5525 | AY78: =0.5*((Køling!$D$19+273.15)/(AT78-Køling!$D$19)) -> 4.5525 | AZ78: =0.5*(($U$2+273.15)/(Køling!$D$21-$U$2)) -> 2.7315
B79: 3 | C79: 10 | D79: 1 | E79: -1.799999952 | F79: -3.200000048 | G79: 88 | H79: =(('pm1'!$B$41*Køl!E79^3)+('pm1'!$C$41*Køl!E79^2)+('pm1'!$D$41*Køl!E79)+'pm1'!$E$41)/1000 -> 0.005208744913 | I79: 0.002827263505 | J79: 5.250720396 | K79: =(('pm1'!$B$41*Køl!$H$2^3)+('pm1'!$C$41*Køl!$H$2^2)+('pm1'!$D$41*Køl!$H$2)+'pm1'!$E$41)/1000 -> 0.008964720962 | L79: 0.005553645927 | M79: 19.98764715 | N79: 2860.93392 | O79: -9.888614015 | P79: 0.009049008029 | Q79: 38.99686756 | R79: =(('pm1'!$B$41*Køl!$H$4^3)+('pm1'!$C$41*Køl!$H$4^2)+('pm1'!$D$41*Køl!$H$4)+'pm1'!$E$41)/1000 -> 0.008964720962 | S79: 0.005553645927 | T79: 19.98764715 | U79: 2860.93392 | V79: -9.888614015 | W79: 0.009049008029 | X79: 38.99686756 | Y79: 0 | Z79: =1.2*(Køling!$D$7/3600)*Y79 -> 0 | AA79: 0 | AB79: =-1*1.2*(Køling!$D$7/3600)*AA79 -> 0 | AC79: 0 | AE79: 0 | AF79: =1.2*(Køling!$J$7/3600)*AE79 -> 0 | AG79: 0 | AH79: =-1*1.2*(Køling!$J$7/3600)*AG79 -> 0 | AI79: 0 | AR79: 25 | AS79: 30 | AT79: 30 | AU79: =IF(OR(Køling!$D$21="",Køling!$J$21="",Køling!$D$19=""),0,((Køling!$D$21-AT79)/(Køling!$D$21-Køling!$D$19))) -> 0.4 | AV79: 0 | AX79: 4.5525 | AY79: =0.5*((Køling!$D$19+273.15)/(AT79-Køling!$D$19)) -> 4.5525 | AZ79: =0.5*(($U$2+273.15)/(Køling!$D$21-$U$2)) -> 2.7315
B80: 3 | C80: 11 | D80: 1 | E80: -1 | F80: -1.5 | G80: 95 | H80: =(('pm1'!$B$41*Køl!E80^3)+('pm1'!$C$41*Køl!E80^2)+('pm1'!$D$41*Køl!E80)+'pm1'!$E$41)/1000 -> 0.005492141188 | I80: 0.003220244783 | J80: 7.041842547 | K80: =(('pm1'!$B$41*Køl!$H$2^3)+('pm1'!$C$41*Køl!$H$2^2)+('pm1'!$D$41*Køl!$H$2)+'pm1'!$E$41)/1000 -> 0.008964720962 | L80: 0.005553645927 | M80: 19.98764715 | N80: 2999.912817 | O80: -10.6604536 | P80: 0.008887076134 | Q80: 38.5870568 | R80: =(('pm1'!$B$41*Køl!$H$4^3)+('pm1'!$C$41*Køl!$H$4^2)+('pm1'!$D$41*Køl!$H$4)+'pm1'!$E$41)/1000 -> 0.008964720962 | S80: 0.005553645927 | T80: 19.98764715 | U80: 2999.912817 | V80: -10.6604536 | W80: 0.008887076134 | X80: 38.5870568 | Y80: 0 | Z80: =1.2*(Køling!$D$7/3600)*Y80 -> 0 | AA80: 0 | AB80: =-1*1.2*(Køling!$D$7/3600)*AA80 -> 0 | AC80: 0 | AE80: 0 | AF80: =1.2*(Køling!$J$7/3600)*AE80 -> 0 | AG80: 0 | AH80: =-1*1.2*(Køling!$J$7/3600)*AG80 -> 0 | AI80: 0 | AR80: 25 | AS80: 30 | AT80: 30 | AU80: =IF(OR(Køling!$D$21="",Køling!$J$21="",Køling!$D$19=""),0,((Køling!$D$21-AT80)/(Køling!$D$21-Køling!$D$19))) -> 0.4 | AV80: 0 | AX80: 4.5525 | AY80: =0.5*((Køling!$D$19+273.15)/(AT80-Køling!$D$19)) -> 4.5525 | AZ80: =0.5*(($U$2+273.15)/(Køling!$D$21-$U$2)) -> 2.7315
B81: 3 | C81: 12 | D81: 1 | E81: -0.3000000119 | F81: -2.200000048 | G81: 84 | H81: =(('pm1'!$B$41*Køl!E81^3)+('pm1'!$C$41*Køl!E81^2)+('pm1'!$D$41*Køl!E81)+'pm1'!$E$41)/1000 -> 0.005756787405 | I81: 0.002983448519 | J81: 7.15813997 | K81: =(('pm1'!$B$41*Køl!$H$2^3)+('pm1'!$C$41*Køl!$H$2^2)+('pm1'!$D$41*Køl!$H$2)+'pm1'!$E$41)/1000 -> 0.008964720962 | L81: 0.005553645927 | M81: 19.98764715 | N81: 2451.173591 | O81: -7.612950233 | P81: 0.009633324346 | Q81: 40.47563192 | R81: =(('pm1'!$B$41*Køl!$H$4^3)+('pm1'!$C$41*Køl!$H$4^2)+('pm1'!$D$41*Køl!$H$4)+'pm1'!$E$41)/1000 -> 0.008964720962 | S81: 0.005553645927 | T81: 19.98764715 | U81: 2451.173591 | V81: -7.612950233 | W81: 0.009633324346 | X81: 40.47563192 | Y81: 0 | Z81: =1.2*(Køling!$D$7/3600)*Y81 -> 0 | AA81: 0 | AB81: =-1*1.2*(Køling!$D$7/3600)*AA81 -> 0 | AC81: 0 | AE81: 0 | AF81: =1.2*(Køling!$J$7/3600)*AE81 -> 0 | AG81: 0 | AH81: =-1*1.2*(Køling!$J$7/3600)*AG81 -> 0 | AI81: 0 | AR81: 25 | AS81: 30 | AT81: 30 | AU81: =IF(OR(Køling!$D$21="",Køling!$J$21="",Køling!$D$19=""),0,((Køling!$D$21-AT81)/(Køling!$D$21-Køling!$D$19))) -> 0.4 | AV81: 0 | AX81: 4.5525 | AY81: =0.5*((Køling!$D$19+273.15)/(AT81-Køling!$D$19)) -> 4.5525 | AZ81: =0.5*(($U$2+273.15)/(Køling!$D$21-$U$2)) -> 2.7315
B82: 3 | C82: 13 | D82: 1 | E82: -0.3000000119 | F82: -1.399999976 | G82: 90 | H82: =(('pm1'!$B$41*Køl!E82^3)+('pm1'!$C$41*Køl!E82^2)+('pm1'!$D$41*Køl!E82)+'pm1'!$E$41)/1000 -> 0.005756787405 | I82: 0.003197647531 | J82: 7.693732175 | K82: =(('pm1'!$B$41*Køl!$H$2^3)+('pm1'!$C$41*Køl!$H$2^2)+('pm1'!$D$41*Køl!$H$2)+'pm1'!$E$41)/1000 -> 0.008964720962 | L82: 0.005553645927 | M82: 19.98764715 | N82: 2674.025594 | O82: -8.85059135 | P82: 0.009293325915 | Q82: 39.61517749 | R82: =(('pm1'!$B$41*Køl!$H$4^3)+('pm1'!$C$41*Køl!$H$4^2)+('pm1'!$D$41*Køl!$H$4)+'pm1'!$E$41)/1000 -> 0.008964720962 | S82: 0.005553645927 | T82: 19.98764715 | U82: 2674.025594 | V82: -8.85059135 | W82: 0.009293325915 | X82: 39.61517749 | Y82: 0 | Z82: =1.2*(Køling!$D$7/3600)*Y82 -> 0 | AA82: 0 | AB82: =-1*1.2*(Køling!$D$7/3600)*AA82 -> 0 | AC82: 0 | AE82: 0 | AF82: =1.2*(Køling!$J$7/3600)*AE82 -> 0 | AG82: 0 | AH82: =-1*1.2*(Køling!$J$7/3600)*AG82 -> 0 | AI82: 0 | AR82: 25 | AS82: 30 | AT82: 30 | AU82: =IF(OR(Køling!$D$21="",Køling!$J$21="",Køling!$D$19=""),0,((Køling!$D$21-AT82)/(Køling!$D$21-Køling!$D$19))) -> 0.4 | AV82: 0 | AX82: 4.5525 | AY82: =0.5*((Køling!$D$19+273.15)/(AT82-Køling!$D$19)) -> 4.5525 | AZ82: =0.5*(($U$2+273.15)/(Køling!$D$21-$U$2)) -> 2.7315
B83: 3 | C83: 14 | D83: 1 | E83: 0.1000000015 | F83: -2.299999952 | G83: 80 | H83: =(('pm1'!$B$41*Køl!E83^3)+('pm1'!$C$41*Køl!E83^2)+('pm1'!$D$41*Køl!E83)+'pm1'!$E$41)/1000 -> 0.005915306935 | I83: 0.002919320506 | J83: 7.40236358 | K83: =(('pm1'!$B$41*Køl!$H$2^3)+('pm1'!$C$41*Køl!$H$2^2)+('pm1'!$D$41*Køl!$H$2)+'pm1'!$E$41)/1000 -> 0.008964720962 | L83: 0.005553645927 | M83: 19.98764715 | N83: 2239.662553 | O83: -6.438292814 | P83: 0.01001860427 | Q83: 41.45068294 | R83: =(('pm1'!$B$41*Køl!$H$4^3)+('pm1'!$C$41*Køl!$H$4^2)+('pm1'!$D$41*Køl!$H$4)+'pm1'!$E$41)/1000 -> 0.008964720962 | S83: 0.005553645927 | T83: 19.98764715 | U83: 2239.662553 | V83: -6.438292814 | W83: 0.01001860427 | X83: 41.45068294 | Y83: 0 | Z83: =1.2*(Køling!$D$7/3600)*Y83 -> 0 | AA83: 0 | AB83: =-1*1.2*(Køling!$D$7/3600)*AA83 -> 0 | AC83: 0 | AE83: 0 | AF83: =1.2*(Køling!$J$7/3600)*AE83 -> 0 | AG83: 0 | AH83: =-1*1.2*(Køling!$J$7/3600)*AG83 -> 0 | AI83: 0 | AR83: 25 | AS83: 30 | AT83: 30 | AU83: =IF(OR(Køling!$D$21="",Køling!$J$21="",Køling!$D$19=""),0,((Køling!$D$21-AT83)/(Køling!$D$21-Køling!$D$19))) -> 0.4 | AV83: 0 | AX83: 4.5525 | AY83: =0.5*((Køling!$D$19+273.15)/(AT83-Køling!$D$19)) -> 4.5525 | AZ83: =0.5*(($U$2+273.15)/(Køling!$D$21-$U$2)) -> 2.7315
B84: 3 | C84: 15 | D84: 1 | E84: 0.6000000238 | F84: -0.3000000119 | G84: 93 | H84: =(('pm1'!$B$41*Køl!E84^3)+('pm1'!$C$41*Køl!E84^2)+('pm1'!$D$41*Køl!E84)+'pm1'!$E$41)/1000 -> 0.006121178511 | I84: 0.003515170502 | J84: 9.39896438 | K84: =(('pm1'!$B$41*Køl!$H$2^3)+('pm1'!$C$41*Køl!$H$2^2)+('pm1'!$D$41*Køl!$H$2)+'pm1'!$E$41)/1000 -> 0.008964720962 | L84: 0.005553645927 | M84: 19.98764715 | N84: 2649.038545 | O84: -8.71182213 | P84: 0.009328600436 | Q84: 39.70444884 | R84: =(('pm1'!$B$41*Køl!$H$4^3)+('pm1'!$C$41*Køl!$H$4^2)+('pm1'!$D$41*Køl!$H$4)+'pm1'!$E$41)/1000 -> 0.008964720962 | S84: 0.005553645927 | T84: 19.98764715 | U84: 2649.038545 | V84: -8.71182213 | W84: 0.009328600436 | X84: 39.70444884 | Y84: 0 | Z84: =1.2*(Køling!$D$7/3600)*Y84 -> 0 | AA84: 0 | AB84: =-1*1.2*(Køling!$D$7/3600)*AA84 -> 0 | AC84: 0 | AE84: 0 | AF84: =1.2*(Køling!$J$7/3600)*AE84 -> 0 | AG84: 0 | AH84: =-1*1.2*(Køling!$J$7/3600)*AG84 -> 0 | AI84: 0 | AR84: 25 | AS84: 30 | AT84: 30 | AU84: =IF(OR(Køling!$D$21="",Køling!$J$21="",Køling!$D$19=""),0,((Køling!$D$21-AT84)/(Køling!$D$21-Køling!$D$19))) -> 0.4 | AV84: 0 | AX84: 4.5525 | AY84: =0.5*((Køling!$D$19+273.15)/(AT84-Køling!$D$19)) -> 4.5525 | AZ84: =0.5*(($U$2+273.15)/(Køling!$D$21-$U$2)) -> 2.7315
B85: 3 | C85: 16 | D85: 1 | E85: 1.100000024 | F85: -1.600000024 | G85: 80 | H85: =(('pm1'!$B$41*Køl!E85^3)+('pm1'!$C$41*Køl!E85^2)+('pm1'!$D$41*Køl!E85)+'pm1'!$E$41)/1000 -> 0.00633588624 | I85: 0.003127928482 | J85: 8.935948899 | K85: =(('pm1'!$B$41*Køl!$H$2^3)+('pm1'!$C$41*Køl!$H$2^2)+('pm1'!$D$41*Køl!$H$2)+'pm1'!$E$41)/1000 -> 0.008964720962 | L85: 0.005553645927 | M85: 19.98764715 | N85: 2020.020916 | O85: -5.218480933 | P85: 0.01050408972 | Q85: 42.67933009 | R85: =(('pm1'!$B$41*Køl!$H$4^3)+('pm1'!$C$41*Køl!$H$4^2)+('pm1'!$D$41*Køl!$H$4)+'pm1'!$E$41)/1000 -> 0.008964720962 | S85: 0.005553645927 | T85: 19.98764715 | U85: 2020.020916 | V85: -5.218480933 | W85: 0.01050408972 | X85: 42.67933009 | Y85: 0 | Z85: =1.2*(Køling!$D$7/3600)*Y85 -> 0 | AA85: 0 | AB85: =-1*1.2*(Køling!$D$7/3600)*AA85 -> 0 | AC85: 0 | AE85: 0 | AF85: =1.2*(Køling!$J$7/3600)*AE85 -> 0 | AG85: 0 | AH85: =-1*1.2*(Køling!$J$7/3600)*AG85 -> 0 | AI85: 0 | AR85: 25 | AS85: 30 | AT85: 30 | AU85: =IF(OR(Køling!$D$21="",Køling!$J$21="",Køling!$D$19=""),0,((Køling!$D$21-AT85)/(Køling!$D$21-Køling!$D$19))) -> 0.4 | AV85: 0 | AX85: 4.5525 | AY85: =0.5*((Køling!$D$19+273.15)/(AT85-Køling!$D$19)) -> 4.5525 | AZ85: =0.5*(($U$2+273.15)/(Køling!$D$21-$U$2)) -> 2.7315
B86: 3 | C86: 17 | D86: 1 | E86: -1 | F86: -4.199999809 | G86: 74 | H86: =(('pm1'!$B$41*Køl!E86^3)+('pm1'!$C$41*Køl!E86^2)+('pm1'!$D$41*Køl!E86)+'pm1'!$E$41)/1000 -> 0.005492141188 | I86: 0.002505533759 | J86: 5.255679638 | K86: =(('pm1'!$B$41*Køl!$H$2^3)+('pm1'!$C$41*Køl!$H$2^2)+('pm1'!$D$41*Køl!$H$2)+'pm1'!$E$41)/1000 -> 0.008964720962 | L86: 0.005553645927 | M86: 19.98764715 | N86: 2296.503413 | O86: -6.753966829 | P86: 0.009908091883 | Q86: 41.17100261 | R86: =(('pm1'!$B$41*Køl!$H$4^3)+('pm1'!$C$41*Køl!$H$4^2)+('pm1'!$D$41*Køl!$H$4)+'pm1'!$E$41)/1000 -> 0.008964720962 | S86: 0.005553645927 | T86: 19.98764715 | U86: 2296.503413 | V86: -6.753966829 | W86: 0.009908091883 | X86: 41.17100261 | Y86: 0 | Z86: =1.2*(Køling!$D$7/3600)*Y86 -> 0 | AA86: 0 | AB86: =-1*1.2*(Køling!$D$7/3600)*AA86 -> 0 | AC86: 0 | AE86: 0 | AF86: =1.2*(Køling!$J$7/3600)*AE86 -> 0 | AG86: 0 | AH86: =-1*1.2*(Køling!$J$7/3600)*AG86 -> 0 | AI86: 0 | AR86: 25 | AS86: 30 | AT86: 30 | AU86: =IF(OR(Køling!$D$21="",Køling!$J$21="",Køling!$D$19=""),0,((Køling!$D$21-AT86)/(Køling!$D$21-Køling!$D$19))) -> 0.4 | AV86: 0 | AX86: 4.5525 | AY86: =0.5*((Køling!$D$19+273.15)/(AT86-Køling!$D$19)) -> 4.5525 | AZ86: =0.5*(($U$2+273.15)/(Køling!$D$21-$U$2)) -> 2.7315
B87: 3 | C87: 18 | D87: 1 | E87: -8.199999809 | F87: -8.699999809 | G87: 95 | H87: =(('pm1'!$B$41*Køl!E87^3)+('pm1'!$C$41*Køl!E87^2)+('pm1'!$D$41*Køl!E87)+'pm1'!$E$41)/1000 -> 0.003540222655 | I87: 0.002071950617 | J87: -3.098852705 | K87: =(('pm1'!$B$41*Køl!$H$2^3)+('pm1'!$C$41*Køl!$H$2^2)+('pm1'!$D$41*Køl!$H$2)+'pm1'!$E$41)/1000 -> 0.008964720962 | L87: 0.005553645927 | M87: 19.98764715 | N87: 4078.472854 | O87: -16.65039415 | P87: 0.008005544066 | Q87: 36.3561107 | R87: =(('pm1'!$B$41*Køl!$H$4^3)+('pm1'!$C$41*Køl!$H$4^2)+('pm1'!$D$41*Køl!$H$4)+'pm1'!$E$41)/1000 -> 0.008964720962 | S87: 0.005553645927 | T87: 19.98764715 | U87: 4078.472854 | V87: -16.65039415 | W87: 0.008005544066 | X87: 36.3561107 | Y87: 0 | Z87: =1.2*(Køling!$D$7/3600)*Y87 -> 0 | AA87: 0 | AB87: =-1*1.2*(Køling!$D$7/3600)*AA87 -> 0 | AC87: 0 | AE87: 0 | AF87: =1.2*(Køling!$J$7/3600)*AE87 -> 0 | AG87: 0 | AH87: =-1*1.2*(Køling!$J$7/3600)*AG87 -> 0 | AI87: 0 | AR87: 25 | AS87: 30 | AT87: 30 | AU87: =IF(OR(Køling!$D$21="",Køling!$J$21="",Køling!$D$19=""),0,((Køling!$D$21-AT87)/(Køling!$D$21-Køling!$D$19))) -> 0.4 | AV87: 0 | AX87: 4.5525 | AY87: =0.5*((Køling!$D$19+273.15)/(AT87-Køling!$D$19)) -> 4.5525 | AZ87: =0.5*(($U$2+273.15)/(Køling!$D$21-$U$2)) -> 2.7315
B88: 3 | C88: 19 | D88: 1 | E88: -7.699999809 | F88: -8.300000191 | G88: 94 | H88: =(('pm1'!$B$41*Køl!E88^3)+('pm1'!$C$41*Køl!E88^2)+('pm1'!$D$41*Køl!E88)+'pm1'!$E$41)/1000 -> 0.00363947891 | I88: 0.002107740713 | J88: -2.504927346 | K88: =(('pm1'!$B$41*Køl!$H$2^3)+('pm1'!$C$41*Køl!$H$2^2)+('pm1'!$D$41*Køl!$H$2)+'pm1'!$E$41)/1000 -> 0.008964720962 | L88: 0.005553645927 | M88: 19.98764715 | N88: 3975.733213 | O88: -16.07981457 | P88: 0.008068905243 | Q88: 36.51646263 | R88: =(('pm1'!$B$41*Køl!$H$4^3)+('pm1'!$C$41*Køl!$H$4^2)+('pm1'!$D$41*Køl!$H$4)+'pm1'!$E$41)/1000 -> 0.008964720962 | S88: 0.005553645927 | T88: 19.98764715 | U88: 3975.733213 | V88: -16.07981457 | W88: 0.008068905243 | X88: 36.51646263 | Y88: 0 | Z88: =1.2*(Køling!$D$7/3600)*Y88 -> 0 | AA88: 0 | AB88: =-1*1.2*(Køling!$D$7/3600)*AA88 -> 0 | AC88: 0 | AE88: 0 | AF88: =1.2*(Køling!$J$7/3600)*AE88 -> 0 | AG88: 0 | AH88: =-1*1.2*(Køling!$J$7/3600)*AG88 -> 0 | AI88: 0 | AR88: 25 | AS88: 30 | AT88: 30 | AU88: =IF(OR(Køling!$D$21="",Køling!$J$21="",Køling!$D$19=""),0,((Køling!$D$21-AT88)/(Køling!$D$21-Køling!$D$19))) -> 0.4 | AV88: 0 | AX88: 4.5525 | AY88: =0.5*((Køling!$D$19+273.15)/(AT88-Køling!$D$19)) -> 4.5525 | AZ88: =0.5*(($U$2+273.15)/(Køling!$D$21-$U$2)) -> 2.7315
B89: 3 | C89: 20 | D89: 1 | E89: -4.800000191 | F89: -6.699999809 | G89: 83 | H89: =(('pm1'!$B$41*Køl!E89^3)+('pm1'!$C$41*Køl!E89^2)+('pm1'!$D$41*Køl!E89)+'pm1'!$E$41)/1000 -> 0.004308285924 | I89: 0.002203430294 | J89: 0.6623067459 | K89: =(('pm1'!$B$41*Køl!$H$2^3)+('pm1'!$C$41*Køl!$H$2^2)+('pm1'!$D$41*Køl!$H$2)+'pm1'!$E$41)/1000 -> 0.008964720962 | L89: 0.005553645927 | M89: 19.98764715 | N89: 3223.673152 | O89: -11.90313927 | P89: 0.008655697385 | Q89: 38.00149271 | R89: =(('pm1'!$B$41*Køl!$H$4^3)+('pm1'!$C$41*Køl!$H$4^2)+('pm1'!$D$41*Køl!$H$4)+'pm1'!$E$41)/1000 -> 0.008964720962 | S89: 0.005553645927 | T89: 19.98764715 | U89: 3223.673152 | V89: -11.90313927 | W89: 0.008655697385 | X89: 38.00149271 | Y89: 0 | Z89: =1.2*(Køling!$D$7/3600)*Y89 -> 0 | AA89: 0 | AB89: =-1*1.2*(Køling!$D$7/3600)*AA89 -> 0 | AC89: 0 | AE89: 0 | AF89: =1.2*(Køling!$J$7/3600)*AE89 -> 0 | AG89: 0 | AH89: =-1*1.2*(Køling!$J$7/3600)*AG89 -> 0 | AI89: 0 | AR89: 25 | AS89: 30 | AT89: 30 | AU89: =IF(OR(Køling!$D$21="",Køling!$J$21="",Køling!$D$19=""),0,((Køling!$D$21-AT89)/(Køling!$D$21-Køling!$D$19))) -> 0.4 | AV89: 0 | AX89: 4.5525 | AY89: =0.5*((Køling!$D$19+273.15)/(AT89-Køling!$D$19)) -> 4.5525 | AZ89: =0.5*(($U$2+273.15)/(Køling!$D$21-$U$2)) -> 2.7315
B90: 3 | C90: 21 | D90: 1 | E90: -6.400000095 | F90: -7.800000191 | G90: 87 | H90: =(('pm1'!$B$41*Køl!E90^3)+('pm1'!$C$41*Køl!E90^2)+('pm1'!$D$41*Køl!E90)+'pm1'!$E$41)/1000 -> 0.003918275637 | I90: 0.002100192522 | J90: -1.210819291 | K90: =(('pm1'!$B$41*Køl!$H$2^3)+('pm1'!$C$41*Køl!$H$2^2)+('pm1'!$D$41*Køl!$H$2)+'pm1'!$E$41)/1000 -> 0.008964720962 | L90: 0.005553645927 | M90: 19.98764715 | N90: 3590.608773 | O90: -13.94096979 | P90: 0.008338688975 | Q90: 37.19922051 | R90: =(('pm1'!$B$41*Køl!$H$4^3)+('pm1'!$C$41*Køl!$H$4^2)+('pm1'!$D$41*Køl!$H$4)+'pm1'!$E$41)/1000 -> 0.008964720962 | S90: 0.005553645927 | T90: 19.98764715 | U90: 3590.608773 | V90: -13.94096979 | W90: 0.008338688975 | X90: 37.19922051 | Y90: 0 | Z90: =1.2*(Køling!$D$7/3600)*Y90 -> 0 | AA90: 0 | AB90: =-1*1.2*(Køling!$D$7/3600)*AA90 -> 0 | AC90: 0 | AE90: 0 | AF90: =1.2*(Køling!$J$7/3600)*AE90 -> 0 | AG90: 0 | AH90: =-1*1.2*(Køling!$J$7/3600)*AG90 -> 0 | AI90: 0 | AR90: 25 | AS90: 30 | AT90: 30 | AU90: =IF(OR(Køling!$D$21="",Køling!$J$21="",Køling!$D$19=""),0,((Køling!$D$21-AT90)/(Køling!$D$21-Køling!$D$19))) -> 0.4 | AV90: 0 | AX90: 4.5525 | AY90: =0.5*((Køling!$D$19+273.15)/(AT90-Køling!$D$19)) -> 4.5525 | AZ90: =0.5*(($U$2+273.15)/(Køling!$D$21-$U$2)) -> 2.7315
B91: 3 | C91: 22 | D91: 1 | E91: -2.099999905 | F91: -3.099999905 | G91: 91 | H91: =(('pm1'!$B$41*Køl!E91^3)+('pm1'!$C$41*Køl!E91^2)+('pm1'!$D$41*Køl!E91)+'pm1'!$E$41)/1000 -> 0.005107494645 | I91: 0.002866998433 | J91: 5.04656468 | K91: =(('pm1'!$B$41*Køl!$H$2^3)+('pm1'!$C$41*Køl!$H$2^2)+('pm1'!$D$41*Køl!$H$2)+'pm1'!$E$41)/1000 -> 0.008964720962 | L91: 0.005553645927 | M91: 19.98764715 | N91: 3014.909816 | O91: -10.74374162 | P91: 0.008870494725 | Q91: 38.54509323 | R91: =(('pm1'!$B$41*Køl!$H$4^3)+('pm1'!$C$41*Køl!$H$4^2)+('pm1'!$D$41*Køl!$H$4)+'pm1'!$E$41)/1000 -> 0.008964720962 | S91: 0.005553645927 | T91: 19.98764715 | U91: 3014.909816 | V91: -10.74374162 | W91: 0.008870494725 | X91: 38.54509323 | Y91: 0 | Z91: =1.2*(Køling!$D$7/3600)*Y91 -> 0 | AA91: 0 | AB91: =-1*1.2*(Køling!$D$7/3600)*AA91 -> 0 | AC91: 0 | AE91: 0 | AF91: =1.2*(Køling!$J$7/3600)*AE91 -> 0 | AG91: 0 | AH91: =-1*1.2*(Køling!$J$7/3600)*AG91 -> 0 | AI91: 0 | AR91: 25 | AS91: 30 | AT91: 30 | AU91: =IF(OR(Køling!$D$21="",Køling!$J$21="",Køling!$D$19=""),0,((Køling!$D$21-AT91)/(Køling!$D$21-Køling!$D$19))) -> 0.4 | AV91: 0 | AX91: 4.5525 | AY91: =0.5*((Køling!$D$19+273.15)/(AT91-Køling!$D$19)) -> 4.5525 | AZ91: =0.5*(($U$2+273.15)/(Køling!$D$21-$U$2)) -> 2.7315
B92: 3 | C92: 23 | D92: 1 | E92: -5.300000191 | F92: -6.5 | G92: 89 | H92: =(('pm1'!$B$41*Køl!E92^3)+('pm1'!$C$41*Køl!E92^2)+('pm1'!$D$41*Køl!E92)+'pm1'!$E$41)/1000 -> 0.004180368593 | I92: 0.002292891622 | J92: 0.380118428 | K92: =(('pm1'!$B$41*Køl!$H$2^3)+('pm1'!$C$41*Køl!$H$2^2)+('pm1'!$D$41*Køl!$H$2)+'pm1'!$E$41)/1000 -> 0.008964720962 | L92: 0.005553645927 | M92: 19.98764715 | N92: 3465.455883 | O92: -13.24591495 | P92: 0.008439269158 | Q92: 37.45376481 | R92: =(('pm1'!$B$41*Køl!$H$4^3)+('pm1'!$C$41*Køl!$H$4^2)+('pm1'!$D$41*Køl!$H$4)+'pm1'!$E$41)/1000 -> 0.008964720962 | S92: 0.005553645927 | T92: 19.98764715 | U92: 3465.455883 | V92: -13.24591495 | W92: 0.008439269158 | X92: 37.45376481 | Y92: 0 | Z92: =1.2*(Køling!$D$7/3600)*Y92 -> 0 | AA92: 0 | AB92: =-1*1.2*(Køling!$D$7/3600)*AA92 -> 0 | AC92: 0 | AE92: 0 | AF92: =1.2*(Køling!$J$7/3600)*AE92 -> 0 | AG92: 0 | AH92: =-1*1.2*(Køling!$J$7/3600)*AG92 -> 0 | AI92: 0 | AR92: 25 | AS92: 30 | AT92: 30 | AU92: =IF(OR(Køling!$D$21="",Køling!$J$21="",Køling!$D$19=""),0,((Køling!$D$21-AT92)/(Køling!$D$21-Køling!$D$19))) -> 0.4 | AV92: 0 | AX92: 4.5525 | AY92: =0.5*((Køling!$D$19+273.15)/(AT92-Køling!$D$19)) -> 4.5525 | AZ92: =0.5*(($U$2+273.15)/(Køling!$D$21-$U$2)) -> 2.7315
B93: 3 | C93: 24 | D93: 1 | E93: -1.700000048 | F93: -4.699999809 | G93: 75 | H93: =(('pm1'!$B$41*Køl!E93^3)+('pm1'!$C$41*Køl!E93^2)+('pm1'!$D$41*Køl!E93)+'pm1'!$E$41)/1000 -> 0.005243093623 | I93: 0.00242392381 | J93: 4.344368954 | K93: =(('pm1'!$B$41*Køl!$H$2^3)+('pm1'!$C$41*Køl!$H$2^2)+('pm1'!$D$41*Køl!$H$2)+'pm1'!$E$41)/1000 -> 0.008964720962 | L93: 0.005553645927 | M93: 19.98764715 | N93: 2460.282338 | O93: -7.663536987 | P93: 0.00961822008 | Q93: 40.43740665 | R93: =(('pm1'!$B$41*Køl!$H$4^3)+('pm1'!$C$41*Køl!$H$4^2)+('pm1'!$D$41*Køl!$H$4)+'pm1'!$E$41)/1000 -> 0.008964720962 | S93: 0.005553645927 | T93: 19.98764715 | U93: 2460.282338 | V93: -7.663536987 | W93: 0.00961822008 | X93: 40.43740665 | Y93: 0 | Z93: =1.2*(Køling!$D$7/3600)*Y93 -> 0 | AA93: 0 | AB93: =-1*1.2*(Køling!$D$7/3600)*AA93 -> 0 | AC93: 0 | AE93: 0 | AF93: =1.2*(Køling!$J$7/3600)*AE93 -> 0 | AG93: 0 | AH93: =-1*1.2*(Køling!$J$7/3600)*AG93 -> 0 | AI93: 0 | AR93: 25 | AS93: 30 | AT93: 30 | AU93: =IF(OR(Køling!$D$21="",Køling!$J$21="",Køling!$D$19=""),0,((Køling!$D$21-AT93)/(Køling!$D$21-Køling!$D$19))) -> 0.4 | AV93: 0 | AX93: 4.5525 | AY93: =0.5*((Køling!$D$19+273.15)/(AT93-Køling!$D$19)) -> 4.5525 | AZ93: =0.5*(($U$2+273.15)/(Køling!$D$21-$U$2)) -> 2.7315
B94: 3 | C94: 25 | D94: 1 | E94: 1 | F94: -1.700000048 | G94: 79 | H94: =(('pm1'!$B$41*Køl!E94^3)+('pm1'!$C$41*Køl!E94^2)+('pm1'!$D$41*Køl!E94)+'pm1'!$E$41)/1000 -> 0.006292224626 | I94: 0.003067245981 | J94: 8.682887277 | K94: =(('pm1'!$B$41*Køl!$H$2^3)+('pm1'!$C$41*Køl!$H$2^2)+('pm1'!$D$41*Køl!$H$2)+'pm1'!$E$41)/1000 -> 0.008964720962 | L94: 0.005553645927 | M94: 19.98764715 | N94: 2010.939555 | O94: -5.168046268 | P94: 0.01052644582 | Q94: 42.73590802 | R94: =(('pm1'!$B$41*Køl!$H$4^3)+('pm1'!$C$41*Køl!$H$4^2)+('pm1'!$D$41*Køl!$H$4)+'pm1'!$E$41)/1000 -> 0.008964720962 | S94: 0.005553645927 | T94: 19.98764715 | U94: 2010.939555 | V94: -5.168046268 | W94: 0.01052644582 | X94: 42.73590802 | Y94: 0 | Z94: =1.2*(Køling!$D$7/3600)*Y94 -> 0 | AA94: 0 | AB94: =-1*1.2*(Køling!$D$7/3600)*AA94 -> 0 | AC94: 0 | AE94: 0 | AF94: =1.2*(Køling!$J$7/3600)*AE94 -> 0 | AG94: 0 | AH94: =-1*1.2*(Køling!$J$7/3600)*AG94 -> 0 | AI94: 0 | AR94: 25 | AS94: 30 | AT94: 30 | AU94: =IF(OR(Køling!$D$21="",Køling!$J$21="",Køling!$D$19=""),0,((Køling!$D$21-AT94)/(Køling!$D$21-Køling!$D$19))) -> 0.4 | AV94: 0 | AX94: 4.5525 | AY94: =0.5*((Køling!$D$19+273.15)/(AT94-Køling!$D$19)) -> 4.5525 | AZ94: =0.5*(($U$2+273.15)/(Køling!$D$21-$U$2)) -> 2.7315
B95: 3 | C95: 26 | D95: 1 | E95: 2.200000048 | F95: -1.200000048 | G95: 76 | H95: =(('pm1'!$B$41*Køl!E95^3)+('pm1'!$C$41*Køl!E95^2)+('pm1'!$D$41*Køl!E95)+'pm1'!$E$41)/1000 -> 0.006840698135 | I95: 0.003208703504 | J95: 10.25129753 | K95: =(('pm1'!$B$41*Køl!$H$2^3)+('pm1'!$C$41*Køl!$H$2^2)+('pm1'!$D$41*Køl!$H$2)+'pm1'!$E$41)/1000 -> 0.008964720962 | L95: 0.005553645927 | M95: 19.98764715 | N95: 1620.508851 | O95: -2.999732378 | P95: 0.01172454712 | Q95: 45.76801487 | R95: =(('pm1'!$B$41*Køl!$H$4^3)+('pm1'!$C$41*Køl!$H$4^2)+('pm1'!$D$41*Køl!$H$4)+'pm1'!$E$41)/1000 -> 0.008964720962 | S95: 0.005553645927 | T95: 19.98764715 | U95: 1620.508851 | V95: -2.999732378 | W95: 0.01172454712 | X95: 45.76801487 | Y95: 0 | Z95: =1.2*(Køling!$D$7/3600)*Y95 -> 0 | AA95: 0 | AB95: =-1*1.2*(Køling!$D$7/3600)*AA95 -> 0 | AC95: 0 | AE95: 0 | AF95: =1.2*(Køling!$J$7/3600)*AE95 -> 0 | AG95: 0 | AH95: =-1*1.2*(Køling!$J$7/3600)*AG95 -> 0 | AI95: 0 | AR95: 25 | AS95: 30 | AT95: 30 | AU95: =IF(OR(Køling!$D$21="",Køling!$J$21="",Køling!$D$19=""),0,((Køling!$D$21-AT95)/(Køling!$D$21-Køling!$D$19))) -> 0.4 | AV95: 0 | AX95: 4.5525 | AY95: =0.5*((Køling!$D$19+273.15)/(AT95-Køling!$D$19)) -> 4.5525 | AZ95: =0.5*(($U$2+273.15)/(Køling!$D$21-$U$2)) -> 2.7315
B96: 3 | C96: 27 | D96: 1 | E96: 2.400000095 | F96: 0.6999999881 | G96: 89 | H96: =(('pm1'!$B$41*Køl!E96^3)+('pm1'!$C$41*Køl!E96^2)+('pm1'!$D$41*Køl!E96)+'pm1'!$E$41)/1000 -> 0.00693744775 | I96: 0.003814396508 | J96: 11.97123323 | K96: =(('pm1'!$B$41*Køl!$H$2^3)+('pm1'!$C$41*Køl!$H$2^2)+('pm1'!$D$41*Køl!$H$2)+'pm1'!$E$41)/1000 -> 0.008964720962 | L96: 0.005553645927 | M96: 19.98764715 | N96: 2069.858334 | O96: -5.495260306 | P96: 0.01038489444 | Q96: 42.37767546 | R96: =(('pm1'!$B$41*Køl!$H$4^3)+('pm1'!$C$41*Køl!$H$4^2)+('pm1'!$D$41*Køl!$H$4)+'pm1'!$E$41)/1000 -> 0.008964720962 | S96: 0.005553645927 | T96: 19.98764715 | U96: 2069.858334 | V96: -5.495260306 | W96: 0.01038489444 | X96: 42.37767546 | Y96: 0 | Z96: =1.2*(Køling!$D$7/3600)*Y96 -> 0 | AA96: 0 | AB96: =-1*1.2*(Køling!$D$7/3600)*AA96 -> 0 | AC96: 0 | AE96: 0 | AF96: =1.2*(Køling!$J$7/3600)*AE96 -> 0 | AG96: 0 | AH96: =-1*1.2*(Køling!$J$7/3600)*AG96 -> 0 | AI96: 0 | AR96: 25 | AS96: 30 | AT96: 30 | AU96: =IF(OR(Køling!$D$21="",Køling!$J$21="",Køling!$D$19=""),0,((Køling!$D$21-AT96)/(Køling!$D$21-Køling!$D$19))) -> 0.4 | AV96: 0 | AX96: 4.5525 | AY96: =0.5*((Køling!$D$19+273.15)/(AT96-Køling!$D$19)) -> 4.5525 | AZ96: =0.5*(($U$2+273.15)/(Køling!$D$21-$U$2)) -> 2.7315
B97: 3 | C97: 28 | D97: 1 | E97: 4 | F97: 3.900000095 | G97: 99 | H97: =(('pm1'!$B$41*Køl!E97^3)+('pm1'!$C$41*Køl!E97^2)+('pm1'!$D$41*Køl!E97)+'pm1'!$E$41)/1000 -> 0.007769502406 | I97: 0.004759042278 | J97: 15.96177201 | K97: =(('pm1'!$B$41*Køl!$H$2^3)+('pm1'!$C$41*Køl!$H$2^2)+('pm1'!$D$41*Køl!$H$2)+'pm1'!$E$41)/1000 -> 0.008964720962 | L97: 0.005553645927 | M97: 19.98764715 | N97: 2516.978121 | O97: -7.978405292 | P97: 0.009526664173 | Q97: 40.20570062 | R97: =(('pm1'!$B$41*Køl!$H$4^3)+('pm1'!$C$41*Køl!$H$4^2)+('pm1'!$D$41*Køl!$H$4)+'pm1'!$E$41)/1000 -> 0.008964720962 | S97: 0.005553645927 | T97: 19.98764715 | U97: 2516.978121 | V97: -7.978405292 | W97: 0.009526664173 | X97: 40.20570062 | Y97: 0 | Z97: =1.2*(Køling!$D$7/3600)*Y97 -> 0 | AA97: 0 | AB97: =-1*1.2*(Køling!$D$7/3600)*AA97 -> 0 | AC97: 0 | AE97: 0 | AF97: =1.2*(Køling!$J$7/3600)*AE97 -> 0 | AG97: 0 | AH97: =-1*1.2*(Køling!$J$7/3600)*AG97 -> 0 | AI97: 0 | AR97: 25 | AS97: 30 | AT97: 30 | AU97: =IF(OR(Køling!$D$21="",Køling!$J$21="",Køling!$D$19=""),0,((Køling!$D$21-AT97)/(Køling!$D$21-Køling!$D$19))) -> 0.4 | AV97: 0 | AX97: 4.5525 | AY97: =0.5*((Køling!$D$19+273.15)/(AT97-Køling!$D$19)) -> 4.5525 | AZ97: =0.5*(($U$2+273.15)/(Køling!$D$21-$U$2)) -> 2.7315
B98: 3 | C98: 29 | D98: 1 | E98: 4.800000191 | F98: 3.900000095 | G98: 94 | H98: =(('pm1'!$B$41*Køl!E98^3)+('pm1'!$C$41*Køl!E98^2)+('pm1'!$D$41*Køl!E98)+'pm1'!$E$41)/1000 -> 0.008226060701 | I98: 0.00478441127 | J98: 16.837328 | K98: =(('pm1'!$B$41*Køl!$H$2^3)+('pm1'!$C$41*Køl!$H$2^2)+('pm1'!$D$41*Køl!$H$2)+'pm1'!$E$41)/1000 -> 0.008964720962 | L98: 0.005553645927 | M98: 19.98764715 | N98: 1559.991866 | O98: -2.663642476 | P98: 0.01196393576 | Q98: 46.37385006 | R98: =(('pm1'!$B$41*Køl!$H$4^3)+('pm1'!$C$41*Køl!$H$4^2)+('pm1'!$D$41*Køl!$H$4)+'pm1'!$E$41)/1000 -> 0.008964720962 | S98: 0.005553645927 | T98: 19.98764715 | U98: 1559.991866 | V98: -2.663642476 | W98: 0.01196393576 | X98: 46.37385006 | Y98: 0 | Z98: =1.2*(Køling!$D$7/3600)*Y98 -> 0 | AA98: 0 | AB98: =-1*1.2*(Køling!$D$7/3600)*AA98 -> 0 | AC98: 0 | AE98: 0 | AF98: =1.2*(Køling!$J$7/3600)*AE98 -> 0 | AG98: 0 | AH98: =-1*1.2*(Køling!$J$7/3600)*AG98 -> 0 | AI98: 0 | AR98: 25 | AS98: 30 | AT98: 30 | AU98: =IF(OR(Køling!$D$21="",Køling!$J$21="",Køling!$D$19=""),0,((Køling!$D$21-AT98)/(Køling!$D$21-Køling!$D$19))) -> 0.4 | AV98: 0 | AX98: 4.5525 | AY98: =0.5*((Køling!$D$19+273.15)/(AT98-Køling!$D$19)) -> 4.5525 | AZ98: =0.5*(($U$2+273.15)/(Køling!$D$21-$U$2)) -> 2.7315
B99: 3 | C99: 30 | D99: 1 | E99: 5.400000095 | F99: 3 | G99: 84 | H99: =(('pm1'!$B$41*Køl!E99^3)+('pm1'!$C$41*Køl!E99^2)+('pm1'!$D$41*Køl!E99)+'pm1'!$E$41)/1000 -> 0.008587133061 | I99: 0.004460791536 | J99: 16.63364392 | K99: =(('pm1'!$B$41*Køl!$H$2^3)+('pm1'!$C$41*Køl!$H$2^2)+('pm1'!$D$41*Køl!$H$2)+'pm1'!$E$41)/1000 -> 0.008964720962 | L99: 0.005553645927 | M99: 19.98764715 | N99: 549.0209034 | O99: 2.950932296 | P99: 0.02376788866 | Q99: 76.2468219 | R99: =(('pm1'!$B$41*Køl!$H$4^3)+('pm1'!$C$41*Køl!$H$4^2)+('pm1'!$D$41*Køl!$H$4)+'pm1'!$E$41)/1000 -> 0.008964720962 | S99: 0.005553645927 | T99: 19.98764715 | U99: 549.0209034 | V99: 2.950932296 | W99: 0.02376788866 | X99: 76.2468219 | Y99: 0 | Z99: =1.2*(Køling!$D$7/3600)*Y99 -> 0 | AA99: 0 | AB99: =-1*1.2*(Køling!$D$7/3600)*AA99 -> 0 | AC99: 0 | AE99: 0 | AF99: =1.2*(Køling!$J$7/3600)*AE99 -> 0 | AG99: 0 | AH99: =-1*1.2*(Køling!$J$7/3600)*AG99 -> 0 | AI99: 0 | AR99: 25 | AS99: 30 | AT99: 30 | AU99: =IF(OR(Køling!$D$21="",Køling!$J$21="",Køling!$D$19=""),0,((Køling!$D$21-AT99)/(Køling!$D$21-Køling!$D$19))) -> 0.4 | AV99: 0 | AX99: 4.5525 | AY99: =0.5*((Køling!$D$19+273.15)/(AT99-Køling!$D$19)) -> 4.5525 | AZ99: =0.5*(($U$2+273.15)/(Køling!$D$21-$U$2)) -> 2.7315
B100: 3 | C100: 31 | D100: 1 | E100: 1 | F100: 0.1000000015 | G100: 94 | H100: =(('pm1'!$B$41*Køl!E100^3)+('pm1'!$C$41*Køl!E100^2)+('pm1'!$D$41*Køl!E100)+'pm1'!$E$41)/1000 -> 0.006292224626 | I100: 0.003653054872 | J100: 10.14908492 | K100: =(('pm1'!$B$41*Køl!$H$2^3)+('pm1'!$C$41*Køl!$H$2^2)+('pm1'!$D$41*Køl!$H$2)+'pm1'!$E$41)/1000 -> 0.008964720962 | L100: 0.005553645927 | M100: 19.98764715 | N100: 2630.760566 | O100: -8.610312703 | P100: 0.009354828038 | Q100: 39.77082461 | R100: =(('pm1'!$B$41*Køl!$H$4^3)+('pm1'!$C$41*Køl!$H$4^2)+('pm1'!$D$41*Køl!$H$4)+'pm1'!$E$41)/1000 -> 0.008964720962 | S100: 0.005553645927 | T100: 19.98764715 | U100: 2630.760566 | V100: -8.610312703 | W100: 0.009354828038 | X100: 39.77082461 | Y100: 0 | Z100: =1.2*(Køling!$D$7/3600)*Y100 -> 0 | AA100: 0 | AB100: =-1*1.2*(Køling!$D$7/3600)*AA100 -> 0 | AC100: 0 | AE100: 0 | AF100: =1.2*(Køling!$J$7/3600)*AE100 -> 0 | AG100: 0 | AH100: =-1*1.2*(Køling!$J$7/3600)*AG100 -> 0 | AI100: 0 | AR100: 25 | AS100: 30 | AT100: 30 | AU100: =IF(OR(Køling!$D$21="",Køling!$J$21="",Køling!$D$19=""),0,((Køling!$D$21-AT100)/(Køling!$D$21-Køling!$D$19))) -> 0.4 | AV100: 0 | AX100: 4.5525 | AY100: =0.5*((Køling!$D$19+273.15)/(AT100-Køling!$D$19)) -> 4.5525 | AZ100: =0.5*(($U$2+273.15)/(Køling!$D$21-$U$2)) -> 2.7315
B101: 4 | C101: 1 | D101: 1 | E101: -1.899999976 | F101: -1.899999976 | G101: 100 | H101: =(('pm1'!$B$41*Køl!E101^3)+('pm1'!$C$41*Køl!E101^2)+('pm1'!$D$41*Køl!E101)+'pm1'!$E$41)/1000 -> 0.005174696949 | I101: 0.003193670066 | J101: 6.064682429 | K101: =(('pm1'!$B$41*Køl!$H$2^3)+('pm1'!$C$41*Køl!$H$2^2)+('pm1'!$D$41*Køl!$H$2)+'pm1'!$E$41)/1000 -> 0.008964720962 | L101: 0.005553645927 | M101: 19.98764715 | N101: 3347.491856 | O101: -12.59078451 | P101: 0.008540957153 | Q101: 37.71111273 | R101: =(('pm1'!$B$41*Køl!$H$4^3)+('pm1'!$C$41*Køl!$H$4^2)+('pm1'!$D$41*Køl!$H$4)+'pm1'!$E$41)/1000 -> 0.008964720962 | S101: 0.005553645927 | T101: 19.98764715 | U101: 3347.491856 | V101: -12.59078451 | W101: 0.008540957153 | X101: 37.71111273 | Y101: 0 | Z101: =1.2*(Køling!$D$7/3600)*Y101 -> 0 | AA101: 0 | AB101: =-1*1.2*(Køling!$D$7/3600)*AA101 -> 0 | AC101: 0 | AE101: 0 | AF101: =1.2*(Køling!$J$7/3600)*AE101 -> 0 | AG101: 0 | AH101: =-1*1.2*(Køling!$J$7/3600)*AG101 -> 0 | AI101: 0 | AR101: 25 | AS101: 30 | AT101: 30 | AU101: =IF(OR(Køling!$D$21="",Køling!$J$21="",Køling!$D$19=""),0,((Køling!$D$21-AT101)/(Køling!$D$21-Køling!$D$19))) -> 0.4 | AV101: 0 | AX101: 4.5525 | AY101: =0.5*((Køling!$D$19+273.15)/(AT101-Køling!$D$19)) -> 4.5525 | AZ101: =0.5*(($U$2+273.15)/(Køling!$D$21-$U$2)) -> 2.7315
B102: 4 | C102: 2 | D102: 1 | E102: 0.1000000015 | F102: 0.1000000015 | G102: 100 | H102: =(('pm1'!$B$41*Køl!E102^3)+('pm1'!$C$41*Køl!E102^2)+('pm1'!$D$41*Køl!E102)+'pm1'!$E$41)/1000 -> 0.005915306935 | I102: 0.003653437431 | J102: 9.238526555 | K102: =(('pm1'!$B$41*Køl!$H$2^3)+('pm1'!$C$41*Køl!$H$2^2)+('pm1'!$D$41*Køl!$H$2)+'pm1'!$E$41)/1000 -> 0.008964720962 | L102: 0.005553645927 | M102: 19.98764715 | N102: 3104.922438 | O102: -11.24363985 | P102: 0.008774338296 | Q102: 38.30174439 | R102: =(('pm1'!$B$41*Køl!$H$4^3)+('pm1'!$C$41*Køl!$H$4^2)+('pm1'!$D$41*Køl!$H$4)+'pm1'!$E$41)/1000 -> 0.008964720962 | S102: 0.005553645927 | T102: 19.98764715 | U102: 3104.922438 | V102: -11.24363985 | W102: 0.008774338296 | X102: 38.30174439 | Y102: 0 | Z102: =1.2*(Køling!$D$7/3600)*Y102 -> 0 | AA102: 0 | AB102: =-1*1.2*(Køling!$D$7/3600)*AA102 -> 0 | AC102: 0 | AE102: 0 | AF102: =1.2*(Køling!$J$7/3600)*AE102 -> 0 | AG102: 0 | AH102: =-1*1.2*(Køling!$J$7/3600)*AG102 -> 0 | AI102: 0 | AR102: 25 | AS102: 30 | AT102: 30 | AU102: =IF(OR(Køling!$D$21="",Køling!$J$21="",Køling!$D$19=""),0,((Køling!$D$21-AT102)/(Køling!$D$21-Køling!$D$19))) -> 0.4 | AV102: 0 | AX102: 4.5525 | AY102: =0.5*((Køling!$D$19+273.15)/(AT102-Køling!$D$19)) -> 4.5525 | AZ102: =0.5*(($U$2+273.15)/(Køling!$D$21-$U$2)) -> 2.7315
B103: 4 | C103: 3 | D103: 1 | E103: 1.399999976 | F103: -1.100000024 | G103: 82 | H103: =(('pm1'!$B$41*Køl!E103^3)+('pm1'!$C$41*Køl!E103^2)+('pm1'!$D$41*Køl!E103)+'pm1'!$E$41)/1000 -> 0.006469066309 | I103: 0.003274285754 | J103: 9.605914886 | K103: =(('pm1'!$B$41*Køl!$H$2^3)+('pm1'!$C$41*Køl!$H$2^2)+('pm1'!$D$41*Køl!$H$2)+'pm1'!$E$41)/1000 -> 0.008964720962 | L103: 0.005553645927 | M103: 19.98764715 | N103: 2018.110204 | O103: -5.207869514 | P103: 0.01050877671 | Q103: 42.69119175 | R103: =(('pm1'!$B$41*Køl!$H$4^3)+('pm1'!$C$41*Køl!$H$4^2)+('pm1'!$D$41*Køl!$H$4)+'pm1'!$E$41)/1000 -> 0.008964720962 | S103: 0.005553645927 | T103: 19.98764715 | U103: 2018.110204 | V103: -5.207869514 | W103: 0.01050877671 | X103: 42.69119175 | Y103: 0 | Z103: =1.2*(Køling!$D$7/3600)*Y103 -> 0 | AA103: 0 | AB103: =-1*1.2*(Køling!$D$7/3600)*AA103 -> 0 | AC103: 0 | AE103: 0 | AF103: =1.2*(Køling!$J$7/3600)*AE103 -> 0 | AG103: 0 | AH103: =-1*1.2*(Køling!$J$7/3600)*AG103 -> 0 | AI103: 0 | AR103: 25 | AS103: 30 | AT103: 30 | AU103: =IF(OR(Køling!$D$21="",Køling!$J$21="",Køling!$D$19=""),0,((Køling!$D$21-AT103)/(Køling!$D$21-Køling!$D$19))) -> 0.4 | AV103: 0 | AX103: 4.5525 | AY103: =0.5*((Køling!$D$19+273.15)/(AT103-Køling!$D$19)) -> 4.5525 | AZ103: =0.5*(($U$2+273.15)/(Køling!$D$21-$U$2)) -> 2.7315
B104: 4 | C104: 4 | D104: 1 | E104: 1.399999976 | F104: 0.5 | G104: 94 | H104: =(('pm1'!$B$41*Køl!E104^3)+('pm1'!$C$41*Køl!E104^2)+('pm1'!$D$41*Køl!E104)+'pm1'!$E$41)/1000 -> 0.006469066309 | I104: 0.003756343259 | J104: 10.81279598 | K104: =(('pm1'!$B$41*Køl!$H$2^3)+('pm1'!$C$41*Køl!$H$2^2)+('pm1'!$D$41*Køl!$H$2)+'pm1'!$E$41)/1000 -> 0.008964720962 | L104: 0.005553645927 | M104: 19.98764715 | N104: 2559.39086 | O104: -8.213950628 | P104: 0.009460825622 | Q104: 40.03907905 | R104: =(('pm1'!$B$41*Køl!$H$4^3)+('pm1'!$C$41*Køl!$H$4^2)+('pm1'!$D$41*Køl!$H$4)+'pm1'!$E$41)/1000 -> 0.008964720962 | S104: 0.005553645927 | T104: 19.98764715 | U104: 2559.39086 | V104: -8.213950628 | W104: 0.009460825622 | X104: 40.03907905 | Y104: 0 | Z104: =1.2*(Køling!$D$7/3600)*Y104 -> 0 | AA104: 0 | AB104: =-1*1.2*(Køling!$D$7/3600)*AA104 -> 0 | AC104: 0 | AE104: 0 | AF104: =1.2*(Køling!$J$7/3600)*AE104 -> 0 | AG104: 0 | AH104: =-1*1.2*(Køling!$J$7/3600)*AG104 -> 0 | AI104: 0 | AR104: 25 | AS104: 30 | AT104: 30 | AU104: =IF(OR(Køling!$D$21="",Køling!$J$21="",Køling!$D$19=""),0,((Køling!$D$21-AT104)/(Køling!$D$21-Køling!$D$19))) -> 0.4 | AV104: 0 | AX104: 4.5525 | AY104: =0.5*((Køling!$D$19+273.15)/(AT104-Køling!$D$19)) -> 4.5525 | AZ104: =0.5*(($U$2+273.15)/(Køling!$D$21-$U$2)) -> 2.7315
B105: 4 | C105: 5 | D105: 1 | E105: 2.700000048 | F105: 1.700000048 | G105: 93 | H105: =(('pm1'!$B$41*Køl!E105^3)+('pm1'!$C$41*Køl!E105^2)+('pm1'!$D$41*Køl!E105)+'pm1'!$E$41)/1000 -> 0.007085524659 | I105: 0.00407258544 | J105: 12.92218876 | K105: =(('pm1'!$B$41*Køl!$H$2^3)+('pm1'!$C$41*Køl!$H$2^2)+('pm1'!$D$41*Køl!$H$2)+'pm1'!$E$41)/1000 -> 0.008964720962 | L105: 0.005553645927 | M105: 19.98764715 | N105: 2228.133138 | O105: -6.37426253 | P105: 0.01004170808 | Q105: 41.50915313 | R105: =(('pm1'!$B$41*Køl!$H$4^3)+('pm1'!$C$41*Køl!$H$4^2)+('pm1'!$D$41*Køl!$H$4)+'pm1'!$E$41)/1000 -> 0.008964720962 | S105: 0.005553645927 | T105: 19.98764715 | U105: 2228.133138 | V105: -6.37426253 | W105: 0.01004170808 | X105: 41.50915313 | Y105: 0 | Z105: =1.2*(Køling!$D$7/3600)*Y105 -> 0 | AA105: 0 | AB105: =-1*1.2*(Køling!$D$7/3600)*AA105 -> 0 | AC105: 0 | AE105: 0 | AF105: =1.2*(Køling!$J$7/3600)*AE105 -> 0 | AG105: 0 | AH105: =-1*1.2*(Køling!$J$7/3600)*AG105 -> 0 | AI105: 0 | AR105: 25 | AS105: 30 | AT105: 30 | AU105: =IF(OR(Køling!$D$21="",Køling!$J$21="",Køling!$D$19=""),0,((Køling!$D$21-AT105)/(Køling!$D$21-Køling!$D$19))) -> 0.4 | AV105: 0 | AX105: 4.5525 | AY105: =0.5*((Køling!$D$19+273.15)/(AT105-Køling!$D$19)) -> 4.5525 | AZ105: =0.5*(($U$2+273.15)/(Køling!$D$21-$U$2)) -> 2.7315
B106: 4 | C106: 6 | D106: 1 | E106: -0.3000000119 | F106: -0.3000000119 | G106: 100 | H106: =(('pm1'!$B$41*Køl!E106^3)+('pm1'!$C$41*Køl!E106^2)+('pm1'!$D$41*Køl!E106)+'pm1'!$E$41)/1000 -> 0.005756787405 | I106: 0.003554972346 | J106: 8.58720215 | K106: =(('pm1'!$B$41*Køl!$H$2^3)+('pm1'!$C$41*Køl!$H$2^2)+('pm1'!$D$41*Køl!$H$2)+'pm1'!$E$41)/1000 -> 0.008964720962 | L106: 0.005553645927 | M106: 19.98764715 | N106: 3152.090501 | O106: -11.50559457 | P106: 0.00872614367 | Q106: 38.17977535 | R106: =(('pm1'!$B$41*Køl!$H$4^3)+('pm1'!$C$41*Køl!$H$4^2)+('pm1'!$D$41*Køl!$H$4)+'pm1'!$E$41)/1000 -> 0.008964720962 | S106: 0.005553645927 | T106: 19.98764715 | U106: 3152.090501 | V106: -11.50559457 | W106: 0.00872614367 | X106: 38.17977535 | Y106: 0 | Z106: =1.2*(Køling!$D$7/3600)*Y106 -> 0 | AA106: 0 | AB106: =-1*1.2*(Køling!$D$7/3600)*AA106 -> 0 | AC106: 0 | AE106: 0 | AF106: =1.2*(Køling!$J$7/3600)*AE106 -> 0 | AG106: 0 | AH106: =-1*1.2*(Køling!$J$7/3600)*AG106 -> 0 | AI106: 0 | AR106: 25 | AS106: 30 | AT106: 30 | AU106: =IF(OR(Køling!$D$21="",Køling!$J$21="",Køling!$D$19=""),0,((Køling!$D$21-AT106)/(Køling!$D$21-Køling!$D$19))) -> 0.4 | AV106: 0 | AX106: 4.5525 | AY106: =0.5*((Køling!$D$19+273.15)/(AT106-Køling!$D$19)) -> 4.5525 | AZ106: =0.5*(($U$2+273.15)/(Køling!$D$21-$U$2)) -> 2.7315
B107: 4 | C107: 7 | D107: 1 | E107: 2.599999905 | F107: 2 | G107: 96 | H107: =(('pm1'!$B$41*Køl!E107^3)+('pm1'!$C$41*Køl!E107^2)+('pm1'!$D$41*Køl!E107)+'pm1'!$E$41)/1000 -> 0.007035769013 | I107: 0.004175121994 | J107: 13.0777709 | K107: =(('pm1'!$B$41*Køl!$H$2^3)+('pm1'!$C$41*Køl!$H$2^2)+('pm1'!$D$41*Køl!$H$2)+'pm1'!$E$41)/1000 -> 0.008964720962 | L107: 0.005553645927 | M107: 19.98764715 | N107: 2466.406285 | O107: -7.697547222 | P107: 0.009608127972 | Q107: 40.41186595 | R107: =(('pm1'!$B$41*Køl!$H$4^3)+('pm1'!$C$41*Køl!$H$4^2)+('pm1'!$D$41*Køl!$H$4)+'pm1'!$E$41)/1000 -> 0.008964720962 | S107: 0.005553645927 | T107: 19.98764715 | U107: 2466.406285 | V107: -7.697547222 | W107: 0.009608127972 | X107: 40.41186595 | Y107: 0 | Z107: =1.2*(Køling!$D$7/3600)*Y107 -> 0 | AA107: 0 | AB107: =-1*1.2*(Køling!$D$7/3600)*AA107 -> 0 | AC107: 0 | AE107: 0 | AF107: =1.2*(Køling!$J$7/3600)*AE107 -> 0 | AG107: 0 | AH107: =-1*1.2*(Køling!$J$7/3600)*AG107 -> 0 | AI107: 0 | AR107: 25 | AS107: 30 | AT107: 30 | AU107: =IF(OR(Køling!$D$21="",Køling!$J$21="",Køling!$D$19=""),0,((Køling!$D$21-AT107)/(Køling!$D$21-Køling!$D$19))) -> 0.4 | AV107: 0 | AX107: 4.5525 | AY107: =0.5*((Køling!$D$19+273.15)/(AT107-Køling!$D$19)) -> 4.5525 | AZ107: =0.5*(($U$2+273.15)/(Køling!$D$21-$U$2)) -> 2.7315
B108: 4 | C108: 8 | D108: 1 | E108: 2.099999905 | F108: 2.099999905 | G108: 100 | H108: =(('pm1'!$B$41*Køl!E108^3)+('pm1'!$C$41*Køl!E108^2)+('pm1'!$D$41*Køl!E108)+'pm1'!$E$41)/1000 -> 0.006792907197 | I108: 0.004199123924 | J108: 12.63101062 | K108: =(('pm1'!$B$41*Køl!$H$2^3)+('pm1'!$C$41*Køl!$H$2^2)+('pm1'!$D$41*Køl!$H$2)+'pm1'!$E$41)/1000 -> 0.008964720962 | L108: 0.005553645927 | M108: 19.98764715 | N108: 2879.24455 | O108: -9.990304769 | P108: 0.009026779184 | Q108: 38.94061169 | R108: =(('pm1'!$B$41*Køl!$H$4^3)+('pm1'!$C$41*Køl!$H$4^2)+('pm1'!$D$41*Køl!$H$4)+'pm1'!$E$41)/1000 -> 0.008964720962 | S108: 0.005553645927 | T108: 19.98764715 | U108: 2879.24455 | V108: -9.990304769 | W108: 0.009026779184 | X108: 38.94061169 | Y108: 0 | Z108: =1.2*(Køling!$D$7/3600)*Y108 -> 0 | AA108: 0 | AB108: =-1*1.2*(Køling!$D$7/3600)*AA108 -> 0 | AC108: 0 | AE108: 0 | AF108: =1.2*(Køling!$J$7/3600)*AE108 -> 0 | AG108: 0 | AH108: =-1*1.2*(Køling!$J$7/3600)*AG108 -> 0 | AI108: 0 | AR108: 25 | AS108: 30 | AT108: 30 | AU108: =IF(OR(Køling!$D$21="",Køling!$J$21="",Køling!$D$19=""),0,((Køling!$D$21-AT108)/(Køling!$D$21-Køling!$D$19))) -> 0.4 | AV108: 0 | AX108: 4.5525 | AY108: =0.5*((Køling!$D$19+273.15)/(AT108-Køling!$D$19)) -> 4.5525 | AZ108: =0.5*(($U$2+273.15)/(Køling!$D$21-$U$2)) -> 2.7315
B109: 4 | C109: 9 | D109: 1 | E109: 1.299999952 | F109: 0.8000000119 | G109: 96 | H109: =(('pm1'!$B$41*Køl!E109^3)+('pm1'!$C$41*Køl!E109^2)+('pm1'!$D$41*Køl!E109)+'pm1'!$E$41)/1000 -> 0.00642430486 | I109: 0.003810048127 | J109: 10.84594301 | K109: =(('pm1'!$B$41*Køl!$H$2^3)+('pm1'!$C$41*Køl!$H$2^2)+('pm1'!$D$41*Køl!$H$2)+'pm1'!$E$41)/1000 -> 0.008964720962 | L109: 0.005553645927 | M109: 19.98764715 | N109: 2695.575807 | O109: -8.970273602 | P109: 0.009263428444 | Q109: 39.53951417 | R109: =(('pm1'!$B$41*Køl!$H$4^3)+('pm1'!$C$41*Køl!$H$4^2)+('pm1'!$D$41*Køl!$H$4)+'pm1'!$E$41)/1000 -> 0.008964720962 | S109: 0.005553645927 | T109: 19.98764715 | U109: 2695.575807 | V109: -8.970273602 | W109: 0.009263428444 | X109: 39.53951417 | Y109: 0 | Z109: =1.2*(Køling!$D$7/3600)*Y109 -> 0 | AA109: 0 | AB109: =-1*1.2*(Køling!$D$7/3600)*AA109 -> 0 | AC109: 0 | AE109: 0 | AF109: =1.2*(Køling!$J$7/3600)*AE109 -> 0 | AG109: 0 | AH109: =-1*1.2*(Køling!$J$7/3600)*AG109 -> 0 | AI109: 0 | AR109: 25 | AS109: 30 | AT109: 30 | AU109: =IF(OR(Køling!$D$21="",Køling!$J$21="",Køling!$D$19=""),0,((Køling!$D$21-AT109)/(Køling!$D$21-Køling!$D$19))) -> 0.4 | AV109: 0 | AX109: 4.5525 | AY109: =0.5*((Køling!$D$19+273.15)/(AT109-Køling!$D$19)) -> 4.5525 | AZ109: =0.5*(($U$2+273.15)/(Køling!$D$21-$U$2)) -> 2.7315
B110: 4 | C110: 10 | D110: 1 | E110: 0.5 | F110: -0.6000000238 | G110: 91 | H110: =(('pm1'!$B$41*Køl!E110^3)+('pm1'!$C$41*Køl!E110^2)+('pm1'!$D$41*Køl!E110)+'pm1'!$E$41)/1000 -> 0.006079306071 | I110: 0.003415502426 | J110: 9.048347984 | K110: =(('pm1'!$B$41*Køl!$H$2^3)+('pm1'!$C$41*Køl!$H$2^2)+('pm1'!$D$41*Køl!$H$2)+'pm1'!$E$41)/1000 -> 0.008964720962 | L110: 0.005553645927 | M110: 19.98764715 | N110: 2572.325008 | O110: -8.285782305 | P110: 0.009441179567 | Q110: 39.9893596 | R110: =(('pm1'!$B$41*Køl!$H$4^3)+('pm1'!$C$41*Køl!$H$4^2)+('pm1'!$D$41*Køl!$H$4)+'pm1'!$E$41)/1000 -> 0.008964720962 | S110: 0.005553645927 | T110: 19.98764715 | U110: 2572.325008 | V110: -8.285782305 | W110: 0.009441179567 | X110: 39.9893596 | Y110: 0 | Z110: =1.2*(Køling!$D$7/3600)*Y110 -> 0 | AA110: 0 | AB110: =-1*1.2*(Køling!$D$7/3600)*AA110 -> 0 | AC110: 0 | AE110: 0 | AF110: =1.2*(Køling!$J$7/3600)*AE110 -> 0 | AG110: 0 | AH110: =-1*1.2*(Køling!$J$7/3600)*AG110 -> 0 | AI110: 0 | AR110: 25 | AS110: 30 | AT110: 30 | AU110: =IF(OR(Køling!$D$21="",Køling!$J$21="",Køling!$D$19=""),0,((Køling!$D$21-AT110)/(Køling!$D$21-Køling!$D$19))) -> 0.4 | AV110: 0 | AX110: 4.5525 | AY110: =0.5*((Køling!$D$19+273.15)/(AT110-Køling!$D$19)) -> 4.5525 | AZ110: =0.5*(($U$2+273.15)/(Køling!$D$21-$U$2)) -> 2.7315
B111: 4 | C111: 11 | D111: 1 | E111: 2.099999905 | F111: 2 | G111: 99 | H111: =(('pm1'!$B$41*Køl!E111^3)+('pm1'!$C$41*Køl!E111^2)+('pm1'!$D$41*Køl!E111)+'pm1'!$E$41)/1000 -> 0.006792907197 | I111: 0.004156852056 | J111: 12.52512356 | K111: =(('pm1'!$B$41*Køl!$H$2^3)+('pm1'!$C$41*Køl!$H$2^2)+('pm1'!$D$41*Køl!$H$2)+'pm1'!$E$41)/1000 -> 0.008964720962 | L111: 0.005553645927 | M111: 19.98764715 | N111: 2792.108538 | O111: -9.506382213 | P111: 0.009135168588 | Q111: 39.21491925 | R111: =(('pm1'!$B$41*Køl!$H$4^3)+('pm1'!$C$41*Køl!$H$4^2)+('pm1'!$D$41*Køl!$H$4)+'pm1'!$E$41)/1000 -> 0.008964720962 | S111: 0.005553645927 | T111: 19.98764715 | U111: 2792.108538 | V111: -9.506382213 | W111: 0.009135168588 | X111: 39.21491925 | Y111: 0 | Z111: =1.2*(Køling!$D$7/3600)*Y111 -> 0 | AA111: 0 | AB111: =-1*1.2*(Køling!$D$7/3600)*AA111 -> 0 | AC111: 0 | AE111: 0 | AF111: =1.2*(Køling!$J$7/3600)*AE111 -> 0 | AG111: 0 | AH111: =-1*1.2*(Køling!$J$7/3600)*AG111 -> 0 | AI111: 0 | AR111: 25 | AS111: 30 | AT111: 30 | AU111: =IF(OR(Køling!$D$21="",Køling!$J$21="",Køling!$D$19=""),0,((Køling!$D$21-AT111)/(Køling!$D$21-Køling!$D$19))) -> 0.4 | AV111: 0 | AX111: 4.5525 | AY111: =0.5*((Køling!$D$19+273.15)/(AT111-Køling!$D$19)) -> 4.5525 | AZ111: =0.5*(($U$2+273.15)/(Køling!$D$21-$U$2)) -> 2.7315
B112: 4 | C112: 12 | D112: 1 | E112: 3 | F112: 1.899999976 | G112: 92 | H112: =(('pm1'!$B$41*Køl!E112^3)+('pm1'!$C$41*Køl!E112^2)+('pm1'!$D$41*Køl!E112)+'pm1'!$E$41)/1000 -> 0.007237197277 | I112: 0.004115315351 | J112: 13.33336715 | K112: =(('pm1'!$B$41*Køl!$H$2^3)+('pm1'!$C$41*Køl!$H$2^2)+('pm1'!$D$41*Køl!$H$2)+'pm1'!$E$41)/1000 -> 0.008964720962 | L112: 0.005553645927 | M112: 19.98764715 | N112: 2085.751391 | O112: -5.58352472 | P112: 0.01034808118 | Q112: 42.28450993 | R112: =(('pm1'!$B$41*Køl!$H$4^3)+('pm1'!$C$41*Køl!$H$4^2)+('pm1'!$D$41*Køl!$H$4)+'pm1'!$E$41)/1000 -> 0.008964720962 | S112: 0.005553645927 | T112: 19.98764715 | U112: 2085.751391 | V112: -5.58352472 | W112: 0.01034808118 | X112: 42.28450993 | Y112: 0 | Z112: =1.2*(Køling!$D$7/3600)*Y112 -> 0 | AA112: 0 | AB112: =-1*1.2*(Køling!$D$7/3600)*AA112 -> 0 | AC112: 0 | AE112: 0 | AF112: =1.2*(Køling!$J$7/3600)*AE112 -> 0 | AG112: 0 | AH112: =-1*1.2*(Køling!$J$7/3600)*AG112 -> 0 | AI112: 0 | AR112: 25 | AS112: 30 | AT112: 30 | AU112: =IF(OR(Køling!$D$21="",Køling!$J$21="",Køling!$D$19=""),0,((Køling!$D$21-AT112)/(Køling!$D$21-Køling!$D$19))) -> 0.4 | AV112: 0 | AX112: 4.5525 | AY112: =0.5*((Køling!$D$19+273.15)/(AT112-Køling!$D$19)) -> 4.5525 | AZ112: =0.5*(($U$2+273.15)/(Køling!$D$21-$U$2)) -> 2.7315
B113: 4 | C113: 13 | D113: 1 | E113: 4.400000095 | F113: 3.299999952 | G113: 93 | H113: =(('pm1'!$B$41*Køl!E113^3)+('pm1'!$C$41*Køl!E113^2)+('pm1'!$D$41*Køl!E113)+'pm1'!$E$41)/1000 -> 0.007994286961 | I113: 0.004598781576 | J113: 15.96558925 | K113: =(('pm1'!$B$41*Køl!$H$2^3)+('pm1'!$C$41*Køl!$H$2^2)+('pm1'!$D$41*Køl!$H$2)+'pm1'!$E$41)/1000 -> 0.008964720962 | L113: 0.005553645927 | M113: 19.98764715 | N113: 1675.630578 | O113: -3.305858935 | P113: 0.01152154848 | Q113: 45.25427403 | R113: =(('pm1'!$B$41*Køl!$H$4^3)+('pm1'!$C$41*Køl!$H$4^2)+('pm1'!$D$41*Køl!$H$4)+'pm1'!$E$41)/1000 -> 0.008964720962 | S113: 0.005553645927 | T113: 19.98764715 | U113: 1675.630578 | V113: -3.305858935 | W113: 0.01152154848 | X113: 45.25427403 | Y113: 0 | Z113: =1.2*(Køling!$D$7/3600)*Y113 -> 0 | AA113: 0 | AB113: =-1*1.2*(Køling!$D$7/3600)*AA113 -> 0 | AC113: 0 | AE113: 0 | AF113: =1.2*(Køling!$J$7/3600)*AE113 -> 0 | AG113: 0 | AH113: =-1*1.2*(Køling!$J$7/3600)*AG113 -> 0 | AI113: 0 | AR113: 25 | AS113: 30 | AT113: 30 | AU113: =IF(OR(Køling!$D$21="",Køling!$J$21="",Køling!$D$19=""),0,((Køling!$D$21-AT113)/(Køling!$D$21-Køling!$D$19))) -> 0.4 | AV113: 0 | AX113: 4.5525 | AY113: =0.5*((Køling!$D$19+273.15)/(AT113-Køling!$D$19)) -> 4.5525 | AZ113: =0.5*(($U$2+273.15)/(Køling!$D$21-$U$2)) -> 2.7315
B114: 4 | C114: 14 | D114: 1 | E114: -0.1000000015 | F114: -0.1000000015 | G114: 100 | H114: =(('pm1'!$B$41*Køl!E114^3)+('pm1'!$C$41*Køl!E114^2)+('pm1'!$D$41*Køl!E114)+'pm1'!$E$41)/1000 -> 0.005835370996 | I114: 0.003603781006 | J114: 8.911785991 | K114: =(('pm1'!$B$41*Køl!$H$2^3)+('pm1'!$C$41*Køl!$H$2^2)+('pm1'!$D$41*Køl!$H$2)+'pm1'!$E$41)/1000 -> 0.008964720962 | L114: 0.005553645927 | M114: 19.98764715 | N114: 3128.421838 | O114: -11.3741472 | P114: 0.008750145798 | Q114: 38.24051898 | R114: =(('pm1'!$B$41*Køl!$H$4^3)+('pm1'!$C$41*Køl!$H$4^2)+('pm1'!$D$41*Køl!$H$4)+'pm1'!$E$41)/1000 -> 0.008964720962 | S114: 0.005553645927 | T114: 19.98764715 | U114: 3128.421838 | V114: -11.3741472 | W114: 0.008750145798 | X114: 38.24051898 | Y114: 0 | Z114: =1.2*(Køling!$D$7/3600)*Y114 -> 0 | AA114: 0 | AB114: =-1*1.2*(Køling!$D$7/3600)*AA114 -> 0 | AC114: 0 | AE114: 0 | AF114: =1.2*(Køling!$J$7/3600)*AE114 -> 0 | AG114: 0 | AH114: =-1*1.2*(Køling!$J$7/3600)*AG114 -> 0 | AI114: 0 | AR114: 25 | AS114: 30 | AT114: 30 | AU114: =IF(OR(Køling!$D$21="",Køling!$J$21="",Køling!$D$19=""),0,((Køling!$D$21-AT114)/(Køling!$D$21-Køling!$D$19))) -> 0.4 | AV114: 0 | AX114: 4.5525 | AY114: =0.5*((Køling!$D$19+273.15)/(AT114-Køling!$D$19)) -> 4.5525 | AZ114: =0.5*(($U$2+273.15)/(Køling!$D$21-$U$2)) -> 2.7315
B115: 4 | C115: 15 | D115: 1 | E115: 6.599999905 | F115: 6.099999905 | G115: 97 | H115: =(('pm1'!$B$41*Køl!E115^3)+('pm1'!$C$41*Køl!E115^2)+('pm1'!$D$41*Køl!E115)+'pm1'!$E$41)/1000 -> 0.009359298337 | I115: 0.005624781587 | J115: 20.77622847 | K115: =(('pm1'!$B$41*Køl!$H$2^3)+('pm1'!$C$41*Køl!$H$2^2)+('pm1'!$D$41*Køl!$H$2)+'pm1'!$E$41)/1000 -> 0.008964720962 | L115: 0.005553645927 | M115: 19.98764715 | N115: 8434.586961 | O115: -40.84270952 | P115: 0.006739240438 | Q115: 33.15140013 | R115: =(('pm1'!$B$41*Køl!$H$4^3)+('pm1'!$C$41*Køl!$H$4^2)+('pm1'!$D$41*Køl!$H$4)+'pm1'!$E$41)/1000 -> 0.008964720962 | S115: 0.005553645927 | T115: 19.98764715 | U115: 8434.586961 | V115: -40.84270952 | W115: 0.006739240438 | X115: 33.15140013 | Y115: 0 | Z115: =1.2*(Køling!$D$7/3600)*Y115 -> 0 | AA115: 0 | AB115: =-1*1.2*(Køling!$D$7/3600)*AA115 -> 0 | AC115: 0 | AE115: 0 | AF115: =1.2*(Køling!$J$7/3600)*AE115 -> 0 | AG115: 0 | AH115: =-1*1.2*(Køling!$J$7/3600)*AG115 -> 0 | AI115: 0 | AR115: 25 | AS115: 30 | AT115: 30 | AU115: =IF(OR(Køling!$D$21="",Køling!$J$21="",Køling!$D$19=""),0,((Køling!$D$21-AT115)/(Køling!$D$21-Køling!$D$19))) -> 0.4 | AV115: 0 | AX115: 4.5525 | AY115: =0.5*((Køling!$D$19+273.15)/(AT115-Køling!$D$19)) -> 4.5525 | AZ115: =0.5*(($U$2+273.15)/(Køling!$D$21-$U$2)) -> 2.7315
B116: 4 | C116: 16 | D116: 1 | E116: 4.400000095 | F116: 3.700000048 | G116: 95 | H116: =(('pm1'!$B$41*Køl!E116^3)+('pm1'!$C$41*Køl!E116^2)+('pm1'!$D$41*Køl!E116)+'pm1'!$E$41)/1000 -> 0.007994286961 | I116: 0.004698427158 | J116: 16.21561835 | K116: =(('pm1'!$B$41*Køl!$H$2^3)+('pm1'!$C$41*Køl!$H$2^2)+('pm1'!$D$41*Køl!$H$2)+'pm1'!$E$41)/1000 -> 0.008964720962 | L116: 0.005553645927 | M116: 19.98764715 | N116: 1870.866219 | O116: -4.39012856 | P116: 0.01089876355 | Q116: 43.67815484 | R116: =(('pm1'!$B$41*Køl!$H$4^3)+('pm1'!$C$41*Køl!$H$4^2)+('pm1'!$D$41*Køl!$H$4)+'pm1'!$E$41)/1000 -> 0.008964720962 | S116: 0.005553645927 | T116: 19.98764715 | U116: 1870.866219 | V116: -4.39012856 | W116: 0.01089876355 | X116: 43.67815484 | Y116: 0 | Z116: =1.2*(Køling!$D$7/3600)*Y116 -> 0 | AA116: 0 | AB116: =-1*1.2*(Køling!$D$7/3600)*AA116 -> 0 | AC116: 0 | AE116: 0 | AF116: =1.2*(Køling!$J$7/3600)*AE116 -> 0 | AG116: 0 | AH116: =-1*1.2*(Køling!$J$7/3600)*AG116 -> 0 | AI116: 0 | AR116: 25 | AS116: 30 | AT116: 30 | AU116: =IF(OR(Køling!$D$21="",Køling!$J$21="",Køling!$D$19=""),0,((Køling!$D$21-AT116)/(Køling!$D$21-Køling!$D$19))) -> 0.4 | AV116: 0 | AX116: 4.5525 | AY116: =0.5*((Køling!$D$19+273.15)/(AT116-Køling!$D$19)) -> 4.5525 | AZ116: =0.5*(($U$2+273.15)/(Køling!$D$21-$U$2)) -> 2.7315
B117: 4 | C117: 17 | D117: 1 | E117: 4.300000191 | F117: 3.200000048 | G117: 93 | H117: =(('pm1'!$B$41*Køl!E117^3)+('pm1'!$C$41*Køl!E117^2)+('pm1'!$D$41*Køl!E117)+'pm1'!$E$41)/1000 -> 0.007937441139 | I117: 0.004565840489 | J117: 15.78148485 | K117: =(('pm1'!$B$41*Køl!$H$2^3)+('pm1'!$C$41*Køl!$H$2^2)+('pm1'!$D$41*Køl!$H$2)+'pm1'!$E$41)/1000 -> 0.008964720962 | L117: 0.005553645927 | M117: 19.98764715 | N117: 1720.986485 | O117: -3.557749581 | P117: 0.01136426681 | Q117: 44.85623186 | R117: =(('pm1'!$B$41*Køl!$H$4^3)+('pm1'!$C$41*Køl!$H$4^2)+('pm1'!$D$41*Køl!$H$4)+'pm1'!$E$41)/1000 -> 0.008964720962 | S117: 0.005553645927 | T117: 19.98764715 | U117: 1720.986485 | V117: -3.557749581 | W117: 0.01136426681 | X117: 44.85623186 | Y117: 0 | Z117: =1.2*(Køling!$D$7/3600)*Y117 -> 0 | AA117: 0 | AB117: =-1*1.2*(Køling!$D$7/3600)*AA117 -> 0 | AC117: 0 | AE117: 0 | AF117: =1.2*(Køling!$J$7/3600)*AE117 -> 0 | AG117: 0 | AH117: =-1*1.2*(Køling!$J$7/3600)*AG117 -> 0 | AI117: 0 | AR117: 25 | AS117: 30 | AT117: 30 | AU117: =IF(OR(Køling!$D$21="",Køling!$J$21="",Køling!$D$19=""),0,((Køling!$D$21-AT117)/(Køling!$D$21-Køling!$D$19))) -> 0.4 | AV117: 0 | AX117: 4.5525 | AY117: =0.5*((Køling!$D$19+273.15)/(AT117-Køling!$D$19)) -> 4.5525 | AZ117: =0.5*(($U$2+273.15)/(Køling!$D$21-$U$2)) -> 2.7315
B118: 4 | C118: 18 | D118: 1 | E118: 3.700000048 | F118: 2.700000048 | G118: 93 | H118: =(('pm1'!$B$41*Køl!E118^3)+('pm1'!$C$41*Køl!E118^2)+('pm1'!$D$41*Køl!E118)+'pm1'!$E$41)/1000 -> 0.007605416231 | I118: 0.004373507456 | J118: 14.69044068 | K118: =(('pm1'!$B$41*Køl!$H$2^3)+('pm1'!$C$41*Køl!$H$2^2)+('pm1'!$D$41*Køl!$H$2)+'pm1'!$E$41)/1000 -> 0.008964720962 | L118: 0.005553645927 | M118: 19.98764715 | N118: 1948.923799 | O118: -4.823632718 | P118: 0.01068468287 | Q118: 43.13636801 | R118: =(('pm1'!$B$41*Køl!$H$4^3)+('pm1'!$C$41*Køl!$H$4^2)+('pm1'!$D$41*Køl!$H$4)+'pm1'!$E$41)/1000 -> 0.008964720962 | S118: 0.005553645927 | T118: 19.98764715 | U118: 1948.923799 | V118: -4.823632718 | W118: 0.01068468287 | X118: 43.13636801 | Y118: 0 | Z118: =1.2*(Køling!$D$7/3600)*Y118 -> 0 | AA118: 0 | AB118: =-1*1.2*(Køling!$D$7/3600)*AA118 -> 0 | AC118: 0 | AE118: 0 | AF118: =1.2*(Køling!$J$7/3600)*AE118 -> 0 | AG118: 0 | AH118: =-1*1.2*(Køling!$J$7/3600)*AG118 -> 0 | AI118: 0 | AR118: 25 | AS118: 30 | AT118: 30 | AU118: =IF(OR(Køling!$D$21="",Køling!$J$21="",Køling!$D$19=""),0,((Køling!$D$21-AT118)/(Køling!$D$21-Køling!$D$19))) -> 0.4 | AV118: 0 | AX118: 4.5525 | AY118: =0.5*((Køling!$D$19+273.15)/(AT118-Køling!$D$19)) -> 4.5525 | AZ118: =0.5*(($U$2+273.15)/(Køling!$D$21-$U$2)) -> 2.7315
B119: 4 | C119: 19 | D119: 1 | E119: -1 | F119: -2.599999905 | G119: 86 | H119: =(('pm1'!$B$41*Køl!E119^3)+('pm1'!$C$41*Køl!E119^2)+('pm1'!$D$41*Køl!E119)+'pm1'!$E$41)/1000 -> 0.005492141188 | I119: 0.002913739843 | J119: 6.275843792 | K119: =(('pm1'!$B$41*Køl!$H$2^3)+('pm1'!$C$41*Køl!$H$2^2)+('pm1'!$D$41*Køl!$H$2)+'pm1'!$E$41)/1000 -> 0.008964720962 | L119: 0.005553645927 | M119: 19.98764715 | N119: 2651.60948 | O119: -8.726100192 | P119: 0.009324940333 | Q119: 39.695186 | R119: =(('pm1'!$B$41*Køl!$H$4^3)+('pm1'!$C$41*Køl!$H$4^2)+('pm1'!$D$41*Køl!$H$4)+'pm1'!$E$41)/1000 -> 0.008964720962 | S119: 0.005553645927 | T119: 19.98764715 | U119: 2651.60948 | V119: -8.726100192 | W119: 0.009324940333 | X119: 39.695186 | Y119: 0 | Z119: =1.2*(Køling!$D$7/3600)*Y119 -> 0 | AA119: 0 | AB119: =-1*1.2*(Køling!$D$7/3600)*AA119 -> 0 | AC119: 0 | AE119: 0 | AF119: =1.2*(Køling!$J$7/3600)*AE119 -> 0 | AG119: 0 | AH119: =-1*1.2*(Køling!$J$7/3600)*AG119 -> 0 | AI119: 0 | AR119: 25 | AS119: 30 | AT119: 30 | AU119: =IF(OR(Køling!$D$21="",Køling!$J$21="",Køling!$D$19=""),0,((Køling!$D$21-AT119)/(Køling!$D$21-Køling!$D$19))) -> 0.4 | AV119: 0 | AX119: 4.5525 | AY119: =0.5*((Køling!$D$19+273.15)/(AT119-Køling!$D$19)) -> 4.5525 | AZ119: =0.5*(($U$2+273.15)/(Køling!$D$21-$U$2)) -> 2.7315
